Workbook

Sheet Disclaimer
D10: Disclaimer
D12: This Design Calculation Spreadsheet is provided "as-is" without warranty of any kind. The Montana Department of Transportation makes no representations or warranties whatsoever with respect to the accuracy or completeness of this tool and assumes no responsibility for the suitability of this tool for a particular purpose; and MDT will not be liable for any damages incurred as a result of errors in this tool. By selecting Accept, you are agreeing to these terms and conditions.
K22: WARNING: For the tool to work properly, please make sure you click on "Enable Content/Macros" if the security warning appears.

Sheet Project&Typical Info (hidden)
A1: Project Information
A2: Asphalt Cement Content = | F2: 5.4 | G2: % | H2: Surfacing Design Activity 600 or RDM Appendix J, Pg 9
A3: Hydrated Lime = | F3: 1.4 | G3: % | H3: RDM Appendix J, Pg 9
A4: Comp. Weight of Aggregate = | F4: 3700 | G4: lb/yd3 | H4: RDM Appendix J, Pg 9
A5: Comp. Weight of Plant Mix Bit. Surf. = | F5: 3855 | G5: lb/yd3 | H5: RDM Appendix J, Pg 9
A6: Bituminous Material = | F6: 8.5 | G6: lb/gal | H6: RDM Appendix J, Pg 9
A7: Emulsified Asphalt - Tack (all other surf.)= | F7: 0.05 | G7: gal/yd2 | H7: RDM Appendix J, Pg 9
A8: Emulsified Asphalt - Fog Seal (seal & cover) = | F8: 0.075 | G8: gal/yd2 | H8: RDM Appendix J, Pg 9
A9: Seal = | F9: 0.42 | G9: gal/yd2 | H9: RDM Appendix J, Pg 9
A12: Typical Section Information
B13: Input for Symmetrical Typical Sections or Left Side for Unsymmetrical Typical Sections | H13: Input for Right Side on Unsymmetrical Typical Sections (Automated for Symmetrical Typical Sections)
A15: Typical Section No. | B15: Finished Surface Width LT. (ft) | C15: Pl. Mix. Thickness LT. (ft) | D15: Cr. Agg. Course Thickness LT. (ft) | E15: Curb & Gutter LT. (Y or N) | F15: Crown LT. (ft/ft) | G15: Surfacing Inslope LT. (_:1) | H15: Finished Surface Width RT. (ft) | I15: Pl. Mix. Thickness RT. (ft) | J15: Cr. Agg. Course Thickness RT. (ft) | K15: Curb & Gutter RT. (Y or N) | L15: Crown RT. (ft/ft) | M15: Surfacing Inslope RT. (_:1) | N15: Symmetrical (TRUE or FALSE)
A16: 1 | B16: 16 | C16: 0.3 | D16: 0.85 | E16: N | F16: 0.02 | G16: 6 | H16: =B16 -> 16 | I16: =C16 -> 0.3 | J16: =D16 -> 0.85 | K16: =E16 -> N | L16: =F16 -> 0.02 | M16: =G16 -> 6 | N16: =AND(B16=H16,C16=I16,D16=J16,E16=K16,F16=L16,G16=M16) -> TRUE
A17: 2 | B17: 16 | C17: 0.3 | D17: 0.85 | E17: N | F17: -0.04 | G17: 6 | H17: 16 | I17: 0.3 | J17: 0.85 | K17: N | L17: 0.04 | M17: 6 | N17: FALSE
A18: 3 | H18: 0 | I18: 0 | J18: 0 | K18: 0 | L18: 0 | M18: 0 | N18: TRUE
A19: 4 | H19: 0 | I19: 0 | J19: 0 | K19: 0 | L19: 0 | M19: 0 | N19: TRUE
A20: 5 | H20: 0 | I20: 0 | J20: 0 | K20: 0 | L20: 0 | M20: 0 | N20: TRUE
A21: 6 | H21: 0 | I21: 0 | J21: 0 | K21: 0 | L21: 0 | M21: 0 | N21: TRUE
A22: 7 | H22: 0 | I22: 0 | J22: 0 | K22: 0 | L22: 0 | M22: 0 | N22: TRUE
A23: 8 | H23: 0 | I23: 0 | J23: 0 | K23: 0 | L23: 0 | M23: 0 | N23: TRUE
A24: 9 | H24: 0 | I24: 0 | J24: 0 | K24: 0 | L24: 0 | M24: 0 | N24: TRUE
A25: 10 | H25: 0 | I25: 0 | J25: 0 | K25: 0 | L25: 0 | M25: 0 | N25: TRUE
A26: 11 | H26: 0 | I26: 0 | J26: 0 | K26: 0 | L26: 0 | M26: 0 | N26: TRUE
A27: 12 | H27: 0 | I27: 0 | J27: 0 | K27: 0 | L27: 0 | M27: 0 | N27: TRUE
A28: 13 | H28: 0 | I28: 0 | J28: 0 | K28: 0 | L28: 0 | M28: 0 | N28: TRUE
A29: 14 | H29: 0 | I29: 0 | J29: 0 | K29: 0 | L29: 0 | M29: 0 | N29: TRUE
A30: 15 | H30: 0 | I30: 0 | J30: 0 | K30: 0 | L30: 0 | M30: 0 | N30: TRUE
A31: 16 | H31: 0 | I31: 0 | J31: 0 | K31: 0 | L31: 0 | M31: 0 | N31: TRUE
A32: 17 | H32: 0 | I32: 0 | J32: 0 | K32: 0 | L32: 0 | M32: 0 | N32: TRUE
A33: 18 | H33: 0 | I33: 0 | J33: 0 | K33: 0 | L33: 0 | M33: 0 | N33: TRUE
A34: 19 | H34: 0 | I34: 0 | J34: 0 | K34: 0 | L34: 0 | M34: 0 | N34: TRUE
A35: 20 | H35: 0 | I35: 0 | J35: 0 | K35: 0 | L35: 0 | M35: 0 | N35: TRUE
H37: NOTE: CELLS FILLED WITH THIS COLOR HAVE BEEN MODIFIED AND NEED TO BE RESET FOR SYMMETRICAL SECTIONS
A40: TYPICAL SECTION NO. | B40: COVER (yd2/STA) | C40: PLANT MIX (yd3/STA) | D40: CRUSHED AGG. COURSE (yd3/STA) | E40: PLANT MIX (T/STA) | F40: CRUSHED AGG. COURSE (T/STA) | G40: ASPHALT CEMENT (T/STA) | H40: SEAL (T/STA) | I40: AGG. TREAT. (yd2/STA) | J40: EMULS. ASPHALT TACK (yd2/STA) | K40: EMULS. ASPHALT TACK (gal/STA) | L40: EMULS. ASPHALT FOG SEAL (gal/STA) | O40: Wx Full (ft) | P40: PLANT MIX BIT. SURF. END AREA (ft2) | Q40: CRUSHED AGG. COURSE AREA (ft2) | R40: Wx LT. (ft) | S40: Wx RT. (ft) | T40: PLANT MIX BIT. SURF. END AREA LT. (ft2) | U40: PLANT MIX BIT. SURF. END AREA RT. (ft2) | V40: CRUSHED AGG. COURSE AREA LT. (ft2) | W40: CRUSHED AGG. COURSE AREA RT. (ft2) | X40: WS LT. (ft) | Y40: WS RT. (ft) | AA40: Z LT, ACTUAL (SEE APP. K, RDM) | AB40: Z RT, ACTUAL (SEE APP. K, RDM)
A41: ='Project&Typical Info'!A16 -> 1 | B41: =IF(N16=TRUE,ROUND((200*B16/9),0),ROUND((B16+H16)*100/9,0)) -> 356 | C41: =ROUND(P41*100/27,1) -> 37.8 | D41: =ROUND(Q41*100/27,1) -> 131.6 | E41: =ROUND(C41*$F$5/2000,1) -> 72.9 | F41: =ROUND(D41*$F$4/2000,1) -> 243.5 | G41: =ROUND($F$2/100*E41,2) -> 3.94 | H41: =ROUND(B41*$F$9*$F$6/2000,2) -> 0.64 | I41: =ROUND(O41*100/9,0) -> 400 | J41: =ROUND(ROUND(O41*100/9,0)*ROUNDUP(C16/0.2,0),0) -> 800 | K41: =ROUND(J41*$F$7,0) -> 40 | L41: =ROUND(B41*$F$8,0) -> 27 | O41: =R41+S41 -> 36 | P41: =IF(C16=0,0,IF(N16=TRUE,ROUND((B16*2+O41)/2*C16,2),ROUND(T41+U41,2))) -> 10.2 | Q41: =IF(D16=0,0,IF(N16=TRUE,IF(K16="N",ROUND((ROUND(B16+((C16+D16)*G16)/(1-F16*G16),1)*2+O41)/2*D16,2),O41*(0.5-C16)+(O41+4)*(D16-0.5+C16)),ROUND(V41+W41,2))) -> 35.53 | R41: =IF(C16=0,0,IF(E16="N",ROUND(B16+(C16*AA41/(1-F16*AA41)),1),ROUND(B16,1))) -> 18 | S41: =IF(I16=0,0,IF(K16="N",ROUND(H16+(I16*AB41/(1-L16*AB41)),1),ROUND(H16,1))) -> 18 | T41: =(B16+R41)/2*C16 -> 5.1 | U41: =(H16+S41)/2*I16 -> 5.1 | V41: =IF(D16=0,0,IF(E16="N",IF(F16>0.02,(R41-(R41-B16)+X41-(X41-B16))/2*D16+((X41-R41)*(D16-(F16-0.02)*(R41-B16))+(R41-B16)*(2*D16-(F16-0.02)*(R41-B16)))/2,(R41+X41)/2*D16),B16*(0.5-C16)+(B16+2)*(D16-0.5+C16))) -> 17.765 | W41: =IF(J16=0,0,IF(K16="N",IF(L16>0.02,(S41-(S41-H16)+Y41-(Y41-H16))/2*J16+((Y41-S41)*(J16-(L16-0.02)*(S41-H16))+(S41-H16)*(2*J16-(L16-0.02)*(S41-H16)))/2,(S41+Y41)/2*J16),H16*(0.5-I16)+(H16+2)*(J16-0.5+I16))) -> 17.765 | X41: =IF(D16=0,0,IF(E16="N",IF(F16<0.02,ROUND(B16+((C16+D16)*G16)/(1-F16*G16),1),ROUND(B16+((C16+D16)*G16)/(1-0.02*G16),1)),B16+2)) -> 23.8 | Y41: =IF(J16=0,0,IF(K16="N",IF(L16<0.02,ROUND(H16+((I16+J16)*M16)/(1-L16*M16),1),ROUND(H16+((I16+J16)*M16)/(1-0.02*M16),1)),H16+2)) -> 23.8 | AA41: =IF(F16>0.02,(X41-B16)/(C16+D16+X41*0.02-B16*0.02),(X41-B16)/(C16+D16+X41*F16-B16*F16)) -> 5.972434916 | AB41: =IF(L16>0.02,(Y41-H16)/(I16+J16+Y41*0.02-H16*0.02),(Y41-H16)/(I16+J16+Y41*L16-H16*L16)) -> 5.972434916
A42: ='Project&Typical Info'!A17 -> 2 | B42: 356 | C42: =ROUND(P42*100/27,1) -> 37.7 | D42: =ROUND(Q42*100/27,1) -> 127.3 | E42: 72.7 | F42: 235.5 | G42: =ROUND($F$2/100*E42,2) -> 3.93 | H42: =ROUND(B42*$F$9*$F$6/2000,2) -> 0.64 | I42: 399 | J42: =ROUND(ROUND(O42*100/9,0)*ROUNDUP(C17/0.2,0),0) -> 798 | K42: =ROUND(J42*$F$7,0) -> 40 | L42: =ROUND(B42*$F$8,0) -> 27 | O42: =R42+S42 -> 35.9 | P42: =IF(C17=0,0,IF(N17=TRUE,ROUND((B17*2+O42)/2*C17,2),ROUND(T42+U42,2))) -> 10.19 | Q42: =IF(D17=0,0,IF(N17=TRUE,IF(K17="N",ROUND((ROUND(B17+((C17+D17)*G17)/(1-F17*G17),1)*2+O42)/2*D17,2),O42*(0.5-C17)+(O42+4)*(D17-0.5+C17)),ROUND(V42+W42,2))) -> 34.37 | R42: =IF(C17=0,0,IF(E17="N",ROUND(B17+(C17*AA42/(1-F17*AA42)),1),ROUND(B17,1))) -> 17.5 | S42: 18.4 | T42: =(B17+R42)/2*C17 -> 5.025 | U42: =(H17+S42)/2*I17 -> 5.16 | V42: =IF(D17=0,0,IF(E17="N",IF(F17>0.02,(R42-(R42-B17)+X42-(X42-B17))/2*D17+((X42-R42)*(D17-(F17-0.02)*(R42-B17))+(R42-B17)*(2*D17-(F17-0.02)*(R42-B17)))/2,(R42+X42)/2*D17),B17*(0.5-C17)+(B17+2)*(D17-0.5+C17))) -> 16.6175 | W42: =IF(J17=0,0,IF(K17="N",IF(L17>0.02,(S42-(S42-H17)+Y42-(Y42-H17))/2*J17+((Y42-S42)*(J17-(L17-0.02)*(S42-H17))+(S42-H17)*(2*J17-(L17-0.02)*(S42-H17)))/2,(S42+Y42)/2*J17),H17*(0.5-I17)+(H17+2)*(J17-0.5+I17))) -> 17.7478 | X42: =IF(D17=0,0,IF(E17="N",IF(F17<0.02,ROUND(B17+((C17+D17)*G17)/(1-F17*G17),1),ROUND(B17+((C17+D17)*G17)/(1-0.02*G17),1)),B17+2)) -> 21.6 | Y42: =IF(J17=0,0,IF(K17="N",IF(L17<0.02,ROUND(H17+((I17+J17)*M17)/(1-L17*M17),1),ROUND(H17+((I17+J17)*M17)/(1-0.02*M17),1)),H17+2)) -> 23.8 | AA42: =IF(F17>0.02,(X42-B17)/(C17+D17+X42*0.02-B17*0.02),(X42-B17)/(C17+D17+X42*F17-B17*F17)) -> 6.047516199 | AB42: 5.972434916
A43: ='Project&Typical Info'!A18 -> 3 | B43: 0 | C43: 0 | D43: 0 | E43: 0 | F43: 0 | G43: 0 | H43: 0 | I43: 0 | J43: 0 | K43: 0 | L43: 0 | O43: 0 | P43: 0 | Q43: 0 | R43: 0 | S43: 0 | T43: 0 | U43: 0 | V43: 0 | W43: 0 | X43: 0 | Y43: 0
A44: ='Project&Typical Info'!A19 -> 4 | B44: 0 | C44: 0 | D44: 0 | E44: 0 | F44: 0 | G44: 0 | H44: 0 | I44: 0 | J44: 0 | K44: 0 | L44: 0 | O44: 0 | P44: 0 | Q44: 0 | R44: 0 | S44: 0 | T44: 0 | U44: 0 | V44: 0 | W44: 0 | X44: 0 | Y44: 0
A45: ='Project&Typical Info'!A20 -> 5 | B45: 0 | C45: 0 | D45: 0 | E45: 0 | F45: 0 | G45: 0 | H45: 0 | I45: 0 | J45: 0 | K45: 0 | L45: 0 | O45: 0 | P45: 0 | Q45: 0 | R45: 0 | S45: 0 | T45: 0 | U45: 0 | V45: 0 | W45: 0 | X45: 0 | Y45: 0
A46: ='Project&Typical Info'!A21 -> 6 | B46: 0 | C46: 0 | D46: 0 | E46: 0 | F46: 0 | G46: 0 | H46: 0 | I46: 0 | J46: 0 | K46: 0 | L46: 0 | O46: 0 | P46: 0 | Q46: 0 | R46: 0 | S46: 0 | T46: 0 | U46: 0 | V46: 0 | W46: 0 | X46: 0 | Y46: 0
A47: ='Project&Typical Info'!A22 -> 7 | B47: 0 | C47: 0 | D47: 0 | E47: 0 | F47: 0 | G47: 0 | H47: 0 | I47: 0 | J47: 0 | K47: 0 | L47: 0 | O47: 0 | P47: 0 | Q47: 0 | R47: 0 | S47: 0 | T47: 0 | U47: 0 | V47: 0 | W47: 0 | X47: 0 | Y47: 0
A48: ='Project&Typical Info'!A23 -> 8 | B48: 0 | C48: 0 | D48: 0 | E48: 0 | F48: 0 | G48: 0 | H48: 0 | I48: 0 | J48: 0 | K48: 0 | L48: 0 | O48: 0 | P48: 0 | Q48: 0 | R48: 0 | S48: 0 | T48: 0 | U48: 0 | V48: 0 | W48: 0 | X48: 0 | Y48: 0
A49: ='Project&Typical Info'!A24 -> 9 | B49: 0 | C49: 0 | D49: 0 | E49: 0 | F49: 0 | G49: 0 | H49: 0 | I49: 0 | J49: 0 | K49: 0 | L49: 0 | O49: 0 | P49: 0 | Q49: 0 | R49: 0 | S49: 0 | T49: 0 | U49: 0 | V49: 0 | W49: 0 | X49: 0 | Y49: 0
A50: ='Project&Typical Info'!A25 -> 10 | B50: 0 | C50: 0 | D50: 0 | E50: 0 | F50: 0 | G50: 0 | H50: 0 | I50: 0 | J50: 0 | K50: 0 | L50: 0 | O50: 0 | P50: 0 | Q50: 0 | R50: 0 | S50: 0 | T50: 0 | U50: 0 | V50: 0 | W50: 0 | X50: 0 | Y50: 0
A51: ='Project&Typical Info'!A26 -> 11 | B51: 0 | C51: 0 | D51: 0 | E51: 0 | F51: 0 | G51: 0 | H51: 0 | I51: 0 | J51: 0 | K51: 0 | L51: 0 | O51: 0 | P51: 0 | Q51: 0 | R51: 0 | S51: 0 | T51: 0 | U51: 0 | V51: 0 | W51: 0 | X51: 0 | Y51: 0
A52: ='Project&Typical Info'!A27 -> 12 | B52: 0 | C52: 0 | D52: 0 | E52: 0 | F52: 0 | G52: 0 | H52: 0 | I52: 0 | J52: 0 | K52: 0 | L52: 0 | O52: 0 | P52: 0 | Q52: 0 | R52: 0 | S52: 0 | T52: 0 | U52: 0 | V52: 0 | W52: 0 | X52: 0 | Y52: 0
A53: ='Project&Typical Info'!A28 -> 13 | B53: 0 | C53: 0 | D53: 0 | E53: 0 | F53: 0 | G53: 0 | H53: 0 | I53: 0 | J53: 0 | K53: 0 | L53: 0 | O53: 0 | P53: 0 | Q53: 0 | R53: 0 | S53: 0 | T53: 0 | U53: 0 | V53: 0 | W53: 0 | X53: 0 | Y53: 0
A54: ='Project&Typical Info'!A29 -> 14 | B54: 0 | C54: 0 | D54: 0 | E54: 0 | F54: 0 | G54: 0 | H54: 0 | I54: 0 | J54: 0 | K54: 0 | L54: 0 | O54: 0 | P54: 0 | Q54: 0 | R54: 0 | S54: 0 | T54: 0 | U54: 0 | V54: 0 | W54: 0 | X54: 0 | Y54: 0
A55: ='Project&Typical Info'!A30 -> 15 | B55: 0 | C55: 0 | D55: 0 | E55: 0 | F55: 0 | G55: 0 | H55: 0 | I55: 0 | J55: 0 | K55: 0 | L55: 0 | O55: 0 | P55: 0 | Q55: 0 | R55: 0 | S55: 0 | T55: 0 | U55: 0 | V55: 0 | W55: 0 | X55: 0 | Y55: 0
A56: ='Project&Typical Info'!A31 -> 16 | B56: 0 | C56: 0 | D56: 0 | E56: 0 | F56: 0 | G56: 0 | H56: 0 | I56: 0 | J56: 0 | K56: 0 | L56: 0 | O56: 0 | P56: 0 | Q56: 0 | R56: 0 | S56: 0 | T56: 0 | U56: 0 | V56: 0 | W56: 0 | X56: 0 | Y56: 0
A57: ='Project&Typical Info'!A32 -> 17 | B57: 0 | C57: 0 | D57: 0 | E57: 0 | F57: 0 | G57: 0 | H57: 0 | I57: 0 | J57: 0 | K57: 0 | L57: 0 | O57: 0 | P57: 0 | Q57: 0 | R57: 0 | S57: 0 | T57: 0 | U57: 0 | V57: 0 | W57: 0 | X57: 0 | Y57: 0
A58: ='Project&Typical Info'!A33 -> 18 | B58: 0 | C58: 0 | D58: 0 | E58: 0 | F58: 0 | G58: 0 | H58: 0 | I58: 0 | J58: 0 | K58: 0 | L58: 0 | O58: 0 | P58: 0 | Q58: 0 | R58: 0 | S58: 0 | T58: 0 | U58: 0 | V58: 0 | W58: 0 | X58: 0 | Y58: 0
A59: ='Project&Typical Info'!A34 -> 19 | B59: 0 | C59: 0 | D59: 0 | E59: 0 | F59: 0 | G59: 0 | H59: 0 | I59: 0 | J59: 0 | K59: 0 | L59: 0 | O59: 0 | P59: 0 | Q59: 0 | R59: 0 | S59: 0 | T59: 0 | U59: 0 | V59: 0 | W59: 0 | X59: 0 | Y59: 0
A60: ='Project&Typical Info'!A35 -> 20 | B60: 0 | C60: 0 | D60: 0 | E60: 0 | F60: 0 | G60: 0 | H60: 0 | I60: 0 | J60: 0 | K60: 0 | L60: 0 | O60: 0 | P60: 0 | Q60: 0 | R60: 0 | S60: 0 | T60: 0 | U60: 0 | V60: 0 | W60: 0 | X60: 0 | Y60: 0

Sheet Surfacing Frame Quantities (hidden)
A1: SURFACING
A2: STATION | C2: linear feet | G2: FOR | H2: tons | I2: AGGREGATE | O2: BITUMINOUS MATERIAL | Q2: sq. yards | R2: gals | T2: REMARKS | W2: VALUES USED PER STATION | AI2: Length of Typical Sections (ft) Length of Typical Sections (ft) Length of Typical Sections (ft) Length of Typical Sections (ft) Length of Typical Sections (ft) Length of Typical Sections (ft) Length of Typical Sections (ft) Length of Typical Sections (ft) Length of Typical Sections (ft)
C3: GROSS | D3: NET | E3: + | F3: - | H3: HYDRATED LIME | I3: sq. yards | J3: tons | K3: cubic yards | L3: SPECIAL BORROW | M3: TRAFFIC GRAVEL | N3: SHOULDER GRAVEL | O3: tons | Q3: AGG. TREAT. | R3: EMULSIFIED ASPHALT TACK | S3: EMULSIFIED ASPHALT FOG SEAL
I4: COVER | J4: PLANT MIX BIT. SURF. | K4: CRUSHED AGG. COURSE | L4: SPECIAL BORROW | M4: TRAFFIC GRAVEL | N4: SHOULDER GRAVEL | O4: ASPHALT CEMENT | P4: SEAL | W4: ='Lookup Values'!C1 -> COVER yd2/STA | X4: ='Lookup Values'!D1 -> PLANT MIX T/STA | Y4: ='Lookup Values'!E1 -> CRUSHED AGG. COURSE yd3/STA | Z4: ='Lookup Values'!F1 -> SPECIAL BORROW | AA4: ='Lookup Values'!G1 -> TRAFFIC GRAVEL | AB4: ='Lookup Values'!H1 -> SHOULDER GRAVEL | AC4: ='Lookup Values'!I1 -> ASPHALT CEMENT T/STA | AD4: ='Lookup Values'!J1 -> SEAL T/STA | AE4: ='Lookup Values'!K1 -> AGG. TREAT. yd2/STA | AF4: ='Lookup Values'!L1 -> EMULS. ASPHALT TACK gal/STA | AG4: ='Lookup Values'!M1 -> EMULS. ASPHALT FOG SEAL gal/STA | AI4: TYP. 1 | AJ4: TYP. 2 | AK4: TRANS. TYP. 1 - TYP. 2 | AL4: TYP. 3 | AM4: TRANS. TYP. 1 - TYP. 3 | AN4: TRANS. TYP. 2 - TYP. 3 | AO4: TYP. 4 | AP4: TRANS. TYP. 1 - TYP. 4 | AQ4: TRANS. TYP. 2 - TYP. 4 | AR4: TRANS. TYP. 3 - TYP. 4 | AS4: TYP. 5 | AT4: TRANS. TYP. 1 - TYP. 5 | AU4: TRANS. TYP. 2 - TYP. 5 | AV4: TRANS. TYP. 3 - TYP. 5 | AW4: TRANS. TYP. 4 - TYP. 5 | AX4: TYP. 6 | AY4: TRANS. TYP. 1 - TYP. 6 | AZ4: TRANS. TYP. 2 - TYP. 6 | BA4: TRANS. TYP. 3 - TYP. 6 | BB4: TRANS. TYP. 4 - TYP. 6 | BC4: TRANS. TYP. 5 - TYP. 6 | BD4: TYP. 7 | BE4: TRANS. TYP. 7 - TYP. 1 | BF4: TRANS. TYP. 7 - TYP. 2 | BG4: TRANS. TYP. 7 - TYP. 3 | BH4: TRANS. TYP. 7 - TYP. 4 | BI4: TRANS. TYP. 7 - TYP. 5 | BJ4: TRANS. TYP. 7 - TYP. 6 | BK4: TYP. 8 | BL4: TRANS. TYP. 8 - TYP. 1 | BM4: TRANS. TYP. 8 - TYP. 2 | BN4: TRANS. TYP. 8 - TYP. 3 | BO4: TRANS. TYP. 8 - TYP. 4 | BP4: TRANS. TYP. 8 - TYP. 5 | BQ4: TRANS. TYP. 8 - TYP. 6 | BR4: TRANS. TYP. 8 - TYP. 7 | BS4: TYP. 9 | BT4: TRANS. TYP. 9 - TYP. 1 | BU4: TRANS. TYP. 9 - TYP. 2 | BV4: TRANS. TYP. 9 - TYP. 3 | BW4: TRANS. TYP. 9 - TYP. 4 | BX4: TRANS. TYP. 9 - TYP. 5 | BY4: TRANS. TYP. 9 - TYP. 6 | BZ4: TRANS. TYP. 9 - TYP. 7 | CA4: TRANS. TYP. 9 - TYP. 8 | CB4: TYP. 10 | CC4: TRANS. TYP. 10 - TYP. 1 | CD4: TRANS. TYP. 10 - TYP. 2 | CE4: TRANS. TYP. 10 - TYP. 3 | CF4: TRANS. TYP. 10 - TYP. 4 | CG4: TRANS. TYP. 10 - TYP. 5 | CH4: TRANS. TYP. 10 - TYP. 6 | CI4: TRANS. TYP. 10 - TYP. 7 | CJ4: TRANS. TYP. 10 - TYP. 8 | CK4: TRANS. TYP. 10 - TYP. 9 | CL4: TYP. 11 | CM4: TRANS. TYP. 11 - TYP. 1 | CN4: TRANS. TYP. 11 - TYP. 2 | CO4: TRANS. TYP. 11 - TYP. 3 | CP4: TRANS. TYP. 11 - TYP. 4 | CQ4: TRANS. TYP. 11 - TYP. 5 | CR4: TRANS. TYP. 11 - TYP. 6 | CS4: TRANS. TYP. 11 - TYP. 7 | CT4: TRANS. TYP. 11 - TYP. 8 | CU4: TRANS. TYP. 11 - TYP. 9 | CV4: TRANS. TYP. 11 - TYP. 10 | CW4: TYP. 12 | CX4: TRANS. TYP. 12 - TYP. 1 | CY4: TRANS. TYP. 12 - TYP. 2 | CZ4: TRANS. TYP. 12 - TYP. 3 | DA4: TRANS. TYP. 12 - TYP. 4 | DB4: TRANS. TYP. 12 - TYP. 5 | DC4: TRANS. TYP. 12 - TYP. 6 | DD4: TRANS. TYP. 12 - TYP. 7 | DE4: TRANS. TYP. 12 - TYP. 8 | DF4: TRANS. TYP. 12 - TYP. 9 | DG4: TRANS. TYP. 12 - TYP. 10 | DH4: TRANS. TYP. 12 - TYP. 11 | DI4: TYP. 13 | DJ4: TRANS. TYP. 13 - TYP. 1 | DK4: TRANS. TYP. 13 - TYP. 2 | DL4: TRANS. TYP. 13 - TYP. 3 | DM4: TRANS. TYP. 13 - TYP. 4 | DN4: TRANS. TYP. 13 - TYP. 5 | DO4: TRANS. TYP. 13 - TYP. 6 | DP4: TRANS. TYP. 13 - TYP. 7 | DQ4: TRANS. TYP. 13 - TYP. 8 | DR4: TRANS. TYP. 13 - TYP. 9 | DS4: TRANS. TYP. 13 - TYP. 10 | DT4: TRANS. TYP. 13 - TYP. 11 | DU4: TRANS. TYP. 13 - TYP. 12 | DV4: TYP. 14 | DW4: TRANS. TYP. 14 - TYP. 1 | DX4: TRANS. TYP. 14 - TYP. 2 | DY4: TRANS. TYP. 14 - TYP. 3 | DZ4: TRANS. TYP. 14 - TYP. 4 | EA4: TRANS. TYP. 14 - TYP. 5 | EB4: TRANS. TYP. 14 - TYP. 6 | EC4: TRANS. TYP. 14 - TYP. 7 | ED4: TRANS. TYP. 14 - TYP. 8 | EE4: TRANS. TYP. 14 - TYP. 9 | EF4: TRANS. TYP. 14 - TYP. 10 | EG4: TRANS. TYP. 14 - TYP. 11 | EH4: TRANS. TYP. 14 - TYP. 12 | EI4: TRANS. TYP. 14 - TYP. 13 | EJ4: TYP. 15 | EK4: TRANS. TYP. 15 - TYP. 1 | EL4: TRANS. TYP. 15 - TYP. 2 | EM4: TRANS. TYP. 15 - TYP. 3 | EN4: TRANS. TYP. 15 - TYP. 4 | EO4: TRANS. TYP. 15 - TYP. 5 | EP4: TRANS. TYP. 15 - TYP. 6 | EQ4: TRANS. TYP. 15 - TYP. 7 | ER4: TRANS. TYP. 15 - TYP. 8 | ES4: TRANS. TYP. 15 - TYP. 9 | ET4: TRANS. TYP. 15 - TYP. 10 | EU4: TRANS. TYP. 15 - TYP. 11 | EV4: TRANS. TYP. 15 - TYP. 12 | EW4: TRANS. TYP. 15 - TYP. 13 | EX4: TRANS. TYP. 15 - TYP. 14 | EY4: TYP. 16 | EZ4: TRANS. TYP. 16 - TYP. 1 | FA4: TRANS. TYP. 16 - TYP. 2 | FB4: TRANS. TYP. 16 - TYP. 3 | FC4: TRANS. TYP. 16 - TYP. 4 | FD4: TRANS. TYP. 16 - TYP. 5 | FE4: TRANS. TYP. 16 - TYP. 6 | FF4: TRANS. TYP. 16 - TYP. 7 | FG4: TRANS. TYP. 16 - TYP. 8 | FH4: TRANS. TYP. 16 - TYP. 9 | FI4: TRANS. TYP. 16 - TYP. 10 | FJ4: TRANS. TYP. 16 - TYP. 11 | FK4: TRANS. TYP. 16 - TYP. 12 | FL4: TRANS. TYP. 16 - TYP. 13 | FM4: TRANS. TYP. 16 - TYP. 14 | FN4: TRANS. TYP. 16 - TYP. 15
A5: FROM | B5: TO
A6: 1074.1 | B6: 1120.07 | C6: =IF(AND(A6=0,B6=0),"",IF(OR(G6="BRIDGE",G7="BRIDGE"),"",IF(G5="BRIDGE",B6-A4,B6-A6))) -> 45.97 | D6: =IF(C6="","",IF(G5="BRIDGE",C6+E5-F5,IF(C6+E6-F6=0,"",C6+E6-F6))) -> 45.97 | I6: =IF(OR($G6="BRIDGE",$G7="BRIDGE"),"",IF(AND($D6="",$A6>0,$B6>0),"~",IF(W6="ERROR","",IF(W6=0,"",ROUND(W6*$D6/100,0))))) -> 164 | J6: =IF(OR($G6="BRIDGE",$G7="BRIDGE"),"",IF(AND($D6="",$A6>0,$B6>0),"~",IF(X6="ERROR","",IF(X6=0,"",ROUND(X6*$D6/100,0))))) -> 34 | K6: 60 | O6: =IF(OR($G6="BRIDGE",$G7="BRIDGE"),"",IF(AND($D6="",$A6>0,$B6>0),"~",IF(AC6="ERROR","",IF(AC6=0,"",ROUND(AC6*$D6/100,1))))) -> 1.8 | P6: =IF(OR($G6="BRIDGE",$G7="BRIDGE"),"",IF(AND($D6="",$A6>0,$B6>0),"~",IF(AD6="ERROR","",IF(AD6=0,"",ROUND(AD6*$D6/100,1))))) -> 0.3 | Q6: 184 | R6: 18 | S6: 12 | T6: TYP. NO. 1 | V6: =IF(T6="",402,MATCH(T6,'Lookup Values'!$B$1:$B$402,0)) -> 2 | W6: =LOOKUP($V6,'Lookup Values'!$A$2:$A$402,'Lookup Values'!C$2:C$402) -> 356 | X6: =LOOKUP($V6,'Lookup Values'!$A$2:$A$402,'Lookup Values'!D$2:D$402) -> 72.9 | Y6: =LOOKUP($V6,'Lookup Values'!$A$2:$A$402,'Lookup Values'!E$2:E$402) -> 131.6 | Z6: =LOOKUP($V6,'Lookup Values'!$A$2:$A$402,'Lookup Values'!F$2:F$402) -> 0 | AA6: =LOOKUP($V6,'Lookup Values'!$A$2:$A$402,'Lookup Values'!G$2:G$402) -> 0 | AB6: =LOOKUP($V6,'Lookup Values'!$A$2:$A$402,'Lookup Values'!H$2:H$402) -> 0 | AC6: =LOOKUP($V6,'Lookup Values'!$A$2:$A$402,'Lookup Values'!I$2:I$402) -> 3.94 | AD6: =LOOKUP($V6,'Lookup Values'!$A$2:$A$402,'Lookup Values'!J$2:J$402) -> 0.64 | AE6: =LOOKUP($V6,'Lookup Values'!$A$2:$A$402,'Lookup Values'!K$2:K$402) -> 400 | AF6: =LOOKUP($V6,'Lookup Values'!$A$2:$A$402,'Lookup Values'!L$2:L$402) -> 40 | AG6: =LOOKUP($V6,'Lookup Values'!$A$2:$A$402,'Lookup Values'!M$2:M$402) -> 27 | AI6: =IF(T6="TYP. NO. 1",D6,0) -> 45.97 | AJ6: =IF(T6="TYP. NO. 2",D6,0) -> 0 | AK6: =IF(T6="TRANS. TYP. NO. 1 TO TYP. NO. 2",D6,IF(T6="TRANS. TYP. NO. 2 TO TYP. NO. 1",D6,0)) -> 0 | AL6: =IF(T6="TYP. NO. 3",D6,0) -> 0 | AM6: =IF(T6="TRANS. TYP. NO. 1 TO TYP. NO. 3",D6,IF(T6="TRANS. TYP. NO. 3 TO TYP. NO. 1",D6,0)) -> 0 | AN6: =IF(T6="TRANS. TYP. NO. 2 TO TYP. NO. 3",D6,IF(T6="TRANS. TYP. NO. 3 TO TYP. NO. 2",D6,0)) -> 0 | AO6: =IF(T6="TYP. NO. 4",D6,0) -> 0 | AP6: =IF(T6="TRANS. TYP. NO. 1 TO TYP. NO. 4",D6,IF(T6="TRANS. TYP. NO. 4 TO TYP. NO. 1",D6,0)) -> 0 | AQ6: =IF(T6="TRANS. TYP. NO. 2 TO TYP. NO. 4",D6,IF(T6="TRANS. TYP. NO. 4 TO TYP. NO. 2",D6,0)) -> 0 | AR6: =IF(T6="TRANS. TYP. NO. 3 TO TYP. NO. 4",D6,IF(T6="TRANS. TYP. NO. 4 TO TYP. NO. 3",D6,0)) -> 0 | AS6: =IF(T6="TYP. NO. 5",D6,0) -> 0 | AT6: =IF(T6="TRANS. TYP. NO. 1 TO TYP. NO. 5",D6,IF(T6="TRANS. TYP. NO. 5 TO TYP. NO. 1",D6,0)) -> 0 | AU6: =IF(T6="TRANS. TYP. NO. 2 TO TYP. NO. 5",D6,IF(T6="TRANS. TYP. NO. 5 TO TYP. NO. 2",D6,0)) -> 0 | AV6: =IF(T6="TRANS. TYP. NO. 3 TO TYP. NO. 5",D6,IF(T6="TRANS. TYP. NO. 5 TO TYP. NO. 3",D6,0)) -> 0 | AW6: =IF(T6="TRANS. TYP. NO. 4 TO TYP. NO. 5",D6,IF(T6="TRANS. TYP. NO. 5 TO TYP. NO. 4",D6,0)) -> 0 | AX6: =IF(T6="TYP. NO. 6",D6,0) -> 0 | AY6: =IF(T6="TRANS. TYP. NO. 1 TO TYP. NO. 6",D6,IF(T6="TRANS. TYP. NO. 6 TO TYP. NO. 1",D6,0)) -> 0 | AZ6: =IF(T6="TRANS. TYP. NO. 2 TO TYP. NO. 6",D6,IF(T6="TRANS. TYP. NO. 6 TO TYP. NO. 2",D6,0)) -> 0 | BA6: =IF(T6="TRANS. TYP. NO. 3 TO TYP. NO. 6",D6,IF(T6="TRANS. TYP. NO. 6 TO TYP. NO. 3",D6,0)) -> 0 | BB6: =IF(T6="TRANS. TYP. NO. 4 TO TYP. NO. 6",D6,IF(T6="TRANS. TYP. NO. 6 TO TYP. NO. 4",D6,0)) -> 0 | BC6: =IF(T6="TRANS. TYP. NO. 5 TO TYP. NO. 6",D6,IF(T6="TRANS. TYP. NO. 6 TO TYP. NO. 5",D6,0)) -> 0 | BD6: =IF(T6="TYP. NO. 7",D6,0) -> 0 | BE6: =IF(T6="TRANS. TYP. NO. 1 TO TYP. NO. 7",D6,IF(T6="TRANS. TYP. NO. 7 TO TYP. NO. 1",D6,0)) -> 0 | BF6: =IF(T6="TRANS. TYP. NO. 2 TO TYP. NO. 7",D6,IF(T6="TRANS. TYP. NO. 7 TO TYP. NO. 2",D6,0)) -> 0 | BG6: =IF(T6="TRANS. TYP. NO. 3 TO TYP. NO. 7",D6,IF(T6="TRANS. TYP. NO. 7 TO TYP. NO. 3",D6,0)) -> 0 | BH6: =IF(T6="TRANS. TYP. NO. 4 TO TYP. NO. 7",D6,IF(T6="TRANS. TYP. NO. 7 TO TYP. NO. 4",D6,0)) -> 0 | BI6: =IF(T6="TRANS. TYP. NO. 5 TO TYP. NO. 7",D6,IF(T6="TRANS. TYP. NO. 7 TO TYP. NO. 5",D6,0)) -> 0 | BJ6: =IF(T6="TRANS. TYP. NO. 6 TO TYP. NO. 7",D6,IF(T6="TRANS. TYP. NO. 7 TO TYP. NO. 6",D6,0)) -> 0 | BK6: =IF(T6="TYP. NO. 8",D6,0) -> 0 | BL6: =IF($T6="TRANS. TYP. NO. 1 TO TYP. NO. 8",$D6,IF($T6="TRANS. TYP. NO. 8 TO TYP. NO. 1",$D6,0)) -> 0 | BM6: =IF($T6="TRANS. TYP. NO. 2 TO TYP. NO. 8",$D6,IF($T6="TRANS. TYP. NO. 8 TO TYP. NO. 2",$D6,0)) -> 0 | BN6: =IF($T6="TRANS. TYP. NO. 3 TO TYP. NO. 8",$D6,IF($T6="TRANS. TYP. NO. 8 TO TYP. NO. 3",$D6,0)) -> 0 | BO6: =IF($T6="TRANS. TYP. NO. 4 TO TYP. NO. 8",$D6,IF($T6="TRANS. TYP. NO. 8 TO TYP. NO. 4",$D6,0)) -> 0 | BP6: =IF($T6="TRANS. TYP. NO. 5 TO TYP. NO. 8",$D6,IF($T6="TRANS. TYP. NO. 8 TO TYP. NO. 5",$D6,0)) -> 0 | BQ6: =IF($T6="TRANS. TYP. NO. 6 TO TYP. NO. 8",$D6,IF($T6="TRANS. TYP. NO. 8 TO TYP. NO. 6",$D6,0)) -> 0 | BR6: =IF($T6="TRANS. TYP. NO. 7 TO TYP. NO. 8",$D6,IF($T6="TRANS. TYP. NO. 8 TO TYP. NO. 7",$D6,0)) -> 0 | BS6: =IF(T6="TYP. NO. 9",D6,0) -> 0 | BT6: =IF($T6="TRANS. TYP. NO. 1 TO TYP. NO. 9",$D6,IF($T6="TRANS. TYP. NO. 9 TO TYP. NO. 1",$D6,0)) -> 0 | BU6: =IF($T6="TRANS. TYP. NO. 2 TO TYP. NO. 9",$D6,IF($T6="TRANS. TYP. NO. 9 TO TYP. NO. 2",$D6,0)) -> 0 | BV6: =IF($T6="TRANS. TYP. NO. 3 TO TYP. NO. 9",$D6,IF($T6="TRANS. TYP. NO. 9 TO TYP. NO. 3",$D6,0)) -> 0 | BW6: =IF($T6="TRANS. TYP. NO. 4 TO TYP. NO. 9",$D6,IF($T6="TRANS. TYP. NO. 9 TO TYP. NO. 4",$D6,0)) -> 0 | BX6: =IF($T6="TRANS. TYP. NO. 5 TO TYP. NO. 9",$D6,IF($T6="TRANS. TYP. NO. 9 TO TYP. NO. 5",$D6,0)) -> 0 | BY6: =IF($T6="TRANS. TYP. NO. 6 TO TYP. NO. 9",$D6,IF($T6="TRANS. TYP. NO. 9 TO TYP. NO. 6",$D6,0)) -> 0 | BZ6: =IF($T6="TRANS. TYP. NO. 7 TO TYP. NO. 9",$D6,IF($T6="TRANS. TYP. NO. 9 TO TYP. NO. 7",$D6,0)) -> 0 | CA6: =IF($T6="TRANS. TYP. NO. 8 TO TYP. NO. 9",$D6,IF($T6="TRANS. TYP. NO. 9 TO TYP. NO. 8",$D6,0)) -> 0 | CB6: =IF(T6="TYP. NO. 10",D6,0) -> 0 | CC6: =IF($T6="TRANS. TYP. NO. 1 TO TYP. NO. 10",$D6,IF($T6="TRANS. TYP. NO. 10 TO TYP. NO. 1",$D6,0)) -> 0 | CD6: =IF($T6="TRANS. TYP. NO. 2 TO TYP. NO. 10",$D6,IF($T6="TRANS. TYP. NO. 10 TO TYP. NO. 2",$D6,0)) -> 0 | CE6: =IF($T6="TRANS. TYP. NO. 3 TO TYP. NO. 10",$D6,IF($T6="TRANS. TYP. NO. 10 TO TYP. NO. 3",$D6,0)) -> 0 | CF6: =IF($T6="TRANS. TYP. NO. 4 TO TYP. NO. 10",$D6,IF($T6="TRANS. TYP. NO. 10 TO TYP. NO. 4",$D6,0)) -> 0 | CG6: =IF($T6="TRANS. TYP. NO. 5 TO TYP. NO. 10",$D6,IF($T6="TRANS. TYP. NO. 10 TO TYP. NO. 5",$D6,0)) -> 0 | CH6: =IF($T6="TRANS. TYP. NO. 6 TO TYP. NO. 10",$D6,IF($T6="TRANS. TYP. NO. 10 TO TYP. NO. 6",$D6,0)) -> 0 | CI6: =IF($T6="TRANS. TYP. NO. 7 TO TYP. NO. 10",$D6,IF($T6="TRANS. TYP. NO. 10 TO TYP. NO. 7",$D6,0)) -> 0 | CJ6: =IF($T6="TRANS. TYP. NO. 8 TO TYP. NO. 10",$D6,IF($T6="TRANS. TYP. NO. 10 TO TYP. NO. 8",$D6,0)) -> 0 | CK6: =IF($T6="TRANS. TYP. NO. 9 TO TYP. NO. 10",$D6,IF($T6="TRANS. TYP. NO. 10 TO TYP. NO. 9",$D6,0)) -> 0 | CL6: =IF(T6="TYP. NO. 11",D6,0) -> 0 | CM6: =IF($T6="TRANS. TYP. NO. 1 TO TYP. NO. 11",$D6,IF($T6="TRANS. TYP. NO. 11 TO TYP. NO. 1",$D6,0)) -> 0 | CN6: =IF($T6="TRANS. TYP. NO. 2 TO TYP. NO. 11",$D6,IF($T6="TRANS. TYP. NO. 11 TO TYP. NO. 2",$D6,0)) -> 0 | CO6: =IF($T6="TRANS. TYP. NO. 3 TO TYP. NO. 11",$D6,IF($T6="TRANS. TYP. NO. 11 TO TYP. NO. 3",$D6,0)) -> 0 | CP6: =IF($T6="TRANS. TYP. NO. 4 TO TYP. NO. 11",$D6,IF($T6="TRANS. TYP. NO. 11 TO TYP. NO. 4",$D6,0)) -> 0 | CQ6: =IF($T6="TRANS. TYP. NO. 5 TO TYP. NO. 11",$D6,IF($T6="TRANS. TYP. NO. 11 TO TYP. NO. 5",$D6,0)) -> 0 | CR6: =IF($T6="TRANS. TYP. NO. 6 TO TYP. NO. 11",$D6,IF($T6="TRANS. TYP. NO. 11 TO TYP. NO. 6",$D6,0)) -> 0 | CS6: =IF($T6="TRANS. TYP. NO. 7 TO TYP. NO. 11",$D6,IF($T6="TRANS. TYP. NO. 11 TO TYP. NO. 7",$D6,0)) -> 0 | CT6: =IF($T6="TRANS. TYP. NO. 8 TO TYP. NO. 11",$D6,IF($T6="TRANS. TYP. NO. 11 TO TYP. NO. 8",$D6,0)) -> 0 | CU6: =IF($T6="TRANS. TYP. NO. 9 TO TYP. NO. 11",$D6,IF($T6="TRANS. TYP. NO. 11 TO TYP. NO. 9",$D6,0)) -> 0 | CV6: =IF($T6="TRANS. TYP. NO. 10 TO TYP. NO. 11",$D6,IF($T6="TRANS. TYP. NO. 11 TO TYP. NO. 10",$D6,0)) -> 0 | CW6: =IF(T6="TYP. NO. 12",D6,0) -> 0 | CX6: =IF($T6="TRANS. TYP. NO. 1 TO TYP. NO. 12",$D6,IF($T6="TRANS. TYP. NO. 12 TO TYP. NO. 1",$D6,0)) -> 0 | CY6: =IF($T6="TRANS. TYP. NO. 2 TO TYP. NO. 12",$D6,IF($T6="TRANS. TYP. NO. 12 TO TYP. NO. 2",$D6,0)) -> 0 | CZ6: =IF($T6="TRANS. TYP. NO. 3 TO TYP. NO. 12",$D6,IF($T6="TRANS. TYP. NO. 12 TO TYP. NO. 3",$D6,0)) -> 0 | DA6: =IF($T6="TRANS. TYP. NO. 4 TO TYP. NO. 12",$D6,IF($T6="TRANS. TYP. NO. 12 TO TYP. NO. 4",$D6,0)) -> 0 | DB6: =IF($T6="TRANS. TYP. NO. 5 TO TYP. NO. 12",$D6,IF($T6="TRANS. TYP. NO. 12 TO TYP. NO. 5",$D6,0)) -> 0 | DC6: =IF($T6="TRANS. TYP. NO. 6 TO TYP. NO. 12",$D6,IF($T6="TRANS. TYP. NO. 12 TO TYP. NO. 6",$D6,0)) -> 0 | DD6: =IF($T6="TRANS. TYP. NO. 7 TO TYP. NO. 12",$D6,IF($T6="TRANS. TYP. NO. 12 TO TYP. NO. 7",$D6,0)) -> 0 | DE6: =IF($T6="TRANS. TYP. NO. 8 TO TYP. NO. 12",$D6,IF($T6="TRANS. TYP. NO. 12 TO TYP. NO. 8",$D6,0)) -> 0 | DF6: =IF($T6="TRANS. TYP. NO. 9 TO TYP. NO. 12",$D6,IF($T6="TRANS. TYP. NO. 12 TO TYP. NO. 9",$D6,0)) -> 0 | DG6: =IF($T6="TRANS. TYP. NO. 10 TO TYP. NO. 12",$D6,IF($T6="TRANS. TYP. NO. 12 TO TYP. NO. 10",$D6,0)) -> 0 | DH6: =IF($T6="TRANS. TYP. NO. 11 TO TYP. NO. 12",$D6,IF($T6="TRANS. TYP. NO. 12 TO TYP. NO. 11",$D6,0)) -> 0 | DI6: =IF(T6="TYP. NO. 13",D6,0) -> 0 | DJ6: =IF($T6="TRANS. TYP. NO. 1 TO TYP. NO. 13",$D6,IF($T6="TRANS. TYP. NO. 13 TO TYP. NO. 1",$D6,0)) -> 0 | DK6: =IF($T6="TRANS. TYP. NO. 2 TO TYP. NO. 13",$D6,IF($T6="TRANS. TYP. NO. 13 TO TYP. NO. 2",$D6,0)) -> 0 | DL6: =IF($T6="TRANS. TYP. NO. 3 TO TYP. NO. 13",$D6,IF($T6="TRANS. TYP. NO. 13 TO TYP. NO. 3",$D6,0)) -> 0 | DM6: =IF($T6="TRANS. TYP. NO. 4 TO TYP. NO. 13",$D6,IF($T6="TRANS. TYP. NO. 13 TO TYP. NO. 4",$D6,0)) -> 0 | DN6: =IF($T6="TRANS. TYP. NO. 5 TO TYP. NO. 13",$D6,IF($T6="TRANS. TYP. NO. 13 TO TYP. NO. 5",$D6,0)) -> 0 | DO6: =IF($T6="TRANS. TYP. NO. 6 TO TYP. NO. 13",$D6,IF($T6="TRANS. TYP. NO. 13 TO TYP. NO. 6",$D6,0)) -> 0 | DP6: =IF($T6="TRANS. TYP. NO. 7 TO TYP. NO. 13",$D6,IF($T6="TRANS. TYP. NO. 13 TO TYP. NO. 7",$D6,0)) -> 0 | DQ6: =IF($T6="TRANS. TYP. NO. 8 TO TYP. NO. 13",$D6,IF($T6="TRANS. TYP. NO. 13 TO TYP. NO. 8",$D6,0)) -> 0 | DR6: =IF($T6="TRANS. TYP. NO. 9 TO TYP. NO. 13",$D6,IF($T6="TRANS. TYP. NO. 13 TO TYP. NO. 9",$D6,0)) -> 0 | DS6: =IF($T6="TRANS. TYP. NO. 10 TO TYP. NO. 13",$D6,IF($T6="TRANS. TYP. NO. 13 TO TYP. NO. 10",$D6,0)) -> 0 | DT6: =IF($T6="TRANS. TYP. NO. 11 TO TYP. NO. 13",$D6,IF($T6="TRANS. TYP. NO. 13 TO TYP. NO. 11",$D6,0)) -> 0 | DU6: =IF($T6="TRANS. TYP. NO. 12 TO TYP. NO. 13",$D6,IF($T6="TRANS. TYP. NO. 13 TO TYP. NO. 12",$D6,0)) -> 0 | DV6: =IF(T6="TYP. NO. 14",D6,0) -> 0 | DW6: =IF($T6="TRANS. TYP. NO. 1 TO TYP. NO. 14",$D6,IF($T6="TRANS. TYP. NO. 14 TO TYP. NO. 1",$D6,0)) -> 0 | DX6: =IF($T6="TRANS. TYP. NO. 2 TO TYP. NO. 14",$D6,IF($T6="TRANS. TYP. NO. 14 TO TYP. NO. 2",$D6,0)) -> 0 | DY6: =IF($T6="TRANS. TYP. NO. 3 TO TYP. NO. 14",$D6,IF($T6="TRANS. TYP. NO. 14 TO TYP. NO. 3",$D6,0)) -> 0 | DZ6: =IF($T6="TRANS. TYP. NO. 4 TO TYP. NO. 14",$D6,IF($T6="TRANS. TYP. NO. 14 TO TYP. NO. 4",$D6,0)) -> 0 | EA6: =IF($T6="TRANS. TYP. NO. 5 TO TYP. NO. 14",$D6,IF($T6="TRANS. TYP. NO. 14 TO TYP. NO. 5",$D6,0)) -> 0 | EB6: =IF($T6="TRANS. TYP. NO. 6 TO TYP. NO. 14",$D6,IF($T6="TRANS. TYP. NO. 14 TO TYP. NO. 6",$D6,0)) -> 0 | EC6: =IF($T6="TRANS. TYP. NO. 7 TO TYP. NO. 14",$D6,IF($T6="TRANS. TYP. NO. 14 TO TYP. NO. 7",$D6,0)) -> 0 | ED6: =IF($T6="TRANS. TYP. NO. 8 TO TYP. NO. 14",$D6,IF($T6="TRANS. TYP. NO. 14 TO TYP. NO. 8",$D6,0)) -> 0 | EE6: =IF($T6="TRANS. TYP. NO. 9 TO TYP. NO. 14",$D6,IF($T6="TRANS. TYP. NO. 14 TO TYP. NO. 9",$D6,0)) -> 0 | EF6: =IF($T6="TRANS. TYP. NO. 10 TO TYP. NO. 14",$D6,IF($T6="TRANS. TYP. NO. 14 TO TYP. NO. 10",$D6,0)) -> 0 | EG6: =IF($T6="TRANS. TYP. NO. 11 TO TYP. NO. 14",$D6,IF($T6="TRANS. TYP. NO. 14 TO TYP. NO. 11",$D6,0)) -> 0 | EH6: =IF($T6="TRANS. TYP. NO. 12 TO TYP. NO. 14",$D6,IF($T6="TRANS. TYP. NO. 14 TO TYP. NO. 12",$D6,0)) -> 0 | EI6: =IF($T6="TRANS. TYP. NO. 13 TO TYP. NO. 14",$D6,IF($T6="TRANS. TYP. NO. 14 TO TYP. NO. 13",$D6,0)) -> 0 | EJ6: =IF(T6="TYP. NO. 15",D6,0) -> 0 | EK6: =IF($T6="TRANS. TYP. NO. 1 TO TYP. NO. 15",$D6,IF($T6="TRANS. TYP. NO. 15 TO TYP. NO. 1",$D6,0)) -> 0 | EL6: =IF($T6="TRANS. TYP. NO. 2 TO TYP. NO. 15",$D6,IF($T6="TRANS. TYP. NO. 15 TO TYP. NO. 2",$D6,0)) -> 0 | EM6: =IF($T6="TRANS. TYP. NO. 3 TO TYP. NO. 15",$D6,IF($T6="TRANS. TYP. NO. 15 TO TYP. NO. 3",$D6,0)) -> 0 | EN6: =IF($T6="TRANS. TYP. NO. 4 TO TYP. NO. 15",$D6,IF($T6="TRANS. TYP. NO. 15 TO TYP. NO. 4",$D6,0)) -> 0 | EO6: =IF($T6="TRANS. TYP. NO. 5 TO TYP. NO. 15",$D6,IF($T6="TRANS. TYP. NO. 15 TO TYP. NO. 5",$D6,0)) -> 0 | EP6: =IF($T6="TRANS. TYP. NO. 6 TO TYP. NO. 15",$D6,IF($T6="TRANS. TYP. NO. 15 TO TYP. NO. 6",$D6,0)) -> 0 | EQ6: =IF($T6="TRANS. TYP. NO. 7 TO TYP. NO. 15",$D6,IF($T6="TRANS. TYP. NO. 15 TO TYP. NO. 7",$D6,0)) -> 0 | ER6: =IF($T6="TRANS. TYP. NO. 8 TO TYP. NO. 15",$D6,IF($T6="TRANS. TYP. NO. 15 TO TYP. NO. 8",$D6,0)) -> 0 | ES6: =IF($T6="TRANS. TYP. NO. 9 TO TYP. NO. 15",$D6,IF($T6="TRANS. TYP. NO. 15 TO TYP. NO. 9",$D6,0)) -> 0 | ET6: =IF($T6="TRANS. TYP. NO. 10 TO TYP. NO. 15",$D6,IF($T6="TRANS. TYP. NO. 15 TO TYP. NO. 10",$D6,0)) -> 0 | EU6: =IF($T6="TRANS. TYP. NO. 11 TO TYP. NO. 15",$D6,IF($T6="TRANS. TYP. NO. 15 TO TYP. NO. 11",$D6,0)) -> 0 | EV6: =IF($T6="TRANS. TYP. NO. 12 TO TYP. NO. 15",$D6,IF($T6="TRANS. TYP. NO. 15 TO TYP. NO. 12",$D6,0)) -> 0 | EW6: =IF($T6="TRANS. TYP. NO. 13 TO TYP. NO. 15",$D6,IF($T6="TRANS. TYP. NO. 15 TO TYP. NO. 13",$D6,0)) -> 0 | EX6: =IF($T6="TRANS. TYP. NO. 14 TO TYP. NO. 15",$D6,IF($T6="TRANS. TYP. NO. 15 TO TYP. NO. 14",$D6,0)) -> 0 | EY6: =IF(T6="TYP. NO. 16",D6,0) -> 0 | EZ6: =IF($T6="TRANS. TYP. NO. 1 TO TYP. NO. 16",$D6,IF($T6="TRANS. TYP. NO. 16 TO TYP. NO. 1",$D6,0)) -> 0 | FA6: =IF($T6="TRANS. TYP. NO. 2 TO TYP. NO. 16",$D6,IF($T6="TRANS. TYP. NO. 16 TO TYP. NO. 2",$D6,0)) -> 0 | FB6: =IF($T6="TRANS. TYP. NO. 3 TO TYP. NO. 16",$D6,IF($T6="TRANS. TYP. NO. 16 TO TYP. NO. 3",$D6,0)) -> 0 | FC6: =IF($T6="TRANS. TYP. NO. 4 TO TYP. NO. 16",$D6,IF($T6="TRANS. TYP. NO. 16 TO TYP. NO. 4",$D6,0)) -> 0 | FD6: =IF($T6="TRANS. TYP. NO. 5 TO TYP. NO. 16",$D6,IF($T6="TRANS. TYP. NO. 16 TO TYP. NO. 5",$D6,0)) -> 0 | FE6: =IF($T6="TRANS. TYP. NO. 6 TO TYP. NO. 16",$D6,IF($T6="TRANS. TYP. NO. 16 TO TYP. NO. 6",$D6,0)) -> 0 | FF6: =IF($T6="TRANS. TYP. NO. 7 TO TYP. NO. 16",$D6,IF($T6="TRANS. TYP. NO. 16 TO TYP. NO. 7",$D6,0)) -> 0 | FG6: =IF($T6="TRANS. TYP. NO. 8 TO TYP. NO. 16",$D6,IF($T6="TRANS. TYP. NO. 16 TO TYP. NO. 8",$D6,0)) -> 0 | FH6: =IF($T6="TRANS. TYP. NO. 9 TO TYP. NO. 16",$D6,IF($T6="TRANS. TYP. NO. 16 TO TYP. NO. 9",$D6,0)) -> 0 | FI6: =IF($T6="TRANS. TYP. NO. 10 TO TYP. NO. 16",$D6,IF($T6="TRANS. TYP. NO. 16 TO TYP. NO. 10",$D6,0)) -> 0 | FJ6: =IF($T6="TRANS. TYP. NO. 11 TO TYP. NO. 16",$D6,IF($T6="TRANS. TYP. NO. 16 TO TYP. NO. 11",$D6,0)) -> 0 | FK6: =IF($T6="TRANS. TYP. NO. 12 TO TYP. NO. 16",$D6,IF($T6="TRANS. TYP. NO. 16 TO TYP. NO. 12",$D6,0)) -> 0 | FL6: =IF($T6="TRANS. TYP. NO. 13 TO TYP. NO. 16",$D6,IF($T6="TRANS. TYP. NO. 16 TO TYP. NO. 13",$D6,0)) -> 0 | FM6: =IF($T6="TRANS. TYP. NO. 14 TO TYP. NO. 16",$D6,IF($T6="TRANS. TYP. NO. 16 TO TYP. NO. 14",$D6,0)) -> 0 | FN6: =IF($T6="TRANS. TYP. NO. 15 TO TYP. NO. 16",$D6,IF($T6="TRANS. TYP. NO. 16 TO TYP. NO. 15",$D6,0)) -> 0
A7: 1120.07 | B7: 1132.51 | C7: =IF(AND(A7=0,B7=0),"",IF(OR(G7="BRIDGE",G8="BRIDGE"),"",IF(G6="BRIDGE",B7-A5,B7-A7))) -> 12.44 | D7: =IF(C7="","",IF(G6="BRIDGE",C7+E6-F6,IF(C7+E7-F7=0,"",C7+E7-F7))) ->  | F7: =B7-A7 -> 12.44 | G7: Railroad | I7: =IF(OR($G7="BRIDGE",$G8="BRIDGE"),"",IF(AND($D7="",$A7>0,$B7>0),"~",IF(W7="ERROR","",IF(W7=0,"",ROUND(W7*$D7/100,0))))) -> ~ | J7: =IF(OR($G7="BRIDGE",$G8="BRIDGE"),"",IF(AND($D7="",$A7>0,$B7>0),"~",IF(X7="ERROR","",IF(X7=0,"",ROUND(X7*$D7/100,0))))) -> ~ | K7: =IF(OR($G7="BRIDGE",$G8="BRIDGE"),"",IF(AND($D7="",$A7>0,$B7>0),"~",IF(Y7="ERROR","",IF(Y7=0,"",ROUND(Y7*$D7/100,0))))) -> ~ | L7: =IF(OR($G7="BRIDGE",$G8="BRIDGE"),"",IF(AND($D7="",$A7>0,$B7>0),"~",IF(Z7="ERROR","",IF(Z7=0,"",ROUND(Z7*$D7/100,0))))) -> ~ | M7: =IF(OR($G7="BRIDGE",$G8="BRIDGE"),"",IF(AND($D7="",$A7>0,$B7>0),"~",IF(AA7="ERROR","",IF(AA7=0,"",ROUND(AA7*$D7/100,0))))) -> ~ | N7: =IF(OR($G7="BRIDGE",$G8="BRIDGE"),"",IF(AND($D7="",$A7>0,$B7>0),"~",IF(AB7="ERROR","",IF(AB7=0,"",ROUND(AB7*$D7/100,0))))) -> ~ | O7: =IF(OR($G7="BRIDGE",$G8="BRIDGE"),"",IF(AND($D7="",$A7>0,$B7>0),"~",IF(AC7="ERROR","",IF(AC7=0,"",ROUND(AC7*$D7/100,1))))) -> ~ | P7: =IF(OR($G7="BRIDGE",$G8="BRIDGE"),"",IF(AND($D7="",$A7>0,$B7>0),"~",IF(AD7="ERROR","",IF(AD7=0,"",ROUND(AD7*$D7/100,1))))) -> ~ | Q7: =IF(OR($G7="BRIDGE",$G8="BRIDGE"),"",IF(AND($D7="",$A7>0,$B7>0),"~",IF(AE7="ERROR","",IF(AE7=0,"",ROUND(AE7*$D7/100,0))))) -> ~ | R7: =IF(OR($G7="BRIDGE",$G8="BRIDGE"),"",IF(AND($D7="",$A7>0,$B7>0),"~",IF(AF7="ERROR","",IF(AF7=0,"",ROUND(AF7*$D7/100,0))))) -> ~ | S7: =IF(OR($G7="BRIDGE",$G8="BRIDGE"),"",IF(AND($D7="",$A7>0,$B7>0),"~",IF(AG7="ERROR","",IF(AG7=0,"",ROUND(AG7*$D7/100,0))))) -> ~ | V7: =IF(T7="",402,MATCH(T7,'Lookup Values'!$B$1:$B$402,0)) -> 402 | W7: =LOOKUP($V7,'Lookup Values'!$A$2:$A$402,'Lookup Values'!C$2:C$402) -> ERROR | X7: =LOOKUP($V7,'Lookup Values'!$A$2:$A$402,'Lookup Values'!D$2:D$402) -> ERROR | Y7: =LOOKUP($V7,'Lookup Values'!$A$2:$A$402,'Lookup Values'!E$2:E$402) -> ERROR | Z7: =LOOKUP($V7,'Lookup Values'!$A$2:$A$402,'Lookup Values'!F$2:F$402) -> ERROR | AA7: =LOOKUP($V7,'Lookup Values'!$A$2:$A$402,'Lookup Values'!G$2:G$402) -> ERROR | AB7: =LOOKUP($V7,'Lookup Values'!$A$2:$A$402,'Lookup Values'!H$2:H$402) -> ERROR | AC7: =LOOKUP($V7,'Lookup Values'!$A$2:$A$402,'Lookup Values'!I$2:I$402) -> ERROR | AD7: =LOOKUP($V7,'Lookup Values'!$A$2:$A$402,'Lookup Values'!J$2:J$402) -> ERROR | AE7: =LOOKUP($V7,'Lookup Values'!$A$2:$A$402,'Lookup Values'!K$2:K$402) -> ERROR | AF7: =LOOKUP($V7,'Lookup Values'!$A$2:$A$402,'Lookup Values'!L$2:L$402) -> ERROR | AG7: =LOOKUP($V7,'Lookup Values'!$A$2:$A$402,'Lookup Values'!M$2:M$402) -> ERROR | AI7: 0 | AJ7: 0 | AK7: 0 | AL7: 0 | AM7: 0 | AN7: 0 | AO7: 0 | AP7: 0 | AQ7: 0 | AR7: 0 | AS7: 0 | AT7: 0 | AU7: 0 | AV7: 0 | AW7: 0 | AX7: 0 | AY7: 0 | AZ7: 0 | BA7: 0 | BB7: 0 | BC7: 0 | BD7: 0 | BE7: 0 | BF7: 0 | BG7: 0 | BH7: 0 | BI7: 0 | BJ7: 0 | BK7: 0 | BL7: 0 | BM7: 0 | BN7: 0 | BO7: 0 | BP7: 0 | BQ7: 0 | BR7: 0 | BS7: 0 | BT7: 0 | BU7: 0 | BV7: 0 | BW7: 0 | BX7: 0 | BY7: 0 | BZ7: 0 | CA7: 0 | CB7: 0 | CC7: 0 | CD7: 0 | CE7: 0 | CF7: 0 | CG7: 0 | CH7: 0 | CI7: 0 | CJ7: 0 | CK7: 0 | CL7: 0 | CM7: 0 | CN7: 0 | CO7: 0 | CP7: 0 | CQ7: 0 | CR7: 0 | CS7: 0 | CT7: 0 | CU7: 0 | CV7: 0 | CW7: 0 | CX7: 0 | CY7: 0 | CZ7: 0 | DA7: 0 | DB7: 0 | DC7: 0 | DD7: 0 | DE7: 0 | DF7: 0 | DG7: 0 | DH7: 0 | DI7: 0 | DJ7: 0 | DK7: 0 | DL7: 0 | DM7: 0 | DN7: 0 | DO7: 0 | DP7: 0 | DQ7: 0 | DR7: 0 | DS7: 0 | DT7: 0 | DU7: 0 | DV7: 0 | DW7: 0 | DX7: 0 | DY7: 0 | DZ7: 0 | EA7: 0 | EB7: 0 | EC7: 0 | ED7: 0 | EE7: 0 | EF7: 0 | EG7: 0 | EH7: 0 | EI7: 0 | EJ7: 0 | EK7: 0 | EL7: 0 | EM7: 0 | EN7: 0 | EO7: 0 | EP7: 0 | EQ7: 0 | ER7: 0 | ES7: 0 | ET7: 0 | EU7: 0 | EV7: 0 | EW7: 0 | EX7: 0 | EY7: 0 | EZ7: 0 | FA7: 0 | FB7: 0 | FC7: 0 | FD7: 0 | FE7: 0 | FF7: 0 | FG7: 0 | FH7: 0 | FI7: 0 | FJ7: 0 | FK7: 0 | FL7: 0 | FM7: 0 | FN7: 0
A8: 1132.51 | B8: 1332.51 | C8: 200 | D8: 200 | I8: 712 | J8: 146 | K8: 263 | O8: 7.9 | P8: 1.3 | Q8: 800 | R8: 80 | S8: 54 | T8: TYP. NO. 1 | V8: =IF(T8="",402,MATCH(T8,'Lookup Values'!$B$1:$B$402,0)) -> 2 | W8: =LOOKUP($V8,'Lookup Values'!$A$2:$A$402,'Lookup Values'!C$2:C$402) -> 356 | X8: =LOOKUP($V8,'Lookup Values'!$A$2:$A$402,'Lookup Values'!D$2:D$402) -> 72.9 | Y8: =LOOKUP($V8,'Lookup Values'!$A$2:$A$402,'Lookup Values'!E$2:E$402) -> 131.6 | Z8: =LOOKUP($V8,'Lookup Values'!$A$2:$A$402,'Lookup Values'!F$2:F$402) -> 0 | AA8: =LOOKUP($V8,'Lookup Values'!$A$2:$A$402,'Lookup Values'!G$2:G$402) -> 0 | AB8: =LOOKUP($V8,'Lookup Values'!$A$2:$A$402,'Lookup Values'!H$2:H$402) -> 0 | AC8: =LOOKUP($V8,'Lookup Values'!$A$2:$A$402,'Lookup Values'!I$2:I$402) -> 3.94 | AD8: =LOOKUP($V8,'Lookup Values'!$A$2:$A$402,'Lookup Values'!J$2:J$402) -> 0.64 | AE8: =LOOKUP($V8,'Lookup Values'!$A$2:$A$402,'Lookup Values'!K$2:K$402) -> 400 | AF8: =LOOKUP($V8,'Lookup Values'!$A$2:$A$402,'Lookup Values'!L$2:L$402) -> 40 | AG8: =LOOKUP($V8,'Lookup Values'!$A$2:$A$402,'Lookup Values'!M$2:M$402) -> 27 | AI8: 200 | AJ8: 0 | AK8: 0 | AL8: 0 | AM8: 0 | AN8: 0 | AO8: 0 | AP8: 0 | AQ8: 0 | AR8: 0 | AS8: 0 | AT8: 0 | AU8: 0 | AV8: 0 | AW8: 0 | AX8: 0 | AY8: 0 | AZ8: 0 | BA8: 0 | BB8: 0 | BC8: 0 | BD8: 0 | BE8: 0 | BF8: 0 | BG8: 0 | BH8: 0 | BI8: 0 | BJ8: 0 | BK8: 0 | BL8: 0 | BM8: 0 | BN8: 0 | BO8: 0 | BP8: 0 | BQ8: 0 | BR8: 0 | BS8: 0 | BT8: 0 | BU8: 0 | BV8: 0 | BW8: 0 | BX8: 0 | BY8: 0 | BZ8: 0 | CA8: 0 | CB8: 0 | CC8: 0 | CD8: 0 | CE8: 0 | CF8: 0 | CG8: 0 | CH8: 0 | CI8: 0 | CJ8: 0 | CK8: 0 | CL8: 0 | CM8: 0 | CN8: 0 | CO8: 0 | CP8: 0 | CQ8: 0 | CR8: 0 | CS8: 0 | CT8: 0 | CU8: 0 | CV8: 0 | CW8: 0 | CX8: 0 | CY8: 0 | CZ8: 0 | DA8: 0 | DB8: 0 | DC8: 0 | DD8: 0 | DE8: 0 | DF8: 0 | DG8: 0 | DH8: 0 | DI8: 0 | DJ8: 0 | DK8: 0 | DL8: 0 | DM8: 0 | DN8: 0 | DO8: 0 | DP8: 0 | DQ8: 0 | DR8: 0 | DS8: 0 | DT8: 0 | DU8: 0 | DV8: 0 | DW8: 0 | DX8: 0 | DY8: 0 | DZ8: 0 | EA8: 0 | EB8: 0 | EC8: 0 | ED8: 0 | EE8: 0 | EF8: 0 | EG8: 0 | EH8: 0 | EI8: 0 | EJ8: 0 | EK8: 0 | EL8: 0 | EM8: 0 | EN8: 0 | EO8: 0 | EP8: 0 | EQ8: 0 | ER8: 0 | ES8: 0 | ET8: 0 | EU8: 0 | EV8: 0 | EW8: 0 | EX8: 0 | EY8: 0 | EZ8: 0 | FA8: 0 | FB8: 0 | FC8: 0 | FD8: 0 | FE8: 0 | FF8: 0 | FG8: 0 | FH8: 0 | FI8: 0 | FJ8: 0 | FK8: 0 | FL8: 0 | FM8: 0 | FN8: 0
A9: 1332.51 | B9: 1705.21 | C9: 372.7 | D9: 372.7 | I9: 1327 | J9: 271 | K9: 474 | O9: 14.6 | P9: 2.4 | Q9: 1487 | R9: 149 | S9: 101 | T9: TYP. NO. 2 | V9: =IF(T9="",402,MATCH(T9,'Lookup Values'!$B$1:$B$402,0)) -> 3 | W9: =LOOKUP($V9,'Lookup Values'!$A$2:$A$402,'Lookup Values'!C$2:C$402) -> 356 | X9: =LOOKUP($V9,'Lookup Values'!$A$2:$A$402,'Lookup Values'!D$2:D$402) -> 72.7 | Y9: =LOOKUP($V9,'Lookup Values'!$A$2:$A$402,'Lookup Values'!E$2:E$402) -> 127.3 | Z9: =LOOKUP($V9,'Lookup Values'!$A$2:$A$402,'Lookup Values'!F$2:F$402) -> 0 | AA9: =LOOKUP($V9,'Lookup Values'!$A$2:$A$402,'Lookup Values'!G$2:G$402) -> 0 | AB9: =LOOKUP($V9,'Lookup Values'!$A$2:$A$402,'Lookup Values'!H$2:H$402) -> 0 | AC9: =LOOKUP($V9,'Lookup Values'!$A$2:$A$402,'Lookup Values'!I$2:I$402) -> 3.93 | AD9: =LOOKUP($V9,'Lookup Values'!$A$2:$A$402,'Lookup Values'!J$2:J$402) -> 0.64 | AE9: =LOOKUP($V9,'Lookup Values'!$A$2:$A$402,'Lookup Values'!K$2:K$402) -> 399 | AF9: =LOOKUP($V9,'Lookup Values'!$A$2:$A$402,'Lookup Values'!L$2:L$402) -> 40 | AG9: =LOOKUP($V9,'Lookup Values'!$A$2:$A$402,'Lookup Values'!M$2:M$402) -> 27 | AI9: 0 | AJ9: 372.7 | AK9: 0 | AL9: 0 | AM9: 0 | AN9: 0 | AO9: 0 | AP9: 0 | AQ9: 0 | AR9: 0 | AS9: 0 | AT9: 0 | AU9: 0 | AV9: 0 | AW9: 0 | AX9: 0 | AY9: 0 | AZ9: 0 | BA9: 0 | BB9: 0 | BC9: 0 | BD9: 0 | BE9: 0 | BF9: 0 | BG9: 0 | BH9: 0 | BI9: 0 | BJ9: 0 | BK9: 0 | BL9: 0 | BM9: 0 | BN9: 0 | BO9: 0 | BP9: 0 | BQ9: 0 | BR9: 0 | BS9: 0 | BT9: 0 | BU9: 0 | BV9: 0 | BW9: 0 | BX9: 0 | BY9: 0 | BZ9: 0 | CA9: 0 | CB9: 0 | CC9: 0 | CD9: 0 | CE9: 0 | CF9: 0 | CG9: 0 | CH9: 0 | CI9: 0 | CJ9: 0 | CK9: 0 | CL9: 0 | CM9: 0 | CN9: 0 | CO9: 0 | CP9: 0 | CQ9: 0 | CR9: 0 | CS9: 0 | CT9: 0 | CU9: 0 | CV9: 0 | CW9: 0 | CX9: 0 | CY9: 0 | CZ9: 0 | DA9: 0 | DB9: 0 | DC9: 0 | DD9: 0 | DE9: 0 | DF9: 0 | DG9: 0 | DH9: 0 | DI9: 0 | DJ9: 0 | DK9: 0 | DL9: 0 | DM9: 0 | DN9: 0 | DO9: 0 | DP9: 0 | DQ9: 0 | DR9: 0 | DS9: 0 | DT9: 0 | DU9: 0 | DV9: 0 | DW9: 0 | DX9: 0 | DY9: 0 | DZ9: 0 | EA9: 0 | EB9: 0 | EC9: 0 | ED9: 0 | EE9: 0 | EF9: 0 | EG9: 0 | EH9: 0 | EI9: 0 | EJ9: 0 | EK9: 0 | EL9: 0 | EM9: 0 | EN9: 0 | EO9: 0 | EP9: 0 | EQ9: 0 | ER9: 0 | ES9: 0 | ET9: 0 | EU9: 0 | EV9: 0 | EW9: 0 | EX9: 0 | EY9: 0 | EZ9: 0 | FA9: 0 | FB9: 0 | FC9: 0 | FD9: 0 | FE9: 0 | FF9: 0 | FG9: 0 | FH9: 0 | FI9: 0 | FJ9: 0 | FK9: 0 | FL9: 0 | FM9: 0 | FN9: 0
A10: 1705.21 | B10: 1917.69 | C10: 212.48 | D10: 212.48 | I10: 756 | J10: 154 | K10: 270 | O10: 8.4 | P10: 1.4 | Q10: 848 | R10: 85 | S10: 57 | T10: TYP. NO. 2 | V10: =IF(T10="",402,MATCH(T10,'Lookup Values'!$B$1:$B$402,0)) -> 3 | W10: =LOOKUP($V10,'Lookup Values'!$A$2:$A$402,'Lookup Values'!C$2:C$402) -> 356 | X10: =LOOKUP($V10,'Lookup Values'!$A$2:$A$402,'Lookup Values'!D$2:D$402) -> 72.7 | Y10: =LOOKUP($V10,'Lookup Values'!$A$2:$A$402,'Lookup Values'!E$2:E$402) -> 127.3 | Z10: =LOOKUP($V10,'Lookup Values'!$A$2:$A$402,'Lookup Values'!F$2:F$402) -> 0 | AA10: =LOOKUP($V10,'Lookup Values'!$A$2:$A$402,'Lookup Values'!G$2:G$402) -> 0 | AB10: =LOOKUP($V10,'Lookup Values'!$A$2:$A$402,'Lookup Values'!H$2:H$402) -> 0 | AC10: =LOOKUP($V10,'Lookup Values'!$A$2:$A$402,'Lookup Values'!I$2:I$402) -> 3.93 | AD10: =LOOKUP($V10,'Lookup Values'!$A$2:$A$402,'Lookup Values'!J$2:J$402) -> 0.64 | AE10: =LOOKUP($V10,'Lookup Values'!$A$2:$A$402,'Lookup Values'!K$2:K$402) -> 399 | AF10: =LOOKUP($V10,'Lookup Values'!$A$2:$A$402,'Lookup Values'!L$2:L$402) -> 40 | AG10: =LOOKUP($V10,'Lookup Values'!$A$2:$A$402,'Lookup Values'!M$2:M$402) -> 27 | AI10: 0 | AJ10: 212.48 | AK10: 0 | AL10: 0 | AM10: 0 | AN10: 0 | AO10: 0 | AP10: 0 | AQ10: 0 | AR10: 0 | AS10: 0 | AT10: 0 | AU10: 0 | AV10: 0 | AW10: 0 | AX10: 0 | AY10: 0 | AZ10: 0 | BA10: 0 | BB10: 0 | BC10: 0 | BD10: 0 | BE10: 0 | BF10: 0 | BG10: 0 | BH10: 0 | BI10: 0 | BJ10: 0 | BK10: 0 | BL10: 0 | BM10: 0 | BN10: 0 | BO10: 0 | BP10: 0 | BQ10: 0 | BR10: 0 | BS10: 0 | BT10: 0 | BU10: 0 | BV10: 0 | BW10: 0 | BX10: 0 | BY10: 0 | BZ10: 0 | CA10: 0 | CB10: 0 | CC10: 0 | CD10: 0 | CE10: 0 | CF10: 0 | CG10: 0 | CH10: 0 | CI10: 0 | CJ10: 0 | CK10: 0 | CL10: 0 | CM10: 0 | CN10: 0 | CO10: 0 | CP10: 0 | CQ10: 0 | CR10: 0 | CS10: 0 | CT10: 0 | CU10: 0 | CV10: 0 | CW10: 0 | CX10: 0 | CY10: 0 | CZ10: 0 | DA10: 0 | DB10: 0 | DC10: 0 | DD10: 0 | DE10: 0 | DF10: 0 | DG10: 0 | DH10: 0 | DI10: 0 | DJ10: 0 | DK10: 0 | DL10: 0 | DM10: 0 | DN10: 0 | DO10: 0 | DP10: 0 | DQ10: 0 | DR10: 0 | DS10: 0 | DT10: 0 | DU10: 0 | DV10: 0 | DW10: 0 | DX10: 0 | DY10: 0 | DZ10: 0 | EA10: 0 | EB10: 0 | EC10: 0 | ED10: 0 | EE10: 0 | EF10: 0 | EG10: 0 | EH10: 0 | EI10: 0 | EJ10: 0 | EK10: 0 | EL10: 0 | EM10: 0 | EN10: 0 | EO10: 0 | EP10: 0 | EQ10: 0 | ER10: 0 | ES10: 0 | ET10: 0 | EU10: 0 | EV10: 0 | EW10: 0 | EX10: 0 | EY10: 0 | EZ10: 0 | FA10: 0 | FB10: 0 | FC10: 0 | FD10: 0 | FE10: 0 | FF10: 0 | FG10: 0 | FH10: 0 | FI10: 0 | FJ10: 0 | FK10: 0 | FL10: 0 | FM10: 0 | FN10: 0
A11: 1917.69 | B11: 6433.45 | C11: 4515.76 | D11: 4515.76 | T11: TYP. NO. 3 | V11: =IF(T11="",402,MATCH(T11,'Lookup Values'!$B$1:$B$402,0)) -> 4 | W11: =LOOKUP($V11,'Lookup Values'!$A$2:$A$402,'Lookup Values'!C$2:C$402) -> 0 | X11: =LOOKUP($V11,'Lookup Values'!$A$2:$A$402,'Lookup Values'!D$2:D$402) -> 0 | Y11: =LOOKUP($V11,'Lookup Values'!$A$2:$A$402,'Lookup Values'!E$2:E$402) -> 0 | Z11: =LOOKUP($V11,'Lookup Values'!$A$2:$A$402,'Lookup Values'!F$2:F$402) -> 0 | AA11: =LOOKUP($V11,'Lookup Values'!$A$2:$A$402,'Lookup Values'!G$2:G$402) -> 0 | AB11: =LOOKUP($V11,'Lookup Values'!$A$2:$A$402,'Lookup Values'!H$2:H$402) -> 0 | AC11: =LOOKUP($V11,'Lookup Values'!$A$2:$A$402,'Lookup Values'!I$2:I$402) -> 0 | AD11: =LOOKUP($V11,'Lookup Values'!$A$2:$A$402,'Lookup Values'!J$2:J$402) -> 0 | AE11: =LOOKUP($V11,'Lookup Values'!$A$2:$A$402,'Lookup Values'!K$2:K$402) -> 0 | AF11: =LOOKUP($V11,'Lookup Values'!$A$2:$A$402,'Lookup Values'!L$2:L$402) -> 0 | AG11: =LOOKUP($V11,'Lookup Values'!$A$2:$A$402,'Lookup Values'!M$2:M$402) -> 0 | AI11: 0 | AJ11: 0 | AK11: 0 | AL11: 4515.76 | AM11: 0 | AN11: 0 | AO11: 0 | AP11: 0 | AQ11: 0 | AR11: 0 | AS11: 0 | AT11: 0 | AU11: 0 | AV11: 0 | AW11: 0 | AX11: 0 | AY11: 0 | AZ11: 0 | BA11: 0 | BB11: 0 | BC11: 0 | BD11: 0 | BE11: 0 | BF11: 0 | BG11: 0 | BH11: 0 | BI11: 0 | BJ11: 0 | BK11: 0 | BL11: 0 | BM11: 0 | BN11: 0 | BO11: 0 | BP11: 0 | BQ11: 0 | BR11: 0 | BS11: 0 | BT11: 0 | BU11: 0 | BV11: 0 | BW11: 0 | BX11: 0 | BY11: 0 | BZ11: 0 | CA11: 0 | CB11: 0 | CC11: 0 | CD11: 0 | CE11: 0 | CF11: 0 | CG11: 0 | CH11: 0 | CI11: 0 | CJ11: 0 | CK11: 0 | CL11: 0 | CM11: 0 | CN11: 0 | CO11: 0 | CP11: 0 | CQ11: 0 | CR11: 0 | CS11: 0 | CT11: 0 | CU11: 0 | CV11: 0 | CW11: 0 | CX11: 0 | CY11: 0 | CZ11: 0 | DA11: 0 | DB11: 0 | DC11: 0 | DD11: 0 | DE11: 0 | DF11: 0 | DG11: 0 | DH11: 0 | DI11: 0 | DJ11: 0 | DK11: 0 | DL11: 0 | DM11: 0 | DN11: 0 | DO11: 0 | DP11: 0 | DQ11: 0 | DR11: 0 | DS11: 0 | DT11: 0 | DU11: 0 | DV11: 0 | DW11: 0 | DX11: 0 | DY11: 0 | DZ11: 0 | EA11: 0 | EB11: 0 | EC11: 0 | ED11: 0 | EE11: 0 | EF11: 0 | EG11: 0 | EH11: 0 | EI11: 0 | EJ11: 0 | EK11: 0 | EL11: 0 | EM11: 0 | EN11: 0 | EO11: 0 | EP11: 0 | EQ11: 0 | ER11: 0 | ES11: 0 | ET11: 0 | EU11: 0 | EV11: 0 | EW11: 0 | EX11: 0 | EY11: 0 | EZ11: 0 | FA11: 0 | FB11: 0 | FC11: 0 | FD11: 0 | FE11: 0 | FF11: 0 | FG11: 0 | FH11: 0 | FI11: 0 | FJ11: 0 | FK11: 0 | FL11: 0 | FM11: 0 | FN11: 0
A12: 6433.45 | B12: 7479.85 | C12: 1046.4 | D12: 1046.4 | I12: 3725 | J12: 761 | K12: 1332 | O12: 41.1 | P12: 6.7 | Q12: 4175 | R12: 419 | S12: 283 | T12: TYP. NO. 2 | V12: =IF(T12="",402,MATCH(T12,'Lookup Values'!$B$1:$B$402,0)) -> 3 | W12: =LOOKUP($V12,'Lookup Values'!$A$2:$A$402,'Lookup Values'!C$2:C$402) -> 356 | X12: =LOOKUP($V12,'Lookup Values'!$A$2:$A$402,'Lookup Values'!D$2:D$402) -> 72.7 | Y12: =LOOKUP($V12,'Lookup Values'!$A$2:$A$402,'Lookup Values'!E$2:E$402) -> 127.3 | Z12: =LOOKUP($V12,'Lookup Values'!$A$2:$A$402,'Lookup Values'!F$2:F$402) -> 0 | AA12: =LOOKUP($V12,'Lookup Values'!$A$2:$A$402,'Lookup Values'!G$2:G$402) -> 0 | AB12: =LOOKUP($V12,'Lookup Values'!$A$2:$A$402,'Lookup Values'!H$2:H$402) -> 0 | AC12: =LOOKUP($V12,'Lookup Values'!$A$2:$A$402,'Lookup Values'!I$2:I$402) -> 3.93 | AD12: =LOOKUP($V12,'Lookup Values'!$A$2:$A$402,'Lookup Values'!J$2:J$402) -> 0.64 | AE12: =LOOKUP($V12,'Lookup Values'!$A$2:$A$402,'Lookup Values'!K$2:K$402) -> 399 | AF12: =LOOKUP($V12,'Lookup Values'!$A$2:$A$402,'Lookup Values'!L$2:L$402) -> 40 | AG12: =LOOKUP($V12,'Lookup Values'!$A$2:$A$402,'Lookup Values'!M$2:M$402) -> 27 | AI12: 0 | AJ12: 1046.4 | AK12: 0 | AL12: 0 | AM12: 0 | AN12: 0 | AO12: 0 | AP12: 0 | AQ12: 0 | AR12: 0 | AS12: 0 | AT12: 0 | AU12: 0 | AV12: 0 | AW12: 0 | AX12: 0 | AY12: 0 | AZ12: 0 | BA12: 0 | BB12: 0 | BC12: 0 | BD12: 0 | BE12: 0 | BF12: 0 | BG12: 0 | BH12: 0 | BI12: 0 | BJ12: 0 | BK12: 0 | BL12: 0 | BM12: 0 | BN12: 0 | BO12: 0 | BP12: 0 | BQ12: 0 | BR12: 0 | BS12: 0 | BT12: 0 | BU12: 0 | BV12: 0 | BW12: 0 | BX12: 0 | BY12: 0 | BZ12: 0 | CA12: 0 | CB12: 0 | CC12: 0 | CD12: 0 | CE12: 0 | CF12: 0 | CG12: 0 | CH12: 0 | CI12: 0 | CJ12: 0 | CK12: 0 | CL12: 0 | CM12: 0 | CN12: 0 | CO12: 0 | CP12: 0 | CQ12: 0 | CR12: 0 | CS12: 0 | CT12: 0 | CU12: 0 | CV12: 0 | CW12: 0 | CX12: 0 | CY12: 0 | CZ12: 0 | DA12: 0 | DB12: 0 | DC12: 0 | DD12: 0 | DE12: 0 | DF12: 0 | DG12: 0 | DH12: 0 | DI12: 0 | DJ12: 0 | DK12: 0 | DL12: 0 | DM12: 0 | DN12: 0 | DO12: 0 | DP12: 0 | DQ12: 0 | DR12: 0 | DS12: 0 | DT12: 0 | DU12: 0 | DV12: 0 | DW12: 0 | DX12: 0 | DY12: 0 | DZ12: 0 | EA12: 0 | EB12: 0 | EC12: 0 | ED12: 0 | EE12: 0 | EF12: 0 | EG12: 0 | EH12: 0 | EI12: 0 | EJ12: 0 | EK12: 0 | EL12: 0 | EM12: 0 | EN12: 0 | EO12: 0 | EP12: 0 | EQ12: 0 | ER12: 0 | ES12: 0 | ET12: 0 | EU12: 0 | EV12: 0 | EW12: 0 | EX12: 0 | EY12: 0 | EZ12: 0 | FA12: 0 | FB12: 0 | FC12: 0 | FD12: 0 | FE12: 0 | FF12: 0 | FG12: 0 | FH12: 0 | FI12: 0 | FJ12: 0 | FK12: 0 | FL12: 0 | FM12: 0 | FN12: 0
A13: 7479.85 | V13: =IF(T13="",402,MATCH(T13,'Lookup Values'!$B$1:$B$402,0)) -> 402 | W13: =LOOKUP($V13,'Lookup Values'!$A$2:$A$402,'Lookup Values'!C$2:C$402) -> ERROR | X13: =LOOKUP($V13,'Lookup Values'!$A$2:$A$402,'Lookup Values'!D$2:D$402) -> ERROR | Y13: =LOOKUP($V13,'Lookup Values'!$A$2:$A$402,'Lookup Values'!E$2:E$402) -> ERROR | Z13: =LOOKUP($V13,'Lookup Values'!$A$2:$A$402,'Lookup Values'!F$2:F$402) -> ERROR | AA13: =LOOKUP($V13,'Lookup Values'!$A$2:$A$402,'Lookup Values'!G$2:G$402) -> ERROR | AB13: =LOOKUP($V13,'Lookup Values'!$A$2:$A$402,'Lookup Values'!H$2:H$402) -> ERROR | AC13: =LOOKUP($V13,'Lookup Values'!$A$2:$A$402,'Lookup Values'!I$2:I$402) -> ERROR | AD13: =LOOKUP($V13,'Lookup Values'!$A$2:$A$402,'Lookup Values'!J$2:J$402) -> ERROR | AE13: =LOOKUP($V13,'Lookup Values'!$A$2:$A$402,'Lookup Values'!K$2:K$402) -> ERROR | AF13: =LOOKUP($V13,'Lookup Values'!$A$2:$A$402,'Lookup Values'!L$2:L$402) -> ERROR | AG13: =LOOKUP($V13,'Lookup Values'!$A$2:$A$402,'Lookup Values'!M$2:M$402) -> ERROR | AI13: 0 | AJ13: 0 | AK13: 0 | AL13: 0 | AM13: 0 | AN13: 0 | AO13: 0 | AP13: 0 | AQ13: 0 | AR13: 0 | AS13: 0 | AT13: 0 | AU13: 0 | AV13: 0 | AW13: 0 | AX13: 0 | AY13: 0 | AZ13: 0 | BA13: 0 | BB13: 0 | BC13: 0 | BD13: 0 | BE13: 0 | BF13: 0 | BG13: 0 | BH13: 0 | BI13: 0 | BJ13: 0 | BK13: 0 | BL13: 0 | BM13: 0 | BN13: 0 | BO13: 0 | BP13: 0 | BQ13: 0 | BR13: 0 | BS13: 0 | BT13: 0 | BU13: 0 | BV13: 0 | BW13: 0 | BX13: 0 | BY13: 0 | BZ13: 0 | CA13: 0 | CB13: 0 | CC13: 0 | CD13: 0 | CE13: 0 | CF13: 0 | CG13: 0 | CH13: 0 | CI13: 0 | CJ13: 0 | CK13: 0 | CL13: 0 | CM13: 0 | CN13: 0 | CO13: 0 | CP13: 0 | CQ13: 0 | CR13: 0 | CS13: 0 | CT13: 0 | CU13: 0 | CV13: 0 | CW13: 0 | CX13: 0 | CY13: 0 | CZ13: 0 | DA13: 0 | DB13: 0 | DC13: 0 | DD13: 0 | DE13: 0 | DF13: 0 | DG13: 0 | DH13: 0 | DI13: 0 | DJ13: 0 | DK13: 0 | DL13: 0 | DM13: 0 | DN13: 0 | DO13: 0 | DP13: 0 | DQ13: 0 | DR13: 0 | DS13: 0 | DT13: 0 | DU13: 0 | DV13: 0 | DW13: 0 | DX13: 0 | DY13: 0 | DZ13: 0 | EA13: 0 | EB13: 0 | EC13: 0 | ED13: 0 | EE13: 0 | EF13: 0 | EG13: 0 | EH13: 0 | EI13: 0 | EJ13: 0 | EK13: 0 | EL13: 0 | EM13: 0 | EN13: 0 | EO13: 0 | EP13: 0 | EQ13: 0 | ER13: 0 | ES13: 0 | ET13: 0 | EU13: 0 | EV13: 0 | EW13: 0 | EX13: 0 | EY13: 0 | EZ13: 0 | FA13: 0 | FB13: 0 | FC13: 0 | FD13: 0 | FE13: 0 | FF13: 0 | FG13: 0 | FH13: 0 | FI13: 0 | FJ13: 0 | FK13: 0 | FL13: 0 | FM13: 0 | FN13: 0
A14: 7681.52 | B14: 7754.48 | F14: =B14-A14 -> 72.96 | G14: Bridge | T14: WILLIAMS COULEE | V14: =IF(T14="",402,MATCH(T14,'Lookup Values'!$B$1:$B$402,0)) ->  | W14: =LOOKUP($V14,'Lookup Values'!$A$2:$A$402,'Lookup Values'!C$2:C$402) ->  | X14: =LOOKUP($V14,'Lookup Values'!$A$2:$A$402,'Lookup Values'!D$2:D$402) ->  | Y14: =LOOKUP($V14,'Lookup Values'!$A$2:$A$402,'Lookup Values'!E$2:E$402) ->  | Z14: =LOOKUP($V14,'Lookup Values'!$A$2:$A$402,'Lookup Values'!F$2:F$402) ->  | AA14: =LOOKUP($V14,'Lookup Values'!$A$2:$A$402,'Lookup Values'!G$2:G$402) ->  | AB14: =LOOKUP($V14,'Lookup Values'!$A$2:$A$402,'Lookup Values'!H$2:H$402) ->  | AC14: =LOOKUP($V14,'Lookup Values'!$A$2:$A$402,'Lookup Values'!I$2:I$402) ->  | AD14: =LOOKUP($V14,'Lookup Values'!$A$2:$A$402,'Lookup Values'!J$2:J$402) ->  | AE14: =LOOKUP($V14,'Lookup Values'!$A$2:$A$402,'Lookup Values'!K$2:K$402) ->  | AF14: =LOOKUP($V14,'Lookup Values'!$A$2:$A$402,'Lookup Values'!L$2:L$402) ->  | AG14: =LOOKUP($V14,'Lookup Values'!$A$2:$A$402,'Lookup Values'!M$2:M$402) ->  | AI14: 0 | AJ14: 0 | AK14: 0 | AL14: 0 | AM14: 0 | AN14: 0 | AO14: 0 | AP14: 0 | AQ14: 0 | AR14: 0 | AS14: 0 | AT14: 0 | AU14: 0 | AV14: 0 | AW14: 0 | AX14: 0 | AY14: 0 | AZ14: 0 | BA14: 0 | BB14: 0 | BC14: 0 | BD14: 0 | BE14: 0 | BF14: 0 | BG14: 0 | BH14: 0 | BI14: 0 | BJ14: 0 | BK14: 0 | BL14: 0 | BM14: 0 | BN14: 0 | BO14: 0 | BP14: 0 | BQ14: 0 | BR14: 0 | BS14: 0 | BT14: 0 | BU14: 0 | BV14: 0 | BW14: 0 | BX14: 0 | BY14: 0 | BZ14: 0 | CA14: 0 | CB14: 0 | CC14: 0 | CD14: 0 | CE14: 0 | CF14: 0 | CG14: 0 | CH14: 0 | CI14: 0 | CJ14: 0 | CK14: 0 | CL14: 0 | CM14: 0 | CN14: 0 | CO14: 0 | CP14: 0 | CQ14: 0 | CR14: 0 | CS14: 0 | CT14: 0 | CU14: 0 | CV14: 0 | CW14: 0 | CX14: 0 | CY14: 0 | CZ14: 0 | DA14: 0 | DB14: 0 | DC14: 0 | DD14: 0 | DE14: 0 | DF14: 0 | DG14: 0 | DH14: 0 | DI14: 0 | DJ14: 0 | DK14: 0 | DL14: 0 | DM14: 0 | DN14: 0 | DO14: 0 | DP14: 0 | DQ14: 0 | DR14: 0 | DS14: 0 | DT14: 0 | DU14: 0 | DV14: 0 | DW14: 0 | DX14: 0 | DY14: 0 | DZ14: 0 | EA14: 0 | EB14: 0 | EC14: 0 | ED14: 0 | EE14: 0 | EF14: 0 | EG14: 0 | EH14: 0 | EI14: 0 | EJ14: 0 | EK14: 0 | EL14: 0 | EM14: 0 | EN14: 0 | EO14: 0 | EP14: 0 | EQ14: 0 | ER14: 0 | ES14: 0 | ET14: 0 | EU14: 0 | EV14: 0 | EW14: 0 | EX14: 0 | EY14: 0 | EZ14: 0 | FA14: 0 | FB14: 0 | FC14: 0 | FD14: 0 | FE14: 0 | FF14: 0 | FG14: 0 | FH14: 0 | FI14: 0 | FJ14: 0 | FK14: 0 | FL14: 0 | FM14: 0 | FN14: 0
B15: 7956.15 | C15: 476.3 | D15: 403.34 | I15: 1436 | J15: 294 | K15: 531 | O15: 15.9 | P15: 2.6 | Q15: 1613 | R15: 161 | S15: 109 | T15: TYP. NO. 1 | V15: =IF(T15="",402,MATCH(T15,'Lookup Values'!$B$1:$B$402,0)) -> 2 | W15: =LOOKUP($V15,'Lookup Values'!$A$2:$A$402,'Lookup Values'!C$2:C$402) -> 356 | X15: =LOOKUP($V15,'Lookup Values'!$A$2:$A$402,'Lookup Values'!D$2:D$402) -> 72.9 | Y15: =LOOKUP($V15,'Lookup Values'!$A$2:$A$402,'Lookup Values'!E$2:E$402) -> 131.6 | Z15: =LOOKUP($V15,'Lookup Values'!$A$2:$A$402,'Lookup Values'!F$2:F$402) -> 0 | AA15: =LOOKUP($V15,'Lookup Values'!$A$2:$A$402,'Lookup Values'!G$2:G$402) -> 0 | AB15: =LOOKUP($V15,'Lookup Values'!$A$2:$A$402,'Lookup Values'!H$2:H$402) -> 0 | AC15: =LOOKUP($V15,'Lookup Values'!$A$2:$A$402,'Lookup Values'!I$2:I$402) -> 3.94 | AD15: =LOOKUP($V15,'Lookup Values'!$A$2:$A$402,'Lookup Values'!J$2:J$402) -> 0.64 | AE15: =LOOKUP($V15,'Lookup Values'!$A$2:$A$402,'Lookup Values'!K$2:K$402) -> 400 | AF15: =LOOKUP($V15,'Lookup Values'!$A$2:$A$402,'Lookup Values'!L$2:L$402) -> 40 | AG15: =LOOKUP($V15,'Lookup Values'!$A$2:$A$402,'Lookup Values'!M$2:M$402) -> 27 | AI15: 403.34 | AJ15: 0 | AK15: 0 | AL15: 0 | AM15: 0 | AN15: 0 | AO15: 0 | AP15: 0 | AQ15: 0 | AR15: 0 | AS15: 0 | AT15: 0 | AU15: 0 | AV15: 0 | AW15: 0 | AX15: 0 | AY15: 0 | AZ15: 0 | BA15: 0 | BB15: 0 | BC15: 0 | BD15: 0 | BE15: 0 | BF15: 0 | BG15: 0 | BH15: 0 | BI15: 0 | BJ15: 0 | BK15: 0 | BL15: 0 | BM15: 0 | BN15: 0 | BO15: 0 | BP15: 0 | BQ15: 0 | BR15: 0 | BS15: 0 | BT15: 0 | BU15: 0 | BV15: 0 | BW15: 0 | BX15: 0 | BY15: 0 | BZ15: 0 | CA15: 0 | CB15: 0 | CC15: 0 | CD15: 0 | CE15: 0 | CF15: 0 | CG15: 0 | CH15: 0 | CI15: 0 | CJ15: 0 | CK15: 0 | CL15: 0 | CM15: 0 | CN15: 0 | CO15: 0 | CP15: 0 | CQ15: 0 | CR15: 0 | CS15: 0 | CT15: 0 | CU15: 0 | CV15: 0 | CW15: 0 | CX15: 0 | CY15: 0 | CZ15: 0 | DA15: 0 | DB15: 0 | DC15: 0 | DD15: 0 | DE15: 0 | DF15: 0 | DG15: 0 | DH15: 0 | DI15: 0 | DJ15: 0 | DK15: 0 | DL15: 0 | DM15: 0 | DN15: 0 | DO15: 0 | DP15: 0 | DQ15: 0 | DR15: 0 | DS15: 0 | DT15: 0 | DU15: 0 | DV15: 0 | DW15: 0 | DX15: 0 | DY15: 0 | DZ15: 0 | EA15: 0 | EB15: 0 | EC15: 0 | ED15: 0 | EE15: 0 | EF15: 0 | EG15: 0 | EH15: 0 | EI15: 0 | EJ15: 0 | EK15: 0 | EL15: 0 | EM15: 0 | EN15: 0 | EO15: 0 | EP15: 0 | EQ15: 0 | ER15: 0 | ES15: 0 | ET15: 0 | EU15: 0 | EV15: 0 | EW15: 0 | EX15: 0 | EY15: 0 | EZ15: 0 | FA15: 0 | FB15: 0 | FC15: 0 | FD15: 0 | FE15: 0 | FF15: 0 | FG15: 0 | FH15: 0 | FI15: 0 | FJ15: 0 | FK15: 0 | FL15: 0 | FM15: 0 | FN15: 0
A16: 7956.15 | B16: 9000 | C16: 1043.85 | D16: 1043.85 | I16: 3716 | J16: 759 | K16: 1329 | O16: 41 | P16: 6.7 | Q16: 4165 | R16: 418 | S16: 282 | T16: TYP. NO. 2 | V16: =IF(T16="",402,MATCH(T16,'Lookup Values'!$B$1:$B$402,0)) -> 3 | W16: =LOOKUP($V16,'Lookup Values'!$A$2:$A$402,'Lookup Values'!C$2:C$402) -> 356 | X16: =LOOKUP($V16,'Lookup Values'!$A$2:$A$402,'Lookup Values'!D$2:D$402) -> 72.7 | Y16: =LOOKUP($V16,'Lookup Values'!$A$2:$A$402,'Lookup Values'!E$2:E$402) -> 127.3 | Z16: =LOOKUP($V16,'Lookup Values'!$A$2:$A$402,'Lookup Values'!F$2:F$402) -> 0 | AA16: =LOOKUP($V16,'Lookup Values'!$A$2:$A$402,'Lookup Values'!G$2:G$402) -> 0 | AB16: =LOOKUP($V16,'Lookup Values'!$A$2:$A$402,'Lookup Values'!H$2:H$402) -> 0 | AC16: =LOOKUP($V16,'Lookup Values'!$A$2:$A$402,'Lookup Values'!I$2:I$402) -> 3.93 | AD16: =LOOKUP($V16,'Lookup Values'!$A$2:$A$402,'Lookup Values'!J$2:J$402) -> 0.64 | AE16: =LOOKUP($V16,'Lookup Values'!$A$2:$A$402,'Lookup Values'!K$2:K$402) -> 399 | AF16: =LOOKUP($V16,'Lookup Values'!$A$2:$A$402,'Lookup Values'!L$2:L$402) -> 40 | AG16: =LOOKUP($V16,'Lookup Values'!$A$2:$A$402,'Lookup Values'!M$2:M$402) -> 27 | AI16: 0 | AJ16: 1043.85 | AK16: 0 | AL16: 0 | AM16: 0 | AN16: 0 | AO16: 0 | AP16: 0 | AQ16: 0 | AR16: 0 | AS16: 0 | AT16: 0 | AU16: 0 | AV16: 0 | AW16: 0 | AX16: 0 | AY16: 0 | AZ16: 0 | BA16: 0 | BB16: 0 | BC16: 0 | BD16: 0 | BE16: 0 | BF16: 0 | BG16: 0 | BH16: 0 | BI16: 0 | BJ16: 0 | BK16: 0 | BL16: 0 | BM16: 0 | BN16: 0 | BO16: 0 | BP16: 0 | BQ16: 0 | BR16: 0 | BS16: 0 | BT16: 0 | BU16: 0 | BV16: 0 | BW16: 0 | BX16: 0 | BY16: 0 | BZ16: 0 | CA16: 0 | CB16: 0 | CC16: 0 | CD16: 0 | CE16: 0 | CF16: 0 | CG16: 0 | CH16: 0 | CI16: 0 | CJ16: 0 | CK16: 0 | CL16: 0 | CM16: 0 | CN16: 0 | CO16: 0 | CP16: 0 | CQ16: 0 | CR16: 0 | CS16: 0 | CT16: 0 | CU16: 0 | CV16: 0 | CW16: 0 | CX16: 0 | CY16: 0 | CZ16: 0 | DA16: 0 | DB16: 0 | DC16: 0 | DD16: 0 | DE16: 0 | DF16: 0 | DG16: 0 | DH16: 0 | DI16: 0 | DJ16: 0 | DK16: 0 | DL16: 0 | DM16: 0 | DN16: 0 | DO16: 0 | DP16: 0 | DQ16: 0 | DR16: 0 | DS16: 0 | DT16: 0 | DU16: 0 | DV16: 0 | DW16: 0 | DX16: 0 | DY16: 0 | DZ16: 0 | EA16: 0 | EB16: 0 | EC16: 0 | ED16: 0 | EE16: 0 | EF16: 0 | EG16: 0 | EH16: 0 | EI16: 0 | EJ16: 0 | EK16: 0 | EL16: 0 | EM16: 0 | EN16: 0 | EO16: 0 | EP16: 0 | EQ16: 0 | ER16: 0 | ES16: 0 | ET16: 0 | EU16: 0 | EV16: 0 | EW16: 0 | EX16: 0 | EY16: 0 | EZ16: 0 | FA16: 0 | FB16: 0 | FC16: 0 | FD16: 0 | FE16: 0 | FF16: 0 | FG16: 0 | FH16: 0 | FI16: 0 | FJ16: 0 | FK16: 0 | FL16: 0 | FM16: 0 | FN16: 0
A17: 9000 | B17: 19622.89 | C17: 10622.89 | D17: 10622.89 | T17: TYP. NO. 3 | V17: =IF(T17="",402,MATCH(T17,'Lookup Values'!$B$1:$B$402,0)) -> 4 | W17: =LOOKUP($V17,'Lookup Values'!$A$2:$A$402,'Lookup Values'!C$2:C$402) -> 0 | X17: =LOOKUP($V17,'Lookup Values'!$A$2:$A$402,'Lookup Values'!D$2:D$402) -> 0 | Y17: =LOOKUP($V17,'Lookup Values'!$A$2:$A$402,'Lookup Values'!E$2:E$402) -> 0 | Z17: =LOOKUP($V17,'Lookup Values'!$A$2:$A$402,'Lookup Values'!F$2:F$402) -> 0 | AA17: =LOOKUP($V17,'Lookup Values'!$A$2:$A$402,'Lookup Values'!G$2:G$402) -> 0 | AB17: =LOOKUP($V17,'Lookup Values'!$A$2:$A$402,'Lookup Values'!H$2:H$402) -> 0 | AC17: =LOOKUP($V17,'Lookup Values'!$A$2:$A$402,'Lookup Values'!I$2:I$402) -> 0 | AD17: =LOOKUP($V17,'Lookup Values'!$A$2:$A$402,'Lookup Values'!J$2:J$402) -> 0 | AE17: =LOOKUP($V17,'Lookup Values'!$A$2:$A$402,'Lookup Values'!K$2:K$402) -> 0 | AF17: =LOOKUP($V17,'Lookup Values'!$A$2:$A$402,'Lookup Values'!L$2:L$402) -> 0 | AG17: =LOOKUP($V17,'Lookup Values'!$A$2:$A$402,'Lookup Values'!M$2:M$402) -> 0 | AI17: 0 | AJ17: 0 | AK17: 0 | AL17: 10622.89 | AM17: 0 | AN17: 0 | AO17: 0 | AP17: 0 | AQ17: 0 | AR17: 0 | AS17: 0 | AT17: 0 | AU17: 0 | AV17: 0 | AW17: 0 | AX17: 0 | AY17: 0 | AZ17: 0 | BA17: 0 | BB17: 0 | BC17: 0 | BD17: 0 | BE17: 0 | BF17: 0 | BG17: 0 | BH17: 0 | BI17: 0 | BJ17: 0 | BK17: 0 | BL17: 0 | BM17: 0 | BN17: 0 | BO17: 0 | BP17: 0 | BQ17: 0 | BR17: 0 | BS17: 0 | BT17: 0 | BU17: 0 | BV17: 0 | BW17: 0 | BX17: 0 | BY17: 0 | BZ17: 0 | CA17: 0 | CB17: 0 | CC17: 0 | CD17: 0 | CE17: 0 | CF17: 0 | CG17: 0 | CH17: 0 | CI17: 0 | CJ17: 0 | CK17: 0 | CL17: 0 | CM17: 0 | CN17: 0 | CO17: 0 | CP17: 0 | CQ17: 0 | CR17: 0 | CS17: 0 | CT17: 0 | CU17: 0 | CV17: 0 | CW17: 0 | CX17: 0 | CY17: 0 | CZ17: 0 | DA17: 0 | DB17: 0 | DC17: 0 | DD17: 0 | DE17: 0 | DF17: 0 | DG17: 0 | DH17: 0 | DI17: 0 | DJ17: 0 | DK17: 0 | DL17: 0 | DM17: 0 | DN17: 0 | DO17: 0 | DP17: 0 | DQ17: 0 | DR17: 0 | DS17: 0 | DT17: 0 | DU17: 0 | DV17: 0 | DW17: 0 | DX17: 0 | DY17: 0 | DZ17: 0 | EA17: 0 | EB17: 0 | EC17: 0 | ED17: 0 | EE17: 0 | EF17: 0 | EG17: 0 | EH17: 0 | EI17: 0 | EJ17: 0 | EK17: 0 | EL17: 0 | EM17: 0 | EN17: 0 | EO17: 0 | EP17: 0 | EQ17: 0 | ER17: 0 | ES17: 0 | ET17: 0 | EU17: 0 | EV17: 0 | EW17: 0 | EX17: 0 | EY17: 0 | EZ17: 0 | FA17: 0 | FB17: 0 | FC17: 0 | FD17: 0 | FE17: 0 | FF17: 0 | FG17: 0 | FH17: 0 | FI17: 0 | FJ17: 0 | FK17: 0 | FL17: 0 | FM17: 0 | FN17: 0
A18: 19622.89 | B18: 26502 | C18: 6879.11 | D18: 6879.11 | I18: 24490 | J18: 5001 | K18: 8757 | O18: 270.3 | P18: 44 | Q18: 27448 | R18: 2752 | S18: 1857 | T18: TYP. NO. 2 | V18: =IF(T18="",402,MATCH(T18,'Lookup Values'!$B$1:$B$402,0)) -> 3 | W18: =LOOKUP($V18,'Lookup Values'!$A$2:$A$402,'Lookup Values'!C$2:C$402) -> 356 | X18: =LOOKUP($V18,'Lookup Values'!$A$2:$A$402,'Lookup Values'!D$2:D$402) -> 72.7 | Y18: =LOOKUP($V18,'Lookup Values'!$A$2:$A$402,'Lookup Values'!E$2:E$402) -> 127.3 | Z18: =LOOKUP($V18,'Lookup Values'!$A$2:$A$402,'Lookup Values'!F$2:F$402) -> 0 | AA18: =LOOKUP($V18,'Lookup Values'!$A$2:$A$402,'Lookup Values'!G$2:G$402) -> 0 | AB18: =LOOKUP($V18,'Lookup Values'!$A$2:$A$402,'Lookup Values'!H$2:H$402) -> 0 | AC18: =LOOKUP($V18,'Lookup Values'!$A$2:$A$402,'Lookup Values'!I$2:I$402) -> 3.93 | AD18: =LOOKUP($V18,'Lookup Values'!$A$2:$A$402,'Lookup Values'!J$2:J$402) -> 0.64 | AE18: =LOOKUP($V18,'Lookup Values'!$A$2:$A$402,'Lookup Values'!K$2:K$402) -> 399 | AF18: =LOOKUP($V18,'Lookup Values'!$A$2:$A$402,'Lookup Values'!L$2:L$402) -> 40 | AG18: =LOOKUP($V18,'Lookup Values'!$A$2:$A$402,'Lookup Values'!M$2:M$402) -> 27 | AI18: 0 | AJ18: 6879.11 | AK18: 0 | AL18: 0 | AM18: 0 | AN18: 0 | AO18: 0 | AP18: 0 | AQ18: 0 | AR18: 0 | AS18: 0 | AT18: 0 | AU18: 0 | AV18: 0 | AW18: 0 | AX18: 0 | AY18: 0 | AZ18: 0 | BA18: 0 | BB18: 0 | BC18: 0 | BD18: 0 | BE18: 0 | BF18: 0 | BG18: 0 | BH18: 0 | BI18: 0 | BJ18: 0 | BK18: 0 | BL18: 0 | BM18: 0 | BN18: 0 | BO18: 0 | BP18: 0 | BQ18: 0 | BR18: 0 | BS18: 0 | BT18: 0 | BU18: 0 | BV18: 0 | BW18: 0 | BX18: 0 | BY18: 0 | BZ18: 0 | CA18: 0 | CB18: 0 | CC18: 0 | CD18: 0 | CE18: 0 | CF18: 0 | CG18: 0 | CH18: 0 | CI18: 0 | CJ18: 0 | CK18: 0 | CL18: 0 | CM18: 0 | CN18: 0 | CO18: 0 | CP18: 0 | CQ18: 0 | CR18: 0 | CS18: 0 | CT18: 0 | CU18: 0 | CV18: 0 | CW18: 0 | CX18: 0 | CY18: 0 | CZ18: 0 | DA18: 0 | DB18: 0 | DC18: 0 | DD18: 0 | DE18: 0 | DF18: 0 | DG18: 0 | DH18: 0 | DI18: 0 | DJ18: 0 | DK18: 0 | DL18: 0 | DM18: 0 | DN18: 0 | DO18: 0 | DP18: 0 | DQ18: 0 | DR18: 0 | DS18: 0 | DT18: 0 | DU18: 0 | DV18: 0 | DW18: 0 | DX18: 0 | DY18: 0 | DZ18: 0 | EA18: 0 | EB18: 0 | EC18: 0 | ED18: 0 | EE18: 0 | EF18: 0 | EG18: 0 | EH18: 0 | EI18: 0 | EJ18: 0 | EK18: 0 | EL18: 0 | EM18: 0 | EN18: 0 | EO18: 0 | EP18: 0 | EQ18: 0 | ER18: 0 | ES18: 0 | ET18: 0 | EU18: 0 | EV18: 0 | EW18: 0 | EX18: 0 | EY18: 0 | EZ18: 0 | FA18: 0 | FB18: 0 | FC18: 0 | FD18: 0 | FE18: 0 | FF18: 0 | FG18: 0 | FH18: 0 | FI18: 0 | FJ18: 0 | FK18: 0 | FL18: 0 | FM18: 0 | FN18: 0
A19: 26502 | B19: 26519 | C19: 17 | D19: 17 | I19: 30 | J19: 6 | K19: 11 | O19: 0.3 | P19: 0.1 | Q19: 34 | R19: 3 | S19: 2 | T19: TRANS. TYP. NO. 2 TO TYP. NO. 6 | V19: =IF(T19="",402,MATCH(T19,'Lookup Values'!$B$1:$B$402,0)) -> 45 | W19: =LOOKUP($V19,'Lookup Values'!$A$2:$A$402,'Lookup Values'!C$2:C$402) -> 178 | X19: =LOOKUP($V19,'Lookup Values'!$A$2:$A$402,'Lookup Values'!D$2:D$402) -> 36.35 | Y19: =LOOKUP($V19,'Lookup Values'!$A$2:$A$402,'Lookup Values'!E$2:E$402) -> 63.65 | Z19: =LOOKUP($V19,'Lookup Values'!$A$2:$A$402,'Lookup Values'!F$2:F$402) -> 0 | AA19: =LOOKUP($V19,'Lookup Values'!$A$2:$A$402,'Lookup Values'!G$2:G$402) -> 0 | AB19: =LOOKUP($V19,'Lookup Values'!$A$2:$A$402,'Lookup Values'!H$2:H$402) -> 0 | AC19: =LOOKUP($V19,'Lookup Values'!$A$2:$A$402,'Lookup Values'!I$2:I$402) -> 1.965 | AD19: =LOOKUP($V19,'Lookup Values'!$A$2:$A$402,'Lookup Values'!J$2:J$402) -> 0.32 | AE19: =LOOKUP($V19,'Lookup Values'!$A$2:$A$402,'Lookup Values'!K$2:K$402) -> 199.5 | AF19: =LOOKUP($V19,'Lookup Values'!$A$2:$A$402,'Lookup Values'!L$2:L$402) -> 20 | AG19: =LOOKUP($V19,'Lookup Values'!$A$2:$A$402,'Lookup Values'!M$2:M$402) -> 13.5 | AI19: 0 | AJ19: 0 | AK19: 0 | AL19: 0 | AM19: 0 | AN19: 0 | AO19: 0 | AP19: 0 | AQ19: 0 | AR19: 0 | AS19: 0 | AT19: 0 | AU19: 0 | AV19: 0 | AW19: 0 | AX19: 0 | AY19: 0 | AZ19: 17 | BA19: 0 | BB19: 0 | BC19: 0 | BD19: 0 | BE19: 0 | BF19: 0 | BG19: 0 | BH19: 0 | BI19: 0 | BJ19: 0 | BK19: 0 | BL19: 0 | BM19: 0 | BN19: 0 | BO19: 0 | BP19: 0 | BQ19: 0 | BR19: 0 | BS19: 0 | BT19: 0 | BU19: 0 | BV19: 0 | BW19: 0 | BX19: 0 | BY19: 0 | BZ19: 0 | CA19: 0 | CB19: 0 | CC19: 0 | CD19: 0 | CE19: 0 | CF19: 0 | CG19: 0 | CH19: 0 | CI19: 0 | CJ19: 0 | CK19: 0 | CL19: 0 | CM19: 0 | CN19: 0 | CO19: 0 | CP19: 0 | CQ19: 0 | CR19: 0 | CS19: 0 | CT19: 0 | CU19: 0 | CV19: 0 | CW19: 0 | CX19: 0 | CY19: 0 | CZ19: 0 | DA19: 0 | DB19: 0 | DC19: 0 | DD19: 0 | DE19: 0 | DF19: 0 | DG19: 0 | DH19: 0 | DI19: 0 | DJ19: 0 | DK19: 0 | DL19: 0 | DM19: 0 | DN19: 0 | DO19: 0 | DP19: 0 | DQ19: 0 | DR19: 0 | DS19: 0 | DT19: 0 | DU19: 0 | DV19: 0 | DW19: 0 | DX19: 0 | DY19: 0 | DZ19: 0 | EA19: 0 | EB19: 0 | EC19: 0 | ED19: 0 | EE19: 0 | EF19: 0 | EG19: 0 | EH19: 0 | EI19: 0 | EJ19: 0 | EK19: 0 | EL19: 0 | EM19: 0 | EN19: 0 | EO19: 0 | EP19: 0 | EQ19: 0 | ER19: 0 | ES19: 0 | ET19: 0 | EU19: 0 | EV19: 0 | EW19: 0 | EX19: 0 | EY19: 0 | EZ19: 0 | FA19: 0 | FB19: 0 | FC19: 0 | FD19: 0 | FE19: 0 | FF19: 0 | FG19: 0 | FH19: 0 | FI19: 0 | FJ19: 0 | FK19: 0 | FL19: 0 | FM19: 0 | FN19: 0
A20: 26519 | V20: =IF(T20="",402,MATCH(T20,'Lookup Values'!$B$1:$B$402,0)) -> 402 | W20: =LOOKUP($V20,'Lookup Values'!$A$2:$A$402,'Lookup Values'!C$2:C$402) -> ERROR | X20: =LOOKUP($V20,'Lookup Values'!$A$2:$A$402,'Lookup Values'!D$2:D$402) -> ERROR | Y20: =LOOKUP($V20,'Lookup Values'!$A$2:$A$402,'Lookup Values'!E$2:E$402) -> ERROR | Z20: =LOOKUP($V20,'Lookup Values'!$A$2:$A$402,'Lookup Values'!F$2:F$402) -> ERROR | AA20: =LOOKUP($V20,'Lookup Values'!$A$2:$A$402,'Lookup Values'!G$2:G$402) -> ERROR | AB20: =LOOKUP($V20,'Lookup Values'!$A$2:$A$402,'Lookup Values'!H$2:H$402) -> ERROR | AC20: =LOOKUP($V20,'Lookup Values'!$A$2:$A$402,'Lookup Values'!I$2:I$402) -> ERROR | AD20: =LOOKUP($V20,'Lookup Values'!$A$2:$A$402,'Lookup Values'!J$2:J$402) -> ERROR | AE20: =LOOKUP($V20,'Lookup Values'!$A$2:$A$402,'Lookup Values'!K$2:K$402) -> ERROR | AF20: =LOOKUP($V20,'Lookup Values'!$A$2:$A$402,'Lookup Values'!L$2:L$402) -> ERROR | AG20: =LOOKUP($V20,'Lookup Values'!$A$2:$A$402,'Lookup Values'!M$2:M$402) -> ERROR | AI20: 0 | AJ20: 0 | AK20: 0 | AL20: 0 | AM20: 0 | AN20: 0 | AO20: 0 | AP20: 0 | AQ20: 0 | AR20: 0 | AS20: 0 | AT20: 0 | AU20: 0 | AV20: 0 | AW20: 0 | AX20: 0 | AY20: 0 | AZ20: 0 | BA20: 0 | BB20: 0 | BC20: 0 | BD20: 0 | BE20: 0 | BF20: 0 | BG20: 0 | BH20: 0 | BI20: 0 | BJ20: 0 | BK20: 0 | BL20: 0 | BM20: 0 | BN20: 0 | BO20: 0 | BP20: 0 | BQ20: 0 | BR20: 0 | BS20: 0 | BT20: 0 | BU20: 0 | BV20: 0 | BW20: 0 | BX20: 0 | BY20: 0 | BZ20: 0 | CA20: 0 | CB20: 0 | CC20: 0 | CD20: 0 | CE20: 0 | CF20: 0 | CG20: 0 | CH20: 0 | CI20: 0 | CJ20: 0 | CK20: 0 | CL20: 0 | CM20: 0 | CN20: 0 | CO20: 0 | CP20: 0 | CQ20: 0 | CR20: 0 | CS20: 0 | CT20: 0 | CU20: 0 | CV20: 0 | CW20: 0 | CX20: 0 | CY20: 0 | CZ20: 0 | DA20: 0 | DB20: 0 | DC20: 0 | DD20: 0 | DE20: 0 | DF20: 0 | DG20: 0 | DH20: 0 | DI20: 0 | DJ20: 0 | DK20: 0 | DL20: 0 | DM20: 0 | DN20: 0 | DO20: 0 | DP20: 0 | DQ20: 0 | DR20: 0 | DS20: 0 | DT20: 0 | DU20: 0 | DV20: 0 | DW20: 0 | DX20: 0 | DY20: 0 | DZ20: 0 | EA20: 0 | EB20: 0 | EC20: 0 | ED20: 0 | EE20: 0 | EF20: 0 | EG20: 0 | EH20: 0 | EI20: 0 | EJ20: 0 | EK20: 0 | EL20: 0 | EM20: 0 | EN20: 0 | EO20: 0 | EP20: 0 | EQ20: 0 | ER20: 0 | ES20: 0 | ET20: 0 | EU20: 0 | EV20: 0 | EW20: 0 | EX20: 0 | EY20: 0 | EZ20: 0 | FA20: 0 | FB20: 0 | FC20: 0 | FD20: 0 | FE20: 0 | FF20: 0 | FG20: 0 | FH20: 0 | FI20: 0 | FJ20: 0 | FK20: 0 | FL20: 0 | FM20: 0 | FN20: 0
A21: 26755.52 | B21: 26814.16 | F21: =B21-A21 -> 58.64 | G21: Bridge | T21: TWO LEGGINS CANAL | V21: =IF(T21="",402,MATCH(T21,'Lookup Values'!$B$1:$B$402,0)) ->  | W21: =LOOKUP($V21,'Lookup Values'!$A$2:$A$402,'Lookup Values'!C$2:C$402) ->  | X21: =LOOKUP($V21,'Lookup Values'!$A$2:$A$402,'Lookup Values'!D$2:D$402) ->  | Y21: =LOOKUP($V21,'Lookup Values'!$A$2:$A$402,'Lookup Values'!E$2:E$402) ->  | Z21: =LOOKUP($V21,'Lookup Values'!$A$2:$A$402,'Lookup Values'!F$2:F$402) ->  | AA21: =LOOKUP($V21,'Lookup Values'!$A$2:$A$402,'Lookup Values'!G$2:G$402) ->  | AB21: =LOOKUP($V21,'Lookup Values'!$A$2:$A$402,'Lookup Values'!H$2:H$402) ->  | AC21: =LOOKUP($V21,'Lookup Values'!$A$2:$A$402,'Lookup Values'!I$2:I$402) ->  | AD21: =LOOKUP($V21,'Lookup Values'!$A$2:$A$402,'Lookup Values'!J$2:J$402) ->  | AE21: =LOOKUP($V21,'Lookup Values'!$A$2:$A$402,'Lookup Values'!K$2:K$402) ->  | AF21: =LOOKUP($V21,'Lookup Values'!$A$2:$A$402,'Lookup Values'!L$2:L$402) ->  | AG21: =LOOKUP($V21,'Lookup Values'!$A$2:$A$402,'Lookup Values'!M$2:M$402) ->  | AI21: 0 | AJ21: 0 | AK21: 0 | AL21: 0 | AM21: 0 | AN21: 0 | AO21: 0 | AP21: 0 | AQ21: 0 | AR21: 0 | AS21: 0 | AT21: 0 | AU21: 0 | AV21: 0 | AW21: 0 | AX21: 0 | AY21: 0 | AZ21: 0 | BA21: 0 | BB21: 0 | BC21: 0 | BD21: 0 | BE21: 0 | BF21: 0 | BG21: 0 | BH21: 0 | BI21: 0 | BJ21: 0 | BK21: 0 | BL21: 0 | BM21: 0 | BN21: 0 | BO21: 0 | BP21: 0 | BQ21: 0 | BR21: 0 | BS21: 0 | BT21: 0 | BU21: 0 | BV21: 0 | BW21: 0 | BX21: 0 | BY21: 0 | BZ21: 0 | CA21: 0 | CB21: 0 | CC21: 0 | CD21: 0 | CE21: 0 | CF21: 0 | CG21: 0 | CH21: 0 | CI21: 0 | CJ21: 0 | CK21: 0 | CL21: 0 | CM21: 0 | CN21: 0 | CO21: 0 | CP21: 0 | CQ21: 0 | CR21: 0 | CS21: 0 | CT21: 0 | CU21: 0 | CV21: 0 | CW21: 0 | CX21: 0 | CY21: 0 | CZ21: 0 | DA21: 0 | DB21: 0 | DC21: 0 | DD21: 0 | DE21: 0 | DF21: 0 | DG21: 0 | DH21: 0 | DI21: 0 | DJ21: 0 | DK21: 0 | DL21: 0 | DM21: 0 | DN21: 0 | DO21: 0 | DP21: 0 | DQ21: 0 | DR21: 0 | DS21: 0 | DT21: 0 | DU21: 0 | DV21: 0 | DW21: 0 | DX21: 0 | DY21: 0 | DZ21: 0 | EA21: 0 | EB21: 0 | EC21: 0 | ED21: 0 | EE21: 0 | EF21: 0 | EG21: 0 | EH21: 0 | EI21: 0 | EJ21: 0 | EK21: 0 | EL21: 0 | EM21: 0 | EN21: 0 | EO21: 0 | EP21: 0 | EQ21: 0 | ER21: 0 | ES21: 0 | ET21: 0 | EU21: 0 | EV21: 0 | EW21: 0 | EX21: 0 | EY21: 0 | EZ21: 0 | FA21: 0 | FB21: 0 | FC21: 0 | FD21: 0 | FE21: 0 | FF21: 0 | FG21: 0 | FH21: 0 | FI21: 0 | FJ21: 0 | FK21: 0 | FL21: 0 | FM21: 0 | FN21: 0
B22: 27051 | C22: 532 | D22: 473.36 | T22: TYP. NO. 7 | V22: =IF(T22="",402,MATCH(T22,'Lookup Values'!$B$1:$B$402,0)) -> 8 | W22: =LOOKUP($V22,'Lookup Values'!$A$2:$A$402,'Lookup Values'!C$2:C$402) -> 0 | X22: =LOOKUP($V22,'Lookup Values'!$A$2:$A$402,'Lookup Values'!D$2:D$402) -> 0 | Y22: =LOOKUP($V22,'Lookup Values'!$A$2:$A$402,'Lookup Values'!E$2:E$402) -> 0 | Z22: =LOOKUP($V22,'Lookup Values'!$A$2:$A$402,'Lookup Values'!F$2:F$402) -> 0 | AA22: =LOOKUP($V22,'Lookup Values'!$A$2:$A$402,'Lookup Values'!G$2:G$402) -> 0 | AB22: =LOOKUP($V22,'Lookup Values'!$A$2:$A$402,'Lookup Values'!H$2:H$402) -> 0 | AC22: =LOOKUP($V22,'Lookup Values'!$A$2:$A$402,'Lookup Values'!I$2:I$402) -> 0 | AD22: =LOOKUP($V22,'Lookup Values'!$A$2:$A$402,'Lookup Values'!J$2:J$402) -> 0 | AE22: =LOOKUP($V22,'Lookup Values'!$A$2:$A$402,'Lookup Values'!K$2:K$402) -> 0 | AF22: =LOOKUP($V22,'Lookup Values'!$A$2:$A$402,'Lookup Values'!L$2:L$402) -> 0 | AG22: =LOOKUP($V22,'Lookup Values'!$A$2:$A$402,'Lookup Values'!M$2:M$402) -> 0 | AI22: 0 | AJ22: 0 | AK22: 0 | AL22: 0 | AM22: 0 | AN22: 0 | AO22: 0 | AP22: 0 | AQ22: 0 | AR22: 0 | AS22: 0 | AT22: 0 | AU22: 0 | AV22: 0 | AW22: 0 | AX22: 0 | AY22: 0 | AZ22: 0 | BA22: 0 | BB22: 0 | BC22: 0 | BD22: 473.36 | BE22: 0 | BF22: 0 | BG22: 0 | BH22: 0 | BI22: 0 | BJ22: 0 | BK22: 0 | BL22: 0 | BM22: 0 | BN22: 0 | BO22: 0 | BP22: 0 | BQ22: 0 | BR22: 0 | BS22: 0 | BT22: 0 | BU22: 0 | BV22: 0 | BW22: 0 | BX22: 0 | BY22: 0 | BZ22: 0 | CA22: 0 | CB22: 0 | CC22: 0 | CD22: 0 | CE22: 0 | CF22: 0 | CG22: 0 | CH22: 0 | CI22: 0 | CJ22: 0 | CK22: 0 | CL22: 0 | CM22: 0 | CN22: 0 | CO22: 0 | CP22: 0 | CQ22: 0 | CR22: 0 | CS22: 0 | CT22: 0 | CU22: 0 | CV22: 0 | CW22: 0 | CX22: 0 | CY22: 0 | CZ22: 0 | DA22: 0 | DB22: 0 | DC22: 0 | DD22: 0 | DE22: 0 | DF22: 0 | DG22: 0 | DH22: 0 | DI22: 0 | DJ22: 0 | DK22: 0 | DL22: 0 | DM22: 0 | DN22: 0 | DO22: 0 | DP22: 0 | DQ22: 0 | DR22: 0 | DS22: 0 | DT22: 0 | DU22: 0 | DV22: 0 | DW22: 0 | DX22: 0 | DY22: 0 | DZ22: 0 | EA22: 0 | EB22: 0 | EC22: 0 | ED22: 0 | EE22: 0 | EF22: 0 | EG22: 0 | EH22: 0 | EI22: 0 | EJ22: 0 | EK22: 0 | EL22: 0 | EM22: 0 | EN22: 0 | EO22: 0 | EP22: 0 | EQ22: 0 | ER22: 0 | ES22: 0 | ET22: 0 | EU22: 0 | EV22: 0 | EW22: 0 | EX22: 0 | EY22: 0 | EZ22: 0 | FA22: 0 | FB22: 0 | FC22: 0 | FD22: 0 | FE22: 0 | FF22: 0 | FG22: 0 | FH22: 0 | FI22: 0 | FJ22: 0 | FK22: 0 | FL22: 0 | FM22: 0 | FN22: 0
A23: 27051 | B23: 27068 | C23: 17 | D23: 17 | I23: 30 | J23: 6 | K23: 11 | O23: 0.3 | P23: 0.1 | Q23: 34 | R23: 3 | S23: 2 | T23: TRANS. TYP. NO. 6 TO TYP. NO. 2 | V23: =IF(T23="",402,MATCH(T23,'Lookup Values'!$B$1:$B$402,0)) -> 118 | W23: =LOOKUP($V23,'Lookup Values'!$A$2:$A$402,'Lookup Values'!C$2:C$402) -> 178 | X23: =LOOKUP($V23,'Lookup Values'!$A$2:$A$402,'Lookup Values'!D$2:D$402) -> 36.35 | Y23: =LOOKUP($V23,'Lookup Values'!$A$2:$A$402,'Lookup Values'!E$2:E$402) -> 63.65 | Z23: =LOOKUP($V23,'Lookup Values'!$A$2:$A$402,'Lookup Values'!F$2:F$402) -> 0 | AA23: =LOOKUP($V23,'Lookup Values'!$A$2:$A$402,'Lookup Values'!G$2:G$402) -> 0 | AB23: =LOOKUP($V23,'Lookup Values'!$A$2:$A$402,'Lookup Values'!H$2:H$402) -> 0 | AC23: =LOOKUP($V23,'Lookup Values'!$A$2:$A$402,'Lookup Values'!I$2:I$402) -> 1.965 | AD23: =LOOKUP($V23,'Lookup Values'!$A$2:$A$402,'Lookup Values'!J$2:J$402) -> 0.32 | AE23: =LOOKUP($V23,'Lookup Values'!$A$2:$A$402,'Lookup Values'!K$2:K$402) -> 199.5 | AF23: =LOOKUP($V23,'Lookup Values'!$A$2:$A$402,'Lookup Values'!L$2:L$402) -> 20 | AG23: =LOOKUP($V23,'Lookup Values'!$A$2:$A$402,'Lookup Values'!M$2:M$402) -> 13.5 | AI23: 0 | AJ23: 0 | AK23: 0 | AL23: 0 | AM23: 0 | AN23: 0 | AO23: 0 | AP23: 0 | AQ23: 0 | AR23: 0 | AS23: 0 | AT23: 0 | AU23: 0 | AV23: 0 | AW23: 0 | AX23: 0 | AY23: 0 | AZ23: 17 | BA23: 0 | BB23: 0 | BC23: 0 | BD23: 0 | BE23: 0 | BF23: 0 | BG23: 0 | BH23: 0 | BI23: 0 | BJ23: 0 | BK23: 0 | BL23: 0 | BM23: 0 | BN23: 0 | BO23: 0 | BP23: 0 | BQ23: 0 | BR23: 0 | BS23: 0 | BT23: 0 | BU23: 0 | BV23: 0 | BW23: 0 | BX23: 0 | BY23: 0 | BZ23: 0 | CA23: 0 | CB23: 0 | CC23: 0 | CD23: 0 | CE23: 0 | CF23: 0 | CG23: 0 | CH23: 0 | CI23: 0 | CJ23: 0 | CK23: 0 | CL23: 0 | CM23: 0 | CN23: 0 | CO23: 0 | CP23: 0 | CQ23: 0 | CR23: 0 | CS23: 0 | CT23: 0 | CU23: 0 | CV23: 0 | CW23: 0 | CX23: 0 | CY23: 0 | CZ23: 0 | DA23: 0 | DB23: 0 | DC23: 0 | DD23: 0 | DE23: 0 | DF23: 0 | DG23: 0 | DH23: 0 | DI23: 0 | DJ23: 0 | DK23: 0 | DL23: 0 | DM23: 0 | DN23: 0 | DO23: 0 | DP23: 0 | DQ23: 0 | DR23: 0 | DS23: 0 | DT23: 0 | DU23: 0 | DV23: 0 | DW23: 0 | DX23: 0 | DY23: 0 | DZ23: 0 | EA23: 0 | EB23: 0 | EC23: 0 | ED23: 0 | EE23: 0 | EF23: 0 | EG23: 0 | EH23: 0 | EI23: 0 | EJ23: 0 | EK23: 0 | EL23: 0 | EM23: 0 | EN23: 0 | EO23: 0 | EP23: 0 | EQ23: 0 | ER23: 0 | ES23: 0 | ET23: 0 | EU23: 0 | EV23: 0 | EW23: 0 | EX23: 0 | EY23: 0 | EZ23: 0 | FA23: 0 | FB23: 0 | FC23: 0 | FD23: 0 | FE23: 0 | FF23: 0 | FG23: 0 | FH23: 0 | FI23: 0 | FJ23: 0 | FK23: 0 | FL23: 0 | FM23: 0 | FN23: 0
A24: 27068 | B24: 34217.92 | C24: 7149.92 | D24: 7149.92 | I24: 25454 | J24: 5198 | K24: 9102 | O24: 281 | P24: 45.8 | Q24: 28528 | R24: 2860 | S24: 1930 | T24: TYP. NO. 2 | V24: =IF(T24="",402,MATCH(T24,'Lookup Values'!$B$1:$B$402,0)) -> 3 | W24: =LOOKUP($V24,'Lookup Values'!$A$2:$A$402,'Lookup Values'!C$2:C$402) -> 356 | X24: =LOOKUP($V24,'Lookup Values'!$A$2:$A$402,'Lookup Values'!D$2:D$402) -> 72.7 | Y24: =LOOKUP($V24,'Lookup Values'!$A$2:$A$402,'Lookup Values'!E$2:E$402) -> 127.3 | Z24: =LOOKUP($V24,'Lookup Values'!$A$2:$A$402,'Lookup Values'!F$2:F$402) -> 0 | AA24: =LOOKUP($V24,'Lookup Values'!$A$2:$A$402,'Lookup Values'!G$2:G$402) -> 0 | AB24: =LOOKUP($V24,'Lookup Values'!$A$2:$A$402,'Lookup Values'!H$2:H$402) -> 0 | AC24: =LOOKUP($V24,'Lookup Values'!$A$2:$A$402,'Lookup Values'!I$2:I$402) -> 3.93 | AD24: =LOOKUP($V24,'Lookup Values'!$A$2:$A$402,'Lookup Values'!J$2:J$402) -> 0.64 | AE24: =LOOKUP($V24,'Lookup Values'!$A$2:$A$402,'Lookup Values'!K$2:K$402) -> 399 | AF24: =LOOKUP($V24,'Lookup Values'!$A$2:$A$402,'Lookup Values'!L$2:L$402) -> 40 | AG24: =LOOKUP($V24,'Lookup Values'!$A$2:$A$402,'Lookup Values'!M$2:M$402) -> 27 | AI24: 0 | AJ24: 7149.92 | AK24: 0 | AL24: 0 | AM24: 0 | AN24: 0 | AO24: 0 | AP24: 0 | AQ24: 0 | AR24: 0 | AS24: 0 | AT24: 0 | AU24: 0 | AV24: 0 | AW24: 0 | AX24: 0 | AY24: 0 | AZ24: 0 | BA24: 0 | BB24: 0 | BC24: 0 | BD24: 0 | BE24: 0 | BF24: 0 | BG24: 0 | BH24: 0 | BI24: 0 | BJ24: 0 | BK24: 0 | BL24: 0 | BM24: 0 | BN24: 0 | BO24: 0 | BP24: 0 | BQ24: 0 | BR24: 0 | BS24: 0 | BT24: 0 | BU24: 0 | BV24: 0 | BW24: 0 | BX24: 0 | BY24: 0 | BZ24: 0 | CA24: 0 | CB24: 0 | CC24: 0 | CD24: 0 | CE24: 0 | CF24: 0 | CG24: 0 | CH24: 0 | CI24: 0 | CJ24: 0 | CK24: 0 | CL24: 0 | CM24: 0 | CN24: 0 | CO24: 0 | CP24: 0 | CQ24: 0 | CR24: 0 | CS24: 0 | CT24: 0 | CU24: 0 | CV24: 0 | CW24: 0 | CX24: 0 | CY24: 0 | CZ24: 0 | DA24: 0 | DB24: 0 | DC24: 0 | DD24: 0 | DE24: 0 | DF24: 0 | DG24: 0 | DH24: 0 | DI24: 0 | DJ24: 0 | DK24: 0 | DL24: 0 | DM24: 0 | DN24: 0 | DO24: 0 | DP24: 0 | DQ24: 0 | DR24: 0 | DS24: 0 | DT24: 0 | DU24: 0 | DV24: 0 | DW24: 0 | DX24: 0 | DY24: 0 | DZ24: 0 | EA24: 0 | EB24: 0 | EC24: 0 | ED24: 0 | EE24: 0 | EF24: 0 | EG24: 0 | EH24: 0 | EI24: 0 | EJ24: 0 | EK24: 0 | EL24: 0 | EM24: 0 | EN24: 0 | EO24: 0 | EP24: 0 | EQ24: 0 | ER24: 0 | ES24: 0 | ET24: 0 | EU24: 0 | EV24: 0 | EW24: 0 | EX24: 0 | EY24: 0 | EZ24: 0 | FA24: 0 | FB24: 0 | FC24: 0 | FD24: 0 | FE24: 0 | FF24: 0 | FG24: 0 | FH24: 0 | FI24: 0 | FJ24: 0 | FK24: 0 | FL24: 0 | FM24: 0 | FN24: 0
A25: 34217.92 | B25: 34317.92 | C25: 100 | D25: 100 | I25: 178 | J25: 36 | K25: 64 | O25: 2 | P25: 0.3 | Q25: 200 | R25: 20 | S25: 14 | T25: TRANS. TYP. NO. 2 TO TYP. NO. 8 | V25: =IF(T25="",402,MATCH(T25,'Lookup Values'!$B$1:$B$402,0)) -> 47 | W25: =LOOKUP($V25,'Lookup Values'!$A$2:$A$402,'Lookup Values'!C$2:C$402) -> 178 | X25: =LOOKUP($V25,'Lookup Values'!$A$2:$A$402,'Lookup Values'!D$2:D$402) -> 36.35 | Y25: =LOOKUP($V25,'Lookup Values'!$A$2:$A$402,'Lookup Values'!E$2:E$402) -> 63.65 | Z25: =LOOKUP($V25,'Lookup Values'!$A$2:$A$402,'Lookup Values'!F$2:F$402) -> 0 | AA25: =LOOKUP($V25,'Lookup Values'!$A$2:$A$402,'Lookup Values'!G$2:G$402) -> 0 | AB25: =LOOKUP($V25,'Lookup Values'!$A$2:$A$402,'Lookup Values'!H$2:H$402) -> 0 | AC25: =LOOKUP($V25,'Lookup Values'!$A$2:$A$402,'Lookup Values'!I$2:I$402) -> 1.965 | AD25: =LOOKUP($V25,'Lookup Values'!$A$2:$A$402,'Lookup Values'!J$2:J$402) -> 0.32 | AE25: =LOOKUP($V25,'Lookup Values'!$A$2:$A$402,'Lookup Values'!K$2:K$402) -> 199.5 | AF25: =LOOKUP($V25,'Lookup Values'!$A$2:$A$402,'Lookup Values'!L$2:L$402) -> 20 | AG25: =LOOKUP($V25,'Lookup Values'!$A$2:$A$402,'Lookup Values'!M$2:M$402) -> 13.5 | AI25: 0 | AJ25: 0 | AK25: 0 | AL25: 0 | AM25: 0 | AN25: 0 | AO25: 0 | AP25: 0 | AQ25: 0 | AR25: 0 | AS25: 0 | AT25: 0 | AU25: 0 | AV25: 0 | AW25: 0 | AX25: 0 | AY25: 0 | AZ25: 0 | BA25: 0 | BB25: 0 | BC25: 0 | BD25: 0 | BE25: 0 | BF25: 0 | BG25: 0 | BH25: 0 | BI25: 0 | BJ25: 0 | BK25: 0 | BL25: 0 | BM25: 100 | BN25: 0 | BO25: 0 | BP25: 0 | BQ25: 0 | BR25: 0 | BS25: 0 | BT25: 0 | BU25: 0 | BV25: 0 | BW25: 0 | BX25: 0 | BY25: 0 | BZ25: 0 | CA25: 0 | CB25: 0 | CC25: 0 | CD25: 0 | CE25: 0 | CF25: 0 | CG25: 0 | CH25: 0 | CI25: 0 | CJ25: 0 | CK25: 0 | CL25: 0 | CM25: 0 | CN25: 0 | CO25: 0 | CP25: 0 | CQ25: 0 | CR25: 0 | CS25: 0 | CT25: 0 | CU25: 0 | CV25: 0 | CW25: 0 | CX25: 0 | CY25: 0 | CZ25: 0 | DA25: 0 | DB25: 0 | DC25: 0 | DD25: 0 | DE25: 0 | DF25: 0 | DG25: 0 | DH25: 0 | DI25: 0 | DJ25: 0 | DK25: 0 | DL25: 0 | DM25: 0 | DN25: 0 | DO25: 0 | DP25: 0 | DQ25: 0 | DR25: 0 | DS25: 0 | DT25: 0 | DU25: 0 | DV25: 0 | DW25: 0 | DX25: 0 | DY25: 0 | DZ25: 0 | EA25: 0 | EB25: 0 | EC25: 0 | ED25: 0 | EE25: 0 | EF25: 0 | EG25: 0 | EH25: 0 | EI25: 0 | EJ25: 0 | EK25: 0 | EL25: 0 | EM25: 0 | EN25: 0 | EO25: 0 | EP25: 0 | EQ25: 0 | ER25: 0 | ES25: 0 | ET25: 0 | EU25: 0 | EV25: 0 | EW25: 0 | EX25: 0 | EY25: 0 | EZ25: 0 | FA25: 0 | FB25: 0 | FC25: 0 | FD25: 0 | FE25: 0 | FF25: 0 | FG25: 0 | FH25: 0 | FI25: 0 | FJ25: 0 | FK25: 0 | FL25: 0 | FM25: 0 | FN25: 0
V26: =IF(T26="",402,MATCH(T26,'Lookup Values'!$B$1:$B$402,0)) -> 402 | W26: =LOOKUP($V26,'Lookup Values'!$A$2:$A$402,'Lookup Values'!C$2:C$402) -> ERROR | X26: =LOOKUP($V26,'Lookup Values'!$A$2:$A$402,'Lookup Values'!D$2:D$402) -> ERROR | Y26: =LOOKUP($V26,'Lookup Values'!$A$2:$A$402,'Lookup Values'!E$2:E$402) -> ERROR | Z26: =LOOKUP($V26,'Lookup Values'!$A$2:$A$402,'Lookup Values'!F$2:F$402) -> ERROR | AA26: =LOOKUP($V26,'Lookup Values'!$A$2:$A$402,'Lookup Values'!G$2:G$402) -> ERROR | AB26: =LOOKUP($V26,'Lookup Values'!$A$2:$A$402,'Lookup Values'!H$2:H$402) -> ERROR | AC26: =LOOKUP($V26,'Lookup Values'!$A$2:$A$402,'Lookup Values'!I$2:I$402) -> ERROR | AD26: =LOOKUP($V26,'Lookup Values'!$A$2:$A$402,'Lookup Values'!J$2:J$402) -> ERROR | AE26: =LOOKUP($V26,'Lookup Values'!$A$2:$A$402,'Lookup Values'!K$2:K$402) -> ERROR | AF26: =LOOKUP($V26,'Lookup Values'!$A$2:$A$402,'Lookup Values'!L$2:L$402) -> ERROR | AG26: =LOOKUP($V26,'Lookup Values'!$A$2:$A$402,'Lookup Values'!M$2:M$402) -> ERROR | AI26: 0 | AJ26: 0 | AK26: 0 | AL26: 0 | AM26: 0 | AN26: 0 | AO26: 0 | AP26: 0 | AQ26: 0 | AR26: 0 | AS26: 0 | AT26: 0 | AU26: 0 | AV26: 0 | AW26: 0 | AX26: 0 | AY26: 0 | AZ26: 0 | BA26: 0 | BB26: 0 | BC26: 0 | BD26: 0 | BE26: 0 | BF26: 0 | BG26: 0 | BH26: 0 | BI26: 0 | BJ26: 0 | BK26: 0 | BL26: 0 | BM26: 0 | BN26: 0 | BO26: 0 | BP26: 0 | BQ26: 0 | BR26: 0 | BS26: 0 | BT26: 0 | BU26: 0 | BV26: 0 | BW26: 0 | BX26: 0 | BY26: 0 | BZ26: 0 | CA26: 0 | CB26: 0 | CC26: 0 | CD26: 0 | CE26: 0 | CF26: 0 | CG26: 0 | CH26: 0 | CI26: 0 | CJ26: 0 | CK26: 0 | CL26: 0 | CM26: 0 | CN26: 0 | CO26: 0 | CP26: 0 | CQ26: 0 | CR26: 0 | CS26: 0 | CT26: 0 | CU26: 0 | CV26: 0 | CW26: 0 | CX26: 0 | CY26: 0 | CZ26: 0 | DA26: 0 | DB26: 0 | DC26: 0 | DD26: 0 | DE26: 0 | DF26: 0 | DG26: 0 | DH26: 0 | DI26: 0 | DJ26: 0 | DK26: 0 | DL26: 0 | DM26: 0 | DN26: 0 | DO26: 0 | DP26: 0 | DQ26: 0 | DR26: 0 | DS26: 0 | DT26: 0 | DU26: 0 | DV26: 0 | DW26: 0 | DX26: 0 | DY26: 0 | DZ26: 0 | EA26: 0 | EB26: 0 | EC26: 0 | ED26: 0 | EE26: 0 | EF26: 0 | EG26: 0 | EH26: 0 | EI26: 0 | EJ26: 0 | EK26: 0 | EL26: 0 | EM26: 0 | EN26: 0 | EO26: 0 | EP26: 0 | EQ26: 0 | ER26: 0 | ES26: 0 | ET26: 0 | EU26: 0 | EV26: 0 | EW26: 0 | EX26: 0 | EY26: 0 | EZ26: 0 | FA26: 0 | FB26: 0 | FC26: 0 | FD26: 0 | FE26: 0 | FF26: 0 | FG26: 0 | FH26: 0 | FI26: 0 | FJ26: 0 | FK26: 0 | FL26: 0 | FM26: 0 | FN26: 0
C27: =IF(AND(A27=0,B27=0),"",IF(OR(G27="BRIDGE",G28="BRIDGE"),"",IF(G26="BRIDGE",B27-A25,B27-A27))) ->  | D27: =IF(C27="","",IF(G26="BRIDGE",C27+E26-F26,IF(C27+E27-F27=0,"",C27+E27-F27))) ->  | V27: =IF(T27="",402,MATCH(T27,'Lookup Values'!$B$1:$B$402,0)) -> 402 | W27: =LOOKUP($V27,'Lookup Values'!$A$2:$A$402,'Lookup Values'!C$2:C$402) -> ERROR | X27: =LOOKUP($V27,'Lookup Values'!$A$2:$A$402,'Lookup Values'!D$2:D$402) -> ERROR | Y27: =LOOKUP($V27,'Lookup Values'!$A$2:$A$402,'Lookup Values'!E$2:E$402) -> ERROR | Z27: =LOOKUP($V27,'Lookup Values'!$A$2:$A$402,'Lookup Values'!F$2:F$402) -> ERROR | AA27: =LOOKUP($V27,'Lookup Values'!$A$2:$A$402,'Lookup Values'!G$2:G$402) -> ERROR | AB27: =LOOKUP($V27,'Lookup Values'!$A$2:$A$402,'Lookup Values'!H$2:H$402) -> ERROR | AC27: =LOOKUP($V27,'Lookup Values'!$A$2:$A$402,'Lookup Values'!I$2:I$402) -> ERROR | AD27: =LOOKUP($V27,'Lookup Values'!$A$2:$A$402,'Lookup Values'!J$2:J$402) -> ERROR | AE27: =LOOKUP($V27,'Lookup Values'!$A$2:$A$402,'Lookup Values'!K$2:K$402) -> ERROR | AF27: =LOOKUP($V27,'Lookup Values'!$A$2:$A$402,'Lookup Values'!L$2:L$402) -> ERROR | AG27: =LOOKUP($V27,'Lookup Values'!$A$2:$A$402,'Lookup Values'!M$2:M$402) -> ERROR | AI27: 0 | AJ27: 0 | AK27: 0 | AL27: 0 | AM27: 0 | AN27: 0 | AO27: 0 | AP27: 0 | AQ27: 0 | AR27: 0 | AS27: 0 | AT27: 0 | AU27: 0 | AV27: 0 | AW27: 0 | AX27: 0 | AY27: 0 | AZ27: 0 | BA27: 0 | BB27: 0 | BC27: 0 | BD27: 0 | BE27: 0 | BF27: 0 | BG27: 0 | BH27: 0 | BI27: 0 | BJ27: 0 | BK27: 0 | BL27: 0 | BM27: 0 | BN27: 0 | BO27: 0 | BP27: 0 | BQ27: 0 | BR27: 0 | BS27: 0 | BT27: 0 | BU27: 0 | BV27: 0 | BW27: 0 | BX27: 0 | BY27: 0 | BZ27: 0 | CA27: 0 | CB27: 0 | CC27: 0 | CD27: 0 | CE27: 0 | CF27: 0 | CG27: 0 | CH27: 0 | CI27: 0 | CJ27: 0 | CK27: 0 | CL27: 0 | CM27: 0 | CN27: 0 | CO27: 0 | CP27: 0 | CQ27: 0 | CR27: 0 | CS27: 0 | CT27: 0 | CU27: 0 | CV27: 0 | CW27: 0 | CX27: 0 | CY27: 0 | CZ27: 0 | DA27: 0 | DB27: 0 | DC27: 0 | DD27: 0 | DE27: 0 | DF27: 0 | DG27: 0 | DH27: 0 | DI27: 0 | DJ27: 0 | DK27: 0 | DL27: 0 | DM27: 0 | DN27: 0 | DO27: 0 | DP27: 0 | DQ27: 0 | DR27: 0 | DS27: 0 | DT27: 0 | DU27: 0 | DV27: 0 | DW27: 0 | DX27: 0 | DY27: 0 | DZ27: 0 | EA27: 0 | EB27: 0 | EC27: 0 | ED27: 0 | EE27: 0 | EF27: 0 | EG27: 0 | EH27: 0 | EI27: 0 | EJ27: 0 | EK27: 0 | EL27: 0 | EM27: 0 | EN27: 0 | EO27: 0 | EP27: 0 | EQ27: 0 | ER27: 0 | ES27: 0 | ET27: 0 | EU27: 0 | EV27: 0 | EW27: 0 | EX27: 0 | EY27: 0 | EZ27: 0 | FA27: 0 | FB27: 0 | FC27: 0 | FD27: 0 | FE27: 0 | FF27: 0 | FG27: 0 | FH27: 0 | FI27: 0 | FJ27: 0 | FK27: 0 | FL27: 0 | FM27: 0 | FN27: 0
V28: =IF(T28="",402,MATCH(T28,'Lookup Values'!$B$1:$B$402,0)) -> 402 | W28: =LOOKUP($V28,'Lookup Values'!$A$2:$A$402,'Lookup Values'!C$2:C$402) -> ERROR | X28: =LOOKUP($V28,'Lookup Values'!$A$2:$A$402,'Lookup Values'!D$2:D$402) -> ERROR | Y28: =LOOKUP($V28,'Lookup Values'!$A$2:$A$402,'Lookup Values'!E$2:E$402) -> ERROR | Z28: =LOOKUP($V28,'Lookup Values'!$A$2:$A$402,'Lookup Values'!F$2:F$402) -> ERROR | AA28: =LOOKUP($V28,'Lookup Values'!$A$2:$A$402,'Lookup Values'!G$2:G$402) -> ERROR | AB28: =LOOKUP($V28,'Lookup Values'!$A$2:$A$402,'Lookup Values'!H$2:H$402) -> ERROR | AC28: =LOOKUP($V28,'Lookup Values'!$A$2:$A$402,'Lookup Values'!I$2:I$402) -> ERROR | AD28: =LOOKUP($V28,'Lookup Values'!$A$2:$A$402,'Lookup Values'!J$2:J$402) -> ERROR | AE28: =LOOKUP($V28,'Lookup Values'!$A$2:$A$402,'Lookup Values'!K$2:K$402) -> ERROR | AF28: =LOOKUP($V28,'Lookup Values'!$A$2:$A$402,'Lookup Values'!L$2:L$402) -> ERROR | AG28: =LOOKUP($V28,'Lookup Values'!$A$2:$A$402,'Lookup Values'!M$2:M$402) -> ERROR | AI28: 0 | AJ28: 0 | AK28: 0 | AL28: 0 | AM28: 0 | AN28: 0 | AO28: 0 | AP28: 0 | AQ28: 0 | AR28: 0 | AS28: 0 | AT28: 0 | AU28: 0 | AV28: 0 | AW28: 0 | AX28: 0 | AY28: 0 | AZ28: 0 | BA28: 0 | BB28: 0 | BC28: 0 | BD28: 0 | BE28: 0 | BF28: 0 | BG28: 0 | BH28: 0 | BI28: 0 | BJ28: 0 | BK28: 0 | BL28: 0 | BM28: 0 | BN28: 0 | BO28: 0 | BP28: 0 | BQ28: 0 | BR28: 0 | BS28: 0 | BT28: 0 | BU28: 0 | BV28: 0 | BW28: 0 | BX28: 0 | BY28: 0 | BZ28: 0 | CA28: 0 | CB28: 0 | CC28: 0 | CD28: 0 | CE28: 0 | CF28: 0 | CG28: 0 | CH28: 0 | CI28: 0 | CJ28: 0 | CK28: 0 | CL28: 0 | CM28: 0 | CN28: 0 | CO28: 0 | CP28: 0 | CQ28: 0 | CR28: 0 | CS28: 0 | CT28: 0 | CU28: 0 | CV28: 0 | CW28: 0 | CX28: 0 | CY28: 0 | CZ28: 0 | DA28: 0 | DB28: 0 | DC28: 0 | DD28: 0 | DE28: 0 | DF28: 0 | DG28: 0 | DH28: 0 | DI28: 0 | DJ28: 0 | DK28: 0 | DL28: 0 | DM28: 0 | DN28: 0 | DO28: 0 | DP28: 0 | DQ28: 0 | DR28: 0 | DS28: 0 | DT28: 0 | DU28: 0 | DV28: 0 | DW28: 0 | DX28: 0 | DY28: 0 | DZ28: 0 | EA28: 0 | EB28: 0 | EC28: 0 | ED28: 0 | EE28: 0 | EF28: 0 | EG28: 0 | EH28: 0 | EI28: 0 | EJ28: 0 | EK28: 0 | EL28: 0 | EM28: 0 | EN28: 0 | EO28: 0 | EP28: 0 | EQ28: 0 | ER28: 0 | ES28: 0 | ET28: 0 | EU28: 0 | EV28: 0 | EW28: 0 | EX28: 0 | EY28: 0 | EZ28: 0 | FA28: 0 | FB28: 0 | FC28: 0 | FD28: 0 | FE28: 0 | FF28: 0 | FG28: 0 | FH28: 0 | FI28: 0 | FJ28: 0 | FK28: 0 | FL28: 0 | FM28: 0 | FN28: 0
V29: =IF(T29="",402,MATCH(T29,'Lookup Values'!$B$1:$B$402,0)) -> 402 | W29: =LOOKUP($V29,'Lookup Values'!$A$2:$A$402,'Lookup Values'!C$2:C$402) -> ERROR | X29: =LOOKUP($V29,'Lookup Values'!$A$2:$A$402,'Lookup Values'!D$2:D$402) -> ERROR | Y29: =LOOKUP($V29,'Lookup Values'!$A$2:$A$402,'Lookup Values'!E$2:E$402) -> ERROR | Z29: =LOOKUP($V29,'Lookup Values'!$A$2:$A$402,'Lookup Values'!F$2:F$402) -> ERROR | AA29: =LOOKUP($V29,'Lookup Values'!$A$2:$A$402,'Lookup Values'!G$2:G$402) -> ERROR | AB29: =LOOKUP($V29,'Lookup Values'!$A$2:$A$402,'Lookup Values'!H$2:H$402) -> ERROR | AC29: =LOOKUP($V29,'Lookup Values'!$A$2:$A$402,'Lookup Values'!I$2:I$402) -> ERROR | AD29: =LOOKUP($V29,'Lookup Values'!$A$2:$A$402,'Lookup Values'!J$2:J$402) -> ERROR | AE29: =LOOKUP($V29,'Lookup Values'!$A$2:$A$402,'Lookup Values'!K$2:K$402) -> ERROR | AF29: =LOOKUP($V29,'Lookup Values'!$A$2:$A$402,'Lookup Values'!L$2:L$402) -> ERROR | AG29: =LOOKUP($V29,'Lookup Values'!$A$2:$A$402,'Lookup Values'!M$2:M$402) -> ERROR | AI29: 0 | AJ29: 0 | AK29: 0 | AL29: 0 | AM29: 0 | AN29: 0 | AO29: 0 | AP29: 0 | AQ29: 0 | AR29: 0 | AS29: 0 | AT29: 0 | AU29: 0 | AV29: 0 | AW29: 0 | AX29: 0 | AY29: 0 | AZ29: 0 | BA29: 0 | BB29: 0 | BC29: 0 | BD29: 0 | BE29: 0 | BF29: 0 | BG29: 0 | BH29: 0 | BI29: 0 | BJ29: 0 | BK29: 0 | BL29: 0 | BM29: 0 | BN29: 0 | BO29: 0 | BP29: 0 | BQ29: 0 | BR29: 0 | BS29: 0 | BT29: 0 | BU29: 0 | BV29: 0 | BW29: 0 | BX29: 0 | BY29: 0 | BZ29: 0 | CA29: 0 | CB29: 0 | CC29: 0 | CD29: 0 | CE29: 0 | CF29: 0 | CG29: 0 | CH29: 0 | CI29: 0 | CJ29: 0 | CK29: 0 | CL29: 0 | CM29: 0 | CN29: 0 | CO29: 0 | CP29: 0 | CQ29: 0 | CR29: 0 | CS29: 0 | CT29: 0 | CU29: 0 | CV29: 0 | CW29: 0 | CX29: 0 | CY29: 0 | CZ29: 0 | DA29: 0 | DB29: 0 | DC29: 0 | DD29: 0 | DE29: 0 | DF29: 0 | DG29: 0 | DH29: 0 | DI29: 0 | DJ29: 0 | DK29: 0 | DL29: 0 | DM29: 0 | DN29: 0 | DO29: 0 | DP29: 0 | DQ29: 0 | DR29: 0 | DS29: 0 | DT29: 0 | DU29: 0 | DV29: 0 | DW29: 0 | DX29: 0 | DY29: 0 | DZ29: 0 | EA29: 0 | EB29: 0 | EC29: 0 | ED29: 0 | EE29: 0 | EF29: 0 | EG29: 0 | EH29: 0 | EI29: 0 | EJ29: 0 | EK29: 0 | EL29: 0 | EM29: 0 | EN29: 0 | EO29: 0 | EP29: 0 | EQ29: 0 | ER29: 0 | ES29: 0 | ET29: 0 | EU29: 0 | EV29: 0 | EW29: 0 | EX29: 0 | EY29: 0 | EZ29: 0 | FA29: 0 | FB29: 0 | FC29: 0 | FD29: 0 | FE29: 0 | FF29: 0 | FG29: 0 | FH29: 0 | FI29: 0 | FJ29: 0 | FK29: 0 | FL29: 0 | FM29: 0 | FN29: 0
V30: =IF(T30="",402,MATCH(T30,'Lookup Values'!$B$1:$B$402,0)) -> 402 | W30: =LOOKUP($V30,'Lookup Values'!$A$2:$A$402,'Lookup Values'!C$2:C$402) -> ERROR | X30: =LOOKUP($V30,'Lookup Values'!$A$2:$A$402,'Lookup Values'!D$2:D$402) -> ERROR | Y30: =LOOKUP($V30,'Lookup Values'!$A$2:$A$402,'Lookup Values'!E$2:E$402) -> ERROR | Z30: =LOOKUP($V30,'Lookup Values'!$A$2:$A$402,'Lookup Values'!F$2:F$402) -> ERROR | AA30: =LOOKUP($V30,'Lookup Values'!$A$2:$A$402,'Lookup Values'!G$2:G$402) -> ERROR | AB30: =LOOKUP($V30,'Lookup Values'!$A$2:$A$402,'Lookup Values'!H$2:H$402) -> ERROR | AC30: =LOOKUP($V30,'Lookup Values'!$A$2:$A$402,'Lookup Values'!I$2:I$402) -> ERROR | AD30: =LOOKUP($V30,'Lookup Values'!$A$2:$A$402,'Lookup Values'!J$2:J$402) -> ERROR | AE30: =LOOKUP($V30,'Lookup Values'!$A$2:$A$402,'Lookup Values'!K$2:K$402) -> ERROR | AF30: =LOOKUP($V30,'Lookup Values'!$A$2:$A$402,'Lookup Values'!L$2:L$402) -> ERROR | AG30: =LOOKUP($V30,'Lookup Values'!$A$2:$A$402,'Lookup Values'!M$2:M$402) -> ERROR | AI30: 0 | AJ30: 0 | AK30: 0 | AL30: 0 | AM30: 0 | AN30: 0 | AO30: 0 | AP30: 0 | AQ30: 0 | AR30: 0 | AS30: 0 | AT30: 0 | AU30: 0 | AV30: 0 | AW30: 0 | AX30: 0 | AY30: 0 | AZ30: 0 | BA30: 0 | BB30: 0 | BC30: 0 | BD30: 0 | BE30: 0 | BF30: 0 | BG30: 0 | BH30: 0 | BI30: 0 | BJ30: 0 | BK30: 0 | BL30: 0 | BM30: 0 | BN30: 0 | BO30: 0 | BP30: 0 | BQ30: 0 | BR30: 0 | BS30: 0 | BT30: 0 | BU30: 0 | BV30: 0 | BW30: 0 | BX30: 0 | BY30: 0 | BZ30: 0 | CA30: 0 | CB30: 0 | CC30: 0 | CD30: 0 | CE30: 0 | CF30: 0 | CG30: 0 | CH30: 0 | CI30: 0 | CJ30: 0 | CK30: 0 | CL30: 0 | CM30: 0 | CN30: 0 | CO30: 0 | CP30: 0 | CQ30: 0 | CR30: 0 | CS30: 0 | CT30: 0 | CU30: 0 | CV30: 0 | CW30: 0 | CX30: 0 | CY30: 0 | CZ30: 0 | DA30: 0 | DB30: 0 | DC30: 0 | DD30: 0 | DE30: 0 | DF30: 0 | DG30: 0 | DH30: 0 | DI30: 0 | DJ30: 0 | DK30: 0 | DL30: 0 | DM30: 0 | DN30: 0 | DO30: 0 | DP30: 0 | DQ30: 0 | DR30: 0 | DS30: 0 | DT30: 0 | DU30: 0 | DV30: 0 | DW30: 0 | DX30: 0 | DY30: 0 | DZ30: 0 | EA30: 0 | EB30: 0 | EC30: 0 | ED30: 0 | EE30: 0 | EF30: 0 | EG30: 0 | EH30: 0 | EI30: 0 | EJ30: 0 | EK30: 0 | EL30: 0 | EM30: 0 | EN30: 0 | EO30: 0 | EP30: 0 | EQ30: 0 | ER30: 0 | ES30: 0 | ET30: 0 | EU30: 0 | EV30: 0 | EW30: 0 | EX30: 0 | EY30: 0 | EZ30: 0 | FA30: 0 | FB30: 0 | FC30: 0 | FD30: 0 | FE30: 0 | FF30: 0 | FG30: 0 | FH30: 0 | FI30: 0 | FJ30: 0 | FK30: 0 | FL30: 0 | FM30: 0 | FN30: 0
V31: =IF(T31="",402,MATCH(T31,'Lookup Values'!$B$1:$B$402,0)) -> 402 | W31: =LOOKUP($V31,'Lookup Values'!$A$2:$A$402,'Lookup Values'!C$2:C$402) -> ERROR | X31: =LOOKUP($V31,'Lookup Values'!$A$2:$A$402,'Lookup Values'!D$2:D$402) -> ERROR | Y31: =LOOKUP($V31,'Lookup Values'!$A$2:$A$402,'Lookup Values'!E$2:E$402) -> ERROR | Z31: =LOOKUP($V31,'Lookup Values'!$A$2:$A$402,'Lookup Values'!F$2:F$402) -> ERROR | AA31: =LOOKUP($V31,'Lookup Values'!$A$2:$A$402,'Lookup Values'!G$2:G$402) -> ERROR | AB31: =LOOKUP($V31,'Lookup Values'!$A$2:$A$402,'Lookup Values'!H$2:H$402) -> ERROR | AC31: =LOOKUP($V31,'Lookup Values'!$A$2:$A$402,'Lookup Values'!I$2:I$402) -> ERROR | AD31: =LOOKUP($V31,'Lookup Values'!$A$2:$A$402,'Lookup Values'!J$2:J$402) -> ERROR | AE31: =LOOKUP($V31,'Lookup Values'!$A$2:$A$402,'Lookup Values'!K$2:K$402) -> ERROR | AF31: =LOOKUP($V31,'Lookup Values'!$A$2:$A$402,'Lookup Values'!L$2:L$402) -> ERROR | AG31: =LOOKUP($V31,'Lookup Values'!$A$2:$A$402,'Lookup Values'!M$2:M$402) -> ERROR | AI31: 0 | AJ31: 0 | AK31: 0 | AL31: 0 | AM31: 0 | AN31: 0 | AO31: 0 | AP31: 0 | AQ31: 0 | AR31: 0 | AS31: 0 | AT31: 0 | AU31: 0 | AV31: 0 | AW31: 0 | AX31: 0 | AY31: 0 | AZ31: 0 | BA31: 0 | BB31: 0 | BC31: 0 | BD31: 0 | BE31: 0 | BF31: 0 | BG31: 0 | BH31: 0 | BI31: 0 | BJ31: 0 | BK31: 0 | BL31: 0 | BM31: 0 | BN31: 0 | BO31: 0 | BP31: 0 | BQ31: 0 | BR31: 0 | BS31: 0 | BT31: 0 | BU31: 0 | BV31: 0 | BW31: 0 | BX31: 0 | BY31: 0 | BZ31: 0 | CA31: 0 | CB31: 0 | CC31: 0 | CD31: 0 | CE31: 0 | CF31: 0 | CG31: 0 | CH31: 0 | CI31: 0 | CJ31: 0 | CK31: 0 | CL31: 0 | CM31: 0 | CN31: 0 | CO31: 0 | CP31: 0 | CQ31: 0 | CR31: 0 | CS31: 0 | CT31: 0 | CU31: 0 | CV31: 0 | CW31: 0 | CX31: 0 | CY31: 0 | CZ31: 0 | DA31: 0 | DB31: 0 | DC31: 0 | DD31: 0 | DE31: 0 | DF31: 0 | DG31: 0 | DH31: 0 | DI31: 0 | DJ31: 0 | DK31: 0 | DL31: 0 | DM31: 0 | DN31: 0 | DO31: 0 | DP31: 0 | DQ31: 0 | DR31: 0 | DS31: 0 | DT31: 0 | DU31: 0 | DV31: 0 | DW31: 0 | DX31: 0 | DY31: 0 | DZ31: 0 | EA31: 0 | EB31: 0 | EC31: 0 | ED31: 0 | EE31: 0 | EF31: 0 | EG31: 0 | EH31: 0 | EI31: 0 | EJ31: 0 | EK31: 0 | EL31: 0 | EM31: 0 | EN31: 0 | EO31: 0 | EP31: 0 | EQ31: 0 | ER31: 0 | ES31: 0 | ET31: 0 | EU31: 0 | EV31: 0 | EW31: 0 | EX31: 0 | EY31: 0 | EZ31: 0 | FA31: 0 | FB31: 0 | FC31: 0 | FD31: 0 | FE31: 0 | FF31: 0 | FG31: 0 | FH31: 0 | FI31: 0 | FJ31: 0 | FK31: 0 | FL31: 0 | FM31: 0 | FN31: 0
V32: =IF(T32="",402,MATCH(T32,'Lookup Values'!$B$1:$B$402,0)) -> 402 | W32: =LOOKUP($V32,'Lookup Values'!$A$2:$A$402,'Lookup Values'!C$2:C$402) -> ERROR | X32: =LOOKUP($V32,'Lookup Values'!$A$2:$A$402,'Lookup Values'!D$2:D$402) -> ERROR | Y32: =LOOKUP($V32,'Lookup Values'!$A$2:$A$402,'Lookup Values'!E$2:E$402) -> ERROR | Z32: =LOOKUP($V32,'Lookup Values'!$A$2:$A$402,'Lookup Values'!F$2:F$402) -> ERROR | AA32: =LOOKUP($V32,'Lookup Values'!$A$2:$A$402,'Lookup Values'!G$2:G$402) -> ERROR | AB32: =LOOKUP($V32,'Lookup Values'!$A$2:$A$402,'Lookup Values'!H$2:H$402) -> ERROR | AC32: =LOOKUP($V32,'Lookup Values'!$A$2:$A$402,'Lookup Values'!I$2:I$402) -> ERROR | AD32: =LOOKUP($V32,'Lookup Values'!$A$2:$A$402,'Lookup Values'!J$2:J$402) -> ERROR | AE32: =LOOKUP($V32,'Lookup Values'!$A$2:$A$402,'Lookup Values'!K$2:K$402) -> ERROR | AF32: =LOOKUP($V32,'Lookup Values'!$A$2:$A$402,'Lookup Values'!L$2:L$402) -> ERROR | AG32: =LOOKUP($V32,'Lookup Values'!$A$2:$A$402,'Lookup Values'!M$2:M$402) -> ERROR | AI32: 0 | AJ32: 0 | AK32: 0 | AL32: 0 | AM32: 0 | AN32: 0 | AO32: 0 | AP32: 0 | AQ32: 0 | AR32: 0 | AS32: 0 | AT32: 0 | AU32: 0 | AV32: 0 | AW32: 0 | AX32: 0 | AY32: 0 | AZ32: 0 | BA32: 0 | BB32: 0 | BC32: 0 | BD32: 0 | BE32: 0 | BF32: 0 | BG32: 0 | BH32: 0 | BI32: 0 | BJ32: 0 | BK32: 0 | BL32: 0 | BM32: 0 | BN32: 0 | BO32: 0 | BP32: 0 | BQ32: 0 | BR32: 0 | BS32: 0 | BT32: 0 | BU32: 0 | BV32: 0 | BW32: 0 | BX32: 0 | BY32: 0 | BZ32: 0 | CA32: 0 | CB32: 0 | CC32: 0 | CD32: 0 | CE32: 0 | CF32: 0 | CG32: 0 | CH32: 0 | CI32: 0 | CJ32: 0 | CK32: 0 | CL32: 0 | CM32: 0 | CN32: 0 | CO32: 0 | CP32: 0 | CQ32: 0 | CR32: 0 | CS32: 0 | CT32: 0 | CU32: 0 | CV32: 0 | CW32: 0 | CX32: 0 | CY32: 0 | CZ32: 0 | DA32: 0 | DB32: 0 | DC32: 0 | DD32: 0 | DE32: 0 | DF32: 0 | DG32: 0 | DH32: 0 | DI32: 0 | DJ32: 0 | DK32: 0 | DL32: 0 | DM32: 0 | DN32: 0 | DO32: 0 | DP32: 0 | DQ32: 0 | DR32: 0 | DS32: 0 | DT32: 0 | DU32: 0 | DV32: 0 | DW32: 0 | DX32: 0 | DY32: 0 | DZ32: 0 | EA32: 0 | EB32: 0 | EC32: 0 | ED32: 0 | EE32: 0 | EF32: 0 | EG32: 0 | EH32: 0 | EI32: 0 | EJ32: 0 | EK32: 0 | EL32: 0 | EM32: 0 | EN32: 0 | EO32: 0 | EP32: 0 | EQ32: 0 | ER32: 0 | ES32: 0 | ET32: 0 | EU32: 0 | EV32: 0 | EW32: 0 | EX32: 0 | EY32: 0 | EZ32: 0 | FA32: 0 | FB32: 0 | FC32: 0 | FD32: 0 | FE32: 0 | FF32: 0 | FG32: 0 | FH32: 0 | FI32: 0 | FJ32: 0 | FK32: 0 | FL32: 0 | FM32: 0 | FN32: 0
V33: =IF(T33="",402,MATCH(T33,'Lookup Values'!$B$1:$B$402,0)) -> 402 | W33: =LOOKUP($V33,'Lookup Values'!$A$2:$A$402,'Lookup Values'!C$2:C$402) -> ERROR | X33: =LOOKUP($V33,'Lookup Values'!$A$2:$A$402,'Lookup Values'!D$2:D$402) -> ERROR | Y33: =LOOKUP($V33,'Lookup Values'!$A$2:$A$402,'Lookup Values'!E$2:E$402) -> ERROR | Z33: =LOOKUP($V33,'Lookup Values'!$A$2:$A$402,'Lookup Values'!F$2:F$402) -> ERROR | AA33: =LOOKUP($V33,'Lookup Values'!$A$2:$A$402,'Lookup Values'!G$2:G$402) -> ERROR | AB33: =LOOKUP($V33,'Lookup Values'!$A$2:$A$402,'Lookup Values'!H$2:H$402) -> ERROR | AC33: =LOOKUP($V33,'Lookup Values'!$A$2:$A$402,'Lookup Values'!I$2:I$402) -> ERROR | AD33: =LOOKUP($V33,'Lookup Values'!$A$2:$A$402,'Lookup Values'!J$2:J$402) -> ERROR | AE33: =LOOKUP($V33,'Lookup Values'!$A$2:$A$402,'Lookup Values'!K$2:K$402) -> ERROR | AF33: =LOOKUP($V33,'Lookup Values'!$A$2:$A$402,'Lookup Values'!L$2:L$402) -> ERROR | AG33: =LOOKUP($V33,'Lookup Values'!$A$2:$A$402,'Lookup Values'!M$2:M$402) -> ERROR | AI33: 0 | AJ33: 0 | AK33: 0 | AL33: 0 | AM33: 0 | AN33: 0 | AO33: 0 | AP33: 0 | AQ33: 0 | AR33: 0 | AS33: 0 | AT33: 0 | AU33: 0 | AV33: 0 | AW33: 0 | AX33: 0 | AY33: 0 | AZ33: 0 | BA33: 0 | BB33: 0 | BC33: 0 | BD33: 0 | BE33: 0 | BF33: 0 | BG33: 0 | BH33: 0 | BI33: 0 | BJ33: 0 | BK33: 0 | BL33: 0 | BM33: 0 | BN33: 0 | BO33: 0 | BP33: 0 | BQ33: 0 | BR33: 0 | BS33: 0 | BT33: 0 | BU33: 0 | BV33: 0 | BW33: 0 | BX33: 0 | BY33: 0 | BZ33: 0 | CA33: 0 | CB33: 0 | CC33: 0 | CD33: 0 | CE33: 0 | CF33: 0 | CG33: 0 | CH33: 0 | CI33: 0 | CJ33: 0 | CK33: 0 | CL33: 0 | CM33: 0 | CN33: 0 | CO33: 0 | CP33: 0 | CQ33: 0 | CR33: 0 | CS33: 0 | CT33: 0 | CU33: 0 | CV33: 0 | CW33: 0 | CX33: 0 | CY33: 0 | CZ33: 0 | DA33: 0 | DB33: 0 | DC33: 0 | DD33: 0 | DE33: 0 | DF33: 0 | DG33: 0 | DH33: 0 | DI33: 0 | DJ33: 0 | DK33: 0 | DL33: 0 | DM33: 0 | DN33: 0 | DO33: 0 | DP33: 0 | DQ33: 0 | DR33: 0 | DS33: 0 | DT33: 0 | DU33: 0 | DV33: 0 | DW33: 0 | DX33: 0 | DY33: 0 | DZ33: 0 | EA33: 0 | EB33: 0 | EC33: 0 | ED33: 0 | EE33: 0 | EF33: 0 | EG33: 0 | EH33: 0 | EI33: 0 | EJ33: 0 | EK33: 0 | EL33: 0 | EM33: 0 | EN33: 0 | EO33: 0 | EP33: 0 | EQ33: 0 | ER33: 0 | ES33: 0 | ET33: 0 | EU33: 0 | EV33: 0 | EW33: 0 | EX33: 0 | EY33: 0 | EZ33: 0 | FA33: 0 | FB33: 0 | FC33: 0 | FD33: 0 | FE33: 0 | FF33: 0 | FG33: 0 | FH33: 0 | FI33: 0 | FJ33: 0 | FK33: 0 | FL33: 0 | FM33: 0 | FN33: 0
V34: =IF(T34="",402,MATCH(T34,'Lookup Values'!$B$1:$B$402,0)) -> 402 | W34: =LOOKUP($V34,'Lookup Values'!$A$2:$A$402,'Lookup Values'!C$2:C$402) -> ERROR | X34: =LOOKUP($V34,'Lookup Values'!$A$2:$A$402,'Lookup Values'!D$2:D$402) -> ERROR | Y34: =LOOKUP($V34,'Lookup Values'!$A$2:$A$402,'Lookup Values'!E$2:E$402) -> ERROR | Z34: =LOOKUP($V34,'Lookup Values'!$A$2:$A$402,'Lookup Values'!F$2:F$402) -> ERROR | AA34: =LOOKUP($V34,'Lookup Values'!$A$2:$A$402,'Lookup Values'!G$2:G$402) -> ERROR | AB34: =LOOKUP($V34,'Lookup Values'!$A$2:$A$402,'Lookup Values'!H$2:H$402) -> ERROR | AC34: =LOOKUP($V34,'Lookup Values'!$A$2:$A$402,'Lookup Values'!I$2:I$402) -> ERROR | AD34: =LOOKUP($V34,'Lookup Values'!$A$2:$A$402,'Lookup Values'!J$2:J$402) -> ERROR | AE34: =LOOKUP($V34,'Lookup Values'!$A$2:$A$402,'Lookup Values'!K$2:K$402) -> ERROR | AF34: =LOOKUP($V34,'Lookup Values'!$A$2:$A$402,'Lookup Values'!L$2:L$402) -> ERROR | AG34: =LOOKUP($V34,'Lookup Values'!$A$2:$A$402,'Lookup Values'!M$2:M$402) -> ERROR | AI34: 0 | AJ34: 0 | AK34: 0 | AL34: 0 | AM34: 0 | AN34: 0 | AO34: 0 | AP34: 0 | AQ34: 0 | AR34: 0 | AS34: 0 | AT34: 0 | AU34: 0 | AV34: 0 | AW34: 0 | AX34: 0 | AY34: 0 | AZ34: 0 | BA34: 0 | BB34: 0 | BC34: 0 | BD34: 0 | BE34: 0 | BF34: 0 | BG34: 0 | BH34: 0 | BI34: 0 | BJ34: 0 | BK34: 0 | BL34: 0 | BM34: 0 | BN34: 0 | BO34: 0 | BP34: 0 | BQ34: 0 | BR34: 0 | BS34: 0 | BT34: 0 | BU34: 0 | BV34: 0 | BW34: 0 | BX34: 0 | BY34: 0 | BZ34: 0 | CA34: 0 | CB34: 0 | CC34: 0 | CD34: 0 | CE34: 0 | CF34: 0 | CG34: 0 | CH34: 0 | CI34: 0 | CJ34: 0 | CK34: 0 | CL34: 0 | CM34: 0 | CN34: 0 | CO34: 0 | CP34: 0 | CQ34: 0 | CR34: 0 | CS34: 0 | CT34: 0 | CU34: 0 | CV34: 0 | CW34: 0 | CX34: 0 | CY34: 0 | CZ34: 0 | DA34: 0 | DB34: 0 | DC34: 0 | DD34: 0 | DE34: 0 | DF34: 0 | DG34: 0 | DH34: 0 | DI34: 0 | DJ34: 0 | DK34: 0 | DL34: 0 | DM34: 0 | DN34: 0 | DO34: 0 | DP34: 0 | DQ34: 0 | DR34: 0 | DS34: 0 | DT34: 0 | DU34: 0 | DV34: 0 | DW34: 0 | DX34: 0 | DY34: 0 | DZ34: 0 | EA34: 0 | EB34: 0 | EC34: 0 | ED34: 0 | EE34: 0 | EF34: 0 | EG34: 0 | EH34: 0 | EI34: 0 | EJ34: 0 | EK34: 0 | EL34: 0 | EM34: 0 | EN34: 0 | EO34: 0 | EP34: 0 | EQ34: 0 | ER34: 0 | ES34: 0 | ET34: 0 | EU34: 0 | EV34: 0 | EW34: 0 | EX34: 0 | EY34: 0 | EZ34: 0 | FA34: 0 | FB34: 0 | FC34: 0 | FD34: 0 | FE34: 0 | FF34: 0 | FG34: 0 | FH34: 0 | FI34: 0 | FJ34: 0 | FK34: 0 | FL34: 0 | FM34: 0 | FN34: 0
V35: =IF(T35="",402,MATCH(T35,'Lookup Values'!$B$1:$B$402,0)) -> 402 | W35: =LOOKUP($V35,'Lookup Values'!$A$2:$A$402,'Lookup Values'!C$2:C$402) -> ERROR | X35: =LOOKUP($V35,'Lookup Values'!$A$2:$A$402,'Lookup Values'!D$2:D$402) -> ERROR | Y35: =LOOKUP($V35,'Lookup Values'!$A$2:$A$402,'Lookup Values'!E$2:E$402) -> ERROR | Z35: =LOOKUP($V35,'Lookup Values'!$A$2:$A$402,'Lookup Values'!F$2:F$402) -> ERROR | AA35: =LOOKUP($V35,'Lookup Values'!$A$2:$A$402,'Lookup Values'!G$2:G$402) -> ERROR | AB35: =LOOKUP($V35,'Lookup Values'!$A$2:$A$402,'Lookup Values'!H$2:H$402) -> ERROR | AC35: =LOOKUP($V35,'Lookup Values'!$A$2:$A$402,'Lookup Values'!I$2:I$402) -> ERROR | AD35: =LOOKUP($V35,'Lookup Values'!$A$2:$A$402,'Lookup Values'!J$2:J$402) -> ERROR | AE35: =LOOKUP($V35,'Lookup Values'!$A$2:$A$402,'Lookup Values'!K$2:K$402) -> ERROR | AF35: =LOOKUP($V35,'Lookup Values'!$A$2:$A$402,'Lookup Values'!L$2:L$402) -> ERROR | AG35: =LOOKUP($V35,'Lookup Values'!$A$2:$A$402,'Lookup Values'!M$2:M$402) -> ERROR | AI35: 0 | AJ35: 0 | AK35: 0 | AL35: 0 | AM35: 0 | AN35: 0 | AO35: 0 | AP35: 0 | AQ35: 0 | AR35: 0 | AS35: 0 | AT35: 0 | AU35: 0 | AV35: 0 | AW35: 0 | AX35: 0 | AY35: 0 | AZ35: 0 | BA35: 0 | BB35: 0 | BC35: 0 | BD35: 0 | BE35: 0 | BF35: 0 | BG35: 0 | BH35: 0 | BI35: 0 | BJ35: 0 | BK35: 0 | BL35: 0 | BM35: 0 | BN35: 0 | BO35: 0 | BP35: 0 | BQ35: 0 | BR35: 0 | BS35: 0 | BT35: 0 | BU35: 0 | BV35: 0 | BW35: 0 | BX35: 0 | BY35: 0 | BZ35: 0 | CA35: 0 | CB35: 0 | CC35: 0 | CD35: 0 | CE35: 0 | CF35: 0 | CG35: 0 | CH35: 0 | CI35: 0 | CJ35: 0 | CK35: 0 | CL35: 0 | CM35: 0 | CN35: 0 | CO35: 0 | CP35: 0 | CQ35: 0 | CR35: 0 | CS35: 0 | CT35: 0 | CU35: 0 | CV35: 0 | CW35: 0 | CX35: 0 | CY35: 0 | CZ35: 0 | DA35: 0 | DB35: 0 | DC35: 0 | DD35: 0 | DE35: 0 | DF35: 0 | DG35: 0 | DH35: 0 | DI35: 0 | DJ35: 0 | DK35: 0 | DL35: 0 | DM35: 0 | DN35: 0 | DO35: 0 | DP35: 0 | DQ35: 0 | DR35: 0 | DS35: 0 | DT35: 0 | DU35: 0 | DV35: 0 | DW35: 0 | DX35: 0 | DY35: 0 | DZ35: 0 | EA35: 0 | EB35: 0 | EC35: 0 | ED35: 0 | EE35: 0 | EF35: 0 | EG35: 0 | EH35: 0 | EI35: 0 | EJ35: 0 | EK35: 0 | EL35: 0 | EM35: 0 | EN35: 0 | EO35: 0 | EP35: 0 | EQ35: 0 | ER35: 0 | ES35: 0 | ET35: 0 | EU35: 0 | EV35: 0 | EW35: 0 | EX35: 0 | EY35: 0 | EZ35: 0 | FA35: 0 | FB35: 0 | FC35: 0 | FD35: 0 | FE35: 0 | FF35: 0 | FG35: 0 | FH35: 0 | FI35: 0 | FJ35: 0 | FK35: 0 | FL35: 0 | FM35: 0 | FN35: 0 | FP35: Average Finish Top Width | FQ35: =IF((SUM(AI100:FN100)+SUM(#REF!))>0,ROUND((SUM(#REF!)+SUM(#REF!))/(SUM(AI100:FN100)+SUM(#REF!)),1),0) ->  | FR35: ft
V36: =IF(T36="",402,MATCH(T36,'Lookup Values'!$B$1:$B$402,0)) -> 402 | W36: =LOOKUP($V36,'Lookup Values'!$A$2:$A$402,'Lookup Values'!C$2:C$402) -> ERROR | X36: =LOOKUP($V36,'Lookup Values'!$A$2:$A$402,'Lookup Values'!D$2:D$402) -> ERROR | Y36: =LOOKUP($V36,'Lookup Values'!$A$2:$A$402,'Lookup Values'!E$2:E$402) -> ERROR | Z36: =LOOKUP($V36,'Lookup Values'!$A$2:$A$402,'Lookup Values'!F$2:F$402) -> ERROR | AA36: =LOOKUP($V36,'Lookup Values'!$A$2:$A$402,'Lookup Values'!G$2:G$402) -> ERROR | AB36: =LOOKUP($V36,'Lookup Values'!$A$2:$A$402,'Lookup Values'!H$2:H$402) -> ERROR | AC36: =LOOKUP($V36,'Lookup Values'!$A$2:$A$402,'Lookup Values'!I$2:I$402) -> ERROR | AD36: =LOOKUP($V36,'Lookup Values'!$A$2:$A$402,'Lookup Values'!J$2:J$402) -> ERROR | AE36: =LOOKUP($V36,'Lookup Values'!$A$2:$A$402,'Lookup Values'!K$2:K$402) -> ERROR | AF36: =LOOKUP($V36,'Lookup Values'!$A$2:$A$402,'Lookup Values'!L$2:L$402) -> ERROR | AG36: =LOOKUP($V36,'Lookup Values'!$A$2:$A$402,'Lookup Values'!M$2:M$402) -> ERROR | AI36: 0 | AJ36: 0 | AK36: 0 | AL36: 0 | AM36: 0 | AN36: 0 | AO36: 0 | AP36: 0 | AQ36: 0 | AR36: 0 | AS36: 0 | AT36: 0 | AU36: 0 | AV36: 0 | AW36: 0 | AX36: 0 | AY36: 0 | AZ36: 0 | BA36: 0 | BB36: 0 | BC36: 0 | BD36: 0 | BE36: 0 | BF36: 0 | BG36: 0 | BH36: 0 | BI36: 0 | BJ36: 0 | BK36: 0 | BL36: 0 | BM36: 0 | BN36: 0 | BO36: 0 | BP36: 0 | BQ36: 0 | BR36: 0 | BS36: 0 | BT36: 0 | BU36: 0 | BV36: 0 | BW36: 0 | BX36: 0 | BY36: 0 | BZ36: 0 | CA36: 0 | CB36: 0 | CC36: 0 | CD36: 0 | CE36: 0 | CF36: 0 | CG36: 0 | CH36: 0 | CI36: 0 | CJ36: 0 | CK36: 0 | CL36: 0 | CM36: 0 | CN36: 0 | CO36: 0 | CP36: 0 | CQ36: 0 | CR36: 0 | CS36: 0 | CT36: 0 | CU36: 0 | CV36: 0 | CW36: 0 | CX36: 0 | CY36: 0 | CZ36: 0 | DA36: 0 | DB36: 0 | DC36: 0 | DD36: 0 | DE36: 0 | DF36: 0 | DG36: 0 | DH36: 0 | DI36: 0 | DJ36: 0 | DK36: 0 | DL36: 0 | DM36: 0 | DN36: 0 | DO36: 0 | DP36: 0 | DQ36: 0 | DR36: 0 | DS36: 0 | DT36: 0 | DU36: 0 | DV36: 0 | DW36: 0 | DX36: 0 | DY36: 0 | DZ36: 0 | EA36: 0 | EB36: 0 | EC36: 0 | ED36: 0 | EE36: 0 | EF36: 0 | EG36: 0 | EH36: 0 | EI36: 0 | EJ36: 0 | EK36: 0 | EL36: 0 | EM36: 0 | EN36: 0 | EO36: 0 | EP36: 0 | EQ36: 0 | ER36: 0 | ES36: 0 | ET36: 0 | EU36: 0 | EV36: 0 | EW36: 0 | EX36: 0 | EY36: 0 | EZ36: 0 | FA36: 0 | FB36: 0 | FC36: 0 | FD36: 0 | FE36: 0 | FF36: 0 | FG36: 0 | FH36: 0 | FI36: 0 | FJ36: 0 | FK36: 0 | FL36: 0 | FM36: 0 | FN36: 0
V37: =IF(T37="",402,MATCH(T37,'Lookup Values'!$B$1:$B$402,0)) -> 402 | W37: =LOOKUP($V37,'Lookup Values'!$A$2:$A$402,'Lookup Values'!C$2:C$402) -> ERROR | X37: =LOOKUP($V37,'Lookup Values'!$A$2:$A$402,'Lookup Values'!D$2:D$402) -> ERROR | Y37: =LOOKUP($V37,'Lookup Values'!$A$2:$A$402,'Lookup Values'!E$2:E$402) -> ERROR | Z37: =LOOKUP($V37,'Lookup Values'!$A$2:$A$402,'Lookup Values'!F$2:F$402) -> ERROR | AA37: =LOOKUP($V37,'Lookup Values'!$A$2:$A$402,'Lookup Values'!G$2:G$402) -> ERROR | AB37: =LOOKUP($V37,'Lookup Values'!$A$2:$A$402,'Lookup Values'!H$2:H$402) -> ERROR | AC37: =LOOKUP($V37,'Lookup Values'!$A$2:$A$402,'Lookup Values'!I$2:I$402) -> ERROR | AD37: =LOOKUP($V37,'Lookup Values'!$A$2:$A$402,'Lookup Values'!J$2:J$402) -> ERROR | AE37: =LOOKUP($V37,'Lookup Values'!$A$2:$A$402,'Lookup Values'!K$2:K$402) -> ERROR | AF37: =LOOKUP($V37,'Lookup Values'!$A$2:$A$402,'Lookup Values'!L$2:L$402) -> ERROR | AG37: =LOOKUP($V37,'Lookup Values'!$A$2:$A$402,'Lookup Values'!M$2:M$402) -> ERROR | AI37: 0 | AJ37: 0 | AK37: 0 | AL37: 0 | AM37: 0 | AN37: 0 | AO37: 0 | AP37: 0 | AQ37: 0 | AR37: 0 | AS37: 0 | AT37: 0 | AU37: 0 | AV37: 0 | AW37: 0 | AX37: 0 | AY37: 0 | AZ37: 0 | BA37: 0 | BB37: 0 | BC37: 0 | BD37: 0 | BE37: 0 | BF37: 0 | BG37: 0 | BH37: 0 | BI37: 0 | BJ37: 0 | BK37: 0 | BL37: 0 | BM37: 0 | BN37: 0 | BO37: 0 | BP37: 0 | BQ37: 0 | BR37: 0 | BS37: 0 | BT37: 0 | BU37: 0 | BV37: 0 | BW37: 0 | BX37: 0 | BY37: 0 | BZ37: 0 | CA37: 0 | CB37: 0 | CC37: 0 | CD37: 0 | CE37: 0 | CF37: 0 | CG37: 0 | CH37: 0 | CI37: 0 | CJ37: 0 | CK37: 0 | CL37: 0 | CM37: 0 | CN37: 0 | CO37: 0 | CP37: 0 | CQ37: 0 | CR37: 0 | CS37: 0 | CT37: 0 | CU37: 0 | CV37: 0 | CW37: 0 | CX37: 0 | CY37: 0 | CZ37: 0 | DA37: 0 | DB37: 0 | DC37: 0 | DD37: 0 | DE37: 0 | DF37: 0 | DG37: 0 | DH37: 0 | DI37: 0 | DJ37: 0 | DK37: 0 | DL37: 0 | DM37: 0 | DN37: 0 | DO37: 0 | DP37: 0 | DQ37: 0 | DR37: 0 | DS37: 0 | DT37: 0 | DU37: 0 | DV37: 0 | DW37: 0 | DX37: 0 | DY37: 0 | DZ37: 0 | EA37: 0 | EB37: 0 | EC37: 0 | ED37: 0 | EE37: 0 | EF37: 0 | EG37: 0 | EH37: 0 | EI37: 0 | EJ37: 0 | EK37: 0 | EL37: 0 | EM37: 0 | EN37: 0 | EO37: 0 | EP37: 0 | EQ37: 0 | ER37: 0 | ES37: 0 | ET37: 0 | EU37: 0 | EV37: 0 | EW37: 0 | EX37: 0 | EY37: 0 | EZ37: 0 | FA37: 0 | FB37: 0 | FC37: 0 | FD37: 0 | FE37: 0 | FF37: 0 | FG37: 0 | FH37: 0 | FI37: 0 | FJ37: 0 | FK37: 0 | FL37: 0 | FM37: 0 | FN37: 0
V38: =IF(T38="",402,MATCH(T38,'Lookup Values'!$B$1:$B$402,0)) -> 402 | W38: =LOOKUP($V38,'Lookup Values'!$A$2:$A$402,'Lookup Values'!C$2:C$402) -> ERROR | X38: =LOOKUP($V38,'Lookup Values'!$A$2:$A$402,'Lookup Values'!D$2:D$402) -> ERROR | Y38: =LOOKUP($V38,'Lookup Values'!$A$2:$A$402,'Lookup Values'!E$2:E$402) -> ERROR | Z38: =LOOKUP($V38,'Lookup Values'!$A$2:$A$402,'Lookup Values'!F$2:F$402) -> ERROR | AA38: =LOOKUP($V38,'Lookup Values'!$A$2:$A$402,'Lookup Values'!G$2:G$402) -> ERROR | AB38: =LOOKUP($V38,'Lookup Values'!$A$2:$A$402,'Lookup Values'!H$2:H$402) -> ERROR | AC38: =LOOKUP($V38,'Lookup Values'!$A$2:$A$402,'Lookup Values'!I$2:I$402) -> ERROR | AD38: =LOOKUP($V38,'Lookup Values'!$A$2:$A$402,'Lookup Values'!J$2:J$402) -> ERROR | AE38: =LOOKUP($V38,'Lookup Values'!$A$2:$A$402,'Lookup Values'!K$2:K$402) -> ERROR | AF38: =LOOKUP($V38,'Lookup Values'!$A$2:$A$402,'Lookup Values'!L$2:L$402) -> ERROR | AG38: =LOOKUP($V38,'Lookup Values'!$A$2:$A$402,'Lookup Values'!M$2:M$402) -> ERROR | AI38: =IF(T38="TYP. NO. 1",D38,0) -> 0 | AJ38: =IF(T38="TYP. NO. 2",D38,0) -> 0 | AK38: =IF(T38="TRANS. TYP. NO. 1 TO TYP. NO. 2",D38,IF(T38="TRANS. TYP. NO. 2 TO TYP. NO. 1",D38,0)) -> 0 | AL38: =IF(T38="TYP. NO. 3",D38,0) -> 0 | AM38: =IF(T38="TRANS. TYP. NO. 1 TO TYP. NO. 3",D38,IF(T38="TRANS. TYP. NO. 3 TO TYP. NO. 1",D38,0)) -> 0 | AN38: =IF(T38="TRANS. TYP. NO. 2 TO TYP. NO. 3",D38,IF(T38="TRANS. TYP. NO. 3 TO TYP. NO. 2",D38,0)) -> 0 | AO38: =IF(T38="TYP. NO. 4",D38,0) -> 0 | AP38: =IF(T38="TRANS. TYP. NO. 1 TO TYP. NO. 4",D38,IF(T38="TRANS. TYP. NO. 4 TO TYP. NO. 1",D38,0)) -> 0 | AQ38: =IF(T38="TRANS. TYP. NO. 2 TO TYP. NO. 4",D38,IF(T38="TRANS. TYP. NO. 4 TO TYP. NO. 2",D38,0)) -> 0 | AR38: =IF(T38="TRANS. TYP. NO. 3 TO TYP. NO. 4",D38,IF(T38="TRANS. TYP. NO. 4 TO TYP. NO. 3",D38,0)) -> 0 | AS38: =IF(T38="TYP. NO. 5",D38,0) -> 0 | AT38: =IF(T38="TRANS. TYP. NO. 1 TO TYP. NO. 5",D38,IF(T38="TRANS. TYP. NO. 5 TO TYP. NO. 1",D38,0)) -> 0 | AU38: =IF(T38="TRANS. TYP. NO. 2 TO TYP. NO. 5",D38,IF(T38="TRANS. TYP. NO. 5 TO TYP. NO. 2",D38,0)) -> 0 | AV38: =IF(T38="TRANS. TYP. NO. 3 TO TYP. NO. 5",D38,IF(T38="TRANS. TYP. NO. 5 TO TYP. NO. 3",D38,0)) -> 0 | AW38: =IF(T38="TRANS. TYP. NO. 4 TO TYP. NO. 5",D38,IF(T38="TRANS. TYP. NO. 5 TO TYP. NO. 4",D38,0)) -> 0 | AX38: =IF(T38="TYP. NO. 6",D38,0) -> 0 | AY38: =IF(T38="TRANS. TYP. NO. 1 TO TYP. NO. 6",D38,IF(T38="TRANS. TYP. NO. 6 TO TYP. NO. 1",D38,0)) -> 0 | AZ38: =IF(T38="TRANS. TYP. NO. 2 TO TYP. NO. 6",D38,IF(T38="TRANS. TYP. NO. 6 TO TYP. NO. 2",D38,0)) -> 0 | BA38: =IF(T38="TRANS. TYP. NO. 3 TO TYP. NO. 6",D38,IF(T38="TRANS. TYP. NO. 6 TO TYP. NO. 3",D38,0)) -> 0 | BB38: =IF(T38="TRANS. TYP. NO. 4 TO TYP. NO. 6",D38,IF(T38="TRANS. TYP. NO. 6 TO TYP. NO. 4",D38,0)) -> 0 | BC38: =IF(T38="TRANS. TYP. NO. 5 TO TYP. NO. 6",D38,IF(T38="TRANS. TYP. NO. 6 TO TYP. NO. 5",D38,0)) -> 0 | BD38: =IF(T38="TYP. NO. 7",D38,0) -> 0 | BE38: =IF(T38="TRANS. TYP. NO. 1 TO TYP. NO. 7",D38,IF(T38="TRANS. TYP. NO. 7 TO TYP. NO. 1",D38,0)) -> 0 | BF38: =IF(T38="TRANS. TYP. NO. 2 TO TYP. NO. 7",D38,IF(T38="TRANS. TYP. NO. 7 TO TYP. NO. 2",D38,0)) -> 0 | BG38: =IF(T38="TRANS. TYP. NO. 3 TO TYP. NO. 7",D38,IF(T38="TRANS. TYP. NO. 7 TO TYP. NO. 3",D38,0)) -> 0 | BH38: =IF(T38="TRANS. TYP. NO. 4 TO TYP. NO. 7",D38,IF(T38="TRANS. TYP. NO. 7 TO TYP. NO. 4",D38,0)) -> 0 | BI38: =IF(T38="TRANS. TYP. NO. 5 TO TYP. NO. 7",D38,IF(T38="TRANS. TYP. NO. 7 TO TYP. NO. 5",D38,0)) -> 0 | BJ38: =IF(T38="TRANS. TYP. NO. 6 TO TYP. NO. 7",D38,IF(T38="TRANS. TYP. NO. 7 TO TYP. NO. 6",D38,0)) -> 0 | BK38: =IF(T38="TYP. NO. 8",D38,0) -> 0 | BL38: =IF($T38="TRANS. TYP. NO. 1 TO TYP. NO. 8",$D38,IF($T38="TRANS. TYP. NO. 8 TO TYP. NO. 1",$D38,0)) -> 0 | BM38: =IF($T38="TRANS. TYP. NO. 2 TO TYP. NO. 8",$D38,IF($T38="TRANS. TYP. NO. 8 TO TYP. NO. 2",$D38,0)) -> 0 | BN38: =IF($T38="TRANS. TYP. NO. 3 TO TYP. NO. 8",$D38,IF($T38="TRANS. TYP. NO. 8 TO TYP. NO. 3",$D38,0)) -> 0 | BO38: =IF($T38="TRANS. TYP. NO. 4 TO TYP. NO. 8",$D38,IF($T38="TRANS. TYP. NO. 8 TO TYP. NO. 4",$D38,0)) -> 0 | BP38: =IF($T38="TRANS. TYP. NO. 5 TO TYP. NO. 8",$D38,IF($T38="TRANS. TYP. NO. 8 TO TYP. NO. 5",$D38,0)) -> 0 | BQ38: =IF($T38="TRANS. TYP. NO. 6 TO TYP. NO. 8",$D38,IF($T38="TRANS. TYP. NO. 8 TO TYP. NO. 6",$D38,0)) -> 0 | BR38: =IF($T38="TRANS. TYP. NO. 7 TO TYP. NO. 8",$D38,IF($T38="TRANS. TYP. NO. 8 TO TYP. NO. 7",$D38,0)) -> 0 | BS38: =IF(T38="TYP. NO. 9",D38,0) -> 0 | BT38: =IF($T38="TRANS. TYP. NO. 1 TO TYP. NO. 9",$D38,IF($T38="TRANS. TYP. NO. 9 TO TYP. NO. 1",$D38,0)) -> 0 | BU38: =IF($T38="TRANS. TYP. NO. 2 TO TYP. NO. 9",$D38,IF($T38="TRANS. TYP. NO. 9 TO TYP. NO. 2",$D38,0)) -> 0 | BV38: =IF($T38="TRANS. TYP. NO. 3 TO TYP. NO. 9",$D38,IF($T38="TRANS. TYP. NO. 9 TO TYP. NO. 3",$D38,0)) -> 0 | BW38: =IF($T38="TRANS. TYP. NO. 4 TO TYP. NO. 9",$D38,IF($T38="TRANS. TYP. NO. 9 TO TYP. NO. 4",$D38,0)) -> 0 | BX38: =IF($T38="TRANS. TYP. NO. 5 TO TYP. NO. 9",$D38,IF($T38="TRANS. TYP. NO. 9 TO TYP. NO. 5",$D38,0)) -> 0 | BY38: =IF($T38="TRANS. TYP. NO. 6 TO TYP. NO. 9",$D38,IF($T38="TRANS. TYP. NO. 9 TO TYP. NO. 6",$D38,0)) -> 0 | BZ38: =IF($T38="TRANS. TYP. NO. 7 TO TYP. NO. 9",$D38,IF($T38="TRANS. TYP. NO. 9 TO TYP. NO. 7",$D38,0)) -> 0 | CA38: =IF($T38="TRANS. TYP. NO. 8 TO TYP. NO. 9",$D38,IF($T38="TRANS. TYP. NO. 9 TO TYP. NO. 8",$D38,0)) -> 0 | CB38: =IF(T38="TYP. NO. 10",D38,0) -> 0 | CC38: =IF($T38="TRANS. TYP. NO. 1 TO TYP. NO. 10",$D38,IF($T38="TRANS. TYP. NO. 10 TO TYP. NO. 1",$D38,0)) -> 0 | CD38: =IF($T38="TRANS. TYP. NO. 2 TO TYP. NO. 10",$D38,IF($T38="TRANS. TYP. NO. 10 TO TYP. NO. 2",$D38,0)) -> 0 | CE38: =IF($T38="TRANS. TYP. NO. 3 TO TYP. NO. 10",$D38,IF($T38="TRANS. TYP. NO. 10 TO TYP. NO. 3",$D38,0)) -> 0 | CF38: =IF($T38="TRANS. TYP. NO. 4 TO TYP. NO. 10",$D38,IF($T38="TRANS. TYP. NO. 10 TO TYP. NO. 4",$D38,0)) -> 0 | CG38: =IF($T38="TRANS. TYP. NO. 5 TO TYP. NO. 10",$D38,IF($T38="TRANS. TYP. NO. 10 TO TYP. NO. 5",$D38,0)) -> 0 | CH38: =IF($T38="TRANS. TYP. NO. 6 TO TYP. NO. 10",$D38,IF($T38="TRANS. TYP. NO. 10 TO TYP. NO. 6",$D38,0)) -> 0 | CI38: =IF($T38="TRANS. TYP. NO. 7 TO TYP. NO. 10",$D38,IF($T38="TRANS. TYP. NO. 10 TO TYP. NO. 7",$D38,0)) -> 0 | CJ38: =IF($T38="TRANS. TYP. NO. 8 TO TYP. NO. 10",$D38,IF($T38="TRANS. TYP. NO. 10 TO TYP. NO. 8",$D38,0)) -> 0 | CK38: =IF($T38="TRANS. TYP. NO. 9 TO TYP. NO. 10",$D38,IF($T38="TRANS. TYP. NO. 10 TO TYP. NO. 9",$D38,0)) -> 0 | CL38: =IF(T38="TYP. NO. 11",D38,0) -> 0 | CM38: =IF($T38="TRANS. TYP. NO. 1 TO TYP. NO. 11",$D38,IF($T38="TRANS. TYP. NO. 11 TO TYP. NO. 1",$D38,0)) -> 0 | CN38: =IF($T38="TRANS. TYP. NO. 2 TO TYP. NO. 11",$D38,IF($T38="TRANS. TYP. NO. 11 TO TYP. NO. 2",$D38,0)) -> 0 | CO38: =IF($T38="TRANS. TYP. NO. 3 TO TYP. NO. 11",$D38,IF($T38="TRANS. TYP. NO. 11 TO TYP. NO. 3",$D38,0)) -> 0 | CP38: =IF($T38="TRANS. TYP. NO. 4 TO TYP. NO. 11",$D38,IF($T38="TRANS. TYP. NO. 11 TO TYP. NO. 4",$D38,0)) -> 0 | CQ38: =IF($T38="TRANS. TYP. NO. 5 TO TYP. NO. 11",$D38,IF($T38="TRANS. TYP. NO. 11 TO TYP. NO. 5",$D38,0)) -> 0 | CR38: =IF($T38="TRANS. TYP. NO. 6 TO TYP. NO. 11",$D38,IF($T38="TRANS. TYP. NO. 11 TO TYP. NO. 6",$D38,0)) -> 0 | CS38: =IF($T38="TRANS. TYP. NO. 7 TO TYP. NO. 11",$D38,IF($T38="TRANS. TYP. NO. 11 TO TYP. NO. 7",$D38,0)) -> 0 | CT38: =IF($T38="TRANS. TYP. NO. 8 TO TYP. NO. 11",$D38,IF($T38="TRANS. TYP. NO. 11 TO TYP. NO. 8",$D38,0)) -> 0 | CU38: =IF($T38="TRANS. TYP. NO. 9 TO TYP. NO. 11",$D38,IF($T38="TRANS. TYP. NO. 11 TO TYP. NO. 9",$D38,0)) -> 0 | CV38: =IF($T38="TRANS. TYP. NO. 10 TO TYP. NO. 11",$D38,IF($T38="TRANS. TYP. NO. 11 TO TYP. NO. 10",$D38,0)) -> 0 | CW38: =IF(T38="TYP. NO. 12",D38,0) -> 0 | CX38: =IF($T38="TRANS. TYP. NO. 1 TO TYP. NO. 12",$D38,IF($T38="TRANS. TYP. NO. 12 TO TYP. NO. 1",$D38,0)) -> 0 | CY38: =IF($T38="TRANS. TYP. NO. 2 TO TYP. NO. 12",$D38,IF($T38="TRANS. TYP. NO. 12 TO TYP. NO. 2",$D38,0)) -> 0 | CZ38: =IF($T38="TRANS. TYP. NO. 3 TO TYP. NO. 12",$D38,IF($T38="TRANS. TYP. NO. 12 TO TYP. NO. 3",$D38,0)) -> 0 | DA38: =IF($T38="TRANS. TYP. NO. 4 TO TYP. NO. 12",$D38,IF($T38="TRANS. TYP. NO. 12 TO TYP. NO. 4",$D38,0)) -> 0 | DB38: =IF($T38="TRANS. TYP. NO. 5 TO TYP. NO. 12",$D38,IF($T38="TRANS. TYP. NO. 12 TO TYP. NO. 5",$D38,0)) -> 0 | DC38: =IF($T38="TRANS. TYP. NO. 6 TO TYP. NO. 12",$D38,IF($T38="TRANS. TYP. NO. 12 TO TYP. NO. 6",$D38,0)) -> 0 | DD38: =IF($T38="TRANS. TYP. NO. 7 TO TYP. NO. 12",$D38,IF($T38="TRANS. TYP. NO. 12 TO TYP. NO. 7",$D38,0)) -> 0 | DE38: =IF($T38="TRANS. TYP. NO. 8 TO TYP. NO. 12",$D38,IF($T38="TRANS. TYP. NO. 12 TO TYP. NO. 8",$D38,0)) -> 0 | DF38: =IF($T38="TRANS. TYP. NO. 9 TO TYP. NO. 12",$D38,IF($T38="TRANS. TYP. NO. 12 TO TYP. NO. 9",$D38,0)) -> 0 | DG38: =IF($T38="TRANS. TYP. NO. 10 TO TYP. NO. 12",$D38,IF($T38="TRANS. TYP. NO. 12 TO TYP. NO. 10",$D38,0)) -> 0 | DH38: =IF($T38="TRANS. TYP. NO. 11 TO TYP. NO. 12",$D38,IF($T38="TRANS. TYP. NO. 12 TO TYP. NO. 11",$D38,0)) -> 0 | DI38: =IF(T38="TYP. NO. 13",D38,0) -> 0 | DJ38: =IF($T38="TRANS. TYP. NO. 1 TO TYP. NO. 13",$D38,IF($T38="TRANS. TYP. NO. 13 TO TYP. NO. 1",$D38,0)) -> 0 | DK38: =IF($T38="TRANS. TYP. NO. 2 TO TYP. NO. 13",$D38,IF($T38="TRANS. TYP. NO. 13 TO TYP. NO. 2",$D38,0)) -> 0 | DL38: =IF($T38="TRANS. TYP. NO. 3 TO TYP. NO. 13",$D38,IF($T38="TRANS. TYP. NO. 13 TO TYP. NO. 3",$D38,0)) -> 0 | DM38: =IF($T38="TRANS. TYP. NO. 4 TO TYP. NO. 13",$D38,IF($T38="TRANS. TYP. NO. 13 TO TYP. NO. 4",$D38,0)) -> 0 | DN38: =IF($T38="TRANS. TYP. NO. 5 TO TYP. NO. 13",$D38,IF($T38="TRANS. TYP. NO. 13 TO TYP. NO. 5",$D38,0)) -> 0 | DO38: =IF($T38="TRANS. TYP. NO. 6 TO TYP. NO. 13",$D38,IF($T38="TRANS. TYP. NO. 13 TO TYP. NO. 6",$D38,0)) -> 0 | DP38: =IF($T38="TRANS. TYP. NO. 7 TO TYP. NO. 13",$D38,IF($T38="TRANS. TYP. NO. 13 TO TYP. NO. 7",$D38,0)) -> 0 | DQ38: =IF($T38="TRANS. TYP. NO. 8 TO TYP. NO. 13",$D38,IF($T38="TRANS. TYP. NO. 13 TO TYP. NO. 8",$D38,0)) -> 0 | DR38: =IF($T38="TRANS. TYP. NO. 9 TO TYP. NO. 13",$D38,IF($T38="TRANS. TYP. NO. 13 TO TYP. NO. 9",$D38,0)) -> 0 | DS38: =IF($T38="TRANS. TYP. NO. 10 TO TYP. NO. 13",$D38,IF($T38="TRANS. TYP. NO. 13 TO TYP. NO. 10",$D38,0)) -> 0 | DT38: =IF($T38="TRANS. TYP. NO. 11 TO TYP. NO. 13",$D38,IF($T38="TRANS. TYP. NO. 13 TO TYP. NO. 11",$D38,0)) -> 0 | DU38: =IF($T38="TRANS. TYP. NO. 12 TO TYP. NO. 13",$D38,IF($T38="TRANS. TYP. NO. 13 TO TYP. NO. 12",$D38,0)) -> 0 | DV38: =IF(T38="TYP. NO. 14",D38,0) -> 0 | DW38: =IF($T38="TRANS. TYP. NO. 1 TO TYP. NO. 14",$D38,IF($T38="TRANS. TYP. NO. 14 TO TYP. NO. 1",$D38,0)) -> 0 | DX38: =IF($T38="TRANS. TYP. NO. 2 TO TYP. NO. 14",$D38,IF($T38="TRANS. TYP. NO. 14 TO TYP. NO. 2",$D38,0)) -> 0 | DY38: =IF($T38="TRANS. TYP. NO. 3 TO TYP. NO. 14",$D38,IF($T38="TRANS. TYP. NO. 14 TO TYP. NO. 3",$D38,0)) -> 0 | DZ38: =IF($T38="TRANS. TYP. NO. 4 TO TYP. NO. 14",$D38,IF($T38="TRANS. TYP. NO. 14 TO TYP. NO. 4",$D38,0)) -> 0 | EA38: =IF($T38="TRANS. TYP. NO. 5 TO TYP. NO. 14",$D38,IF($T38="TRANS. TYP. NO. 14 TO TYP. NO. 5",$D38,0)) -> 0 | EB38: =IF($T38="TRANS. TYP. NO. 6 TO TYP. NO. 14",$D38,IF($T38="TRANS. TYP. NO. 14 TO TYP. NO. 6",$D38,0)) -> 0 | EC38: =IF($T38="TRANS. TYP. NO. 7 TO TYP. NO. 14",$D38,IF($T38="TRANS. TYP. NO. 14 TO TYP. NO. 7",$D38,0)) -> 0 | ED38: =IF($T38="TRANS. TYP. NO. 8 TO TYP. NO. 14",$D38,IF($T38="TRANS. TYP. NO. 14 TO TYP. NO. 8",$D38,0)) -> 0 | EE38: =IF($T38="TRANS. TYP. NO. 9 TO TYP. NO. 14",$D38,IF($T38="TRANS. TYP. NO. 14 TO TYP. NO. 9",$D38,0)) -> 0 | EF38: =IF($T38="TRANS. TYP. NO. 10 TO TYP. NO. 14",$D38,IF($T38="TRANS. TYP. NO. 14 TO TYP. NO. 10",$D38,0)) -> 0 | EG38: =IF($T38="TRANS. TYP. NO. 11 TO TYP. NO. 14",$D38,IF($T38="TRANS. TYP. NO. 14 TO TYP. NO. 11",$D38,0)) -> 0 | EH38: =IF($T38="TRANS. TYP. NO. 12 TO TYP. NO. 14",$D38,IF($T38="TRANS. TYP. NO. 14 TO TYP. NO. 12",$D38,0)) -> 0 | EI38: =IF($T38="TRANS. TYP. NO. 13 TO TYP. NO. 14",$D38,IF($T38="TRANS. TYP. NO. 14 TO TYP. NO. 13",$D38,0)) -> 0 | EJ38: =IF(T38="TYP. NO. 15",D38,0) -> 0 | EK38: =IF($T38="TRANS. TYP. NO. 1 TO TYP. NO. 15",$D38,IF($T38="TRANS. TYP. NO. 15 TO TYP. NO. 1",$D38,0)) -> 0 | EL38: =IF($T38="TRANS. TYP. NO. 2 TO TYP. NO. 15",$D38,IF($T38="TRANS. TYP. NO. 15 TO TYP. NO. 2",$D38,0)) -> 0 | EM38: =IF($T38="TRANS. TYP. NO. 3 TO TYP. NO. 15",$D38,IF($T38="TRANS. TYP. NO. 15 TO TYP. NO. 3",$D38,0)) -> 0 | EN38: =IF($T38="TRANS. TYP. NO. 4 TO TYP. NO. 15",$D38,IF($T38="TRANS. TYP. NO. 15 TO TYP. NO. 4",$D38,0)) -> 0 | EO38: =IF($T38="TRANS. TYP. NO. 5 TO TYP. NO. 15",$D38,IF($T38="TRANS. TYP. NO. 15 TO TYP. NO. 5",$D38,0)) -> 0 | EP38: =IF($T38="TRANS. TYP. NO. 6 TO TYP. NO. 15",$D38,IF($T38="TRANS. TYP. NO. 15 TO TYP. NO. 6",$D38,0)) -> 0 | EQ38: =IF($T38="TRANS. TYP. NO. 7 TO TYP. NO. 15",$D38,IF($T38="TRANS. TYP. NO. 15 TO TYP. NO. 7",$D38,0)) -> 0 | ER38: =IF($T38="TRANS. TYP. NO. 8 TO TYP. NO. 15",$D38,IF($T38="TRANS. TYP. NO. 15 TO TYP. NO. 8",$D38,0)) -> 0 | ES38: =IF($T38="TRANS. TYP. NO. 9 TO TYP. NO. 15",$D38,IF($T38="TRANS. TYP. NO. 15 TO TYP. NO. 9",$D38,0)) -> 0 | ET38: =IF($T38="TRANS. TYP. NO. 10 TO TYP. NO. 15",$D38,IF($T38="TRANS. TYP. NO. 15 TO TYP. NO. 10",$D38,0)) -> 0 | EU38: =IF($T38="TRANS. TYP. NO. 11 TO TYP. NO. 15",$D38,IF($T38="TRANS. TYP. NO. 15 TO TYP. NO. 11",$D38,0)) -> 0 | EV38: =IF($T38="TRANS. TYP. NO. 12 TO TYP. NO. 15",$D38,IF($T38="TRANS. TYP. NO. 15 TO TYP. NO. 12",$D38,0)) -> 0 | EW38: =IF($T38="TRANS. TYP. NO. 13 TO TYP. NO. 15",$D38,IF($T38="TRANS. TYP. NO. 15 TO TYP. NO. 13",$D38,0)) -> 0 | EX38: =IF($T38="TRANS. TYP. NO. 14 TO TYP. NO. 15",$D38,IF($T38="TRANS. TYP. NO. 15 TO TYP. NO. 14",$D38,0)) -> 0 | EY38: =IF(T38="TYP. NO. 16",D38,0) -> 0 | EZ38: =IF($T38="TRANS. TYP. NO. 1 TO TYP. NO. 16",$D38,IF($T38="TRANS. TYP. NO. 16 TO TYP. NO. 1",$D38,0)) -> 0 | FA38: =IF($T38="TRANS. TYP. NO. 2 TO TYP. NO. 16",$D38,IF($T38="TRANS. TYP. NO. 16 TO TYP. NO. 2",$D38,0)) -> 0 | FB38: =IF($T38="TRANS. TYP. NO. 3 TO TYP. NO. 16",$D38,IF($T38="TRANS. TYP. NO. 16 TO TYP. NO. 3",$D38,0)) -> 0 | FC38: =IF($T38="TRANS. TYP. NO. 4 TO TYP. NO. 16",$D38,IF($T38="TRANS. TYP. NO. 16 TO TYP. NO. 4",$D38,0)) -> 0 | FD38: =IF($T38="TRANS. TYP. NO. 5 TO TYP. NO. 16",$D38,IF($T38="TRANS. TYP. NO. 16 TO TYP. NO. 5",$D38,0)) -> 0 | FE38: =IF($T38="TRANS. TYP. NO. 6 TO TYP. NO. 16",$D38,IF($T38="TRANS. TYP. NO. 16 TO TYP. NO. 6",$D38,0)) -> 0 | FF38: =IF($T38="TRANS. TYP. NO. 7 TO TYP. NO. 16",$D38,IF($T38="TRANS. TYP. NO. 16 TO TYP. NO. 7",$D38,0)) -> 0 | FG38: =IF($T38="TRANS. TYP. NO. 8 TO TYP. NO. 16",$D38,IF($T38="TRANS. TYP. NO. 16 TO TYP. NO. 8",$D38,0)) -> 0 | FH38: =IF($T38="TRANS. TYP. NO. 9 TO TYP. NO. 16",$D38,IF($T38="TRANS. TYP. NO. 16 TO TYP. NO. 9",$D38,0)) -> 0 | FI38: =IF($T38="TRANS. TYP. NO. 10 TO TYP. NO. 16",$D38,IF($T38="TRANS. TYP. NO. 16 TO TYP. NO. 10",$D38,0)) -> 0 | FJ38: =IF($T38="TRANS. TYP. NO. 11 TO TYP. NO. 16",$D38,IF($T38="TRANS. TYP. NO. 16 TO TYP. NO. 11",$D38,0)) -> 0 | FK38: =IF($T38="TRANS. TYP. NO. 12 TO TYP. NO. 16",$D38,IF($T38="TRANS. TYP. NO. 16 TO TYP. NO. 12",$D38,0)) -> 0 | FL38: =IF($T38="TRANS. TYP. NO. 13 TO TYP. NO. 16",$D38,IF($T38="TRANS. TYP. NO. 16 TO TYP. NO. 13",$D38,0)) -> 0 | FM38: =IF($T38="TRANS. TYP. NO. 14 TO TYP. NO. 16",$D38,IF($T38="TRANS. TYP. NO. 16 TO TYP. NO. 14",$D38,0)) -> 0 | FN38: =IF($T38="TRANS. TYP. NO. 15 TO TYP. NO. 16",$D38,IF($T38="TRANS. TYP. NO. 16 TO TYP. NO. 15",$D38,0)) -> 0
V39: =IF(T39="",402,MATCH(T39,'Lookup Values'!$B$1:$B$402,0)) -> 402 | W39: =LOOKUP($V39,'Lookup Values'!$A$2:$A$402,'Lookup Values'!C$2:C$402) -> ERROR | X39: =LOOKUP($V39,'Lookup Values'!$A$2:$A$402,'Lookup Values'!D$2:D$402) -> ERROR | Y39: =LOOKUP($V39,'Lookup Values'!$A$2:$A$402,'Lookup Values'!E$2:E$402) -> ERROR | Z39: =LOOKUP($V39,'Lookup Values'!$A$2:$A$402,'Lookup Values'!F$2:F$402) -> ERROR | AA39: =LOOKUP($V39,'Lookup Values'!$A$2:$A$402,'Lookup Values'!G$2:G$402) -> ERROR | AB39: =LOOKUP($V39,'Lookup Values'!$A$2:$A$402,'Lookup Values'!H$2:H$402) -> ERROR | AC39: =LOOKUP($V39,'Lookup Values'!$A$2:$A$402,'Lookup Values'!I$2:I$402) -> ERROR | AD39: =LOOKUP($V39,'Lookup Values'!$A$2:$A$402,'Lookup Values'!J$2:J$402) -> ERROR | AE39: =LOOKUP($V39,'Lookup Values'!$A$2:$A$402,'Lookup Values'!K$2:K$402) -> ERROR | AF39: =LOOKUP($V39,'Lookup Values'!$A$2:$A$402,'Lookup Values'!L$2:L$402) -> ERROR | AG39: =LOOKUP($V39,'Lookup Values'!$A$2:$A$402,'Lookup Values'!M$2:M$402) -> ERROR | AI39: 0 | AJ39: 0 | AK39: 0 | AL39: 0 | AM39: 0 | AN39: 0 | AO39: 0 | AP39: 0 | AQ39: 0 | AR39: 0 | AS39: 0 | AT39: 0 | AU39: 0 | AV39: 0 | AW39: 0 | AX39: 0 | AY39: 0 | AZ39: 0 | BA39: 0 | BB39: 0 | BC39: 0 | BD39: 0 | BE39: 0 | BF39: 0 | BG39: 0 | BH39: 0 | BI39: 0 | BJ39: 0 | BK39: 0 | BL39: 0 | BM39: 0 | BN39: 0 | BO39: 0 | BP39: 0 | BQ39: 0 | BR39: 0 | BS39: 0 | BT39: 0 | BU39: 0 | BV39: 0 | BW39: 0 | BX39: 0 | BY39: 0 | BZ39: 0 | CA39: 0 | CB39: 0 | CC39: 0 | CD39: 0 | CE39: 0 | CF39: 0 | CG39: 0 | CH39: 0 | CI39: 0 | CJ39: 0 | CK39: 0 | CL39: 0 | CM39: 0 | CN39: 0 | CO39: 0 | CP39: 0 | CQ39: 0 | CR39: 0 | CS39: 0 | CT39: 0 | CU39: 0 | CV39: 0 | CW39: 0 | CX39: 0 | CY39: 0 | CZ39: 0 | DA39: 0 | DB39: 0 | DC39: 0 | DD39: 0 | DE39: 0 | DF39: 0 | DG39: 0 | DH39: 0 | DI39: 0 | DJ39: 0 | DK39: 0 | DL39: 0 | DM39: 0 | DN39: 0 | DO39: 0 | DP39: 0 | DQ39: 0 | DR39: 0 | DS39: 0 | DT39: 0 | DU39: 0 | DV39: 0 | DW39: 0 | DX39: 0 | DY39: 0 | DZ39: 0 | EA39: 0 | EB39: 0 | EC39: 0 | ED39: 0 | EE39: 0 | EF39: 0 | EG39: 0 | EH39: 0 | EI39: 0 | EJ39: 0 | EK39: 0 | EL39: 0 | EM39: 0 | EN39: 0 | EO39: 0 | EP39: 0 | EQ39: 0 | ER39: 0 | ES39: 0 | ET39: 0 | EU39: 0 | EV39: 0 | EW39: 0 | EX39: 0 | EY39: 0 | EZ39: 0 | FA39: 0 | FB39: 0 | FC39: 0 | FD39: 0 | FE39: 0 | FF39: 0 | FG39: 0 | FH39: 0 | FI39: 0 | FJ39: 0 | FK39: 0 | FL39: 0 | FM39: 0 | FN39: 0
V40: =IF(T40="",402,MATCH(T40,'Lookup Values'!$B$1:$B$402,0)) -> 402 | W40: =LOOKUP($V40,'Lookup Values'!$A$2:$A$402,'Lookup Values'!C$2:C$402) -> ERROR | X40: =LOOKUP($V40,'Lookup Values'!$A$2:$A$402,'Lookup Values'!D$2:D$402) -> ERROR | Y40: =LOOKUP($V40,'Lookup Values'!$A$2:$A$402,'Lookup Values'!E$2:E$402) -> ERROR | Z40: =LOOKUP($V40,'Lookup Values'!$A$2:$A$402,'Lookup Values'!F$2:F$402) -> ERROR | AA40: =LOOKUP($V40,'Lookup Values'!$A$2:$A$402,'Lookup Values'!G$2:G$402) -> ERROR | AB40: =LOOKUP($V40,'Lookup Values'!$A$2:$A$402,'Lookup Values'!H$2:H$402) -> ERROR | AC40: =LOOKUP($V40,'Lookup Values'!$A$2:$A$402,'Lookup Values'!I$2:I$402) -> ERROR | AD40: =LOOKUP($V40,'Lookup Values'!$A$2:$A$402,'Lookup Values'!J$2:J$402) -> ERROR | AE40: =LOOKUP($V40,'Lookup Values'!$A$2:$A$402,'Lookup Values'!K$2:K$402) -> ERROR | AF40: =LOOKUP($V40,'Lookup Values'!$A$2:$A$402,'Lookup Values'!L$2:L$402) -> ERROR | AG40: =LOOKUP($V40,'Lookup Values'!$A$2:$A$402,'Lookup Values'!M$2:M$402) -> ERROR | AI40: 0 | AJ40: 0 | AK40: 0 | AL40: 0 | AM40: 0 | AN40: 0 | AO40: 0 | AP40: 0 | AQ40: 0 | AR40: 0 | AS40: 0 | AT40: 0 | AU40: 0 | AV40: 0 | AW40: 0 | AX40: 0 | AY40: 0 | AZ40: 0 | BA40: 0 | BB40: 0 | BC40: 0 | BD40: 0 | BE40: 0 | BF40: 0 | BG40: 0 | BH40: 0 | BI40: 0 | BJ40: 0 | BK40: 0 | BL40: 0 | BM40: 0 | BN40: 0 | BO40: 0 | BP40: 0 | BQ40: 0 | BR40: 0 | BS40: 0 | BT40: 0 | BU40: 0 | BV40: 0 | BW40: 0 | BX40: 0 | BY40: 0 | BZ40: 0 | CA40: 0 | CB40: 0 | CC40: 0 | CD40: 0 | CE40: 0 | CF40: 0 | CG40: 0 | CH40: 0 | CI40: 0 | CJ40: 0 | CK40: 0 | CL40: 0 | CM40: 0 | CN40: 0 | CO40: 0 | CP40: 0 | CQ40: 0 | CR40: 0 | CS40: 0 | CT40: 0 | CU40: 0 | CV40: 0 | CW40: 0 | CX40: 0 | CY40: 0 | CZ40: 0 | DA40: 0 | DB40: 0 | DC40: 0 | DD40: 0 | DE40: 0 | DF40: 0 | DG40: 0 | DH40: 0 | DI40: 0 | DJ40: 0 | DK40: 0 | DL40: 0 | DM40: 0 | DN40: 0 | DO40: 0 | DP40: 0 | DQ40: 0 | DR40: 0 | DS40: 0 | DT40: 0 | DU40: 0 | DV40: 0 | DW40: 0 | DX40: 0 | DY40: 0 | DZ40: 0 | EA40: 0 | EB40: 0 | EC40: 0 | ED40: 0 | EE40: 0 | EF40: 0 | EG40: 0 | EH40: 0 | EI40: 0 | EJ40: 0 | EK40: 0 | EL40: 0 | EM40: 0 | EN40: 0 | EO40: 0 | EP40: 0 | EQ40: 0 | ER40: 0 | ES40: 0 | ET40: 0 | EU40: 0 | EV40: 0 | EW40: 0 | EX40: 0 | EY40: 0 | EZ40: 0 | FA40: 0 | FB40: 0 | FC40: 0 | FD40: 0 | FE40: 0 | FF40: 0 | FG40: 0 | FH40: 0 | FI40: 0 | FJ40: 0 | FK40: 0 | FL40: 0 | FM40: 0 | FN40: 0
V41: =IF(T41="",402,MATCH(T41,'Lookup Values'!$B$1:$B$402,0)) -> 402 | W41: =LOOKUP($V41,'Lookup Values'!$A$2:$A$402,'Lookup Values'!C$2:C$402) -> ERROR | X41: =LOOKUP($V41,'Lookup Values'!$A$2:$A$402,'Lookup Values'!D$2:D$402) -> ERROR | Y41: =LOOKUP($V41,'Lookup Values'!$A$2:$A$402,'Lookup Values'!E$2:E$402) -> ERROR | Z41: =LOOKUP($V41,'Lookup Values'!$A$2:$A$402,'Lookup Values'!F$2:F$402) -> ERROR | AA41: =LOOKUP($V41,'Lookup Values'!$A$2:$A$402,'Lookup Values'!G$2:G$402) -> ERROR | AB41: =LOOKUP($V41,'Lookup Values'!$A$2:$A$402,'Lookup Values'!H$2:H$402) -> ERROR | AC41: =LOOKUP($V41,'Lookup Values'!$A$2:$A$402,'Lookup Values'!I$2:I$402) -> ERROR | AD41: =LOOKUP($V41,'Lookup Values'!$A$2:$A$402,'Lookup Values'!J$2:J$402) -> ERROR | AE41: =LOOKUP($V41,'Lookup Values'!$A$2:$A$402,'Lookup Values'!K$2:K$402) -> ERROR | AF41: =LOOKUP($V41,'Lookup Values'!$A$2:$A$402,'Lookup Values'!L$2:L$402) -> ERROR | AG41: =LOOKUP($V41,'Lookup Values'!$A$2:$A$402,'Lookup Values'!M$2:M$402) -> ERROR | AI41: 0 | AJ41: 0 | AK41: 0 | AL41: 0 | AM41: 0 | AN41: 0 | AO41: 0 | AP41: 0 | AQ41: 0 | AR41: 0 | AS41: 0 | AT41: 0 | AU41: 0 | AV41: 0 | AW41: 0 | AX41: 0 | AY41: 0 | AZ41: 0 | BA41: 0 | BB41: 0 | BC41: 0 | BD41: 0 | BE41: 0 | BF41: 0 | BG41: 0 | BH41: 0 | BI41: 0 | BJ41: 0 | BK41: 0 | BL41: 0 | BM41: 0 | BN41: 0 | BO41: 0 | BP41: 0 | BQ41: 0 | BR41: 0 | BS41: 0 | BT41: 0 | BU41: 0 | BV41: 0 | BW41: 0 | BX41: 0 | BY41: 0 | BZ41: 0 | CA41: 0 | CB41: 0 | CC41: 0 | CD41: 0 | CE41: 0 | CF41: 0 | CG41: 0 | CH41: 0 | CI41: 0 | CJ41: 0 | CK41: 0 | CL41: 0 | CM41: 0 | CN41: 0 | CO41: 0 | CP41: 0 | CQ41: 0 | CR41: 0 | CS41: 0 | CT41: 0 | CU41: 0 | CV41: 0 | CW41: 0 | CX41: 0 | CY41: 0 | CZ41: 0 | DA41: 0 | DB41: 0 | DC41: 0 | DD41: 0 | DE41: 0 | DF41: 0 | DG41: 0 | DH41: 0 | DI41: 0 | DJ41: 0 | DK41: 0 | DL41: 0 | DM41: 0 | DN41: 0 | DO41: 0 | DP41: 0 | DQ41: 0 | DR41: 0 | DS41: 0 | DT41: 0 | DU41: 0 | DV41: 0 | DW41: 0 | DX41: 0 | DY41: 0 | DZ41: 0 | EA41: 0 | EB41: 0 | EC41: 0 | ED41: 0 | EE41: 0 | EF41: 0 | EG41: 0 | EH41: 0 | EI41: 0 | EJ41: 0 | EK41: 0 | EL41: 0 | EM41: 0 | EN41: 0 | EO41: 0 | EP41: 0 | EQ41: 0 | ER41: 0 | ES41: 0 | ET41: 0 | EU41: 0 | EV41: 0 | EW41: 0 | EX41: 0 | EY41: 0 | EZ41: 0 | FA41: 0 | FB41: 0 | FC41: 0 | FD41: 0 | FE41: 0 | FF41: 0 | FG41: 0 | FH41: 0 | FI41: 0 | FJ41: 0 | FK41: 0 | FL41: 0 | FM41: 0 | FN41: 0
V42: =IF(T42="",402,MATCH(T42,'Lookup Values'!$B$1:$B$402,0)) -> 402 | W42: =LOOKUP($V42,'Lookup Values'!$A$2:$A$402,'Lookup Values'!C$2:C$402) -> ERROR | X42: =LOOKUP($V42,'Lookup Values'!$A$2:$A$402,'Lookup Values'!D$2:D$402) -> ERROR | Y42: =LOOKUP($V42,'Lookup Values'!$A$2:$A$402,'Lookup Values'!E$2:E$402) -> ERROR | Z42: =LOOKUP($V42,'Lookup Values'!$A$2:$A$402,'Lookup Values'!F$2:F$402) -> ERROR | AA42: =LOOKUP($V42,'Lookup Values'!$A$2:$A$402,'Lookup Values'!G$2:G$402) -> ERROR | AB42: =LOOKUP($V42,'Lookup Values'!$A$2:$A$402,'Lookup Values'!H$2:H$402) -> ERROR | AC42: =LOOKUP($V42,'Lookup Values'!$A$2:$A$402,'Lookup Values'!I$2:I$402) -> ERROR | AD42: =LOOKUP($V42,'Lookup Values'!$A$2:$A$402,'Lookup Values'!J$2:J$402) -> ERROR | AE42: =LOOKUP($V42,'Lookup Values'!$A$2:$A$402,'Lookup Values'!K$2:K$402) -> ERROR | AF42: =LOOKUP($V42,'Lookup Values'!$A$2:$A$402,'Lookup Values'!L$2:L$402) -> ERROR | AG42: =LOOKUP($V42,'Lookup Values'!$A$2:$A$402,'Lookup Values'!M$2:M$402) -> ERROR | AI42: 0 | AJ42: 0 | AK42: 0 | AL42: 0 | AM42: 0 | AN42: 0 | AO42: 0 | AP42: 0 | AQ42: 0 | AR42: 0 | AS42: 0 | AT42: 0 | AU42: 0 | AV42: 0 | AW42: 0 | AX42: 0 | AY42: 0 | AZ42: 0 | BA42: 0 | BB42: 0 | BC42: 0 | BD42: 0 | BE42: 0 | BF42: 0 | BG42: 0 | BH42: 0 | BI42: 0 | BJ42: 0 | BK42: 0 | BL42: 0 | BM42: 0 | BN42: 0 | BO42: 0 | BP42: 0 | BQ42: 0 | BR42: 0 | BS42: 0 | BT42: 0 | BU42: 0 | BV42: 0 | BW42: 0 | BX42: 0 | BY42: 0 | BZ42: 0 | CA42: 0 | CB42: 0 | CC42: 0 | CD42: 0 | CE42: 0 | CF42: 0 | CG42: 0 | CH42: 0 | CI42: 0 | CJ42: 0 | CK42: 0 | CL42: 0 | CM42: 0 | CN42: 0 | CO42: 0 | CP42: 0 | CQ42: 0 | CR42: 0 | CS42: 0 | CT42: 0 | CU42: 0 | CV42: 0 | CW42: 0 | CX42: 0 | CY42: 0 | CZ42: 0 | DA42: 0 | DB42: 0 | DC42: 0 | DD42: 0 | DE42: 0 | DF42: 0 | DG42: 0 | DH42: 0 | DI42: 0 | DJ42: 0 | DK42: 0 | DL42: 0 | DM42: 0 | DN42: 0 | DO42: 0 | DP42: 0 | DQ42: 0 | DR42: 0 | DS42: 0 | DT42: 0 | DU42: 0 | DV42: 0 | DW42: 0 | DX42: 0 | DY42: 0 | DZ42: 0 | EA42: 0 | EB42: 0 | EC42: 0 | ED42: 0 | EE42: 0 | EF42: 0 | EG42: 0 | EH42: 0 | EI42: 0 | EJ42: 0 | EK42: 0 | EL42: 0 | EM42: 0 | EN42: 0 | EO42: 0 | EP42: 0 | EQ42: 0 | ER42: 0 | ES42: 0 | ET42: 0 | EU42: 0 | EV42: 0 | EW42: 0 | EX42: 0 | EY42: 0 | EZ42: 0 | FA42: 0 | FB42: 0 | FC42: 0 | FD42: 0 | FE42: 0 | FF42: 0 | FG42: 0 | FH42: 0 | FI42: 0 | FJ42: 0 | FK42: 0 | FL42: 0 | FM42: 0 | FN42: 0
V43: =IF(T43="",402,MATCH(T43,'Lookup Values'!$B$1:$B$402,0)) -> 402 | W43: =LOOKUP($V43,'Lookup Values'!$A$2:$A$402,'Lookup Values'!C$2:C$402) -> ERROR | X43: =LOOKUP($V43,'Lookup Values'!$A$2:$A$402,'Lookup Values'!D$2:D$402) -> ERROR | Y43: =LOOKUP($V43,'Lookup Values'!$A$2:$A$402,'Lookup Values'!E$2:E$402) -> ERROR | Z43: =LOOKUP($V43,'Lookup Values'!$A$2:$A$402,'Lookup Values'!F$2:F$402) -> ERROR | AA43: =LOOKUP($V43,'Lookup Values'!$A$2:$A$402,'Lookup Values'!G$2:G$402) -> ERROR | AB43: =LOOKUP($V43,'Lookup Values'!$A$2:$A$402,'Lookup Values'!H$2:H$402) -> ERROR | AC43: =LOOKUP($V43,'Lookup Values'!$A$2:$A$402,'Lookup Values'!I$2:I$402) -> ERROR | AD43: =LOOKUP($V43,'Lookup Values'!$A$2:$A$402,'Lookup Values'!J$2:J$402) -> ERROR | AE43: =LOOKUP($V43,'Lookup Values'!$A$2:$A$402,'Lookup Values'!K$2:K$402) -> ERROR | AF43: =LOOKUP($V43,'Lookup Values'!$A$2:$A$402,'Lookup Values'!L$2:L$402) -> ERROR | AG43: =LOOKUP($V43,'Lookup Values'!$A$2:$A$402,'Lookup Values'!M$2:M$402) -> ERROR | AI43: 0 | AJ43: 0 | AK43: 0 | AL43: 0 | AM43: 0 | AN43: 0 | AO43: 0 | AP43: 0 | AQ43: 0 | AR43: 0 | AS43: 0 | AT43: 0 | AU43: 0 | AV43: 0 | AW43: 0 | AX43: 0 | AY43: 0 | AZ43: 0 | BA43: 0 | BB43: 0 | BC43: 0 | BD43: 0 | BE43: 0 | BF43: 0 | BG43: 0 | BH43: 0 | BI43: 0 | BJ43: 0 | BK43: 0 | BL43: 0 | BM43: 0 | BN43: 0 | BO43: 0 | BP43: 0 | BQ43: 0 | BR43: 0 | BS43: 0 | BT43: 0 | BU43: 0 | BV43: 0 | BW43: 0 | BX43: 0 | BY43: 0 | BZ43: 0 | CA43: 0 | CB43: 0 | CC43: 0 | CD43: 0 | CE43: 0 | CF43: 0 | CG43: 0 | CH43: 0 | CI43: 0 | CJ43: 0 | CK43: 0 | CL43: 0 | CM43: 0 | CN43: 0 | CO43: 0 | CP43: 0 | CQ43: 0 | CR43: 0 | CS43: 0 | CT43: 0 | CU43: 0 | CV43: 0 | CW43: 0 | CX43: 0 | CY43: 0 | CZ43: 0 | DA43: 0 | DB43: 0 | DC43: 0 | DD43: 0 | DE43: 0 | DF43: 0 | DG43: 0 | DH43: 0 | DI43: 0 | DJ43: 0 | DK43: 0 | DL43: 0 | DM43: 0 | DN43: 0 | DO43: 0 | DP43: 0 | DQ43: 0 | DR43: 0 | DS43: 0 | DT43: 0 | DU43: 0 | DV43: 0 | DW43: 0 | DX43: 0 | DY43: 0 | DZ43: 0 | EA43: 0 | EB43: 0 | EC43: 0 | ED43: 0 | EE43: 0 | EF43: 0 | EG43: 0 | EH43: 0 | EI43: 0 | EJ43: 0 | EK43: 0 | EL43: 0 | EM43: 0 | EN43: 0 | EO43: 0 | EP43: 0 | EQ43: 0 | ER43: 0 | ES43: 0 | ET43: 0 | EU43: 0 | EV43: 0 | EW43: 0 | EX43: 0 | EY43: 0 | EZ43: 0 | FA43: 0 | FB43: 0 | FC43: 0 | FD43: 0 | FE43: 0 | FF43: 0 | FG43: 0 | FH43: 0 | FI43: 0 | FJ43: 0 | FK43: 0 | FL43: 0 | FM43: 0 | FN43: 0
V44: =IF(T44="",402,MATCH(T44,'Lookup Values'!$B$1:$B$402,0)) -> 402 | W44: =LOOKUP($V44,'Lookup Values'!$A$2:$A$402,'Lookup Values'!C$2:C$402) -> ERROR | X44: =LOOKUP($V44,'Lookup Values'!$A$2:$A$402,'Lookup Values'!D$2:D$402) -> ERROR | Y44: =LOOKUP($V44,'Lookup Values'!$A$2:$A$402,'Lookup Values'!E$2:E$402) -> ERROR | Z44: =LOOKUP($V44,'Lookup Values'!$A$2:$A$402,'Lookup Values'!F$2:F$402) -> ERROR | AA44: =LOOKUP($V44,'Lookup Values'!$A$2:$A$402,'Lookup Values'!G$2:G$402) -> ERROR | AB44: =LOOKUP($V44,'Lookup Values'!$A$2:$A$402,'Lookup Values'!H$2:H$402) -> ERROR | AC44: =LOOKUP($V44,'Lookup Values'!$A$2:$A$402,'Lookup Values'!I$2:I$402) -> ERROR | AD44: =LOOKUP($V44,'Lookup Values'!$A$2:$A$402,'Lookup Values'!J$2:J$402) -> ERROR | AE44: =LOOKUP($V44,'Lookup Values'!$A$2:$A$402,'Lookup Values'!K$2:K$402) -> ERROR | AF44: =LOOKUP($V44,'Lookup Values'!$A$2:$A$402,'Lookup Values'!L$2:L$402) -> ERROR | AG44: =LOOKUP($V44,'Lookup Values'!$A$2:$A$402,'Lookup Values'!M$2:M$402) -> ERROR | AI44: 0 | AJ44: 0 | AK44: 0 | AL44: 0 | AM44: 0 | AN44: 0 | AO44: 0 | AP44: 0 | AQ44: 0 | AR44: 0 | AS44: 0 | AT44: 0 | AU44: 0 | AV44: 0 | AW44: 0 | AX44: 0 | AY44: 0 | AZ44: 0 | BA44: 0 | BB44: 0 | BC44: 0 | BD44: 0 | BE44: 0 | BF44: 0 | BG44: 0 | BH44: 0 | BI44: 0 | BJ44: 0 | BK44: 0 | BL44: 0 | BM44: 0 | BN44: 0 | BO44: 0 | BP44: 0 | BQ44: 0 | BR44: 0 | BS44: 0 | BT44: 0 | BU44: 0 | BV44: 0 | BW44: 0 | BX44: 0 | BY44: 0 | BZ44: 0 | CA44: 0 | CB44: 0 | CC44: 0 | CD44: 0 | CE44: 0 | CF44: 0 | CG44: 0 | CH44: 0 | CI44: 0 | CJ44: 0 | CK44: 0 | CL44: 0 | CM44: 0 | CN44: 0 | CO44: 0 | CP44: 0 | CQ44: 0 | CR44: 0 | CS44: 0 | CT44: 0 | CU44: 0 | CV44: 0 | CW44: 0 | CX44: 0 | CY44: 0 | CZ44: 0 | DA44: 0 | DB44: 0 | DC44: 0 | DD44: 0 | DE44: 0 | DF44: 0 | DG44: 0 | DH44: 0 | DI44: 0 | DJ44: 0 | DK44: 0 | DL44: 0 | DM44: 0 | DN44: 0 | DO44: 0 | DP44: 0 | DQ44: 0 | DR44: 0 | DS44: 0 | DT44: 0 | DU44: 0 | DV44: 0 | DW44: 0 | DX44: 0 | DY44: 0 | DZ44: 0 | EA44: 0 | EB44: 0 | EC44: 0 | ED44: 0 | EE44: 0 | EF44: 0 | EG44: 0 | EH44: 0 | EI44: 0 | EJ44: 0 | EK44: 0 | EL44: 0 | EM44: 0 | EN44: 0 | EO44: 0 | EP44: 0 | EQ44: 0 | ER44: 0 | ES44: 0 | ET44: 0 | EU44: 0 | EV44: 0 | EW44: 0 | EX44: 0 | EY44: 0 | EZ44: 0 | FA44: 0 | FB44: 0 | FC44: 0 | FD44: 0 | FE44: 0 | FF44: 0 | FG44: 0 | FH44: 0 | FI44: 0 | FJ44: 0 | FK44: 0 | FL44: 0 | FM44: 0 | FN44: 0
V45: =IF(T45="",402,MATCH(T45,'Lookup Values'!$B$1:$B$402,0)) -> 402 | W45: =LOOKUP($V45,'Lookup Values'!$A$2:$A$402,'Lookup Values'!C$2:C$402) -> ERROR | X45: =LOOKUP($V45,'Lookup Values'!$A$2:$A$402,'Lookup Values'!D$2:D$402) -> ERROR | Y45: =LOOKUP($V45,'Lookup Values'!$A$2:$A$402,'Lookup Values'!E$2:E$402) -> ERROR | Z45: =LOOKUP($V45,'Lookup Values'!$A$2:$A$402,'Lookup Values'!F$2:F$402) -> ERROR | AA45: =LOOKUP($V45,'Lookup Values'!$A$2:$A$402,'Lookup Values'!G$2:G$402) -> ERROR | AB45: =LOOKUP($V45,'Lookup Values'!$A$2:$A$402,'Lookup Values'!H$2:H$402) -> ERROR | AC45: =LOOKUP($V45,'Lookup Values'!$A$2:$A$402,'Lookup Values'!I$2:I$402) -> ERROR | AD45: =LOOKUP($V45,'Lookup Values'!$A$2:$A$402,'Lookup Values'!J$2:J$402) -> ERROR | AE45: =LOOKUP($V45,'Lookup Values'!$A$2:$A$402,'Lookup Values'!K$2:K$402) -> ERROR | AF45: =LOOKUP($V45,'Lookup Values'!$A$2:$A$402,'Lookup Values'!L$2:L$402) -> ERROR | AG45: =LOOKUP($V45,'Lookup Values'!$A$2:$A$402,'Lookup Values'!M$2:M$402) -> ERROR | AI45: 0 | AJ45: 0 | AK45: 0 | AL45: 0 | AM45: 0 | AN45: 0 | AO45: 0 | AP45: 0 | AQ45: 0 | AR45: 0 | AS45: 0 | AT45: 0 | AU45: 0 | AV45: 0 | AW45: 0 | AX45: 0 | AY45: 0 | AZ45: 0 | BA45: 0 | BB45: 0 | BC45: 0 | BD45: 0 | BE45: 0 | BF45: 0 | BG45: 0 | BH45: 0 | BI45: 0 | BJ45: 0 | BK45: 0 | BL45: 0 | BM45: 0 | BN45: 0 | BO45: 0 | BP45: 0 | BQ45: 0 | BR45: 0 | BS45: 0 | BT45: 0 | BU45: 0 | BV45: 0 | BW45: 0 | BX45: 0 | BY45: 0 | BZ45: 0 | CA45: 0 | CB45: 0 | CC45: 0 | CD45: 0 | CE45: 0 | CF45: 0 | CG45: 0 | CH45: 0 | CI45: 0 | CJ45: 0 | CK45: 0 | CL45: 0 | CM45: 0 | CN45: 0 | CO45: 0 | CP45: 0 | CQ45: 0 | CR45: 0 | CS45: 0 | CT45: 0 | CU45: 0 | CV45: 0 | CW45: 0 | CX45: 0 | CY45: 0 | CZ45: 0 | DA45: 0 | DB45: 0 | DC45: 0 | DD45: 0 | DE45: 0 | DF45: 0 | DG45: 0 | DH45: 0 | DI45: 0 | DJ45: 0 | DK45: 0 | DL45: 0 | DM45: 0 | DN45: 0 | DO45: 0 | DP45: 0 | DQ45: 0 | DR45: 0 | DS45: 0 | DT45: 0 | DU45: 0 | DV45: 0 | DW45: 0 | DX45: 0 | DY45: 0 | DZ45: 0 | EA45: 0 | EB45: 0 | EC45: 0 | ED45: 0 | EE45: 0 | EF45: 0 | EG45: 0 | EH45: 0 | EI45: 0 | EJ45: 0 | EK45: 0 | EL45: 0 | EM45: 0 | EN45: 0 | EO45: 0 | EP45: 0 | EQ45: 0 | ER45: 0 | ES45: 0 | ET45: 0 | EU45: 0 | EV45: 0 | EW45: 0 | EX45: 0 | EY45: 0 | EZ45: 0 | FA45: 0 | FB45: 0 | FC45: 0 | FD45: 0 | FE45: 0 | FF45: 0 | FG45: 0 | FH45: 0 | FI45: 0 | FJ45: 0 | FK45: 0 | FL45: 0 | FM45: 0 | FN45: 0
V46: =IF(T46="",402,MATCH(T46,'Lookup Values'!$B$1:$B$402,0)) -> 402 | W46: =LOOKUP($V46,'Lookup Values'!$A$2:$A$402,'Lookup Values'!C$2:C$402) -> ERROR | X46: =LOOKUP($V46,'Lookup Values'!$A$2:$A$402,'Lookup Values'!D$2:D$402) -> ERROR | Y46: =LOOKUP($V46,'Lookup Values'!$A$2:$A$402,'Lookup Values'!E$2:E$402) -> ERROR | Z46: =LOOKUP($V46,'Lookup Values'!$A$2:$A$402,'Lookup Values'!F$2:F$402) -> ERROR | AA46: =LOOKUP($V46,'Lookup Values'!$A$2:$A$402,'Lookup Values'!G$2:G$402) -> ERROR | AB46: =LOOKUP($V46,'Lookup Values'!$A$2:$A$402,'Lookup Values'!H$2:H$402) -> ERROR | AC46: =LOOKUP($V46,'Lookup Values'!$A$2:$A$402,'Lookup Values'!I$2:I$402) -> ERROR | AD46: =LOOKUP($V46,'Lookup Values'!$A$2:$A$402,'Lookup Values'!J$2:J$402) -> ERROR | AE46: =LOOKUP($V46,'Lookup Values'!$A$2:$A$402,'Lookup Values'!K$2:K$402) -> ERROR | AF46: =LOOKUP($V46,'Lookup Values'!$A$2:$A$402,'Lookup Values'!L$2:L$402) -> ERROR | AG46: =LOOKUP($V46,'Lookup Values'!$A$2:$A$402,'Lookup Values'!M$2:M$402) -> ERROR | AI46: 0 | AJ46: 0 | AK46: 0 | AL46: 0 | AM46: 0 | AN46: 0 | AO46: 0 | AP46: 0 | AQ46: 0 | AR46: 0 | AS46: 0 | AT46: 0 | AU46: 0 | AV46: 0 | AW46: 0 | AX46: 0 | AY46: 0 | AZ46: 0 | BA46: 0 | BB46: 0 | BC46: 0 | BD46: 0 | BE46: 0 | BF46: 0 | BG46: 0 | BH46: 0 | BI46: 0 | BJ46: 0 | BK46: 0 | BL46: 0 | BM46: 0 | BN46: 0 | BO46: 0 | BP46: 0 | BQ46: 0 | BR46: 0 | BS46: 0 | BT46: 0 | BU46: 0 | BV46: 0 | BW46: 0 | BX46: 0 | BY46: 0 | BZ46: 0 | CA46: 0 | CB46: 0 | CC46: 0 | CD46: 0 | CE46: 0 | CF46: 0 | CG46: 0 | CH46: 0 | CI46: 0 | CJ46: 0 | CK46: 0 | CL46: 0 | CM46: 0 | CN46: 0 | CO46: 0 | CP46: 0 | CQ46: 0 | CR46: 0 | CS46: 0 | CT46: 0 | CU46: 0 | CV46: 0 | CW46: 0 | CX46: 0 | CY46: 0 | CZ46: 0 | DA46: 0 | DB46: 0 | DC46: 0 | DD46: 0 | DE46: 0 | DF46: 0 | DG46: 0 | DH46: 0 | DI46: 0 | DJ46: 0 | DK46: 0 | DL46: 0 | DM46: 0 | DN46: 0 | DO46: 0 | DP46: 0 | DQ46: 0 | DR46: 0 | DS46: 0 | DT46: 0 | DU46: 0 | DV46: 0 | DW46: 0 | DX46: 0 | DY46: 0 | DZ46: 0 | EA46: 0 | EB46: 0 | EC46: 0 | ED46: 0 | EE46: 0 | EF46: 0 | EG46: 0 | EH46: 0 | EI46: 0 | EJ46: 0 | EK46: 0 | EL46: 0 | EM46: 0 | EN46: 0 | EO46: 0 | EP46: 0 | EQ46: 0 | ER46: 0 | ES46: 0 | ET46: 0 | EU46: 0 | EV46: 0 | EW46: 0 | EX46: 0 | EY46: 0 | EZ46: 0 | FA46: 0 | FB46: 0 | FC46: 0 | FD46: 0 | FE46: 0 | FF46: 0 | FG46: 0 | FH46: 0 | FI46: 0 | FJ46: 0 | FK46: 0 | FL46: 0 | FM46: 0 | FN46: 0
V47: =IF(T47="",402,MATCH(T47,'Lookup Values'!$B$1:$B$402,0)) -> 402 | W47: =LOOKUP($V47,'Lookup Values'!$A$2:$A$402,'Lookup Values'!C$2:C$402) -> ERROR | X47: =LOOKUP($V47,'Lookup Values'!$A$2:$A$402,'Lookup Values'!D$2:D$402) -> ERROR | Y47: =LOOKUP($V47,'Lookup Values'!$A$2:$A$402,'Lookup Values'!E$2:E$402) -> ERROR | Z47: =LOOKUP($V47,'Lookup Values'!$A$2:$A$402,'Lookup Values'!F$2:F$402) -> ERROR | AA47: =LOOKUP($V47,'Lookup Values'!$A$2:$A$402,'Lookup Values'!G$2:G$402) -> ERROR | AB47: =LOOKUP($V47,'Lookup Values'!$A$2:$A$402,'Lookup Values'!H$2:H$402) -> ERROR | AC47: =LOOKUP($V47,'Lookup Values'!$A$2:$A$402,'Lookup Values'!I$2:I$402) -> ERROR | AD47: =LOOKUP($V47,'Lookup Values'!$A$2:$A$402,'Lookup Values'!J$2:J$402) -> ERROR | AE47: =LOOKUP($V47,'Lookup Values'!$A$2:$A$402,'Lookup Values'!K$2:K$402) -> ERROR | AF47: =LOOKUP($V47,'Lookup Values'!$A$2:$A$402,'Lookup Values'!L$2:L$402) -> ERROR | AG47: =LOOKUP($V47,'Lookup Values'!$A$2:$A$402,'Lookup Values'!M$2:M$402) -> ERROR | AI47: 0 | AJ47: 0 | AK47: 0 | AL47: 0 | AM47: 0 | AN47: 0 | AO47: 0 | AP47: 0 | AQ47: 0 | AR47: 0 | AS47: 0 | AT47: 0 | AU47: 0 | AV47: 0 | AW47: 0 | AX47: 0 | AY47: 0 | AZ47: 0 | BA47: 0 | BB47: 0 | BC47: 0 | BD47: 0 | BE47: 0 | BF47: 0 | BG47: 0 | BH47: 0 | BI47: 0 | BJ47: 0 | BK47: 0 | BL47: 0 | BM47: 0 | BN47: 0 | BO47: 0 | BP47: 0 | BQ47: 0 | BR47: 0 | BS47: 0 | BT47: 0 | BU47: 0 | BV47: 0 | BW47: 0 | BX47: 0 | BY47: 0 | BZ47: 0 | CA47: 0 | CB47: 0 | CC47: 0 | CD47: 0 | CE47: 0 | CF47: 0 | CG47: 0 | CH47: 0 | CI47: 0 | CJ47: 0 | CK47: 0 | CL47: 0 | CM47: 0 | CN47: 0 | CO47: 0 | CP47: 0 | CQ47: 0 | CR47: 0 | CS47: 0 | CT47: 0 | CU47: 0 | CV47: 0 | CW47: 0 | CX47: 0 | CY47: 0 | CZ47: 0 | DA47: 0 | DB47: 0 | DC47: 0 | DD47: 0 | DE47: 0 | DF47: 0 | DG47: 0 | DH47: 0 | DI47: 0 | DJ47: 0 | DK47: 0 | DL47: 0 | DM47: 0 | DN47: 0 | DO47: 0 | DP47: 0 | DQ47: 0 | DR47: 0 | DS47: 0 | DT47: 0 | DU47: 0 | DV47: 0 | DW47: 0 | DX47: 0 | DY47: 0 | DZ47: 0 | EA47: 0 | EB47: 0 | EC47: 0 | ED47: 0 | EE47: 0 | EF47: 0 | EG47: 0 | EH47: 0 | EI47: 0 | EJ47: 0 | EK47: 0 | EL47: 0 | EM47: 0 | EN47: 0 | EO47: 0 | EP47: 0 | EQ47: 0 | ER47: 0 | ES47: 0 | ET47: 0 | EU47: 0 | EV47: 0 | EW47: 0 | EX47: 0 | EY47: 0 | EZ47: 0 | FA47: 0 | FB47: 0 | FC47: 0 | FD47: 0 | FE47: 0 | FF47: 0 | FG47: 0 | FH47: 0 | FI47: 0 | FJ47: 0 | FK47: 0 | FL47: 0 | FM47: 0 | FN47: 0
V48: =IF(T48="",402,MATCH(T48,'Lookup Values'!$B$1:$B$402,0)) -> 402 | W48: =LOOKUP($V48,'Lookup Values'!$A$2:$A$402,'Lookup Values'!C$2:C$402) -> ERROR | X48: =LOOKUP($V48,'Lookup Values'!$A$2:$A$402,'Lookup Values'!D$2:D$402) -> ERROR | Y48: =LOOKUP($V48,'Lookup Values'!$A$2:$A$402,'Lookup Values'!E$2:E$402) -> ERROR | Z48: =LOOKUP($V48,'Lookup Values'!$A$2:$A$402,'Lookup Values'!F$2:F$402) -> ERROR | AA48: =LOOKUP($V48,'Lookup Values'!$A$2:$A$402,'Lookup Values'!G$2:G$402) -> ERROR | AB48: =LOOKUP($V48,'Lookup Values'!$A$2:$A$402,'Lookup Values'!H$2:H$402) -> ERROR | AC48: =LOOKUP($V48,'Lookup Values'!$A$2:$A$402,'Lookup Values'!I$2:I$402) -> ERROR | AD48: =LOOKUP($V48,'Lookup Values'!$A$2:$A$402,'Lookup Values'!J$2:J$402) -> ERROR | AE48: =LOOKUP($V48,'Lookup Values'!$A$2:$A$402,'Lookup Values'!K$2:K$402) -> ERROR | AF48: =LOOKUP($V48,'Lookup Values'!$A$2:$A$402,'Lookup Values'!L$2:L$402) -> ERROR | AG48: =LOOKUP($V48,'Lookup Values'!$A$2:$A$402,'Lookup Values'!M$2:M$402) -> ERROR | AI48: 0 | AJ48: 0 | AK48: 0 | AL48: 0 | AM48: 0 | AN48: 0 | AO48: 0 | AP48: 0 | AQ48: 0 | AR48: 0 | AS48: 0 | AT48: 0 | AU48: 0 | AV48: 0 | AW48: 0 | AX48: 0 | AY48: 0 | AZ48: 0 | BA48: 0 | BB48: 0 | BC48: 0 | BD48: 0 | BE48: 0 | BF48: 0 | BG48: 0 | BH48: 0 | BI48: 0 | BJ48: 0 | BK48: 0 | BL48: 0 | BM48: 0 | BN48: 0 | BO48: 0 | BP48: 0 | BQ48: 0 | BR48: 0 | BS48: 0 | BT48: 0 | BU48: 0 | BV48: 0 | BW48: 0 | BX48: 0 | BY48: 0 | BZ48: 0 | CA48: 0 | CB48: 0 | CC48: 0 | CD48: 0 | CE48: 0 | CF48: 0 | CG48: 0 | CH48: 0 | CI48: 0 | CJ48: 0 | CK48: 0 | CL48: 0 | CM48: 0 | CN48: 0 | CO48: 0 | CP48: 0 | CQ48: 0 | CR48: 0 | CS48: 0 | CT48: 0 | CU48: 0 | CV48: 0 | CW48: 0 | CX48: 0 | CY48: 0 | CZ48: 0 | DA48: 0 | DB48: 0 | DC48: 0 | DD48: 0 | DE48: 0 | DF48: 0 | DG48: 0 | DH48: 0 | DI48: 0 | DJ48: 0 | DK48: 0 | DL48: 0 | DM48: 0 | DN48: 0 | DO48: 0 | DP48: 0 | DQ48: 0 | DR48: 0 | DS48: 0 | DT48: 0 | DU48: 0 | DV48: 0 | DW48: 0 | DX48: 0 | DY48: 0 | DZ48: 0 | EA48: 0 | EB48: 0 | EC48: 0 | ED48: 0 | EE48: 0 | EF48: 0 | EG48: 0 | EH48: 0 | EI48: 0 | EJ48: 0 | EK48: 0 | EL48: 0 | EM48: 0 | EN48: 0 | EO48: 0 | EP48: 0 | EQ48: 0 | ER48: 0 | ES48: 0 | ET48: 0 | EU48: 0 | EV48: 0 | EW48: 0 | EX48: 0 | EY48: 0 | EZ48: 0 | FA48: 0 | FB48: 0 | FC48: 0 | FD48: 0 | FE48: 0 | FF48: 0 | FG48: 0 | FH48: 0 | FI48: 0 | FJ48: 0 | FK48: 0 | FL48: 0 | FM48: 0 | FN48: 0
V49: =IF(T49="",402,MATCH(T49,'Lookup Values'!$B$1:$B$402,0)) -> 402 | W49: =LOOKUP($V49,'Lookup Values'!$A$2:$A$402,'Lookup Values'!C$2:C$402) -> ERROR | X49: =LOOKUP($V49,'Lookup Values'!$A$2:$A$402,'Lookup Values'!D$2:D$402) -> ERROR | Y49: =LOOKUP($V49,'Lookup Values'!$A$2:$A$402,'Lookup Values'!E$2:E$402) -> ERROR | Z49: =LOOKUP($V49,'Lookup Values'!$A$2:$A$402,'Lookup Values'!F$2:F$402) -> ERROR | AA49: =LOOKUP($V49,'Lookup Values'!$A$2:$A$402,'Lookup Values'!G$2:G$402) -> ERROR | AB49: =LOOKUP($V49,'Lookup Values'!$A$2:$A$402,'Lookup Values'!H$2:H$402) -> ERROR | AC49: =LOOKUP($V49,'Lookup Values'!$A$2:$A$402,'Lookup Values'!I$2:I$402) -> ERROR | AD49: =LOOKUP($V49,'Lookup Values'!$A$2:$A$402,'Lookup Values'!J$2:J$402) -> ERROR | AE49: =LOOKUP($V49,'Lookup Values'!$A$2:$A$402,'Lookup Values'!K$2:K$402) -> ERROR | AF49: =LOOKUP($V49,'Lookup Values'!$A$2:$A$402,'Lookup Values'!L$2:L$402) -> ERROR | AG49: =LOOKUP($V49,'Lookup Values'!$A$2:$A$402,'Lookup Values'!M$2:M$402) -> ERROR | AI49: 0 | AJ49: 0 | AK49: 0 | AL49: 0 | AM49: 0 | AN49: 0 | AO49: 0 | AP49: 0 | AQ49: 0 | AR49: 0 | AS49: 0 | AT49: 0 | AU49: 0 | AV49: 0 | AW49: 0 | AX49: 0 | AY49: 0 | AZ49: 0 | BA49: 0 | BB49: 0 | BC49: 0 | BD49: 0 | BE49: 0 | BF49: 0 | BG49: 0 | BH49: 0 | BI49: 0 | BJ49: 0 | BK49: 0 | BL49: 0 | BM49: 0 | BN49: 0 | BO49: 0 | BP49: 0 | BQ49: 0 | BR49: 0 | BS49: 0 | BT49: 0 | BU49: 0 | BV49: 0 | BW49: 0 | BX49: 0 | BY49: 0 | BZ49: 0 | CA49: 0 | CB49: 0 | CC49: 0 | CD49: 0 | CE49: 0 | CF49: 0 | CG49: 0 | CH49: 0 | CI49: 0 | CJ49: 0 | CK49: 0 | CL49: 0 | CM49: 0 | CN49: 0 | CO49: 0 | CP49: 0 | CQ49: 0 | CR49: 0 | CS49: 0 | CT49: 0 | CU49: 0 | CV49: 0 | CW49: 0 | CX49: 0 | CY49: 0 | CZ49: 0 | DA49: 0 | DB49: 0 | DC49: 0 | DD49: 0 | DE49: 0 | DF49: 0 | DG49: 0 | DH49: 0 | DI49: 0 | DJ49: 0 | DK49: 0 | DL49: 0 | DM49: 0 | DN49: 0 | DO49: 0 | DP49: 0 | DQ49: 0 | DR49: 0 | DS49: 0 | DT49: 0 | DU49: 0 | DV49: 0 | DW49: 0 | DX49: 0 | DY49: 0 | DZ49: 0 | EA49: 0 | EB49: 0 | EC49: 0 | ED49: 0 | EE49: 0 | EF49: 0 | EG49: 0 | EH49: 0 | EI49: 0 | EJ49: 0 | EK49: 0 | EL49: 0 | EM49: 0 | EN49: 0 | EO49: 0 | EP49: 0 | EQ49: 0 | ER49: 0 | ES49: 0 | ET49: 0 | EU49: 0 | EV49: 0 | EW49: 0 | EX49: 0 | EY49: 0 | EZ49: 0 | FA49: 0 | FB49: 0 | FC49: 0 | FD49: 0 | FE49: 0 | FF49: 0 | FG49: 0 | FH49: 0 | FI49: 0 | FJ49: 0 | FK49: 0 | FL49: 0 | FM49: 0 | FN49: 0
V50: =IF(T50="",402,MATCH(T50,'Lookup Values'!$B$1:$B$402,0)) -> 402 | W50: =LOOKUP($V50,'Lookup Values'!$A$2:$A$402,'Lookup Values'!C$2:C$402) -> ERROR | X50: =LOOKUP($V50,'Lookup Values'!$A$2:$A$402,'Lookup Values'!D$2:D$402) -> ERROR | Y50: =LOOKUP($V50,'Lookup Values'!$A$2:$A$402,'Lookup Values'!E$2:E$402) -> ERROR | Z50: =LOOKUP($V50,'Lookup Values'!$A$2:$A$402,'Lookup Values'!F$2:F$402) -> ERROR | AA50: =LOOKUP($V50,'Lookup Values'!$A$2:$A$402,'Lookup Values'!G$2:G$402) -> ERROR | AB50: =LOOKUP($V50,'Lookup Values'!$A$2:$A$402,'Lookup Values'!H$2:H$402) -> ERROR | AC50: =LOOKUP($V50,'Lookup Values'!$A$2:$A$402,'Lookup Values'!I$2:I$402) -> ERROR | AD50: =LOOKUP($V50,'Lookup Values'!$A$2:$A$402,'Lookup Values'!J$2:J$402) -> ERROR | AE50: =LOOKUP($V50,'Lookup Values'!$A$2:$A$402,'Lookup Values'!K$2:K$402) -> ERROR | AF50: =LOOKUP($V50,'Lookup Values'!$A$2:$A$402,'Lookup Values'!L$2:L$402) -> ERROR | AG50: =LOOKUP($V50,'Lookup Values'!$A$2:$A$402,'Lookup Values'!M$2:M$402) -> ERROR | AI50: 0 | AJ50: 0 | AK50: 0 | AL50: 0 | AM50: 0 | AN50: 0 | AO50: 0 | AP50: 0 | AQ50: 0 | AR50: 0 | AS50: 0 | AT50: 0 | AU50: 0 | AV50: 0 | AW50: 0 | AX50: 0 | AY50: 0 | AZ50: 0 | BA50: 0 | BB50: 0 | BC50: 0 | BD50: 0 | BE50: 0 | BF50: 0 | BG50: 0 | BH50: 0 | BI50: 0 | BJ50: 0 | BK50: 0 | BL50: 0 | BM50: 0 | BN50: 0 | BO50: 0 | BP50: 0 | BQ50: 0 | BR50: 0 | BS50: 0 | BT50: 0 | BU50: 0 | BV50: 0 | BW50: 0 | BX50: 0 | BY50: 0 | BZ50: 0 | CA50: 0 | CB50: 0 | CC50: 0 | CD50: 0 | CE50: 0 | CF50: 0 | CG50: 0 | CH50: 0 | CI50: 0 | CJ50: 0 | CK50: 0 | CL50: 0 | CM50: 0 | CN50: 0 | CO50: 0 | CP50: 0 | CQ50: 0 | CR50: 0 | CS50: 0 | CT50: 0 | CU50: 0 | CV50: 0 | CW50: 0 | CX50: 0 | CY50: 0 | CZ50: 0 | DA50: 0 | DB50: 0 | DC50: 0 | DD50: 0 | DE50: 0 | DF50: 0 | DG50: 0 | DH50: 0 | DI50: 0 | DJ50: 0 | DK50: 0 | DL50: 0 | DM50: 0 | DN50: 0 | DO50: 0 | DP50: 0 | DQ50: 0 | DR50: 0 | DS50: 0 | DT50: 0 | DU50: 0 | DV50: 0 | DW50: 0 | DX50: 0 | DY50: 0 | DZ50: 0 | EA50: 0 | EB50: 0 | EC50: 0 | ED50: 0 | EE50: 0 | EF50: 0 | EG50: 0 | EH50: 0 | EI50: 0 | EJ50: 0 | EK50: 0 | EL50: 0 | EM50: 0 | EN50: 0 | EO50: 0 | EP50: 0 | EQ50: 0 | ER50: 0 | ES50: 0 | ET50: 0 | EU50: 0 | EV50: 0 | EW50: 0 | EX50: 0 | EY50: 0 | EZ50: 0 | FA50: 0 | FB50: 0 | FC50: 0 | FD50: 0 | FE50: 0 | FF50: 0 | FG50: 0 | FH50: 0 | FI50: 0 | FJ50: 0 | FK50: 0 | FL50: 0 | FM50: 0 | FN50: 0
V51: =IF(T51="",402,MATCH(T51,'Lookup Values'!$B$1:$B$402,0)) -> 402 | W51: =LOOKUP($V51,'Lookup Values'!$A$2:$A$402,'Lookup Values'!C$2:C$402) -> ERROR | X51: =LOOKUP($V51,'Lookup Values'!$A$2:$A$402,'Lookup Values'!D$2:D$402) -> ERROR | Y51: =LOOKUP($V51,'Lookup Values'!$A$2:$A$402,'Lookup Values'!E$2:E$402) -> ERROR | Z51: =LOOKUP($V51,'Lookup Values'!$A$2:$A$402,'Lookup Values'!F$2:F$402) -> ERROR | AA51: =LOOKUP($V51,'Lookup Values'!$A$2:$A$402,'Lookup Values'!G$2:G$402) -> ERROR | AB51: =LOOKUP($V51,'Lookup Values'!$A$2:$A$402,'Lookup Values'!H$2:H$402) -> ERROR | AC51: =LOOKUP($V51,'Lookup Values'!$A$2:$A$402,'Lookup Values'!I$2:I$402) -> ERROR | AD51: =LOOKUP($V51,'Lookup Values'!$A$2:$A$402,'Lookup Values'!J$2:J$402) -> ERROR | AE51: =LOOKUP($V51,'Lookup Values'!$A$2:$A$402,'Lookup Values'!K$2:K$402) -> ERROR | AF51: =LOOKUP($V51,'Lookup Values'!$A$2:$A$402,'Lookup Values'!L$2:L$402) -> ERROR | AG51: =LOOKUP($V51,'Lookup Values'!$A$2:$A$402,'Lookup Values'!M$2:M$402) -> ERROR | AI51: 0 | AJ51: 0 | AK51: 0 | AL51: 0 | AM51: 0 | AN51: 0 | AO51: 0 | AP51: 0 | AQ51: 0 | AR51: 0 | AS51: 0 | AT51: 0 | AU51: 0 | AV51: 0 | AW51: 0 | AX51: 0 | AY51: 0 | AZ51: 0 | BA51: 0 | BB51: 0 | BC51: 0 | BD51: 0 | BE51: 0 | BF51: 0 | BG51: 0 | BH51: 0 | BI51: 0 | BJ51: 0 | BK51: 0 | BL51: 0 | BM51: 0 | BN51: 0 | BO51: 0 | BP51: 0 | BQ51: 0 | BR51: 0 | BS51: 0 | BT51: 0 | BU51: 0 | BV51: 0 | BW51: 0 | BX51: 0 | BY51: 0 | BZ51: 0 | CA51: 0 | CB51: 0 | CC51: 0 | CD51: 0 | CE51: 0 | CF51: 0 | CG51: 0 | CH51: 0 | CI51: 0 | CJ51: 0 | CK51: 0 | CL51: 0 | CM51: 0 | CN51: 0 | CO51: 0 | CP51: 0 | CQ51: 0 | CR51: 0 | CS51: 0 | CT51: 0 | CU51: 0 | CV51: 0 | CW51: 0 | CX51: 0 | CY51: 0 | CZ51: 0 | DA51: 0 | DB51: 0 | DC51: 0 | DD51: 0 | DE51: 0 | DF51: 0 | DG51: 0 | DH51: 0 | DI51: 0 | DJ51: 0 | DK51: 0 | DL51: 0 | DM51: 0 | DN51: 0 | DO51: 0 | DP51: 0 | DQ51: 0 | DR51: 0 | DS51: 0 | DT51: 0 | DU51: 0 | DV51: 0 | DW51: 0 | DX51: 0 | DY51: 0 | DZ51: 0 | EA51: 0 | EB51: 0 | EC51: 0 | ED51: 0 | EE51: 0 | EF51: 0 | EG51: 0 | EH51: 0 | EI51: 0 | EJ51: 0 | EK51: 0 | EL51: 0 | EM51: 0 | EN51: 0 | EO51: 0 | EP51: 0 | EQ51: 0 | ER51: 0 | ES51: 0 | ET51: 0 | EU51: 0 | EV51: 0 | EW51: 0 | EX51: 0 | EY51: 0 | EZ51: 0 | FA51: 0 | FB51: 0 | FC51: 0 | FD51: 0 | FE51: 0 | FF51: 0 | FG51: 0 | FH51: 0 | FI51: 0 | FJ51: 0 | FK51: 0 | FL51: 0 | FM51: 0 | FN51: 0
V52: =IF(T52="",402,MATCH(T52,'Lookup Values'!$B$1:$B$402,0)) -> 402 | W52: =LOOKUP($V52,'Lookup Values'!$A$2:$A$402,'Lookup Values'!C$2:C$402) -> ERROR | X52: =LOOKUP($V52,'Lookup Values'!$A$2:$A$402,'Lookup Values'!D$2:D$402) -> ERROR | Y52: =LOOKUP($V52,'Lookup Values'!$A$2:$A$402,'Lookup Values'!E$2:E$402) -> ERROR | Z52: =LOOKUP($V52,'Lookup Values'!$A$2:$A$402,'Lookup Values'!F$2:F$402) -> ERROR | AA52: =LOOKUP($V52,'Lookup Values'!$A$2:$A$402,'Lookup Values'!G$2:G$402) -> ERROR | AB52: =LOOKUP($V52,'Lookup Values'!$A$2:$A$402,'Lookup Values'!H$2:H$402) -> ERROR | AC52: =LOOKUP($V52,'Lookup Values'!$A$2:$A$402,'Lookup Values'!I$2:I$402) -> ERROR | AD52: =LOOKUP($V52,'Lookup Values'!$A$2:$A$402,'Lookup Values'!J$2:J$402) -> ERROR | AE52: =LOOKUP($V52,'Lookup Values'!$A$2:$A$402,'Lookup Values'!K$2:K$402) -> ERROR | AF52: =LOOKUP($V52,'Lookup Values'!$A$2:$A$402,'Lookup Values'!L$2:L$402) -> ERROR | AG52: =LOOKUP($V52,'Lookup Values'!$A$2:$A$402,'Lookup Values'!M$2:M$402) -> ERROR | AI52: 0 | AJ52: 0 | AK52: 0 | AL52: 0 | AM52: 0 | AN52: 0 | AO52: 0 | AP52: 0 | AQ52: 0 | AR52: 0 | AS52: 0 | AT52: 0 | AU52: 0 | AV52: 0 | AW52: 0 | AX52: 0 | AY52: 0 | AZ52: 0 | BA52: 0 | BB52: 0 | BC52: 0 | BD52: 0 | BE52: 0 | BF52: 0 | BG52: 0 | BH52: 0 | BI52: 0 | BJ52: 0 | BK52: 0 | BL52: 0 | BM52: 0 | BN52: 0 | BO52: 0 | BP52: 0 | BQ52: 0 | BR52: 0 | BS52: 0 | BT52: 0 | BU52: 0 | BV52: 0 | BW52: 0 | BX52: 0 | BY52: 0 | BZ52: 0 | CA52: 0 | CB52: 0 | CC52: 0 | CD52: 0 | CE52: 0 | CF52: 0 | CG52: 0 | CH52: 0 | CI52: 0 | CJ52: 0 | CK52: 0 | CL52: 0 | CM52: 0 | CN52: 0 | CO52: 0 | CP52: 0 | CQ52: 0 | CR52: 0 | CS52: 0 | CT52: 0 | CU52: 0 | CV52: 0 | CW52: 0 | CX52: 0 | CY52: 0 | CZ52: 0 | DA52: 0 | DB52: 0 | DC52: 0 | DD52: 0 | DE52: 0 | DF52: 0 | DG52: 0 | DH52: 0 | DI52: 0 | DJ52: 0 | DK52: 0 | DL52: 0 | DM52: 0 | DN52: 0 | DO52: 0 | DP52: 0 | DQ52: 0 | DR52: 0 | DS52: 0 | DT52: 0 | DU52: 0 | DV52: 0 | DW52: 0 | DX52: 0 | DY52: 0 | DZ52: 0 | EA52: 0 | EB52: 0 | EC52: 0 | ED52: 0 | EE52: 0 | EF52: 0 | EG52: 0 | EH52: 0 | EI52: 0 | EJ52: 0 | EK52: 0 | EL52: 0 | EM52: 0 | EN52: 0 | EO52: 0 | EP52: 0 | EQ52: 0 | ER52: 0 | ES52: 0 | ET52: 0 | EU52: 0 | EV52: 0 | EW52: 0 | EX52: 0 | EY52: 0 | EZ52: 0 | FA52: 0 | FB52: 0 | FC52: 0 | FD52: 0 | FE52: 0 | FF52: 0 | FG52: 0 | FH52: 0 | FI52: 0 | FJ52: 0 | FK52: 0 | FL52: 0 | FM52: 0 | FN52: 0
V53: =IF(T53="",402,MATCH(T53,'Lookup Values'!$B$1:$B$402,0)) -> 402 | W53: =LOOKUP($V53,'Lookup Values'!$A$2:$A$402,'Lookup Values'!C$2:C$402) -> ERROR | X53: =LOOKUP($V53,'Lookup Values'!$A$2:$A$402,'Lookup Values'!D$2:D$402) -> ERROR | Y53: =LOOKUP($V53,'Lookup Values'!$A$2:$A$402,'Lookup Values'!E$2:E$402) -> ERROR | Z53: =LOOKUP($V53,'Lookup Values'!$A$2:$A$402,'Lookup Values'!F$2:F$402) -> ERROR | AA53: =LOOKUP($V53,'Lookup Values'!$A$2:$A$402,'Lookup Values'!G$2:G$402) -> ERROR | AB53: =LOOKUP($V53,'Lookup Values'!$A$2:$A$402,'Lookup Values'!H$2:H$402) -> ERROR | AC53: =LOOKUP($V53,'Lookup Values'!$A$2:$A$402,'Lookup Values'!I$2:I$402) -> ERROR | AD53: =LOOKUP($V53,'Lookup Values'!$A$2:$A$402,'Lookup Values'!J$2:J$402) -> ERROR | AE53: =LOOKUP($V53,'Lookup Values'!$A$2:$A$402,'Lookup Values'!K$2:K$402) -> ERROR | AF53: =LOOKUP($V53,'Lookup Values'!$A$2:$A$402,'Lookup Values'!L$2:L$402) -> ERROR | AG53: =LOOKUP($V53,'Lookup Values'!$A$2:$A$402,'Lookup Values'!M$2:M$402) -> ERROR | AI53: 0 | AJ53: 0 | AK53: 0 | AL53: 0 | AM53: 0 | AN53: 0 | AO53: 0 | AP53: 0 | AQ53: 0 | AR53: 0 | AS53: 0 | AT53: 0 | AU53: 0 | AV53: 0 | AW53: 0 | AX53: 0 | AY53: 0 | AZ53: 0 | BA53: 0 | BB53: 0 | BC53: 0 | BD53: 0 | BE53: 0 | BF53: 0 | BG53: 0 | BH53: 0 | BI53: 0 | BJ53: 0 | BK53: 0 | BL53: 0 | BM53: 0 | BN53: 0 | BO53: 0 | BP53: 0 | BQ53: 0 | BR53: 0 | BS53: 0 | BT53: 0 | BU53: 0 | BV53: 0 | BW53: 0 | BX53: 0 | BY53: 0 | BZ53: 0 | CA53: 0 | CB53: 0 | CC53: 0 | CD53: 0 | CE53: 0 | CF53: 0 | CG53: 0 | CH53: 0 | CI53: 0 | CJ53: 0 | CK53: 0 | CL53: 0 | CM53: 0 | CN53: 0 | CO53: 0 | CP53: 0 | CQ53: 0 | CR53: 0 | CS53: 0 | CT53: 0 | CU53: 0 | CV53: 0 | CW53: 0 | CX53: 0 | CY53: 0 | CZ53: 0 | DA53: 0 | DB53: 0 | DC53: 0 | DD53: 0 | DE53: 0 | DF53: 0 | DG53: 0 | DH53: 0 | DI53: 0 | DJ53: 0 | DK53: 0 | DL53: 0 | DM53: 0 | DN53: 0 | DO53: 0 | DP53: 0 | DQ53: 0 | DR53: 0 | DS53: 0 | DT53: 0 | DU53: 0 | DV53: 0 | DW53: 0 | DX53: 0 | DY53: 0 | DZ53: 0 | EA53: 0 | EB53: 0 | EC53: 0 | ED53: 0 | EE53: 0 | EF53: 0 | EG53: 0 | EH53: 0 | EI53: 0 | EJ53: 0 | EK53: 0 | EL53: 0 | EM53: 0 | EN53: 0 | EO53: 0 | EP53: 0 | EQ53: 0 | ER53: 0 | ES53: 0 | ET53: 0 | EU53: 0 | EV53: 0 | EW53: 0 | EX53: 0 | EY53: 0 | EZ53: 0 | FA53: 0 | FB53: 0 | FC53: 0 | FD53: 0 | FE53: 0 | FF53: 0 | FG53: 0 | FH53: 0 | FI53: 0 | FJ53: 0 | FK53: 0 | FL53: 0 | FM53: 0 | FN53: 0
V54: =IF(T54="",402,MATCH(T54,'Lookup Values'!$B$1:$B$402,0)) -> 402 | W54: =LOOKUP($V54,'Lookup Values'!$A$2:$A$402,'Lookup Values'!C$2:C$402) -> ERROR | X54: =LOOKUP($V54,'Lookup Values'!$A$2:$A$402,'Lookup Values'!D$2:D$402) -> ERROR | Y54: =LOOKUP($V54,'Lookup Values'!$A$2:$A$402,'Lookup Values'!E$2:E$402) -> ERROR | Z54: =LOOKUP($V54,'Lookup Values'!$A$2:$A$402,'Lookup Values'!F$2:F$402) -> ERROR | AA54: =LOOKUP($V54,'Lookup Values'!$A$2:$A$402,'Lookup Values'!G$2:G$402) -> ERROR | AB54: =LOOKUP($V54,'Lookup Values'!$A$2:$A$402,'Lookup Values'!H$2:H$402) -> ERROR | AC54: =LOOKUP($V54,'Lookup Values'!$A$2:$A$402,'Lookup Values'!I$2:I$402) -> ERROR | AD54: =LOOKUP($V54,'Lookup Values'!$A$2:$A$402,'Lookup Values'!J$2:J$402) -> ERROR | AE54: =LOOKUP($V54,'Lookup Values'!$A$2:$A$402,'Lookup Values'!K$2:K$402) -> ERROR | AF54: =LOOKUP($V54,'Lookup Values'!$A$2:$A$402,'Lookup Values'!L$2:L$402) -> ERROR | AG54: =LOOKUP($V54,'Lookup Values'!$A$2:$A$402,'Lookup Values'!M$2:M$402) -> ERROR | AI54: 0 | AJ54: 0 | AK54: 0 | AL54: 0 | AM54: 0 | AN54: 0 | AO54: 0 | AP54: 0 | AQ54: 0 | AR54: 0 | AS54: 0 | AT54: 0 | AU54: 0 | AV54: 0 | AW54: 0 | AX54: 0 | AY54: 0 | AZ54: 0 | BA54: 0 | BB54: 0 | BC54: 0 | BD54: 0 | BE54: 0 | BF54: 0 | BG54: 0 | BH54: 0 | BI54: 0 | BJ54: 0 | BK54: 0 | BL54: 0 | BM54: 0 | BN54: 0 | BO54: 0 | BP54: 0 | BQ54: 0 | BR54: 0 | BS54: 0 | BT54: 0 | BU54: 0 | BV54: 0 | BW54: 0 | BX54: 0 | BY54: 0 | BZ54: 0 | CA54: 0 | CB54: 0 | CC54: 0 | CD54: 0 | CE54: 0 | CF54: 0 | CG54: 0 | CH54: 0 | CI54: 0 | CJ54: 0 | CK54: 0 | CL54: 0 | CM54: 0 | CN54: 0 | CO54: 0 | CP54: 0 | CQ54: 0 | CR54: 0 | CS54: 0 | CT54: 0 | CU54: 0 | CV54: 0 | CW54: 0 | CX54: 0 | CY54: 0 | CZ54: 0 | DA54: 0 | DB54: 0 | DC54: 0 | DD54: 0 | DE54: 0 | DF54: 0 | DG54: 0 | DH54: 0 | DI54: 0 | DJ54: 0 | DK54: 0 | DL54: 0 | DM54: 0 | DN54: 0 | DO54: 0 | DP54: 0 | DQ54: 0 | DR54: 0 | DS54: 0 | DT54: 0 | DU54: 0 | DV54: 0 | DW54: 0 | DX54: 0 | DY54: 0 | DZ54: 0 | EA54: 0 | EB54: 0 | EC54: 0 | ED54: 0 | EE54: 0 | EF54: 0 | EG54: 0 | EH54: 0 | EI54: 0 | EJ54: 0 | EK54: 0 | EL54: 0 | EM54: 0 | EN54: 0 | EO54: 0 | EP54: 0 | EQ54: 0 | ER54: 0 | ES54: 0 | ET54: 0 | EU54: 0 | EV54: 0 | EW54: 0 | EX54: 0 | EY54: 0 | EZ54: 0 | FA54: 0 | FB54: 0 | FC54: 0 | FD54: 0 | FE54: 0 | FF54: 0 | FG54: 0 | FH54: 0 | FI54: 0 | FJ54: 0 | FK54: 0 | FL54: 0 | FM54: 0 | FN54: 0
V55: =IF(T55="",402,MATCH(T55,'Lookup Values'!$B$1:$B$402,0)) -> 402 | W55: =LOOKUP($V55,'Lookup Values'!$A$2:$A$402,'Lookup Values'!C$2:C$402) -> ERROR | X55: =LOOKUP($V55,'Lookup Values'!$A$2:$A$402,'Lookup Values'!D$2:D$402) -> ERROR | Y55: =LOOKUP($V55,'Lookup Values'!$A$2:$A$402,'Lookup Values'!E$2:E$402) -> ERROR | Z55: =LOOKUP($V55,'Lookup Values'!$A$2:$A$402,'Lookup Values'!F$2:F$402) -> ERROR | AA55: =LOOKUP($V55,'Lookup Values'!$A$2:$A$402,'Lookup Values'!G$2:G$402) -> ERROR | AB55: =LOOKUP($V55,'Lookup Values'!$A$2:$A$402,'Lookup Values'!H$2:H$402) -> ERROR | AC55: =LOOKUP($V55,'Lookup Values'!$A$2:$A$402,'Lookup Values'!I$2:I$402) -> ERROR | AD55: =LOOKUP($V55,'Lookup Values'!$A$2:$A$402,'Lookup Values'!J$2:J$402) -> ERROR | AE55: =LOOKUP($V55,'Lookup Values'!$A$2:$A$402,'Lookup Values'!K$2:K$402) -> ERROR | AF55: =LOOKUP($V55,'Lookup Values'!$A$2:$A$402,'Lookup Values'!L$2:L$402) -> ERROR | AG55: =LOOKUP($V55,'Lookup Values'!$A$2:$A$402,'Lookup Values'!M$2:M$402) -> ERROR | AI55: 0 | AJ55: 0 | AK55: 0 | AL55: 0 | AM55: 0 | AN55: 0 | AO55: 0 | AP55: 0 | AQ55: 0 | AR55: 0 | AS55: 0 | AT55: 0 | AU55: 0 | AV55: 0 | AW55: 0 | AX55: 0 | AY55: 0 | AZ55: 0 | BA55: 0 | BB55: 0 | BC55: 0 | BD55: 0 | BE55: 0 | BF55: 0 | BG55: 0 | BH55: 0 | BI55: 0 | BJ55: 0 | BK55: 0 | BL55: 0 | BM55: 0 | BN55: 0 | BO55: 0 | BP55: 0 | BQ55: 0 | BR55: 0 | BS55: 0 | BT55: 0 | BU55: 0 | BV55: 0 | BW55: 0 | BX55: 0 | BY55: 0 | BZ55: 0 | CA55: 0 | CB55: 0 | CC55: 0 | CD55: 0 | CE55: 0 | CF55: 0 | CG55: 0 | CH55: 0 | CI55: 0 | CJ55: 0 | CK55: 0 | CL55: 0 | CM55: 0 | CN55: 0 | CO55: 0 | CP55: 0 | CQ55: 0 | CR55: 0 | CS55: 0 | CT55: 0 | CU55: 0 | CV55: 0 | CW55: 0 | CX55: 0 | CY55: 0 | CZ55: 0 | DA55: 0 | DB55: 0 | DC55: 0 | DD55: 0 | DE55: 0 | DF55: 0 | DG55: 0 | DH55: 0 | DI55: 0 | DJ55: 0 | DK55: 0 | DL55: 0 | DM55: 0 | DN55: 0 | DO55: 0 | DP55: 0 | DQ55: 0 | DR55: 0 | DS55: 0 | DT55: 0 | DU55: 0 | DV55: 0 | DW55: 0 | DX55: 0 | DY55: 0 | DZ55: 0 | EA55: 0 | EB55: 0 | EC55: 0 | ED55: 0 | EE55: 0 | EF55: 0 | EG55: 0 | EH55: 0 | EI55: 0 | EJ55: 0 | EK55: 0 | EL55: 0 | EM55: 0 | EN55: 0 | EO55: 0 | EP55: 0 | EQ55: 0 | ER55: 0 | ES55: 0 | ET55: 0 | EU55: 0 | EV55: 0 | EW55: 0 | EX55: 0 | EY55: 0 | EZ55: 0 | FA55: 0 | FB55: 0 | FC55: 0 | FD55: 0 | FE55: 0 | FF55: 0 | FG55: 0 | FH55: 0 | FI55: 0 | FJ55: 0 | FK55: 0 | FL55: 0 | FM55: 0 | FN55: 0
V56: =IF(T56="",402,MATCH(T56,'Lookup Values'!$B$1:$B$402,0)) -> 402 | W56: =LOOKUP($V56,'Lookup Values'!$A$2:$A$402,'Lookup Values'!C$2:C$402) -> ERROR | X56: =LOOKUP($V56,'Lookup Values'!$A$2:$A$402,'Lookup Values'!D$2:D$402) -> ERROR | Y56: =LOOKUP($V56,'Lookup Values'!$A$2:$A$402,'Lookup Values'!E$2:E$402) -> ERROR | Z56: =LOOKUP($V56,'Lookup Values'!$A$2:$A$402,'Lookup Values'!F$2:F$402) -> ERROR | AA56: =LOOKUP($V56,'Lookup Values'!$A$2:$A$402,'Lookup Values'!G$2:G$402) -> ERROR | AB56: =LOOKUP($V56,'Lookup Values'!$A$2:$A$402,'Lookup Values'!H$2:H$402) -> ERROR | AC56: =LOOKUP($V56,'Lookup Values'!$A$2:$A$402,'Lookup Values'!I$2:I$402) -> ERROR | AD56: =LOOKUP($V56,'Lookup Values'!$A$2:$A$402,'Lookup Values'!J$2:J$402) -> ERROR | AE56: =LOOKUP($V56,'Lookup Values'!$A$2:$A$402,'Lookup Values'!K$2:K$402) -> ERROR | AF56: =LOOKUP($V56,'Lookup Values'!$A$2:$A$402,'Lookup Values'!L$2:L$402) -> ERROR | AG56: =LOOKUP($V56,'Lookup Values'!$A$2:$A$402,'Lookup Values'!M$2:M$402) -> ERROR | AI56: 0 | AJ56: 0 | AK56: 0 | AL56: 0 | AM56: 0 | AN56: 0 | AO56: 0 | AP56: 0 | AQ56: 0 | AR56: 0 | AS56: 0 | AT56: 0 | AU56: 0 | AV56: 0 | AW56: 0 | AX56: 0 | AY56: 0 | AZ56: 0 | BA56: 0 | BB56: 0 | BC56: 0 | BD56: 0 | BE56: 0 | BF56: 0 | BG56: 0 | BH56: 0 | BI56: 0 | BJ56: 0 | BK56: 0 | BL56: 0 | BM56: 0 | BN56: 0 | BO56: 0 | BP56: 0 | BQ56: 0 | BR56: 0 | BS56: 0 | BT56: 0 | BU56: 0 | BV56: 0 | BW56: 0 | BX56: 0 | BY56: 0 | BZ56: 0 | CA56: 0 | CB56: 0 | CC56: 0 | CD56: 0 | CE56: 0 | CF56: 0 | CG56: 0 | CH56: 0 | CI56: 0 | CJ56: 0 | CK56: 0 | CL56: 0 | CM56: 0 | CN56: 0 | CO56: 0 | CP56: 0 | CQ56: 0 | CR56: 0 | CS56: 0 | CT56: 0 | CU56: 0 | CV56: 0 | CW56: 0 | CX56: 0 | CY56: 0 | CZ56: 0 | DA56: 0 | DB56: 0 | DC56: 0 | DD56: 0 | DE56: 0 | DF56: 0 | DG56: 0 | DH56: 0 | DI56: 0 | DJ56: 0 | DK56: 0 | DL56: 0 | DM56: 0 | DN56: 0 | DO56: 0 | DP56: 0 | DQ56: 0 | DR56: 0 | DS56: 0 | DT56: 0 | DU56: 0 | DV56: 0 | DW56: 0 | DX56: 0 | DY56: 0 | DZ56: 0 | EA56: 0 | EB56: 0 | EC56: 0 | ED56: 0 | EE56: 0 | EF56: 0 | EG56: 0 | EH56: 0 | EI56: 0 | EJ56: 0 | EK56: 0 | EL56: 0 | EM56: 0 | EN56: 0 | EO56: 0 | EP56: 0 | EQ56: 0 | ER56: 0 | ES56: 0 | ET56: 0 | EU56: 0 | EV56: 0 | EW56: 0 | EX56: 0 | EY56: 0 | EZ56: 0 | FA56: 0 | FB56: 0 | FC56: 0 | FD56: 0 | FE56: 0 | FF56: 0 | FG56: 0 | FH56: 0 | FI56: 0 | FJ56: 0 | FK56: 0 | FL56: 0 | FM56: 0 | FN56: 0
V57: =IF(T57="",402,MATCH(T57,'Lookup Values'!$B$1:$B$402,0)) -> 402 | W57: =LOOKUP($V57,'Lookup Values'!$A$2:$A$402,'Lookup Values'!C$2:C$402) -> ERROR | X57: =LOOKUP($V57,'Lookup Values'!$A$2:$A$402,'Lookup Values'!D$2:D$402) -> ERROR | Y57: =LOOKUP($V57,'Lookup Values'!$A$2:$A$402,'Lookup Values'!E$2:E$402) -> ERROR | Z57: =LOOKUP($V57,'Lookup Values'!$A$2:$A$402,'Lookup Values'!F$2:F$402) -> ERROR | AA57: =LOOKUP($V57,'Lookup Values'!$A$2:$A$402,'Lookup Values'!G$2:G$402) -> ERROR | AB57: =LOOKUP($V57,'Lookup Values'!$A$2:$A$402,'Lookup Values'!H$2:H$402) -> ERROR | AC57: =LOOKUP($V57,'Lookup Values'!$A$2:$A$402,'Lookup Values'!I$2:I$402) -> ERROR | AD57: =LOOKUP($V57,'Lookup Values'!$A$2:$A$402,'Lookup Values'!J$2:J$402) -> ERROR | AE57: =LOOKUP($V57,'Lookup Values'!$A$2:$A$402,'Lookup Values'!K$2:K$402) -> ERROR | AF57: =LOOKUP($V57,'Lookup Values'!$A$2:$A$402,'Lookup Values'!L$2:L$402) -> ERROR | AG57: =LOOKUP($V57,'Lookup Values'!$A$2:$A$402,'Lookup Values'!M$2:M$402) -> ERROR | AI57: 0 | AJ57: 0 | AK57: 0 | AL57: 0 | AM57: 0 | AN57: 0 | AO57: 0 | AP57: 0 | AQ57: 0 | AR57: 0 | AS57: 0 | AT57: 0 | AU57: 0 | AV57: 0 | AW57: 0 | AX57: 0 | AY57: 0 | AZ57: 0 | BA57: 0 | BB57: 0 | BC57: 0 | BD57: 0 | BE57: 0 | BF57: 0 | BG57: 0 | BH57: 0 | BI57: 0 | BJ57: 0 | BK57: 0 | BL57: 0 | BM57: 0 | BN57: 0 | BO57: 0 | BP57: 0 | BQ57: 0 | BR57: 0 | BS57: 0 | BT57: 0 | BU57: 0 | BV57: 0 | BW57: 0 | BX57: 0 | BY57: 0 | BZ57: 0 | CA57: 0 | CB57: 0 | CC57: 0 | CD57: 0 | CE57: 0 | CF57: 0 | CG57: 0 | CH57: 0 | CI57: 0 | CJ57: 0 | CK57: 0 | CL57: 0 | CM57: 0 | CN57: 0 | CO57: 0 | CP57: 0 | CQ57: 0 | CR57: 0 | CS57: 0 | CT57: 0 | CU57: 0 | CV57: 0 | CW57: 0 | CX57: 0 | CY57: 0 | CZ57: 0 | DA57: 0 | DB57: 0 | DC57: 0 | DD57: 0 | DE57: 0 | DF57: 0 | DG57: 0 | DH57: 0 | DI57: 0 | DJ57: 0 | DK57: 0 | DL57: 0 | DM57: 0 | DN57: 0 | DO57: 0 | DP57: 0 | DQ57: 0 | DR57: 0 | DS57: 0 | DT57: 0 | DU57: 0 | DV57: 0 | DW57: 0 | DX57: 0 | DY57: 0 | DZ57: 0 | EA57: 0 | EB57: 0 | EC57: 0 | ED57: 0 | EE57: 0 | EF57: 0 | EG57: 0 | EH57: 0 | EI57: 0 | EJ57: 0 | EK57: 0 | EL57: 0 | EM57: 0 | EN57: 0 | EO57: 0 | EP57: 0 | EQ57: 0 | ER57: 0 | ES57: 0 | ET57: 0 | EU57: 0 | EV57: 0 | EW57: 0 | EX57: 0 | EY57: 0 | EZ57: 0 | FA57: 0 | FB57: 0 | FC57: 0 | FD57: 0 | FE57: 0 | FF57: 0 | FG57: 0 | FH57: 0 | FI57: 0 | FJ57: 0 | FK57: 0 | FL57: 0 | FM57: 0 | FN57: 0
V58: =IF(T58="",402,MATCH(T58,'Lookup Values'!$B$1:$B$402,0)) -> 402 | W58: =LOOKUP($V58,'Lookup Values'!$A$2:$A$402,'Lookup Values'!C$2:C$402) -> ERROR | X58: =LOOKUP($V58,'Lookup Values'!$A$2:$A$402,'Lookup Values'!D$2:D$402) -> ERROR | Y58: =LOOKUP($V58,'Lookup Values'!$A$2:$A$402,'Lookup Values'!E$2:E$402) -> ERROR | Z58: =LOOKUP($V58,'Lookup Values'!$A$2:$A$402,'Lookup Values'!F$2:F$402) -> ERROR | AA58: =LOOKUP($V58,'Lookup Values'!$A$2:$A$402,'Lookup Values'!G$2:G$402) -> ERROR | AB58: =LOOKUP($V58,'Lookup Values'!$A$2:$A$402,'Lookup Values'!H$2:H$402) -> ERROR | AC58: =LOOKUP($V58,'Lookup Values'!$A$2:$A$402,'Lookup Values'!I$2:I$402) -> ERROR | AD58: =LOOKUP($V58,'Lookup Values'!$A$2:$A$402,'Lookup Values'!J$2:J$402) -> ERROR | AE58: =LOOKUP($V58,'Lookup Values'!$A$2:$A$402,'Lookup Values'!K$2:K$402) -> ERROR | AF58: =LOOKUP($V58,'Lookup Values'!$A$2:$A$402,'Lookup Values'!L$2:L$402) -> ERROR | AG58: =LOOKUP($V58,'Lookup Values'!$A$2:$A$402,'Lookup Values'!M$2:M$402) -> ERROR | AI58: 0 | AJ58: 0 | AK58: 0 | AL58: 0 | AM58: 0 | AN58: 0 | AO58: 0 | AP58: 0 | AQ58: 0 | AR58: 0 | AS58: 0 | AT58: 0 | AU58: 0 | AV58: 0 | AW58: 0 | AX58: 0 | AY58: 0 | AZ58: 0 | BA58: 0 | BB58: 0 | BC58: 0 | BD58: 0 | BE58: 0 | BF58: 0 | BG58: 0 | BH58: 0 | BI58: 0 | BJ58: 0 | BK58: 0 | BL58: 0 | BM58: 0 | BN58: 0 | BO58: 0 | BP58: 0 | BQ58: 0 | BR58: 0 | BS58: 0 | BT58: 0 | BU58: 0 | BV58: 0 | BW58: 0 | BX58: 0 | BY58: 0 | BZ58: 0 | CA58: 0 | CB58: 0 | CC58: 0 | CD58: 0 | CE58: 0 | CF58: 0 | CG58: 0 | CH58: 0 | CI58: 0 | CJ58: 0 | CK58: 0 | CL58: 0 | CM58: 0 | CN58: 0 | CO58: 0 | CP58: 0 | CQ58: 0 | CR58: 0 | CS58: 0 | CT58: 0 | CU58: 0 | CV58: 0 | CW58: 0 | CX58: 0 | CY58: 0 | CZ58: 0 | DA58: 0 | DB58: 0 | DC58: 0 | DD58: 0 | DE58: 0 | DF58: 0 | DG58: 0 | DH58: 0 | DI58: 0 | DJ58: 0 | DK58: 0 | DL58: 0 | DM58: 0 | DN58: 0 | DO58: 0 | DP58: 0 | DQ58: 0 | DR58: 0 | DS58: 0 | DT58: 0 | DU58: 0 | DV58: 0 | DW58: 0 | DX58: 0 | DY58: 0 | DZ58: 0 | EA58: 0 | EB58: 0 | EC58: 0 | ED58: 0 | EE58: 0 | EF58: 0 | EG58: 0 | EH58: 0 | EI58: 0 | EJ58: 0 | EK58: 0 | EL58: 0 | EM58: 0 | EN58: 0 | EO58: 0 | EP58: 0 | EQ58: 0 | ER58: 0 | ES58: 0 | ET58: 0 | EU58: 0 | EV58: 0 | EW58: 0 | EX58: 0 | EY58: 0 | EZ58: 0 | FA58: 0 | FB58: 0 | FC58: 0 | FD58: 0 | FE58: 0 | FF58: 0 | FG58: 0 | FH58: 0 | FI58: 0 | FJ58: 0 | FK58: 0 | FL58: 0 | FM58: 0 | FN58: 0
V59: =IF(T59="",402,MATCH(T59,'Lookup Values'!$B$1:$B$402,0)) -> 402 | W59: =LOOKUP($V59,'Lookup Values'!$A$2:$A$402,'Lookup Values'!C$2:C$402) -> ERROR | X59: =LOOKUP($V59,'Lookup Values'!$A$2:$A$402,'Lookup Values'!D$2:D$402) -> ERROR | Y59: =LOOKUP($V59,'Lookup Values'!$A$2:$A$402,'Lookup Values'!E$2:E$402) -> ERROR | Z59: =LOOKUP($V59,'Lookup Values'!$A$2:$A$402,'Lookup Values'!F$2:F$402) -> ERROR | AA59: =LOOKUP($V59,'Lookup Values'!$A$2:$A$402,'Lookup Values'!G$2:G$402) -> ERROR | AB59: =LOOKUP($V59,'Lookup Values'!$A$2:$A$402,'Lookup Values'!H$2:H$402) -> ERROR | AC59: =LOOKUP($V59,'Lookup Values'!$A$2:$A$402,'Lookup Values'!I$2:I$402) -> ERROR | AD59: =LOOKUP($V59,'Lookup Values'!$A$2:$A$402,'Lookup Values'!J$2:J$402) -> ERROR | AE59: =LOOKUP($V59,'Lookup Values'!$A$2:$A$402,'Lookup Values'!K$2:K$402) -> ERROR | AF59: =LOOKUP($V59,'Lookup Values'!$A$2:$A$402,'Lookup Values'!L$2:L$402) -> ERROR | AG59: =LOOKUP($V59,'Lookup Values'!$A$2:$A$402,'Lookup Values'!M$2:M$402) -> ERROR | AI59: 0 | AJ59: 0 | AK59: 0 | AL59: 0 | AM59: 0 | AN59: 0 | AO59: 0 | AP59: 0 | AQ59: 0 | AR59: 0 | AS59: 0 | AT59: 0 | AU59: 0 | AV59: 0 | AW59: 0 | AX59: 0 | AY59: 0 | AZ59: 0 | BA59: 0 | BB59: 0 | BC59: 0 | BD59: 0 | BE59: 0 | BF59: 0 | BG59: 0 | BH59: 0 | BI59: 0 | BJ59: 0 | BK59: 0 | BL59: 0 | BM59: 0 | BN59: 0 | BO59: 0 | BP59: 0 | BQ59: 0 | BR59: 0 | BS59: 0 | BT59: 0 | BU59: 0 | BV59: 0 | BW59: 0 | BX59: 0 | BY59: 0 | BZ59: 0 | CA59: 0 | CB59: 0 | CC59: 0 | CD59: 0 | CE59: 0 | CF59: 0 | CG59: 0 | CH59: 0 | CI59: 0 | CJ59: 0 | CK59: 0 | CL59: 0 | CM59: 0 | CN59: 0 | CO59: 0 | CP59: 0 | CQ59: 0 | CR59: 0 | CS59: 0 | CT59: 0 | CU59: 0 | CV59: 0 | CW59: 0 | CX59: 0 | CY59: 0 | CZ59: 0 | DA59: 0 | DB59: 0 | DC59: 0 | DD59: 0 | DE59: 0 | DF59: 0 | DG59: 0 | DH59: 0 | DI59: 0 | DJ59: 0 | DK59: 0 | DL59: 0 | DM59: 0 | DN59: 0 | DO59: 0 | DP59: 0 | DQ59: 0 | DR59: 0 | DS59: 0 | DT59: 0 | DU59: 0 | DV59: 0 | DW59: 0 | DX59: 0 | DY59: 0 | DZ59: 0 | EA59: 0 | EB59: 0 | EC59: 0 | ED59: 0 | EE59: 0 | EF59: 0 | EG59: 0 | EH59: 0 | EI59: 0 | EJ59: 0 | EK59: 0 | EL59: 0 | EM59: 0 | EN59: 0 | EO59: 0 | EP59: 0 | EQ59: 0 | ER59: 0 | ES59: 0 | ET59: 0 | EU59: 0 | EV59: 0 | EW59: 0 | EX59: 0 | EY59: 0 | EZ59: 0 | FA59: 0 | FB59: 0 | FC59: 0 | FD59: 0 | FE59: 0 | FF59: 0 | FG59: 0 | FH59: 0 | FI59: 0 | FJ59: 0 | FK59: 0 | FL59: 0 | FM59: 0 | FN59: 0
V60: =IF(T60="",402,MATCH(T60,'Lookup Values'!$B$1:$B$402,0)) -> 402 | W60: =LOOKUP($V60,'Lookup Values'!$A$2:$A$402,'Lookup Values'!C$2:C$402) -> ERROR | X60: =LOOKUP($V60,'Lookup Values'!$A$2:$A$402,'Lookup Values'!D$2:D$402) -> ERROR | Y60: =LOOKUP($V60,'Lookup Values'!$A$2:$A$402,'Lookup Values'!E$2:E$402) -> ERROR | Z60: =LOOKUP($V60,'Lookup Values'!$A$2:$A$402,'Lookup Values'!F$2:F$402) -> ERROR | AA60: =LOOKUP($V60,'Lookup Values'!$A$2:$A$402,'Lookup Values'!G$2:G$402) -> ERROR | AB60: =LOOKUP($V60,'Lookup Values'!$A$2:$A$402,'Lookup Values'!H$2:H$402) -> ERROR | AC60: =LOOKUP($V60,'Lookup Values'!$A$2:$A$402,'Lookup Values'!I$2:I$402) -> ERROR | AD60: =LOOKUP($V60,'Lookup Values'!$A$2:$A$402,'Lookup Values'!J$2:J$402) -> ERROR | AE60: =LOOKUP($V60,'Lookup Values'!$A$2:$A$402,'Lookup Values'!K$2:K$402) -> ERROR | AF60: =LOOKUP($V60,'Lookup Values'!$A$2:$A$402,'Lookup Values'!L$2:L$402) -> ERROR | AG60: =LOOKUP($V60,'Lookup Values'!$A$2:$A$402,'Lookup Values'!M$2:M$402) -> ERROR | AI60: 0 | AJ60: 0 | AK60: 0 | AL60: 0 | AM60: 0 | AN60: 0 | AO60: 0 | AP60: 0 | AQ60: 0 | AR60: 0 | AS60: 0 | AT60: 0 | AU60: 0 | AV60: 0 | AW60: 0 | AX60: 0 | AY60: 0 | AZ60: 0 | BA60: 0 | BB60: 0 | BC60: 0 | BD60: 0 | BE60: 0 | BF60: 0 | BG60: 0 | BH60: 0 | BI60: 0 | BJ60: 0 | BK60: 0 | BL60: 0 | BM60: 0 | BN60: 0 | BO60: 0 | BP60: 0 | BQ60: 0 | BR60: 0 | BS60: 0 | BT60: 0 | BU60: 0 | BV60: 0 | BW60: 0 | BX60: 0 | BY60: 0 | BZ60: 0 | CA60: 0 | CB60: 0 | CC60: 0 | CD60: 0 | CE60: 0 | CF60: 0 | CG60: 0 | CH60: 0 | CI60: 0 | CJ60: 0 | CK60: 0 | CL60: 0 | CM60: 0 | CN60: 0 | CO60: 0 | CP60: 0 | CQ60: 0 | CR60: 0 | CS60: 0 | CT60: 0 | CU60: 0 | CV60: 0 | CW60: 0 | CX60: 0 | CY60: 0 | CZ60: 0 | DA60: 0 | DB60: 0 | DC60: 0 | DD60: 0 | DE60: 0 | DF60: 0 | DG60: 0 | DH60: 0 | DI60: 0 | DJ60: 0 | DK60: 0 | DL60: 0 | DM60: 0 | DN60: 0 | DO60: 0 | DP60: 0 | DQ60: 0 | DR60: 0 | DS60: 0 | DT60: 0 | DU60: 0 | DV60: 0 | DW60: 0 | DX60: 0 | DY60: 0 | DZ60: 0 | EA60: 0 | EB60: 0 | EC60: 0 | ED60: 0 | EE60: 0 | EF60: 0 | EG60: 0 | EH60: 0 | EI60: 0 | EJ60: 0 | EK60: 0 | EL60: 0 | EM60: 0 | EN60: 0 | EO60: 0 | EP60: 0 | EQ60: 0 | ER60: 0 | ES60: 0 | ET60: 0 | EU60: 0 | EV60: 0 | EW60: 0 | EX60: 0 | EY60: 0 | EZ60: 0 | FA60: 0 | FB60: 0 | FC60: 0 | FD60: 0 | FE60: 0 | FF60: 0 | FG60: 0 | FH60: 0 | FI60: 0 | FJ60: 0 | FK60: 0 | FL60: 0 | FM60: 0 | FN60: 0
V61: =IF(T61="",402,MATCH(T61,'Lookup Values'!$B$1:$B$402,0)) -> 402 | W61: =LOOKUP($V61,'Lookup Values'!$A$2:$A$402,'Lookup Values'!C$2:C$402) -> ERROR | X61: =LOOKUP($V61,'Lookup Values'!$A$2:$A$402,'Lookup Values'!D$2:D$402) -> ERROR | Y61: =LOOKUP($V61,'Lookup Values'!$A$2:$A$402,'Lookup Values'!E$2:E$402) -> ERROR | Z61: =LOOKUP($V61,'Lookup Values'!$A$2:$A$402,'Lookup Values'!F$2:F$402) -> ERROR | AA61: =LOOKUP($V61,'Lookup Values'!$A$2:$A$402,'Lookup Values'!G$2:G$402) -> ERROR | AB61: =LOOKUP($V61,'Lookup Values'!$A$2:$A$402,'Lookup Values'!H$2:H$402) -> ERROR | AC61: =LOOKUP($V61,'Lookup Values'!$A$2:$A$402,'Lookup Values'!I$2:I$402) -> ERROR | AD61: =LOOKUP($V61,'Lookup Values'!$A$2:$A$402,'Lookup Values'!J$2:J$402) -> ERROR | AE61: =LOOKUP($V61,'Lookup Values'!$A$2:$A$402,'Lookup Values'!K$2:K$402) -> ERROR | AF61: =LOOKUP($V61,'Lookup Values'!$A$2:$A$402,'Lookup Values'!L$2:L$402) -> ERROR | AG61: =LOOKUP($V61,'Lookup Values'!$A$2:$A$402,'Lookup Values'!M$2:M$402) -> ERROR | AI61: 0 | AJ61: 0 | AK61: 0 | AL61: 0 | AM61: 0 | AN61: 0 | AO61: 0 | AP61: 0 | AQ61: 0 | AR61: 0 | AS61: 0 | AT61: 0 | AU61: 0 | AV61: 0 | AW61: 0 | AX61: 0 | AY61: 0 | AZ61: 0 | BA61: 0 | BB61: 0 | BC61: 0 | BD61: 0 | BE61: 0 | BF61: 0 | BG61: 0 | BH61: 0 | BI61: 0 | BJ61: 0 | BK61: 0 | BL61: 0 | BM61: 0 | BN61: 0 | BO61: 0 | BP61: 0 | BQ61: 0 | BR61: 0 | BS61: 0 | BT61: 0 | BU61: 0 | BV61: 0 | BW61: 0 | BX61: 0 | BY61: 0 | BZ61: 0 | CA61: 0 | CB61: 0 | CC61: 0 | CD61: 0 | CE61: 0 | CF61: 0 | CG61: 0 | CH61: 0 | CI61: 0 | CJ61: 0 | CK61: 0 | CL61: 0 | CM61: 0 | CN61: 0 | CO61: 0 | CP61: 0 | CQ61: 0 | CR61: 0 | CS61: 0 | CT61: 0 | CU61: 0 | CV61: 0 | CW61: 0 | CX61: 0 | CY61: 0 | CZ61: 0 | DA61: 0 | DB61: 0 | DC61: 0 | DD61: 0 | DE61: 0 | DF61: 0 | DG61: 0 | DH61: 0 | DI61: 0 | DJ61: 0 | DK61: 0 | DL61: 0 | DM61: 0 | DN61: 0 | DO61: 0 | DP61: 0 | DQ61: 0 | DR61: 0 | DS61: 0 | DT61: 0 | DU61: 0 | DV61: 0 | DW61: 0 | DX61: 0 | DY61: 0 | DZ61: 0 | EA61: 0 | EB61: 0 | EC61: 0 | ED61: 0 | EE61: 0 | EF61: 0 | EG61: 0 | EH61: 0 | EI61: 0 | EJ61: 0 | EK61: 0 | EL61: 0 | EM61: 0 | EN61: 0 | EO61: 0 | EP61: 0 | EQ61: 0 | ER61: 0 | ES61: 0 | ET61: 0 | EU61: 0 | EV61: 0 | EW61: 0 | EX61: 0 | EY61: 0 | EZ61: 0 | FA61: 0 | FB61: 0 | FC61: 0 | FD61: 0 | FE61: 0 | FF61: 0 | FG61: 0 | FH61: 0 | FI61: 0 | FJ61: 0 | FK61: 0 | FL61: 0 | FM61: 0 | FN61: 0
V62: =IF(T62="",402,MATCH(T62,'Lookup Values'!$B$1:$B$402,0)) -> 402 | W62: =LOOKUP($V62,'Lookup Values'!$A$2:$A$402,'Lookup Values'!C$2:C$402) -> ERROR | X62: =LOOKUP($V62,'Lookup Values'!$A$2:$A$402,'Lookup Values'!D$2:D$402) -> ERROR | Y62: =LOOKUP($V62,'Lookup Values'!$A$2:$A$402,'Lookup Values'!E$2:E$402) -> ERROR | Z62: =LOOKUP($V62,'Lookup Values'!$A$2:$A$402,'Lookup Values'!F$2:F$402) -> ERROR | AA62: =LOOKUP($V62,'Lookup Values'!$A$2:$A$402,'Lookup Values'!G$2:G$402) -> ERROR | AB62: =LOOKUP($V62,'Lookup Values'!$A$2:$A$402,'Lookup Values'!H$2:H$402) -> ERROR | AC62: =LOOKUP($V62,'Lookup Values'!$A$2:$A$402,'Lookup Values'!I$2:I$402) -> ERROR | AD62: =LOOKUP($V62,'Lookup Values'!$A$2:$A$402,'Lookup Values'!J$2:J$402) -> ERROR | AE62: =LOOKUP($V62,'Lookup Values'!$A$2:$A$402,'Lookup Values'!K$2:K$402) -> ERROR | AF62: =LOOKUP($V62,'Lookup Values'!$A$2:$A$402,'Lookup Values'!L$2:L$402) -> ERROR | AG62: =LOOKUP($V62,'Lookup Values'!$A$2:$A$402,'Lookup Values'!M$2:M$402) -> ERROR | AI62: 0 | AJ62: 0 | AK62: 0 | AL62: 0 | AM62: 0 | AN62: 0 | AO62: 0 | AP62: 0 | AQ62: 0 | AR62: 0 | AS62: 0 | AT62: 0 | AU62: 0 | AV62: 0 | AW62: 0 | AX62: 0 | AY62: 0 | AZ62: 0 | BA62: 0 | BB62: 0 | BC62: 0 | BD62: 0 | BE62: 0 | BF62: 0 | BG62: 0 | BH62: 0 | BI62: 0 | BJ62: 0 | BK62: 0 | BL62: 0 | BM62: 0 | BN62: 0 | BO62: 0 | BP62: 0 | BQ62: 0 | BR62: 0 | BS62: 0 | BT62: 0 | BU62: 0 | BV62: 0 | BW62: 0 | BX62: 0 | BY62: 0 | BZ62: 0 | CA62: 0 | CB62: 0 | CC62: 0 | CD62: 0 | CE62: 0 | CF62: 0 | CG62: 0 | CH62: 0 | CI62: 0 | CJ62: 0 | CK62: 0 | CL62: 0 | CM62: 0 | CN62: 0 | CO62: 0 | CP62: 0 | CQ62: 0 | CR62: 0 | CS62: 0 | CT62: 0 | CU62: 0 | CV62: 0 | CW62: 0 | CX62: 0 | CY62: 0 | CZ62: 0 | DA62: 0 | DB62: 0 | DC62: 0 | DD62: 0 | DE62: 0 | DF62: 0 | DG62: 0 | DH62: 0 | DI62: 0 | DJ62: 0 | DK62: 0 | DL62: 0 | DM62: 0 | DN62: 0 | DO62: 0 | DP62: 0 | DQ62: 0 | DR62: 0 | DS62: 0 | DT62: 0 | DU62: 0 | DV62: 0 | DW62: 0 | DX62: 0 | DY62: 0 | DZ62: 0 | EA62: 0 | EB62: 0 | EC62: 0 | ED62: 0 | EE62: 0 | EF62: 0 | EG62: 0 | EH62: 0 | EI62: 0 | EJ62: 0 | EK62: 0 | EL62: 0 | EM62: 0 | EN62: 0 | EO62: 0 | EP62: 0 | EQ62: 0 | ER62: 0 | ES62: 0 | ET62: 0 | EU62: 0 | EV62: 0 | EW62: 0 | EX62: 0 | EY62: 0 | EZ62: 0 | FA62: 0 | FB62: 0 | FC62: 0 | FD62: 0 | FE62: 0 | FF62: 0 | FG62: 0 | FH62: 0 | FI62: 0 | FJ62: 0 | FK62: 0 | FL62: 0 | FM62: 0 | FN62: 0
V63: =IF(T63="",402,MATCH(T63,'Lookup Values'!$B$1:$B$402,0)) -> 402 | W63: =LOOKUP($V63,'Lookup Values'!$A$2:$A$402,'Lookup Values'!C$2:C$402) -> ERROR | X63: =LOOKUP($V63,'Lookup Values'!$A$2:$A$402,'Lookup Values'!D$2:D$402) -> ERROR | Y63: =LOOKUP($V63,'Lookup Values'!$A$2:$A$402,'Lookup Values'!E$2:E$402) -> ERROR | Z63: =LOOKUP($V63,'Lookup Values'!$A$2:$A$402,'Lookup Values'!F$2:F$402) -> ERROR | AA63: =LOOKUP($V63,'Lookup Values'!$A$2:$A$402,'Lookup Values'!G$2:G$402) -> ERROR | AB63: =LOOKUP($V63,'Lookup Values'!$A$2:$A$402,'Lookup Values'!H$2:H$402) -> ERROR | AC63: =LOOKUP($V63,'Lookup Values'!$A$2:$A$402,'Lookup Values'!I$2:I$402) -> ERROR | AD63: =LOOKUP($V63,'Lookup Values'!$A$2:$A$402,'Lookup Values'!J$2:J$402) -> ERROR | AE63: =LOOKUP($V63,'Lookup Values'!$A$2:$A$402,'Lookup Values'!K$2:K$402) -> ERROR | AF63: =LOOKUP($V63,'Lookup Values'!$A$2:$A$402,'Lookup Values'!L$2:L$402) -> ERROR | AG63: =LOOKUP($V63,'Lookup Values'!$A$2:$A$402,'Lookup Values'!M$2:M$402) -> ERROR | AI63: 0 | AJ63: 0 | AK63: 0 | AL63: 0 | AM63: 0 | AN63: 0 | AO63: 0 | AP63: 0 | AQ63: 0 | AR63: 0 | AS63: 0 | AT63: 0 | AU63: 0 | AV63: 0 | AW63: 0 | AX63: 0 | AY63: 0 | AZ63: 0 | BA63: 0 | BB63: 0 | BC63: 0 | BD63: 0 | BE63: 0 | BF63: 0 | BG63: 0 | BH63: 0 | BI63: 0 | BJ63: 0 | BK63: 0 | BL63: 0 | BM63: 0 | BN63: 0 | BO63: 0 | BP63: 0 | BQ63: 0 | BR63: 0 | BS63: 0 | BT63: 0 | BU63: 0 | BV63: 0 | BW63: 0 | BX63: 0 | BY63: 0 | BZ63: 0 | CA63: 0 | CB63: 0 | CC63: 0 | CD63: 0 | CE63: 0 | CF63: 0 | CG63: 0 | CH63: 0 | CI63: 0 | CJ63: 0 | CK63: 0 | CL63: 0 | CM63: 0 | CN63: 0 | CO63: 0 | CP63: 0 | CQ63: 0 | CR63: 0 | CS63: 0 | CT63: 0 | CU63: 0 | CV63: 0 | CW63: 0 | CX63: 0 | CY63: 0 | CZ63: 0 | DA63: 0 | DB63: 0 | DC63: 0 | DD63: 0 | DE63: 0 | DF63: 0 | DG63: 0 | DH63: 0 | DI63: 0 | DJ63: 0 | DK63: 0 | DL63: 0 | DM63: 0 | DN63: 0 | DO63: 0 | DP63: 0 | DQ63: 0 | DR63: 0 | DS63: 0 | DT63: 0 | DU63: 0 | DV63: 0 | DW63: 0 | DX63: 0 | DY63: 0 | DZ63: 0 | EA63: 0 | EB63: 0 | EC63: 0 | ED63: 0 | EE63: 0 | EF63: 0 | EG63: 0 | EH63: 0 | EI63: 0 | EJ63: 0 | EK63: 0 | EL63: 0 | EM63: 0 | EN63: 0 | EO63: 0 | EP63: 0 | EQ63: 0 | ER63: 0 | ES63: 0 | ET63: 0 | EU63: 0 | EV63: 0 | EW63: 0 | EX63: 0 | EY63: 0 | EZ63: 0 | FA63: 0 | FB63: 0 | FC63: 0 | FD63: 0 | FE63: 0 | FF63: 0 | FG63: 0 | FH63: 0 | FI63: 0 | FJ63: 0 | FK63: 0 | FL63: 0 | FM63: 0 | FN63: 0
V64: =IF(T64="",402,MATCH(T64,'Lookup Values'!$B$1:$B$402,0)) -> 402 | W64: =LOOKUP($V64,'Lookup Values'!$A$2:$A$402,'Lookup Values'!C$2:C$402) -> ERROR | X64: =LOOKUP($V64,'Lookup Values'!$A$2:$A$402,'Lookup Values'!D$2:D$402) -> ERROR | Y64: =LOOKUP($V64,'Lookup Values'!$A$2:$A$402,'Lookup Values'!E$2:E$402) -> ERROR | Z64: =LOOKUP($V64,'Lookup Values'!$A$2:$A$402,'Lookup Values'!F$2:F$402) -> ERROR | AA64: =LOOKUP($V64,'Lookup Values'!$A$2:$A$402,'Lookup Values'!G$2:G$402) -> ERROR | AB64: =LOOKUP($V64,'Lookup Values'!$A$2:$A$402,'Lookup Values'!H$2:H$402) -> ERROR | AC64: =LOOKUP($V64,'Lookup Values'!$A$2:$A$402,'Lookup Values'!I$2:I$402) -> ERROR | AD64: =LOOKUP($V64,'Lookup Values'!$A$2:$A$402,'Lookup Values'!J$2:J$402) -> ERROR | AE64: =LOOKUP($V64,'Lookup Values'!$A$2:$A$402,'Lookup Values'!K$2:K$402) -> ERROR | AF64: =LOOKUP($V64,'Lookup Values'!$A$2:$A$402,'Lookup Values'!L$2:L$402) -> ERROR | AG64: =LOOKUP($V64,'Lookup Values'!$A$2:$A$402,'Lookup Values'!M$2:M$402) -> ERROR | AI64: 0 | AJ64: 0 | AK64: 0 | AL64: 0 | AM64: 0 | AN64: 0 | AO64: 0 | AP64: 0 | AQ64: 0 | AR64: 0 | AS64: 0 | AT64: 0 | AU64: 0 | AV64: 0 | AW64: 0 | AX64: 0 | AY64: 0 | AZ64: 0 | BA64: 0 | BB64: 0 | BC64: 0 | BD64: 0 | BE64: 0 | BF64: 0 | BG64: 0 | BH64: 0 | BI64: 0 | BJ64: 0 | BK64: 0 | BL64: 0 | BM64: 0 | BN64: 0 | BO64: 0 | BP64: 0 | BQ64: 0 | BR64: 0 | BS64: 0 | BT64: 0 | BU64: 0 | BV64: 0 | BW64: 0 | BX64: 0 | BY64: 0 | BZ64: 0 | CA64: 0 | CB64: 0 | CC64: 0 | CD64: 0 | CE64: 0 | CF64: 0 | CG64: 0 | CH64: 0 | CI64: 0 | CJ64: 0 | CK64: 0 | CL64: 0 | CM64: 0 | CN64: 0 | CO64: 0 | CP64: 0 | CQ64: 0 | CR64: 0 | CS64: 0 | CT64: 0 | CU64: 0 | CV64: 0 | CW64: 0 | CX64: 0 | CY64: 0 | CZ64: 0 | DA64: 0 | DB64: 0 | DC64: 0 | DD64: 0 | DE64: 0 | DF64: 0 | DG64: 0 | DH64: 0 | DI64: 0 | DJ64: 0 | DK64: 0 | DL64: 0 | DM64: 0 | DN64: 0 | DO64: 0 | DP64: 0 | DQ64: 0 | DR64: 0 | DS64: 0 | DT64: 0 | DU64: 0 | DV64: 0 | DW64: 0 | DX64: 0 | DY64: 0 | DZ64: 0 | EA64: 0 | EB64: 0 | EC64: 0 | ED64: 0 | EE64: 0 | EF64: 0 | EG64: 0 | EH64: 0 | EI64: 0 | EJ64: 0 | EK64: 0 | EL64: 0 | EM64: 0 | EN64: 0 | EO64: 0 | EP64: 0 | EQ64: 0 | ER64: 0 | ES64: 0 | ET64: 0 | EU64: 0 | EV64: 0 | EW64: 0 | EX64: 0 | EY64: 0 | EZ64: 0 | FA64: 0 | FB64: 0 | FC64: 0 | FD64: 0 | FE64: 0 | FF64: 0 | FG64: 0 | FH64: 0 | FI64: 0 | FJ64: 0 | FK64: 0 | FL64: 0 | FM64: 0 | FN64: 0
V65: =IF(T65="",402,MATCH(T65,'Lookup Values'!$B$1:$B$402,0)) -> 402 | W65: =LOOKUP($V65,'Lookup Values'!$A$2:$A$402,'Lookup Values'!C$2:C$402) -> ERROR | X65: =LOOKUP($V65,'Lookup Values'!$A$2:$A$402,'Lookup Values'!D$2:D$402) -> ERROR | Y65: =LOOKUP($V65,'Lookup Values'!$A$2:$A$402,'Lookup Values'!E$2:E$402) -> ERROR | Z65: =LOOKUP($V65,'Lookup Values'!$A$2:$A$402,'Lookup Values'!F$2:F$402) -> ERROR | AA65: =LOOKUP($V65,'Lookup Values'!$A$2:$A$402,'Lookup Values'!G$2:G$402) -> ERROR | AB65: =LOOKUP($V65,'Lookup Values'!$A$2:$A$402,'Lookup Values'!H$2:H$402) -> ERROR | AC65: =LOOKUP($V65,'Lookup Values'!$A$2:$A$402,'Lookup Values'!I$2:I$402) -> ERROR | AD65: =LOOKUP($V65,'Lookup Values'!$A$2:$A$402,'Lookup Values'!J$2:J$402) -> ERROR | AE65: =LOOKUP($V65,'Lookup Values'!$A$2:$A$402,'Lookup Values'!K$2:K$402) -> ERROR | AF65: =LOOKUP($V65,'Lookup Values'!$A$2:$A$402,'Lookup Values'!L$2:L$402) -> ERROR | AG65: =LOOKUP($V65,'Lookup Values'!$A$2:$A$402,'Lookup Values'!M$2:M$402) -> ERROR | AI65: 0 | AJ65: 0 | AK65: 0 | AL65: 0 | AM65: 0 | AN65: 0 | AO65: 0 | AP65: 0 | AQ65: 0 | AR65: 0 | AS65: 0 | AT65: 0 | AU65: 0 | AV65: 0 | AW65: 0 | AX65: 0 | AY65: 0 | AZ65: 0 | BA65: 0 | BB65: 0 | BC65: 0 | BD65: 0 | BE65: 0 | BF65: 0 | BG65: 0 | BH65: 0 | BI65: 0 | BJ65: 0 | BK65: 0 | BL65: 0 | BM65: 0 | BN65: 0 | BO65: 0 | BP65: 0 | BQ65: 0 | BR65: 0 | BS65: 0 | BT65: 0 | BU65: 0 | BV65: 0 | BW65: 0 | BX65: 0 | BY65: 0 | BZ65: 0 | CA65: 0 | CB65: 0 | CC65: 0 | CD65: 0 | CE65: 0 | CF65: 0 | CG65: 0 | CH65: 0 | CI65: 0 | CJ65: 0 | CK65: 0 | CL65: 0 | CM65: 0 | CN65: 0 | CO65: 0 | CP65: 0 | CQ65: 0 | CR65: 0 | CS65: 0 | CT65: 0 | CU65: 0 | CV65: 0 | CW65: 0 | CX65: 0 | CY65: 0 | CZ65: 0 | DA65: 0 | DB65: 0 | DC65: 0 | DD65: 0 | DE65: 0 | DF65: 0 | DG65: 0 | DH65: 0 | DI65: 0 | DJ65: 0 | DK65: 0 | DL65: 0 | DM65: 0 | DN65: 0 | DO65: 0 | DP65: 0 | DQ65: 0 | DR65: 0 | DS65: 0 | DT65: 0 | DU65: 0 | DV65: 0 | DW65: 0 | DX65: 0 | DY65: 0 | DZ65: 0 | EA65: 0 | EB65: 0 | EC65: 0 | ED65: 0 | EE65: 0 | EF65: 0 | EG65: 0 | EH65: 0 | EI65: 0 | EJ65: 0 | EK65: 0 | EL65: 0 | EM65: 0 | EN65: 0 | EO65: 0 | EP65: 0 | EQ65: 0 | ER65: 0 | ES65: 0 | ET65: 0 | EU65: 0 | EV65: 0 | EW65: 0 | EX65: 0 | EY65: 0 | EZ65: 0 | FA65: 0 | FB65: 0 | FC65: 0 | FD65: 0 | FE65: 0 | FF65: 0 | FG65: 0 | FH65: 0 | FI65: 0 | FJ65: 0 | FK65: 0 | FL65: 0 | FM65: 0 | FN65: 0
V66: =IF(T66="",402,MATCH(T66,'Lookup Values'!$B$1:$B$402,0)) -> 402 | W66: =LOOKUP($V66,'Lookup Values'!$A$2:$A$402,'Lookup Values'!C$2:C$402) -> ERROR | X66: =LOOKUP($V66,'Lookup Values'!$A$2:$A$402,'Lookup Values'!D$2:D$402) -> ERROR | Y66: =LOOKUP($V66,'Lookup Values'!$A$2:$A$402,'Lookup Values'!E$2:E$402) -> ERROR | Z66: =LOOKUP($V66,'Lookup Values'!$A$2:$A$402,'Lookup Values'!F$2:F$402) -> ERROR | AA66: =LOOKUP($V66,'Lookup Values'!$A$2:$A$402,'Lookup Values'!G$2:G$402) -> ERROR | AB66: =LOOKUP($V66,'Lookup Values'!$A$2:$A$402,'Lookup Values'!H$2:H$402) -> ERROR | AC66: =LOOKUP($V66,'Lookup Values'!$A$2:$A$402,'Lookup Values'!I$2:I$402) -> ERROR | AD66: =LOOKUP($V66,'Lookup Values'!$A$2:$A$402,'Lookup Values'!J$2:J$402) -> ERROR | AE66: =LOOKUP($V66,'Lookup Values'!$A$2:$A$402,'Lookup Values'!K$2:K$402) -> ERROR | AF66: =LOOKUP($V66,'Lookup Values'!$A$2:$A$402,'Lookup Values'!L$2:L$402) -> ERROR | AG66: =LOOKUP($V66,'Lookup Values'!$A$2:$A$402,'Lookup Values'!M$2:M$402) -> ERROR | AI66: 0 | AJ66: 0 | AK66: 0 | AL66: 0 | AM66: 0 | AN66: 0 | AO66: 0 | AP66: 0 | AQ66: 0 | AR66: 0 | AS66: 0 | AT66: 0 | AU66: 0 | AV66: 0 | AW66: 0 | AX66: 0 | AY66: 0 | AZ66: 0 | BA66: 0 | BB66: 0 | BC66: 0 | BD66: 0 | BE66: 0 | BF66: 0 | BG66: 0 | BH66: 0 | BI66: 0 | BJ66: 0 | BK66: 0 | BL66: 0 | BM66: 0 | BN66: 0 | BO66: 0 | BP66: 0 | BQ66: 0 | BR66: 0 | BS66: 0 | BT66: 0 | BU66: 0 | BV66: 0 | BW66: 0 | BX66: 0 | BY66: 0 | BZ66: 0 | CA66: 0 | CB66: 0 | CC66: 0 | CD66: 0 | CE66: 0 | CF66: 0 | CG66: 0 | CH66: 0 | CI66: 0 | CJ66: 0 | CK66: 0 | CL66: 0 | CM66: 0 | CN66: 0 | CO66: 0 | CP66: 0 | CQ66: 0 | CR66: 0 | CS66: 0 | CT66: 0 | CU66: 0 | CV66: 0 | CW66: 0 | CX66: 0 | CY66: 0 | CZ66: 0 | DA66: 0 | DB66: 0 | DC66: 0 | DD66: 0 | DE66: 0 | DF66: 0 | DG66: 0 | DH66: 0 | DI66: 0 | DJ66: 0 | DK66: 0 | DL66: 0 | DM66: 0 | DN66: 0 | DO66: 0 | DP66: 0 | DQ66: 0 | DR66: 0 | DS66: 0 | DT66: 0 | DU66: 0 | DV66: 0 | DW66: 0 | DX66: 0 | DY66: 0 | DZ66: 0 | EA66: 0 | EB66: 0 | EC66: 0 | ED66: 0 | EE66: 0 | EF66: 0 | EG66: 0 | EH66: 0 | EI66: 0 | EJ66: 0 | EK66: 0 | EL66: 0 | EM66: 0 | EN66: 0 | EO66: 0 | EP66: 0 | EQ66: 0 | ER66: 0 | ES66: 0 | ET66: 0 | EU66: 0 | EV66: 0 | EW66: 0 | EX66: 0 | EY66: 0 | EZ66: 0 | FA66: 0 | FB66: 0 | FC66: 0 | FD66: 0 | FE66: 0 | FF66: 0 | FG66: 0 | FH66: 0 | FI66: 0 | FJ66: 0 | FK66: 0 | FL66: 0 | FM66: 0 | FN66: 0
V67: =IF(T67="",402,MATCH(T67,'Lookup Values'!$B$1:$B$402,0)) -> 402 | W67: =LOOKUP($V67,'Lookup Values'!$A$2:$A$402,'Lookup Values'!C$2:C$402) -> ERROR | X67: =LOOKUP($V67,'Lookup Values'!$A$2:$A$402,'Lookup Values'!D$2:D$402) -> ERROR | Y67: =LOOKUP($V67,'Lookup Values'!$A$2:$A$402,'Lookup Values'!E$2:E$402) -> ERROR | Z67: =LOOKUP($V67,'Lookup Values'!$A$2:$A$402,'Lookup Values'!F$2:F$402) -> ERROR | AA67: =LOOKUP($V67,'Lookup Values'!$A$2:$A$402,'Lookup Values'!G$2:G$402) -> ERROR | AB67: =LOOKUP($V67,'Lookup Values'!$A$2:$A$402,'Lookup Values'!H$2:H$402) -> ERROR | AC67: =LOOKUP($V67,'Lookup Values'!$A$2:$A$402,'Lookup Values'!I$2:I$402) -> ERROR | AD67: =LOOKUP($V67,'Lookup Values'!$A$2:$A$402,'Lookup Values'!J$2:J$402) -> ERROR | AE67: =LOOKUP($V67,'Lookup Values'!$A$2:$A$402,'Lookup Values'!K$2:K$402) -> ERROR | AF67: =LOOKUP($V67,'Lookup Values'!$A$2:$A$402,'Lookup Values'!L$2:L$402) -> ERROR | AG67: =LOOKUP($V67,'Lookup Values'!$A$2:$A$402,'Lookup Values'!M$2:M$402) -> ERROR | AI67: 0 | AJ67: 0 | AK67: 0 | AL67: 0 | AM67: 0 | AN67: 0 | AO67: 0 | AP67: 0 | AQ67: 0 | AR67: 0 | AS67: 0 | AT67: 0 | AU67: 0 | AV67: 0 | AW67: 0 | AX67: 0 | AY67: 0 | AZ67: 0 | BA67: 0 | BB67: 0 | BC67: 0 | BD67: 0 | BE67: 0 | BF67: 0 | BG67: 0 | BH67: 0 | BI67: 0 | BJ67: 0 | BK67: 0 | BL67: 0 | BM67: 0 | BN67: 0 | BO67: 0 | BP67: 0 | BQ67: 0 | BR67: 0 | BS67: 0 | BT67: 0 | BU67: 0 | BV67: 0 | BW67: 0 | BX67: 0 | BY67: 0 | BZ67: 0 | CA67: 0 | CB67: 0 | CC67: 0 | CD67: 0 | CE67: 0 | CF67: 0 | CG67: 0 | CH67: 0 | CI67: 0 | CJ67: 0 | CK67: 0 | CL67: 0 | CM67: 0 | CN67: 0 | CO67: 0 | CP67: 0 | CQ67: 0 | CR67: 0 | CS67: 0 | CT67: 0 | CU67: 0 | CV67: 0 | CW67: 0 | CX67: 0 | CY67: 0 | CZ67: 0 | DA67: 0 | DB67: 0 | DC67: 0 | DD67: 0 | DE67: 0 | DF67: 0 | DG67: 0 | DH67: 0 | DI67: 0 | DJ67: 0 | DK67: 0 | DL67: 0 | DM67: 0 | DN67: 0 | DO67: 0 | DP67: 0 | DQ67: 0 | DR67: 0 | DS67: 0 | DT67: 0 | DU67: 0 | DV67: 0 | DW67: 0 | DX67: 0 | DY67: 0 | DZ67: 0 | EA67: 0 | EB67: 0 | EC67: 0 | ED67: 0 | EE67: 0 | EF67: 0 | EG67: 0 | EH67: 0 | EI67: 0 | EJ67: 0 | EK67: 0 | EL67: 0 | EM67: 0 | EN67: 0 | EO67: 0 | EP67: 0 | EQ67: 0 | ER67: 0 | ES67: 0 | ET67: 0 | EU67: 0 | EV67: 0 | EW67: 0 | EX67: 0 | EY67: 0 | EZ67: 0 | FA67: 0 | FB67: 0 | FC67: 0 | FD67: 0 | FE67: 0 | FF67: 0 | FG67: 0 | FH67: 0 | FI67: 0 | FJ67: 0 | FK67: 0 | FL67: 0 | FM67: 0 | FN67: 0
V68: =IF(T68="",402,MATCH(T68,'Lookup Values'!$B$1:$B$402,0)) -> 402 | W68: =LOOKUP($V68,'Lookup Values'!$A$2:$A$402,'Lookup Values'!C$2:C$402) -> ERROR | X68: =LOOKUP($V68,'Lookup Values'!$A$2:$A$402,'Lookup Values'!D$2:D$402) -> ERROR | Y68: =LOOKUP($V68,'Lookup Values'!$A$2:$A$402,'Lookup Values'!E$2:E$402) -> ERROR | Z68: =LOOKUP($V68,'Lookup Values'!$A$2:$A$402,'Lookup Values'!F$2:F$402) -> ERROR | AA68: =LOOKUP($V68,'Lookup Values'!$A$2:$A$402,'Lookup Values'!G$2:G$402) -> ERROR | AB68: =LOOKUP($V68,'Lookup Values'!$A$2:$A$402,'Lookup Values'!H$2:H$402) -> ERROR | AC68: =LOOKUP($V68,'Lookup Values'!$A$2:$A$402,'Lookup Values'!I$2:I$402) -> ERROR | AD68: =LOOKUP($V68,'Lookup Values'!$A$2:$A$402,'Lookup Values'!J$2:J$402) -> ERROR | AE68: =LOOKUP($V68,'Lookup Values'!$A$2:$A$402,'Lookup Values'!K$2:K$402) -> ERROR | AF68: =LOOKUP($V68,'Lookup Values'!$A$2:$A$402,'Lookup Values'!L$2:L$402) -> ERROR | AG68: =LOOKUP($V68,'Lookup Values'!$A$2:$A$402,'Lookup Values'!M$2:M$402) -> ERROR | AI68: 0 | AJ68: 0 | AK68: 0 | AL68: 0 | AM68: 0 | AN68: 0 | AO68: 0 | AP68: 0 | AQ68: 0 | AR68: 0 | AS68: 0 | AT68: 0 | AU68: 0 | AV68: 0 | AW68: 0 | AX68: 0 | AY68: 0 | AZ68: 0 | BA68: 0 | BB68: 0 | BC68: 0 | BD68: 0 | BE68: 0 | BF68: 0 | BG68: 0 | BH68: 0 | BI68: 0 | BJ68: 0 | BK68: 0 | BL68: 0 | BM68: 0 | BN68: 0 | BO68: 0 | BP68: 0 | BQ68: 0 | BR68: 0 | BS68: 0 | BT68: 0 | BU68: 0 | BV68: 0 | BW68: 0 | BX68: 0 | BY68: 0 | BZ68: 0 | CA68: 0 | CB68: 0 | CC68: 0 | CD68: 0 | CE68: 0 | CF68: 0 | CG68: 0 | CH68: 0 | CI68: 0 | CJ68: 0 | CK68: 0 | CL68: 0 | CM68: 0 | CN68: 0 | CO68: 0 | CP68: 0 | CQ68: 0 | CR68: 0 | CS68: 0 | CT68: 0 | CU68: 0 | CV68: 0 | CW68: 0 | CX68: 0 | CY68: 0 | CZ68: 0 | DA68: 0 | DB68: 0 | DC68: 0 | DD68: 0 | DE68: 0 | DF68: 0 | DG68: 0 | DH68: 0 | DI68: 0 | DJ68: 0 | DK68: 0 | DL68: 0 | DM68: 0 | DN68: 0 | DO68: 0 | DP68: 0 | DQ68: 0 | DR68: 0 | DS68: 0 | DT68: 0 | DU68: 0 | DV68: 0 | DW68: 0 | DX68: 0 | DY68: 0 | DZ68: 0 | EA68: 0 | EB68: 0 | EC68: 0 | ED68: 0 | EE68: 0 | EF68: 0 | EG68: 0 | EH68: 0 | EI68: 0 | EJ68: 0 | EK68: 0 | EL68: 0 | EM68: 0 | EN68: 0 | EO68: 0 | EP68: 0 | EQ68: 0 | ER68: 0 | ES68: 0 | ET68: 0 | EU68: 0 | EV68: 0 | EW68: 0 | EX68: 0 | EY68: 0 | EZ68: 0 | FA68: 0 | FB68: 0 | FC68: 0 | FD68: 0 | FE68: 0 | FF68: 0 | FG68: 0 | FH68: 0 | FI68: 0 | FJ68: 0 | FK68: 0 | FL68: 0 | FM68: 0 | FN68: 0
V69: =IF(T69="",402,MATCH(T69,'Lookup Values'!$B$1:$B$402,0)) -> 402 | W69: =LOOKUP($V69,'Lookup Values'!$A$2:$A$402,'Lookup Values'!C$2:C$402) -> ERROR | X69: =LOOKUP($V69,'Lookup Values'!$A$2:$A$402,'Lookup Values'!D$2:D$402) -> ERROR | Y69: =LOOKUP($V69,'Lookup Values'!$A$2:$A$402,'Lookup Values'!E$2:E$402) -> ERROR | Z69: =LOOKUP($V69,'Lookup Values'!$A$2:$A$402,'Lookup Values'!F$2:F$402) -> ERROR | AA69: =LOOKUP($V69,'Lookup Values'!$A$2:$A$402,'Lookup Values'!G$2:G$402) -> ERROR | AB69: =LOOKUP($V69,'Lookup Values'!$A$2:$A$402,'Lookup Values'!H$2:H$402) -> ERROR | AC69: =LOOKUP($V69,'Lookup Values'!$A$2:$A$402,'Lookup Values'!I$2:I$402) -> ERROR | AD69: =LOOKUP($V69,'Lookup Values'!$A$2:$A$402,'Lookup Values'!J$2:J$402) -> ERROR | AE69: =LOOKUP($V69,'Lookup Values'!$A$2:$A$402,'Lookup Values'!K$2:K$402) -> ERROR | AF69: =LOOKUP($V69,'Lookup Values'!$A$2:$A$402,'Lookup Values'!L$2:L$402) -> ERROR | AG69: =LOOKUP($V69,'Lookup Values'!$A$2:$A$402,'Lookup Values'!M$2:M$402) -> ERROR | AI69: 0 | AJ69: 0 | AK69: 0 | AL69: 0 | AM69: 0 | AN69: 0 | AO69: 0 | AP69: 0 | AQ69: 0 | AR69: 0 | AS69: 0 | AT69: 0 | AU69: 0 | AV69: 0 | AW69: 0 | AX69: 0 | AY69: 0 | AZ69: 0 | BA69: 0 | BB69: 0 | BC69: 0 | BD69: 0 | BE69: 0 | BF69: 0 | BG69: 0 | BH69: 0 | BI69: 0 | BJ69: 0 | BK69: 0 | BL69: 0 | BM69: 0 | BN69: 0 | BO69: 0 | BP69: 0 | BQ69: 0 | BR69: 0 | BS69: 0 | BT69: 0 | BU69: 0 | BV69: 0 | BW69: 0 | BX69: 0 | BY69: 0 | BZ69: 0 | CA69: 0 | CB69: 0 | CC69: 0 | CD69: 0 | CE69: 0 | CF69: 0 | CG69: 0 | CH69: 0 | CI69: 0 | CJ69: 0 | CK69: 0 | CL69: 0 | CM69: 0 | CN69: 0 | CO69: 0 | CP69: 0 | CQ69: 0 | CR69: 0 | CS69: 0 | CT69: 0 | CU69: 0 | CV69: 0 | CW69: 0 | CX69: 0 | CY69: 0 | CZ69: 0 | DA69: 0 | DB69: 0 | DC69: 0 | DD69: 0 | DE69: 0 | DF69: 0 | DG69: 0 | DH69: 0 | DI69: 0 | DJ69: 0 | DK69: 0 | DL69: 0 | DM69: 0 | DN69: 0 | DO69: 0 | DP69: 0 | DQ69: 0 | DR69: 0 | DS69: 0 | DT69: 0 | DU69: 0 | DV69: 0 | DW69: 0 | DX69: 0 | DY69: 0 | DZ69: 0 | EA69: 0 | EB69: 0 | EC69: 0 | ED69: 0 | EE69: 0 | EF69: 0 | EG69: 0 | EH69: 0 | EI69: 0 | EJ69: 0 | EK69: 0 | EL69: 0 | EM69: 0 | EN69: 0 | EO69: 0 | EP69: 0 | EQ69: 0 | ER69: 0 | ES69: 0 | ET69: 0 | EU69: 0 | EV69: 0 | EW69: 0 | EX69: 0 | EY69: 0 | EZ69: 0 | FA69: 0 | FB69: 0 | FC69: 0 | FD69: 0 | FE69: 0 | FF69: 0 | FG69: 0 | FH69: 0 | FI69: 0 | FJ69: 0 | FK69: 0 | FL69: 0 | FM69: 0 | FN69: 0
V70: =IF(T70="",402,MATCH(T70,'Lookup Values'!$B$1:$B$402,0)) -> 402 | W70: =LOOKUP($V70,'Lookup Values'!$A$2:$A$402,'Lookup Values'!C$2:C$402) -> ERROR | X70: =LOOKUP($V70,'Lookup Values'!$A$2:$A$402,'Lookup Values'!D$2:D$402) -> ERROR | Y70: =LOOKUP($V70,'Lookup Values'!$A$2:$A$402,'Lookup Values'!E$2:E$402) -> ERROR | Z70: =LOOKUP($V70,'Lookup Values'!$A$2:$A$402,'Lookup Values'!F$2:F$402) -> ERROR | AA70: =LOOKUP($V70,'Lookup Values'!$A$2:$A$402,'Lookup Values'!G$2:G$402) -> ERROR | AB70: =LOOKUP($V70,'Lookup Values'!$A$2:$A$402,'Lookup Values'!H$2:H$402) -> ERROR | AC70: =LOOKUP($V70,'Lookup Values'!$A$2:$A$402,'Lookup Values'!I$2:I$402) -> ERROR | AD70: =LOOKUP($V70,'Lookup Values'!$A$2:$A$402,'Lookup Values'!J$2:J$402) -> ERROR | AE70: =LOOKUP($V70,'Lookup Values'!$A$2:$A$402,'Lookup Values'!K$2:K$402) -> ERROR | AF70: =LOOKUP($V70,'Lookup Values'!$A$2:$A$402,'Lookup Values'!L$2:L$402) -> ERROR | AG70: =LOOKUP($V70,'Lookup Values'!$A$2:$A$402,'Lookup Values'!M$2:M$402) -> ERROR | AI70: =IF(T70="TYP. NO. 1",D70,0) -> 0 | AJ70: =IF(T70="TYP. NO. 2",D70,0) -> 0 | AK70: =IF(T70="TRANS. TYP. NO. 1 TO TYP. NO. 2",D70,IF(T70="TRANS. TYP. NO. 2 TO TYP. NO. 1",D70,0)) -> 0 | AL70: =IF(T70="TYP. NO. 3",D70,0) -> 0 | AM70: =IF(T70="TRANS. TYP. NO. 1 TO TYP. NO. 3",D70,IF(T70="TRANS. TYP. NO. 3 TO TYP. NO. 1",D70,0)) -> 0 | AN70: =IF(T70="TRANS. TYP. NO. 2 TO TYP. NO. 3",D70,IF(T70="TRANS. TYP. NO. 3 TO TYP. NO. 2",D70,0)) -> 0 | AO70: =IF(T70="TYP. NO. 4",D70,0) -> 0 | AP70: =IF(T70="TRANS. TYP. NO. 1 TO TYP. NO. 4",D70,IF(T70="TRANS. TYP. NO. 4 TO TYP. NO. 1",D70,0)) -> 0 | AQ70: =IF(T70="TRANS. TYP. NO. 2 TO TYP. NO. 4",D70,IF(T70="TRANS. TYP. NO. 4 TO TYP. NO. 2",D70,0)) -> 0 | AR70: =IF(T70="TRANS. TYP. NO. 3 TO TYP. NO. 4",D70,IF(T70="TRANS. TYP. NO. 4 TO TYP. NO. 3",D70,0)) -> 0 | AS70: =IF(T70="TYP. NO. 5",D70,0) -> 0 | AT70: =IF(T70="TRANS. TYP. NO. 1 TO TYP. NO. 5",D70,IF(T70="TRANS. TYP. NO. 5 TO TYP. NO. 1",D70,0)) -> 0 | AU70: =IF(T70="TRANS. TYP. NO. 2 TO TYP. NO. 5",D70,IF(T70="TRANS. TYP. NO. 5 TO TYP. NO. 2",D70,0)) -> 0 | AV70: =IF(T70="TRANS. TYP. NO. 3 TO TYP. NO. 5",D70,IF(T70="TRANS. TYP. NO. 5 TO TYP. NO. 3",D70,0)) -> 0 | AW70: =IF(T70="TRANS. TYP. NO. 4 TO TYP. NO. 5",D70,IF(T70="TRANS. TYP. NO. 5 TO TYP. NO. 4",D70,0)) -> 0 | AX70: =IF(T70="TYP. NO. 6",D70,0) -> 0 | AY70: =IF(T70="TRANS. TYP. NO. 1 TO TYP. NO. 6",D70,IF(T70="TRANS. TYP. NO. 6 TO TYP. NO. 1",D70,0)) -> 0 | AZ70: =IF(T70="TRANS. TYP. NO. 2 TO TYP. NO. 6",D70,IF(T70="TRANS. TYP. NO. 6 TO TYP. NO. 2",D70,0)) -> 0 | BA70: =IF(T70="TRANS. TYP. NO. 3 TO TYP. NO. 6",D70,IF(T70="TRANS. TYP. NO. 6 TO TYP. NO. 3",D70,0)) -> 0 | BB70: =IF(T70="TRANS. TYP. NO. 4 TO TYP. NO. 6",D70,IF(T70="TRANS. TYP. NO. 6 TO TYP. NO. 4",D70,0)) -> 0 | BC70: =IF(T70="TRANS. TYP. NO. 5 TO TYP. NO. 6",D70,IF(T70="TRANS. TYP. NO. 6 TO TYP. NO. 5",D70,0)) -> 0 | BD70: =IF(T70="TYP. NO. 7",D70,0) -> 0 | BE70: =IF(T70="TRANS. TYP. NO. 1 TO TYP. NO. 7",D70,IF(T70="TRANS. TYP. NO. 7 TO TYP. NO. 1",D70,0)) -> 0 | BF70: =IF(T70="TRANS. TYP. NO. 2 TO TYP. NO. 7",D70,IF(T70="TRANS. TYP. NO. 7 TO TYP. NO. 2",D70,0)) -> 0 | BG70: =IF(T70="TRANS. TYP. NO. 3 TO TYP. NO. 7",D70,IF(T70="TRANS. TYP. NO. 7 TO TYP. NO. 3",D70,0)) -> 0 | BH70: =IF(T70="TRANS. TYP. NO. 4 TO TYP. NO. 7",D70,IF(T70="TRANS. TYP. NO. 7 TO TYP. NO. 4",D70,0)) -> 0 | BI70: =IF(T70="TRANS. TYP. NO. 5 TO TYP. NO. 7",D70,IF(T70="TRANS. TYP. NO. 7 TO TYP. NO. 5",D70,0)) -> 0 | BJ70: =IF(T70="TRANS. TYP. NO. 6 TO TYP. NO. 7",D70,IF(T70="TRANS. TYP. NO. 7 TO TYP. NO. 6",D70,0)) -> 0 | BK70: =IF(T70="TYP. NO. 8",D70,0) -> 0 | BL70: =IF($T70="TRANS. TYP. NO. 1 TO TYP. NO. 8",$D70,IF($T70="TRANS. TYP. NO. 8 TO TYP. NO. 1",$D70,0)) -> 0 | BM70: =IF($T70="TRANS. TYP. NO. 2 TO TYP. NO. 8",$D70,IF($T70="TRANS. TYP. NO. 8 TO TYP. NO. 2",$D70,0)) -> 0 | BN70: =IF($T70="TRANS. TYP. NO. 3 TO TYP. NO. 8",$D70,IF($T70="TRANS. TYP. NO. 8 TO TYP. NO. 3",$D70,0)) -> 0 | BO70: =IF($T70="TRANS. TYP. NO. 4 TO TYP. NO. 8",$D70,IF($T70="TRANS. TYP. NO. 8 TO TYP. NO. 4",$D70,0)) -> 0 | BP70: =IF($T70="TRANS. TYP. NO. 5 TO TYP. NO. 8",$D70,IF($T70="TRANS. TYP. NO. 8 TO TYP. NO. 5",$D70,0)) -> 0 | BQ70: =IF($T70="TRANS. TYP. NO. 6 TO TYP. NO. 8",$D70,IF($T70="TRANS. TYP. NO. 8 TO TYP. NO. 6",$D70,0)) -> 0 | BR70: =IF($T70="TRANS. TYP. NO. 7 TO TYP. NO. 8",$D70,IF($T70="TRANS. TYP. NO. 8 TO TYP. NO. 7",$D70,0)) -> 0 | BS70: =IF(T70="TYP. NO. 9",D70,0) -> 0 | BT70: =IF($T70="TRANS. TYP. NO. 1 TO TYP. NO. 9",$D70,IF($T70="TRANS. TYP. NO. 9 TO TYP. NO. 1",$D70,0)) -> 0 | BU70: =IF($T70="TRANS. TYP. NO. 2 TO TYP. NO. 9",$D70,IF($T70="TRANS. TYP. NO. 9 TO TYP. NO. 2",$D70,0)) -> 0 | BV70: =IF($T70="TRANS. TYP. NO. 3 TO TYP. NO. 9",$D70,IF($T70="TRANS. TYP. NO. 9 TO TYP. NO. 3",$D70,0)) -> 0 | BW70: =IF($T70="TRANS. TYP. NO. 4 TO TYP. NO. 9",$D70,IF($T70="TRANS. TYP. NO. 9 TO TYP. NO. 4",$D70,0)) -> 0 | BX70: =IF($T70="TRANS. TYP. NO. 5 TO TYP. NO. 9",$D70,IF($T70="TRANS. TYP. NO. 9 TO TYP. NO. 5",$D70,0)) -> 0 | BY70: =IF($T70="TRANS. TYP. NO. 6 TO TYP. NO. 9",$D70,IF($T70="TRANS. TYP. NO. 9 TO TYP. NO. 6",$D70,0)) -> 0 | BZ70: =IF($T70="TRANS. TYP. NO. 7 TO TYP. NO. 9",$D70,IF($T70="TRANS. TYP. NO. 9 TO TYP. NO. 7",$D70,0)) -> 0 | CA70: =IF($T70="TRANS. TYP. NO. 8 TO TYP. NO. 9",$D70,IF($T70="TRANS. TYP. NO. 9 TO TYP. NO. 8",$D70,0)) -> 0 | CB70: =IF(T70="TYP. NO. 10",D70,0) -> 0 | CC70: =IF($T70="TRANS. TYP. NO. 1 TO TYP. NO. 10",$D70,IF($T70="TRANS. TYP. NO. 10 TO TYP. NO. 1",$D70,0)) -> 0 | CD70: =IF($T70="TRANS. TYP. NO. 2 TO TYP. NO. 10",$D70,IF($T70="TRANS. TYP. NO. 10 TO TYP. NO. 2",$D70,0)) -> 0 | CE70: =IF($T70="TRANS. TYP. NO. 3 TO TYP. NO. 10",$D70,IF($T70="TRANS. TYP. NO. 10 TO TYP. NO. 3",$D70,0)) -> 0 | CF70: =IF($T70="TRANS. TYP. NO. 4 TO TYP. NO. 10",$D70,IF($T70="TRANS. TYP. NO. 10 TO TYP. NO. 4",$D70,0)) -> 0 | CG70: =IF($T70="TRANS. TYP. NO. 5 TO TYP. NO. 10",$D70,IF($T70="TRANS. TYP. NO. 10 TO TYP. NO. 5",$D70,0)) -> 0 | CH70: =IF($T70="TRANS. TYP. NO. 6 TO TYP. NO. 10",$D70,IF($T70="TRANS. TYP. NO. 10 TO TYP. NO. 6",$D70,0)) -> 0 | CI70: =IF($T70="TRANS. TYP. NO. 7 TO TYP. NO. 10",$D70,IF($T70="TRANS. TYP. NO. 10 TO TYP. NO. 7",$D70,0)) -> 0 | CJ70: =IF($T70="TRANS. TYP. NO. 8 TO TYP. NO. 10",$D70,IF($T70="TRANS. TYP. NO. 10 TO TYP. NO. 8",$D70,0)) -> 0 | CK70: =IF($T70="TRANS. TYP. NO. 9 TO TYP. NO. 10",$D70,IF($T70="TRANS. TYP. NO. 10 TO TYP. NO. 9",$D70,0)) -> 0 | CL70: =IF(T70="TYP. NO. 11",D70,0) -> 0 | CM70: =IF($T70="TRANS. TYP. NO. 1 TO TYP. NO. 11",$D70,IF($T70="TRANS. TYP. NO. 11 TO TYP. NO. 1",$D70,0)) -> 0 | CN70: =IF($T70="TRANS. TYP. NO. 2 TO TYP. NO. 11",$D70,IF($T70="TRANS. TYP. NO. 11 TO TYP. NO. 2",$D70,0)) -> 0 | CO70: =IF($T70="TRANS. TYP. NO. 3 TO TYP. NO. 11",$D70,IF($T70="TRANS. TYP. NO. 11 TO TYP. NO. 3",$D70,0)) -> 0 | CP70: =IF($T70="TRANS. TYP. NO. 4 TO TYP. NO. 11",$D70,IF($T70="TRANS. TYP. NO. 11 TO TYP. NO. 4",$D70,0)) -> 0 | CQ70: =IF($T70="TRANS. TYP. NO. 5 TO TYP. NO. 11",$D70,IF($T70="TRANS. TYP. NO. 11 TO TYP. NO. 5",$D70,0)) -> 0 | CR70: =IF($T70="TRANS. TYP. NO. 6 TO TYP. NO. 11",$D70,IF($T70="TRANS. TYP. NO. 11 TO TYP. NO. 6",$D70,0)) -> 0 | CS70: =IF($T70="TRANS. TYP. NO. 7 TO TYP. NO. 11",$D70,IF($T70="TRANS. TYP. NO. 11 TO TYP. NO. 7",$D70,0)) -> 0 | CT70: =IF($T70="TRANS. TYP. NO. 8 TO TYP. NO. 11",$D70,IF($T70="TRANS. TYP. NO. 11 TO TYP. NO. 8",$D70,0)) -> 0 | CU70: =IF($T70="TRANS. TYP. NO. 9 TO TYP. NO. 11",$D70,IF($T70="TRANS. TYP. NO. 11 TO TYP. NO. 9",$D70,0)) -> 0 | CV70: =IF($T70="TRANS. TYP. NO. 10 TO TYP. NO. 11",$D70,IF($T70="TRANS. TYP. NO. 11 TO TYP. NO. 10",$D70,0)) -> 0 | CW70: =IF(T70="TYP. NO. 12",D70,0) -> 0 | CX70: =IF($T70="TRANS. TYP. NO. 1 TO TYP. NO. 12",$D70,IF($T70="TRANS. TYP. NO. 12 TO TYP. NO. 1",$D70,0)) -> 0 | CY70: =IF($T70="TRANS. TYP. NO. 2 TO TYP. NO. 12",$D70,IF($T70="TRANS. TYP. NO. 12 TO TYP. NO. 2",$D70,0)) -> 0 | CZ70: =IF($T70="TRANS. TYP. NO. 3 TO TYP. NO. 12",$D70,IF($T70="TRANS. TYP. NO. 12 TO TYP. NO. 3",$D70,0)) -> 0 | DA70: =IF($T70="TRANS. TYP. NO. 4 TO TYP. NO. 12",$D70,IF($T70="TRANS. TYP. NO. 12 TO TYP. NO. 4",$D70,0)) -> 0 | DB70: =IF($T70="TRANS. TYP. NO. 5 TO TYP. NO. 12",$D70,IF($T70="TRANS. TYP. NO. 12 TO TYP. NO. 5",$D70,0)) -> 0 | DC70: =IF($T70="TRANS. TYP. NO. 6 TO TYP. NO. 12",$D70,IF($T70="TRANS. TYP. NO. 12 TO TYP. NO. 6",$D70,0)) -> 0 | DD70: =IF($T70="TRANS. TYP. NO. 7 TO TYP. NO. 12",$D70,IF($T70="TRANS. TYP. NO. 12 TO TYP. NO. 7",$D70,0)) -> 0 | DE70: =IF($T70="TRANS. TYP. NO. 8 TO TYP. NO. 12",$D70,IF($T70="TRANS. TYP. NO. 12 TO TYP. NO. 8",$D70,0)) -> 0 | DF70: =IF($T70="TRANS. TYP. NO. 9 TO TYP. NO. 12",$D70,IF($T70="TRANS. TYP. NO. 12 TO TYP. NO. 9",$D70,0)) -> 0 | DG70: =IF($T70="TRANS. TYP. NO. 10 TO TYP. NO. 12",$D70,IF($T70="TRANS. TYP. NO. 12 TO TYP. NO. 10",$D70,0)) -> 0 | DH70: =IF($T70="TRANS. TYP. NO. 11 TO TYP. NO. 12",$D70,IF($T70="TRANS. TYP. NO. 12 TO TYP. NO. 11",$D70,0)) -> 0 | DI70: =IF(T70="TYP. NO. 13",D70,0) -> 0 | DJ70: =IF($T70="TRANS. TYP. NO. 1 TO TYP. NO. 13",$D70,IF($T70="TRANS. TYP. NO. 13 TO TYP. NO. 1",$D70,0)) -> 0 | DK70: =IF($T70="TRANS. TYP. NO. 2 TO TYP. NO. 13",$D70,IF($T70="TRANS. TYP. NO. 13 TO TYP. NO. 2",$D70,0)) -> 0 | DL70: =IF($T70="TRANS. TYP. NO. 3 TO TYP. NO. 13",$D70,IF($T70="TRANS. TYP. NO. 13 TO TYP. NO. 3",$D70,0)) -> 0 | DM70: =IF($T70="TRANS. TYP. NO. 4 TO TYP. NO. 13",$D70,IF($T70="TRANS. TYP. NO. 13 TO TYP. NO. 4",$D70,0)) -> 0 | DN70: =IF($T70="TRANS. TYP. NO. 5 TO TYP. NO. 13",$D70,IF($T70="TRANS. TYP. NO. 13 TO TYP. NO. 5",$D70,0)) -> 0 | DO70: =IF($T70="TRANS. TYP. NO. 6 TO TYP. NO. 13",$D70,IF($T70="TRANS. TYP. NO. 13 TO TYP. NO. 6",$D70,0)) -> 0 | DP70: =IF($T70="TRANS. TYP. NO. 7 TO TYP. NO. 13",$D70,IF($T70="TRANS. TYP. NO. 13 TO TYP. NO. 7",$D70,0)) -> 0 | DQ70: =IF($T70="TRANS. TYP. NO. 8 TO TYP. NO. 13",$D70,IF($T70="TRANS. TYP. NO. 13 TO TYP. NO. 8",$D70,0)) -> 0 | DR70: =IF($T70="TRANS. TYP. NO. 9 TO TYP. NO. 13",$D70,IF($T70="TRANS. TYP. NO. 13 TO TYP. NO. 9",$D70,0)) -> 0 | DS70: =IF($T70="TRANS. TYP. NO. 10 TO TYP. NO. 13",$D70,IF($T70="TRANS. TYP. NO. 13 TO TYP. NO. 10",$D70,0)) -> 0 | DT70: =IF($T70="TRANS. TYP. NO. 11 TO TYP. NO. 13",$D70,IF($T70="TRANS. TYP. NO. 13 TO TYP. NO. 11",$D70,0)) -> 0 | DU70: =IF($T70="TRANS. TYP. NO. 12 TO TYP. NO. 13",$D70,IF($T70="TRANS. TYP. NO. 13 TO TYP. NO. 12",$D70,0)) -> 0 | DV70: =IF(T70="TYP. NO. 14",D70,0) -> 0 | DW70: =IF($T70="TRANS. TYP. NO. 1 TO TYP. NO. 14",$D70,IF($T70="TRANS. TYP. NO. 14 TO TYP. NO. 1",$D70,0)) -> 0 | DX70: =IF($T70="TRANS. TYP. NO. 2 TO TYP. NO. 14",$D70,IF($T70="TRANS. TYP. NO. 14 TO TYP. NO. 2",$D70,0)) -> 0 | DY70: =IF($T70="TRANS. TYP. NO. 3 TO TYP. NO. 14",$D70,IF($T70="TRANS. TYP. NO. 14 TO TYP. NO. 3",$D70,0)) -> 0 | DZ70: =IF($T70="TRANS. TYP. NO. 4 TO TYP. NO. 14",$D70,IF($T70="TRANS. TYP. NO. 14 TO TYP. NO. 4",$D70,0)) -> 0 | EA70: =IF($T70="TRANS. TYP. NO. 5 TO TYP. NO. 14",$D70,IF($T70="TRANS. TYP. NO. 14 TO TYP. NO. 5",$D70,0)) -> 0 | EB70: =IF($T70="TRANS. TYP. NO. 6 TO TYP. NO. 14",$D70,IF($T70="TRANS. TYP. NO. 14 TO TYP. NO. 6",$D70,0)) -> 0 | EC70: =IF($T70="TRANS. TYP. NO. 7 TO TYP. NO. 14",$D70,IF($T70="TRANS. TYP. NO. 14 TO TYP. NO. 7",$D70,0)) -> 0 | ED70: =IF($T70="TRANS. TYP. NO. 8 TO TYP. NO. 14",$D70,IF($T70="TRANS. TYP. NO. 14 TO TYP. NO. 8",$D70,0)) -> 0 | EE70: =IF($T70="TRANS. TYP. NO. 9 TO TYP. NO. 14",$D70,IF($T70="TRANS. TYP. NO. 14 TO TYP. NO. 9",$D70,0)) -> 0 | EF70: =IF($T70="TRANS. TYP. NO. 10 TO TYP. NO. 14",$D70,IF($T70="TRANS. TYP. NO. 14 TO TYP. NO. 10",$D70,0)) -> 0 | EG70: =IF($T70="TRANS. TYP. NO. 11 TO TYP. NO. 14",$D70,IF($T70="TRANS. TYP. NO. 14 TO TYP. NO. 11",$D70,0)) -> 0 | EH70: =IF($T70="TRANS. TYP. NO. 12 TO TYP. NO. 14",$D70,IF($T70="TRANS. TYP. NO. 14 TO TYP. NO. 12",$D70,0)) -> 0 | EI70: =IF($T70="TRANS. TYP. NO. 13 TO TYP. NO. 14",$D70,IF($T70="TRANS. TYP. NO. 14 TO TYP. NO. 13",$D70,0)) -> 0 | EJ70: =IF(T70="TYP. NO. 15",D70,0) -> 0 | EK70: =IF($T70="TRANS. TYP. NO. 1 TO TYP. NO. 15",$D70,IF($T70="TRANS. TYP. NO. 15 TO TYP. NO. 1",$D70,0)) -> 0 | EL70: =IF($T70="TRANS. TYP. NO. 2 TO TYP. NO. 15",$D70,IF($T70="TRANS. TYP. NO. 15 TO TYP. NO. 2",$D70,0)) -> 0 | EM70: =IF($T70="TRANS. TYP. NO. 3 TO TYP. NO. 15",$D70,IF($T70="TRANS. TYP. NO. 15 TO TYP. NO. 3",$D70,0)) -> 0 | EN70: =IF($T70="TRANS. TYP. NO. 4 TO TYP. NO. 15",$D70,IF($T70="TRANS. TYP. NO. 15 TO TYP. NO. 4",$D70,0)) -> 0 | EO70: =IF($T70="TRANS. TYP. NO. 5 TO TYP. NO. 15",$D70,IF($T70="TRANS. TYP. NO. 15 TO TYP. NO. 5",$D70,0)) -> 0 | EP70: =IF($T70="TRANS. TYP. NO. 6 TO TYP. NO. 15",$D70,IF($T70="TRANS. TYP. NO. 15 TO TYP. NO. 6",$D70,0)) -> 0 | EQ70: =IF($T70="TRANS. TYP. NO. 7 TO TYP. NO. 15",$D70,IF($T70="TRANS. TYP. NO. 15 TO TYP. NO. 7",$D70,0)) -> 0 | ER70: =IF($T70="TRANS. TYP. NO. 8 TO TYP. NO. 15",$D70,IF($T70="TRANS. TYP. NO. 15 TO TYP. NO. 8",$D70,0)) -> 0 | ES70: =IF($T70="TRANS. TYP. NO. 9 TO TYP. NO. 15",$D70,IF($T70="TRANS. TYP. NO. 15 TO TYP. NO. 9",$D70,0)) -> 0 | ET70: =IF($T70="TRANS. TYP. NO. 10 TO TYP. NO. 15",$D70,IF($T70="TRANS. TYP. NO. 15 TO TYP. NO. 10",$D70,0)) -> 0 | EU70: =IF($T70="TRANS. TYP. NO. 11 TO TYP. NO. 15",$D70,IF($T70="TRANS. TYP. NO. 15 TO TYP. NO. 11",$D70,0)) -> 0 | EV70: =IF($T70="TRANS. TYP. NO. 12 TO TYP. NO. 15",$D70,IF($T70="TRANS. TYP. NO. 15 TO TYP. NO. 12",$D70,0)) -> 0 | EW70: =IF($T70="TRANS. TYP. NO. 13 TO TYP. NO. 15",$D70,IF($T70="TRANS. TYP. NO. 15 TO TYP. NO. 13",$D70,0)) -> 0 | EX70: =IF($T70="TRANS. TYP. NO. 14 TO TYP. NO. 15",$D70,IF($T70="TRANS. TYP. NO. 15 TO TYP. NO. 14",$D70,0)) -> 0 | EY70: =IF(T70="TYP. NO. 16",D70,0) -> 0 | EZ70: =IF($T70="TRANS. TYP. NO. 1 TO TYP. NO. 16",$D70,IF($T70="TRANS. TYP. NO. 16 TO TYP. NO. 1",$D70,0)) -> 0 | FA70: =IF($T70="TRANS. TYP. NO. 2 TO TYP. NO. 16",$D70,IF($T70="TRANS. TYP. NO. 16 TO TYP. NO. 2",$D70,0)) -> 0 | FB70: =IF($T70="TRANS. TYP. NO. 3 TO TYP. NO. 16",$D70,IF($T70="TRANS. TYP. NO. 16 TO TYP. NO. 3",$D70,0)) -> 0 | FC70: =IF($T70="TRANS. TYP. NO. 4 TO TYP. NO. 16",$D70,IF($T70="TRANS. TYP. NO. 16 TO TYP. NO. 4",$D70,0)) -> 0 | FD70: =IF($T70="TRANS. TYP. NO. 5 TO TYP. NO. 16",$D70,IF($T70="TRANS. TYP. NO. 16 TO TYP. NO. 5",$D70,0)) -> 0 | FE70: =IF($T70="TRANS. TYP. NO. 6 TO TYP. NO. 16",$D70,IF($T70="TRANS. TYP. NO. 16 TO TYP. NO. 6",$D70,0)) -> 0 | FF70: =IF($T70="TRANS. TYP. NO. 7 TO TYP. NO. 16",$D70,IF($T70="TRANS. TYP. NO. 16 TO TYP. NO. 7",$D70,0)) -> 0 | FG70: =IF($T70="TRANS. TYP. NO. 8 TO TYP. NO. 16",$D70,IF($T70="TRANS. TYP. NO. 16 TO TYP. NO. 8",$D70,0)) -> 0 | FH70: =IF($T70="TRANS. TYP. NO. 9 TO TYP. NO. 16",$D70,IF($T70="TRANS. TYP. NO. 16 TO TYP. NO. 9",$D70,0)) -> 0 | FI70: =IF($T70="TRANS. TYP. NO. 10 TO TYP. NO. 16",$D70,IF($T70="TRANS. TYP. NO. 16 TO TYP. NO. 10",$D70,0)) -> 0 | FJ70: =IF($T70="TRANS. TYP. NO. 11 TO TYP. NO. 16",$D70,IF($T70="TRANS. TYP. NO. 16 TO TYP. NO. 11",$D70,0)) -> 0 | FK70: =IF($T70="TRANS. TYP. NO. 12 TO TYP. NO. 16",$D70,IF($T70="TRANS. TYP. NO. 16 TO TYP. NO. 12",$D70,0)) -> 0 | FL70: =IF($T70="TRANS. TYP. NO. 13 TO TYP. NO. 16",$D70,IF($T70="TRANS. TYP. NO. 16 TO TYP. NO. 13",$D70,0)) -> 0 | FM70: =IF($T70="TRANS. TYP. NO. 14 TO TYP. NO. 16",$D70,IF($T70="TRANS. TYP. NO. 16 TO TYP. NO. 14",$D70,0)) -> 0 | FN70: =IF($T70="TRANS. TYP. NO. 15 TO TYP. NO. 16",$D70,IF($T70="TRANS. TYP. NO. 16 TO TYP. NO. 15",$D70,0)) -> 0
I71: =IF(OR($G71="BRIDGE",$G72="BRIDGE"),"",IF(AND($D71="",$A71>0,$B71>0),"~",IF(W71="ERROR","",IF(W71=0,"",ROUND(W71*$D71/100,0))))) ->  | J71: =IF(OR($G71="BRIDGE",$G72="BRIDGE"),"",IF(AND($D71="",$A71>0,$B71>0),"~",IF(X71="ERROR","",IF(X71=0,"",ROUND(X71*$D71/100,0))))) ->  | K71: =IF(OR($G71="BRIDGE",$G72="BRIDGE"),"",IF(AND($D71="",$A71>0,$B71>0),"~",IF(Y71="ERROR","",IF(Y71=0,"",ROUND(Y71*$D71/100,0))))) ->  | L71: =IF(OR($G71="BRIDGE",$G72="BRIDGE"),"",IF(AND($D71="",$A71>0,$B71>0),"~",IF(Z71="ERROR","",IF(Z71=0,"",ROUND(Z71*$D71/100,0))))) ->  | M71: =IF(OR($G71="BRIDGE",$G72="BRIDGE"),"",IF(AND($D71="",$A71>0,$B71>0),"~",IF(AA71="ERROR","",IF(AA71=0,"",ROUND(AA71*$D71/100,0))))) ->  | N71: =IF(OR($G71="BRIDGE",$G72="BRIDGE"),"",IF(AND($D71="",$A71>0,$B71>0),"~",IF(AB71="ERROR","",IF(AB71=0,"",ROUND(AB71*$D71/100,0))))) ->  | O71: =IF(OR($G71="BRIDGE",$G72="BRIDGE"),"",IF(AND($D71="",$A71>0,$B71>0),"~",IF(AC71="ERROR","",IF(AC71=0,"",ROUND(AC71*$D71/100,1))))) ->  | P71: =IF(OR($G71="BRIDGE",$G72="BRIDGE"),"",IF(AND($D71="",$A71>0,$B71>0),"~",IF(AD71="ERROR","",IF(AD71=0,"",ROUND(AD71*$D71/100,1))))) ->  | Q71: =IF(OR($G71="BRIDGE",$G72="BRIDGE"),"",IF(AND($D71="",$A71>0,$B71>0),"~",IF(AE71="ERROR","",IF(AE71=0,"",ROUND(AE71*$D71/100,0))))) ->  | R71: =IF(OR($G71="BRIDGE",$G72="BRIDGE"),"",IF(AND($D71="",$A71>0,$B71>0),"~",IF(AF71="ERROR","",IF(AF71=0,"",ROUND(AF71*$D71/100,0))))) ->  | S71: =IF(OR($G71="BRIDGE",$G72="BRIDGE"),"",IF(AND($D71="",$A71>0,$B71>0),"~",IF(AG71="ERROR","",IF(AG71=0,"",ROUND(AG71*$D71/100,0))))) ->  | V71: =IF(T71="",402,MATCH(T71,'Lookup Values'!$B$1:$B$402,0)) -> 402 | W71: =LOOKUP($V71,'Lookup Values'!$A$2:$A$402,'Lookup Values'!C$2:C$402) -> ERROR | X71: =LOOKUP($V71,'Lookup Values'!$A$2:$A$402,'Lookup Values'!D$2:D$402) -> ERROR | Y71: =LOOKUP($V71,'Lookup Values'!$A$2:$A$402,'Lookup Values'!E$2:E$402) -> ERROR | Z71: =LOOKUP($V71,'Lookup Values'!$A$2:$A$402,'Lookup Values'!F$2:F$402) -> ERROR | AA71: =LOOKUP($V71,'Lookup Values'!$A$2:$A$402,'Lookup Values'!G$2:G$402) -> ERROR | AB71: =LOOKUP($V71,'Lookup Values'!$A$2:$A$402,'Lookup Values'!H$2:H$402) -> ERROR | AC71: =LOOKUP($V71,'Lookup Values'!$A$2:$A$402,'Lookup Values'!I$2:I$402) -> ERROR | AD71: =LOOKUP($V71,'Lookup Values'!$A$2:$A$402,'Lookup Values'!J$2:J$402) -> ERROR | AE71: =LOOKUP($V71,'Lookup Values'!$A$2:$A$402,'Lookup Values'!K$2:K$402) -> ERROR | AF71: =LOOKUP($V71,'Lookup Values'!$A$2:$A$402,'Lookup Values'!L$2:L$402) -> ERROR | AG71: =LOOKUP($V71,'Lookup Values'!$A$2:$A$402,'Lookup Values'!M$2:M$402) -> ERROR | AI71: 0 | AJ71: 0 | AK71: 0 | AL71: 0 | AM71: 0 | AN71: 0 | AO71: 0 | AP71: 0 | AQ71: 0 | AR71: 0 | AS71: 0 | AT71: 0 | AU71: 0 | AV71: 0 | AW71: 0 | AX71: 0 | AY71: 0 | AZ71: 0 | BA71: 0 | BB71: 0 | BC71: 0 | BD71: 0 | BE71: 0 | BF71: 0 | BG71: 0 | BH71: 0 | BI71: 0 | BJ71: 0 | BK71: 0 | BL71: 0 | BM71: 0 | BN71: 0 | BO71: 0 | BP71: 0 | BQ71: 0 | BR71: 0 | BS71: 0 | BT71: 0 | BU71: 0 | BV71: 0 | BW71: 0 | BX71: 0 | BY71: 0 | BZ71: 0 | CA71: 0 | CB71: 0 | CC71: 0 | CD71: 0 | CE71: 0 | CF71: 0 | CG71: 0 | CH71: 0 | CI71: 0 | CJ71: 0 | CK71: 0 | CL71: 0 | CM71: 0 | CN71: 0 | CO71: 0 | CP71: 0 | CQ71: 0 | CR71: 0 | CS71: 0 | CT71: 0 | CU71: 0 | CV71: 0 | CW71: 0 | CX71: 0 | CY71: 0 | CZ71: 0 | DA71: 0 | DB71: 0 | DC71: 0 | DD71: 0 | DE71: 0 | DF71: 0 | DG71: 0 | DH71: 0 | DI71: 0 | DJ71: 0 | DK71: 0 | DL71: 0 | DM71: 0 | DN71: 0 | DO71: 0 | DP71: 0 | DQ71: 0 | DR71: 0 | DS71: 0 | DT71: 0 | DU71: 0 | DV71: 0 | DW71: 0 | DX71: 0 | DY71: 0 | DZ71: 0 | EA71: 0 | EB71: 0 | EC71: 0 | ED71: 0 | EE71: 0 | EF71: 0 | EG71: 0 | EH71: 0 | EI71: 0 | EJ71: 0 | EK71: 0 | EL71: 0 | EM71: 0 | EN71: 0 | EO71: 0 | EP71: 0 | EQ71: 0 | ER71: 0 | ES71: 0 | ET71: 0 | EU71: 0 | EV71: 0 | EW71: 0 | EX71: 0 | EY71: 0 | EZ71: 0 | FA71: 0 | FB71: 0 | FC71: 0 | FD71: 0 | FE71: 0 | FF71: 0 | FG71: 0 | FH71: 0 | FI71: 0 | FJ71: 0 | FK71: 0 | FL71: 0 | FM71: 0 | FN71: 0
V72: =IF(T72="",402,MATCH(T72,'Lookup Values'!$B$1:$B$402,0)) -> 402 | W72: =LOOKUP($V72,'Lookup Values'!$A$2:$A$402,'Lookup Values'!C$2:C$402) -> ERROR | X72: =LOOKUP($V72,'Lookup Values'!$A$2:$A$402,'Lookup Values'!D$2:D$402) -> ERROR | Y72: =LOOKUP($V72,'Lookup Values'!$A$2:$A$402,'Lookup Values'!E$2:E$402) -> ERROR | Z72: =LOOKUP($V72,'Lookup Values'!$A$2:$A$402,'Lookup Values'!F$2:F$402) -> ERROR | AA72: =LOOKUP($V72,'Lookup Values'!$A$2:$A$402,'Lookup Values'!G$2:G$402) -> ERROR | AB72: =LOOKUP($V72,'Lookup Values'!$A$2:$A$402,'Lookup Values'!H$2:H$402) -> ERROR | AC72: =LOOKUP($V72,'Lookup Values'!$A$2:$A$402,'Lookup Values'!I$2:I$402) -> ERROR | AD72: =LOOKUP($V72,'Lookup Values'!$A$2:$A$402,'Lookup Values'!J$2:J$402) -> ERROR | AE72: =LOOKUP($V72,'Lookup Values'!$A$2:$A$402,'Lookup Values'!K$2:K$402) -> ERROR | AF72: =LOOKUP($V72,'Lookup Values'!$A$2:$A$402,'Lookup Values'!L$2:L$402) -> ERROR | AG72: =LOOKUP($V72,'Lookup Values'!$A$2:$A$402,'Lookup Values'!M$2:M$402) -> ERROR | AI72: 0 | AJ72: 0 | AK72: 0 | AL72: 0 | AM72: 0 | AN72: 0 | AO72: 0 | AP72: 0 | AQ72: 0 | AR72: 0 | AS72: 0 | AT72: 0 | AU72: 0 | AV72: 0 | AW72: 0 | AX72: 0 | AY72: 0 | AZ72: 0 | BA72: 0 | BB72: 0 | BC72: 0 | BD72: 0 | BE72: 0 | BF72: 0 | BG72: 0 | BH72: 0 | BI72: 0 | BJ72: 0 | BK72: 0 | BL72: 0 | BM72: 0 | BN72: 0 | BO72: 0 | BP72: 0 | BQ72: 0 | BR72: 0 | BS72: 0 | BT72: 0 | BU72: 0 | BV72: 0 | BW72: 0 | BX72: 0 | BY72: 0 | BZ72: 0 | CA72: 0 | CB72: 0 | CC72: 0 | CD72: 0 | CE72: 0 | CF72: 0 | CG72: 0 | CH72: 0 | CI72: 0 | CJ72: 0 | CK72: 0 | CL72: 0 | CM72: 0 | CN72: 0 | CO72: 0 | CP72: 0 | CQ72: 0 | CR72: 0 | CS72: 0 | CT72: 0 | CU72: 0 | CV72: 0 | CW72: 0 | CX72: 0 | CY72: 0 | CZ72: 0 | DA72: 0 | DB72: 0 | DC72: 0 | DD72: 0 | DE72: 0 | DF72: 0 | DG72: 0 | DH72: 0 | DI72: 0 | DJ72: 0 | DK72: 0 | DL72: 0 | DM72: 0 | DN72: 0 | DO72: 0 | DP72: 0 | DQ72: 0 | DR72: 0 | DS72: 0 | DT72: 0 | DU72: 0 | DV72: 0 | DW72: 0 | DX72: 0 | DY72: 0 | DZ72: 0 | EA72: 0 | EB72: 0 | EC72: 0 | ED72: 0 | EE72: 0 | EF72: 0 | EG72: 0 | EH72: 0 | EI72: 0 | EJ72: 0 | EK72: 0 | EL72: 0 | EM72: 0 | EN72: 0 | EO72: 0 | EP72: 0 | EQ72: 0 | ER72: 0 | ES72: 0 | ET72: 0 | EU72: 0 | EV72: 0 | EW72: 0 | EX72: 0 | EY72: 0 | EZ72: 0 | FA72: 0 | FB72: 0 | FC72: 0 | FD72: 0 | FE72: 0 | FF72: 0 | FG72: 0 | FH72: 0 | FI72: 0 | FJ72: 0 | FK72: 0 | FL72: 0 | FM72: 0 | FN72: 0
V73: =IF(T73="",402,MATCH(T73,'Lookup Values'!$B$1:$B$402,0)) -> 402 | W73: =LOOKUP($V73,'Lookup Values'!$A$2:$A$402,'Lookup Values'!C$2:C$402) -> ERROR | X73: =LOOKUP($V73,'Lookup Values'!$A$2:$A$402,'Lookup Values'!D$2:D$402) -> ERROR | Y73: =LOOKUP($V73,'Lookup Values'!$A$2:$A$402,'Lookup Values'!E$2:E$402) -> ERROR | Z73: =LOOKUP($V73,'Lookup Values'!$A$2:$A$402,'Lookup Values'!F$2:F$402) -> ERROR | AA73: =LOOKUP($V73,'Lookup Values'!$A$2:$A$402,'Lookup Values'!G$2:G$402) -> ERROR | AB73: =LOOKUP($V73,'Lookup Values'!$A$2:$A$402,'Lookup Values'!H$2:H$402) -> ERROR | AC73: =LOOKUP($V73,'Lookup Values'!$A$2:$A$402,'Lookup Values'!I$2:I$402) -> ERROR | AD73: =LOOKUP($V73,'Lookup Values'!$A$2:$A$402,'Lookup Values'!J$2:J$402) -> ERROR | AE73: =LOOKUP($V73,'Lookup Values'!$A$2:$A$402,'Lookup Values'!K$2:K$402) -> ERROR | AF73: =LOOKUP($V73,'Lookup Values'!$A$2:$A$402,'Lookup Values'!L$2:L$402) -> ERROR | AG73: =LOOKUP($V73,'Lookup Values'!$A$2:$A$402,'Lookup Values'!M$2:M$402) -> ERROR | AI73: 0 | AJ73: 0 | AK73: 0 | AL73: 0 | AM73: 0 | AN73: 0 | AO73: 0 | AP73: 0 | AQ73: 0 | AR73: 0 | AS73: 0 | AT73: 0 | AU73: 0 | AV73: 0 | AW73: 0 | AX73: 0 | AY73: 0 | AZ73: 0 | BA73: 0 | BB73: 0 | BC73: 0 | BD73: 0 | BE73: 0 | BF73: 0 | BG73: 0 | BH73: 0 | BI73: 0 | BJ73: 0 | BK73: 0 | BL73: 0 | BM73: 0 | BN73: 0 | BO73: 0 | BP73: 0 | BQ73: 0 | BR73: 0 | BS73: 0 | BT73: 0 | BU73: 0 | BV73: 0 | BW73: 0 | BX73: 0 | BY73: 0 | BZ73: 0 | CA73: 0 | CB73: 0 | CC73: 0 | CD73: 0 | CE73: 0 | CF73: 0 | CG73: 0 | CH73: 0 | CI73: 0 | CJ73: 0 | CK73: 0 | CL73: 0 | CM73: 0 | CN73: 0 | CO73: 0 | CP73: 0 | CQ73: 0 | CR73: 0 | CS73: 0 | CT73: 0 | CU73: 0 | CV73: 0 | CW73: 0 | CX73: 0 | CY73: 0 | CZ73: 0 | DA73: 0 | DB73: 0 | DC73: 0 | DD73: 0 | DE73: 0 | DF73: 0 | DG73: 0 | DH73: 0 | DI73: 0 | DJ73: 0 | DK73: 0 | DL73: 0 | DM73: 0 | DN73: 0 | DO73: 0 | DP73: 0 | DQ73: 0 | DR73: 0 | DS73: 0 | DT73: 0 | DU73: 0 | DV73: 0 | DW73: 0 | DX73: 0 | DY73: 0 | DZ73: 0 | EA73: 0 | EB73: 0 | EC73: 0 | ED73: 0 | EE73: 0 | EF73: 0 | EG73: 0 | EH73: 0 | EI73: 0 | EJ73: 0 | EK73: 0 | EL73: 0 | EM73: 0 | EN73: 0 | EO73: 0 | EP73: 0 | EQ73: 0 | ER73: 0 | ES73: 0 | ET73: 0 | EU73: 0 | EV73: 0 | EW73: 0 | EX73: 0 | EY73: 0 | EZ73: 0 | FA73: 0 | FB73: 0 | FC73: 0 | FD73: 0 | FE73: 0 | FF73: 0 | FG73: 0 | FH73: 0 | FI73: 0 | FJ73: 0 | FK73: 0 | FL73: 0 | FM73: 0 | FN73: 0
V74: =IF(T74="",402,MATCH(T74,'Lookup Values'!$B$1:$B$402,0)) -> 402 | W74: =LOOKUP($V74,'Lookup Values'!$A$2:$A$402,'Lookup Values'!C$2:C$402) -> ERROR | X74: =LOOKUP($V74,'Lookup Values'!$A$2:$A$402,'Lookup Values'!D$2:D$402) -> ERROR | Y74: =LOOKUP($V74,'Lookup Values'!$A$2:$A$402,'Lookup Values'!E$2:E$402) -> ERROR | Z74: =LOOKUP($V74,'Lookup Values'!$A$2:$A$402,'Lookup Values'!F$2:F$402) -> ERROR | AA74: =LOOKUP($V74,'Lookup Values'!$A$2:$A$402,'Lookup Values'!G$2:G$402) -> ERROR | AB74: =LOOKUP($V74,'Lookup Values'!$A$2:$A$402,'Lookup Values'!H$2:H$402) -> ERROR | AC74: =LOOKUP($V74,'Lookup Values'!$A$2:$A$402,'Lookup Values'!I$2:I$402) -> ERROR | AD74: =LOOKUP($V74,'Lookup Values'!$A$2:$A$402,'Lookup Values'!J$2:J$402) -> ERROR | AE74: =LOOKUP($V74,'Lookup Values'!$A$2:$A$402,'Lookup Values'!K$2:K$402) -> ERROR | AF74: =LOOKUP($V74,'Lookup Values'!$A$2:$A$402,'Lookup Values'!L$2:L$402) -> ERROR | AG74: =LOOKUP($V74,'Lookup Values'!$A$2:$A$402,'Lookup Values'!M$2:M$402) -> ERROR | AI74: 0 | AJ74: 0 | AK74: 0 | AL74: 0 | AM74: 0 | AN74: 0 | AO74: 0 | AP74: 0 | AQ74: 0 | AR74: 0 | AS74: 0 | AT74: 0 | AU74: 0 | AV74: 0 | AW74: 0 | AX74: 0 | AY74: 0 | AZ74: 0 | BA74: 0 | BB74: 0 | BC74: 0 | BD74: 0 | BE74: 0 | BF74: 0 | BG74: 0 | BH74: 0 | BI74: 0 | BJ74: 0 | BK74: 0 | BL74: 0 | BM74: 0 | BN74: 0 | BO74: 0 | BP74: 0 | BQ74: 0 | BR74: 0 | BS74: 0 | BT74: 0 | BU74: 0 | BV74: 0 | BW74: 0 | BX74: 0 | BY74: 0 | BZ74: 0 | CA74: 0 | CB74: 0 | CC74: 0 | CD74: 0 | CE74: 0 | CF74: 0 | CG74: 0 | CH74: 0 | CI74: 0 | CJ74: 0 | CK74: 0 | CL74: 0 | CM74: 0 | CN74: 0 | CO74: 0 | CP74: 0 | CQ74: 0 | CR74: 0 | CS74: 0 | CT74: 0 | CU74: 0 | CV74: 0 | CW74: 0 | CX74: 0 | CY74: 0 | CZ74: 0 | DA74: 0 | DB74: 0 | DC74: 0 | DD74: 0 | DE74: 0 | DF74: 0 | DG74: 0 | DH74: 0 | DI74: 0 | DJ74: 0 | DK74: 0 | DL74: 0 | DM74: 0 | DN74: 0 | DO74: 0 | DP74: 0 | DQ74: 0 | DR74: 0 | DS74: 0 | DT74: 0 | DU74: 0 | DV74: 0 | DW74: 0 | DX74: 0 | DY74: 0 | DZ74: 0 | EA74: 0 | EB74: 0 | EC74: 0 | ED74: 0 | EE74: 0 | EF74: 0 | EG74: 0 | EH74: 0 | EI74: 0 | EJ74: 0 | EK74: 0 | EL74: 0 | EM74: 0 | EN74: 0 | EO74: 0 | EP74: 0 | EQ74: 0 | ER74: 0 | ES74: 0 | ET74: 0 | EU74: 0 | EV74: 0 | EW74: 0 | EX74: 0 | EY74: 0 | EZ74: 0 | FA74: 0 | FB74: 0 | FC74: 0 | FD74: 0 | FE74: 0 | FF74: 0 | FG74: 0 | FH74: 0 | FI74: 0 | FJ74: 0 | FK74: 0 | FL74: 0 | FM74: 0 | FN74: 0
V75: =IF(T75="",402,MATCH(T75,'Lookup Values'!$B$1:$B$402,0)) -> 402 | W75: =LOOKUP($V75,'Lookup Values'!$A$2:$A$402,'Lookup Values'!C$2:C$402) -> ERROR | X75: =LOOKUP($V75,'Lookup Values'!$A$2:$A$402,'Lookup Values'!D$2:D$402) -> ERROR | Y75: =LOOKUP($V75,'Lookup Values'!$A$2:$A$402,'Lookup Values'!E$2:E$402) -> ERROR | Z75: =LOOKUP($V75,'Lookup Values'!$A$2:$A$402,'Lookup Values'!F$2:F$402) -> ERROR | AA75: =LOOKUP($V75,'Lookup Values'!$A$2:$A$402,'Lookup Values'!G$2:G$402) -> ERROR | AB75: =LOOKUP($V75,'Lookup Values'!$A$2:$A$402,'Lookup Values'!H$2:H$402) -> ERROR | AC75: =LOOKUP($V75,'Lookup Values'!$A$2:$A$402,'Lookup Values'!I$2:I$402) -> ERROR | AD75: =LOOKUP($V75,'Lookup Values'!$A$2:$A$402,'Lookup Values'!J$2:J$402) -> ERROR | AE75: =LOOKUP($V75,'Lookup Values'!$A$2:$A$402,'Lookup Values'!K$2:K$402) -> ERROR | AF75: =LOOKUP($V75,'Lookup Values'!$A$2:$A$402,'Lookup Values'!L$2:L$402) -> ERROR | AG75: =LOOKUP($V75,'Lookup Values'!$A$2:$A$402,'Lookup Values'!M$2:M$402) -> ERROR | AI75: 0 | AJ75: 0 | AK75: 0 | AL75: 0 | AM75: 0 | AN75: 0 | AO75: 0 | AP75: 0 | AQ75: 0 | AR75: 0 | AS75: 0 | AT75: 0 | AU75: 0 | AV75: 0 | AW75: 0 | AX75: 0 | AY75: 0 | AZ75: 0 | BA75: 0 | BB75: 0 | BC75: 0 | BD75: 0 | BE75: 0 | BF75: 0 | BG75: 0 | BH75: 0 | BI75: 0 | BJ75: 0 | BK75: 0 | BL75: 0 | BM75: 0 | BN75: 0 | BO75: 0 | BP75: 0 | BQ75: 0 | BR75: 0 | BS75: 0 | BT75: 0 | BU75: 0 | BV75: 0 | BW75: 0 | BX75: 0 | BY75: 0 | BZ75: 0 | CA75: 0 | CB75: 0 | CC75: 0 | CD75: 0 | CE75: 0 | CF75: 0 | CG75: 0 | CH75: 0 | CI75: 0 | CJ75: 0 | CK75: 0 | CL75: 0 | CM75: 0 | CN75: 0 | CO75: 0 | CP75: 0 | CQ75: 0 | CR75: 0 | CS75: 0 | CT75: 0 | CU75: 0 | CV75: 0 | CW75: 0 | CX75: 0 | CY75: 0 | CZ75: 0 | DA75: 0 | DB75: 0 | DC75: 0 | DD75: 0 | DE75: 0 | DF75: 0 | DG75: 0 | DH75: 0 | DI75: 0 | DJ75: 0 | DK75: 0 | DL75: 0 | DM75: 0 | DN75: 0 | DO75: 0 | DP75: 0 | DQ75: 0 | DR75: 0 | DS75: 0 | DT75: 0 | DU75: 0 | DV75: 0 | DW75: 0 | DX75: 0 | DY75: 0 | DZ75: 0 | EA75: 0 | EB75: 0 | EC75: 0 | ED75: 0 | EE75: 0 | EF75: 0 | EG75: 0 | EH75: 0 | EI75: 0 | EJ75: 0 | EK75: 0 | EL75: 0 | EM75: 0 | EN75: 0 | EO75: 0 | EP75: 0 | EQ75: 0 | ER75: 0 | ES75: 0 | ET75: 0 | EU75: 0 | EV75: 0 | EW75: 0 | EX75: 0 | EY75: 0 | EZ75: 0 | FA75: 0 | FB75: 0 | FC75: 0 | FD75: 0 | FE75: 0 | FF75: 0 | FG75: 0 | FH75: 0 | FI75: 0 | FJ75: 0 | FK75: 0 | FL75: 0 | FM75: 0 | FN75: 0
V76: =IF(T76="",402,MATCH(T76,'Lookup Values'!$B$1:$B$402,0)) -> 402 | W76: =LOOKUP($V76,'Lookup Values'!$A$2:$A$402,'Lookup Values'!C$2:C$402) -> ERROR | X76: =LOOKUP($V76,'Lookup Values'!$A$2:$A$402,'Lookup Values'!D$2:D$402) -> ERROR | Y76: =LOOKUP($V76,'Lookup Values'!$A$2:$A$402,'Lookup Values'!E$2:E$402) -> ERROR | Z76: =LOOKUP($V76,'Lookup Values'!$A$2:$A$402,'Lookup Values'!F$2:F$402) -> ERROR | AA76: =LOOKUP($V76,'Lookup Values'!$A$2:$A$402,'Lookup Values'!G$2:G$402) -> ERROR | AB76: =LOOKUP($V76,'Lookup Values'!$A$2:$A$402,'Lookup Values'!H$2:H$402) -> ERROR | AC76: =LOOKUP($V76,'Lookup Values'!$A$2:$A$402,'Lookup Values'!I$2:I$402) -> ERROR | AD76: =LOOKUP($V76,'Lookup Values'!$A$2:$A$402,'Lookup Values'!J$2:J$402) -> ERROR | AE76: =LOOKUP($V76,'Lookup Values'!$A$2:$A$402,'Lookup Values'!K$2:K$402) -> ERROR | AF76: =LOOKUP($V76,'Lookup Values'!$A$2:$A$402,'Lookup Values'!L$2:L$402) -> ERROR | AG76: =LOOKUP($V76,'Lookup Values'!$A$2:$A$402,'Lookup Values'!M$2:M$402) -> ERROR | AI76: 0 | AJ76: 0 | AK76: 0 | AL76: 0 | AM76: 0 | AN76: 0 | AO76: 0 | AP76: 0 | AQ76: 0 | AR76: 0 | AS76: 0 | AT76: 0 | AU76: 0 | AV76: 0 | AW76: 0 | AX76: 0 | AY76: 0 | AZ76: 0 | BA76: 0 | BB76: 0 | BC76: 0 | BD76: 0 | BE76: 0 | BF76: 0 | BG76: 0 | BH76: 0 | BI76: 0 | BJ76: 0 | BK76: 0 | BL76: 0 | BM76: 0 | BN76: 0 | BO76: 0 | BP76: 0 | BQ76: 0 | BR76: 0 | BS76: 0 | BT76: 0 | BU76: 0 | BV76: 0 | BW76: 0 | BX76: 0 | BY76: 0 | BZ76: 0 | CA76: 0 | CB76: 0 | CC76: 0 | CD76: 0 | CE76: 0 | CF76: 0 | CG76: 0 | CH76: 0 | CI76: 0 | CJ76: 0 | CK76: 0 | CL76: 0 | CM76: 0 | CN76: 0 | CO76: 0 | CP76: 0 | CQ76: 0 | CR76: 0 | CS76: 0 | CT76: 0 | CU76: 0 | CV76: 0 | CW76: 0 | CX76: 0 | CY76: 0 | CZ76: 0 | DA76: 0 | DB76: 0 | DC76: 0 | DD76: 0 | DE76: 0 | DF76: 0 | DG76: 0 | DH76: 0 | DI76: 0 | DJ76: 0 | DK76: 0 | DL76: 0 | DM76: 0 | DN76: 0 | DO76: 0 | DP76: 0 | DQ76: 0 | DR76: 0 | DS76: 0 | DT76: 0 | DU76: 0 | DV76: 0 | DW76: 0 | DX76: 0 | DY76: 0 | DZ76: 0 | EA76: 0 | EB76: 0 | EC76: 0 | ED76: 0 | EE76: 0 | EF76: 0 | EG76: 0 | EH76: 0 | EI76: 0 | EJ76: 0 | EK76: 0 | EL76: 0 | EM76: 0 | EN76: 0 | EO76: 0 | EP76: 0 | EQ76: 0 | ER76: 0 | ES76: 0 | ET76: 0 | EU76: 0 | EV76: 0 | EW76: 0 | EX76: 0 | EY76: 0 | EZ76: 0 | FA76: 0 | FB76: 0 | FC76: 0 | FD76: 0 | FE76: 0 | FF76: 0 | FG76: 0 | FH76: 0 | FI76: 0 | FJ76: 0 | FK76: 0 | FL76: 0 | FM76: 0 | FN76: 0
V77: =IF(T77="",402,MATCH(T77,'Lookup Values'!$B$1:$B$402,0)) -> 402 | W77: =LOOKUP($V77,'Lookup Values'!$A$2:$A$402,'Lookup Values'!C$2:C$402) -> ERROR | X77: =LOOKUP($V77,'Lookup Values'!$A$2:$A$402,'Lookup Values'!D$2:D$402) -> ERROR | Y77: =LOOKUP($V77,'Lookup Values'!$A$2:$A$402,'Lookup Values'!E$2:E$402) -> ERROR | Z77: =LOOKUP($V77,'Lookup Values'!$A$2:$A$402,'Lookup Values'!F$2:F$402) -> ERROR | AA77: =LOOKUP($V77,'Lookup Values'!$A$2:$A$402,'Lookup Values'!G$2:G$402) -> ERROR | AB77: =LOOKUP($V77,'Lookup Values'!$A$2:$A$402,'Lookup Values'!H$2:H$402) -> ERROR | AC77: =LOOKUP($V77,'Lookup Values'!$A$2:$A$402,'Lookup Values'!I$2:I$402) -> ERROR | AD77: =LOOKUP($V77,'Lookup Values'!$A$2:$A$402,'Lookup Values'!J$2:J$402) -> ERROR | AE77: =LOOKUP($V77,'Lookup Values'!$A$2:$A$402,'Lookup Values'!K$2:K$402) -> ERROR | AF77: =LOOKUP($V77,'Lookup Values'!$A$2:$A$402,'Lookup Values'!L$2:L$402) -> ERROR | AG77: =LOOKUP($V77,'Lookup Values'!$A$2:$A$402,'Lookup Values'!M$2:M$402) -> ERROR | AI77: 0 | AJ77: 0 | AK77: 0 | AL77: 0 | AM77: 0 | AN77: 0 | AO77: 0 | AP77: 0 | AQ77: 0 | AR77: 0 | AS77: 0 | AT77: 0 | AU77: 0 | AV77: 0 | AW77: 0 | AX77: 0 | AY77: 0 | AZ77: 0 | BA77: 0 | BB77: 0 | BC77: 0 | BD77: 0 | BE77: 0 | BF77: 0 | BG77: 0 | BH77: 0 | BI77: 0 | BJ77: 0 | BK77: 0 | BL77: 0 | BM77: 0 | BN77: 0 | BO77: 0 | BP77: 0 | BQ77: 0 | BR77: 0 | BS77: 0 | BT77: 0 | BU77: 0 | BV77: 0 | BW77: 0 | BX77: 0 | BY77: 0 | BZ77: 0 | CA77: 0 | CB77: 0 | CC77: 0 | CD77: 0 | CE77: 0 | CF77: 0 | CG77: 0 | CH77: 0 | CI77: 0 | CJ77: 0 | CK77: 0 | CL77: 0 | CM77: 0 | CN77: 0 | CO77: 0 | CP77: 0 | CQ77: 0 | CR77: 0 | CS77: 0 | CT77: 0 | CU77: 0 | CV77: 0 | CW77: 0 | CX77: 0 | CY77: 0 | CZ77: 0 | DA77: 0 | DB77: 0 | DC77: 0 | DD77: 0 | DE77: 0 | DF77: 0 | DG77: 0 | DH77: 0 | DI77: 0 | DJ77: 0 | DK77: 0 | DL77: 0 | DM77: 0 | DN77: 0 | DO77: 0 | DP77: 0 | DQ77: 0 | DR77: 0 | DS77: 0 | DT77: 0 | DU77: 0 | DV77: 0 | DW77: 0 | DX77: 0 | DY77: 0 | DZ77: 0 | EA77: 0 | EB77: 0 | EC77: 0 | ED77: 0 | EE77: 0 | EF77: 0 | EG77: 0 | EH77: 0 | EI77: 0 | EJ77: 0 | EK77: 0 | EL77: 0 | EM77: 0 | EN77: 0 | EO77: 0 | EP77: 0 | EQ77: 0 | ER77: 0 | ES77: 0 | ET77: 0 | EU77: 0 | EV77: 0 | EW77: 0 | EX77: 0 | EY77: 0 | EZ77: 0 | FA77: 0 | FB77: 0 | FC77: 0 | FD77: 0 | FE77: 0 | FF77: 0 | FG77: 0 | FH77: 0 | FI77: 0 | FJ77: 0 | FK77: 0 | FL77: 0 | FM77: 0 | FN77: 0
V78: =IF(T78="",402,MATCH(T78,'Lookup Values'!$B$1:$B$402,0)) -> 402 | W78: =LOOKUP($V78,'Lookup Values'!$A$2:$A$402,'Lookup Values'!C$2:C$402) -> ERROR | X78: =LOOKUP($V78,'Lookup Values'!$A$2:$A$402,'Lookup Values'!D$2:D$402) -> ERROR | Y78: =LOOKUP($V78,'Lookup Values'!$A$2:$A$402,'Lookup Values'!E$2:E$402) -> ERROR | Z78: =LOOKUP($V78,'Lookup Values'!$A$2:$A$402,'Lookup Values'!F$2:F$402) -> ERROR | AA78: =LOOKUP($V78,'Lookup Values'!$A$2:$A$402,'Lookup Values'!G$2:G$402) -> ERROR | AB78: =LOOKUP($V78,'Lookup Values'!$A$2:$A$402,'Lookup Values'!H$2:H$402) -> ERROR | AC78: =LOOKUP($V78,'Lookup Values'!$A$2:$A$402,'Lookup Values'!I$2:I$402) -> ERROR | AD78: =LOOKUP($V78,'Lookup Values'!$A$2:$A$402,'Lookup Values'!J$2:J$402) -> ERROR | AE78: =LOOKUP($V78,'Lookup Values'!$A$2:$A$402,'Lookup Values'!K$2:K$402) -> ERROR | AF78: =LOOKUP($V78,'Lookup Values'!$A$2:$A$402,'Lookup Values'!L$2:L$402) -> ERROR | AG78: =LOOKUP($V78,'Lookup Values'!$A$2:$A$402,'Lookup Values'!M$2:M$402) -> ERROR | AI78: 0 | AJ78: 0 | AK78: 0 | AL78: 0 | AM78: 0 | AN78: 0 | AO78: 0 | AP78: 0 | AQ78: 0 | AR78: 0 | AS78: 0 | AT78: 0 | AU78: 0 | AV78: 0 | AW78: 0 | AX78: 0 | AY78: 0 | AZ78: 0 | BA78: 0 | BB78: 0 | BC78: 0 | BD78: 0 | BE78: 0 | BF78: 0 | BG78: 0 | BH78: 0 | BI78: 0 | BJ78: 0 | BK78: 0 | BL78: 0 | BM78: 0 | BN78: 0 | BO78: 0 | BP78: 0 | BQ78: 0 | BR78: 0 | BS78: 0 | BT78: 0 | BU78: 0 | BV78: 0 | BW78: 0 | BX78: 0 | BY78: 0 | BZ78: 0 | CA78: 0 | CB78: 0 | CC78: 0 | CD78: 0 | CE78: 0 | CF78: 0 | CG78: 0 | CH78: 0 | CI78: 0 | CJ78: 0 | CK78: 0 | CL78: 0 | CM78: 0 | CN78: 0 | CO78: 0 | CP78: 0 | CQ78: 0 | CR78: 0 | CS78: 0 | CT78: 0 | CU78: 0 | CV78: 0 | CW78: 0 | CX78: 0 | CY78: 0 | CZ78: 0 | DA78: 0 | DB78: 0 | DC78: 0 | DD78: 0 | DE78: 0 | DF78: 0 | DG78: 0 | DH78: 0 | DI78: 0 | DJ78: 0 | DK78: 0 | DL78: 0 | DM78: 0 | DN78: 0 | DO78: 0 | DP78: 0 | DQ78: 0 | DR78: 0 | DS78: 0 | DT78: 0 | DU78: 0 | DV78: 0 | DW78: 0 | DX78: 0 | DY78: 0 | DZ78: 0 | EA78: 0 | EB78: 0 | EC78: 0 | ED78: 0 | EE78: 0 | EF78: 0 | EG78: 0 | EH78: 0 | EI78: 0 | EJ78: 0 | EK78: 0 | EL78: 0 | EM78: 0 | EN78: 0 | EO78: 0 | EP78: 0 | EQ78: 0 | ER78: 0 | ES78: 0 | ET78: 0 | EU78: 0 | EV78: 0 | EW78: 0 | EX78: 0 | EY78: 0 | EZ78: 0 | FA78: 0 | FB78: 0 | FC78: 0 | FD78: 0 | FE78: 0 | FF78: 0 | FG78: 0 | FH78: 0 | FI78: 0 | FJ78: 0 | FK78: 0 | FL78: 0 | FM78: 0 | FN78: 0
V79: =IF(T79="",402,MATCH(T79,'Lookup Values'!$B$1:$B$402,0)) -> 402 | W79: =LOOKUP($V79,'Lookup Values'!$A$2:$A$402,'Lookup Values'!C$2:C$402) -> ERROR | X79: =LOOKUP($V79,'Lookup Values'!$A$2:$A$402,'Lookup Values'!D$2:D$402) -> ERROR | Y79: =LOOKUP($V79,'Lookup Values'!$A$2:$A$402,'Lookup Values'!E$2:E$402) -> ERROR | Z79: =LOOKUP($V79,'Lookup Values'!$A$2:$A$402,'Lookup Values'!F$2:F$402) -> ERROR | AA79: =LOOKUP($V79,'Lookup Values'!$A$2:$A$402,'Lookup Values'!G$2:G$402) -> ERROR | AB79: =LOOKUP($V79,'Lookup Values'!$A$2:$A$402,'Lookup Values'!H$2:H$402) -> ERROR | AC79: =LOOKUP($V79,'Lookup Values'!$A$2:$A$402,'Lookup Values'!I$2:I$402) -> ERROR | AD79: =LOOKUP($V79,'Lookup Values'!$A$2:$A$402,'Lookup Values'!J$2:J$402) -> ERROR | AE79: =LOOKUP($V79,'Lookup Values'!$A$2:$A$402,'Lookup Values'!K$2:K$402) -> ERROR | AF79: =LOOKUP($V79,'Lookup Values'!$A$2:$A$402,'Lookup Values'!L$2:L$402) -> ERROR | AG79: =LOOKUP($V79,'Lookup Values'!$A$2:$A$402,'Lookup Values'!M$2:M$402) -> ERROR | AI79: 0 | AJ79: 0 | AK79: 0 | AL79: 0 | AM79: 0 | AN79: 0 | AO79: 0 | AP79: 0 | AQ79: 0 | AR79: 0 | AS79: 0 | AT79: 0 | AU79: 0 | AV79: 0 | AW79: 0 | AX79: 0 | AY79: 0 | AZ79: 0 | BA79: 0 | BB79: 0 | BC79: 0 | BD79: 0 | BE79: 0 | BF79: 0 | BG79: 0 | BH79: 0 | BI79: 0 | BJ79: 0 | BK79: 0 | BL79: 0 | BM79: 0 | BN79: 0 | BO79: 0 | BP79: 0 | BQ79: 0 | BR79: 0 | BS79: 0 | BT79: 0 | BU79: 0 | BV79: 0 | BW79: 0 | BX79: 0 | BY79: 0 | BZ79: 0 | CA79: 0 | CB79: 0 | CC79: 0 | CD79: 0 | CE79: 0 | CF79: 0 | CG79: 0 | CH79: 0 | CI79: 0 | CJ79: 0 | CK79: 0 | CL79: 0 | CM79: 0 | CN79: 0 | CO79: 0 | CP79: 0 | CQ79: 0 | CR79: 0 | CS79: 0 | CT79: 0 | CU79: 0 | CV79: 0 | CW79: 0 | CX79: 0 | CY79: 0 | CZ79: 0 | DA79: 0 | DB79: 0 | DC79: 0 | DD79: 0 | DE79: 0 | DF79: 0 | DG79: 0 | DH79: 0 | DI79: 0 | DJ79: 0 | DK79: 0 | DL79: 0 | DM79: 0 | DN79: 0 | DO79: 0 | DP79: 0 | DQ79: 0 | DR79: 0 | DS79: 0 | DT79: 0 | DU79: 0 | DV79: 0 | DW79: 0 | DX79: 0 | DY79: 0 | DZ79: 0 | EA79: 0 | EB79: 0 | EC79: 0 | ED79: 0 | EE79: 0 | EF79: 0 | EG79: 0 | EH79: 0 | EI79: 0 | EJ79: 0 | EK79: 0 | EL79: 0 | EM79: 0 | EN79: 0 | EO79: 0 | EP79: 0 | EQ79: 0 | ER79: 0 | ES79: 0 | ET79: 0 | EU79: 0 | EV79: 0 | EW79: 0 | EX79: 0 | EY79: 0 | EZ79: 0 | FA79: 0 | FB79: 0 | FC79: 0 | FD79: 0 | FE79: 0 | FF79: 0 | FG79: 0 | FH79: 0 | FI79: 0 | FJ79: 0 | FK79: 0 | FL79: 0 | FM79: 0 | FN79: 0
V80: =IF(T80="",402,MATCH(T80,'Lookup Values'!$B$1:$B$402,0)) -> 402 | W80: =LOOKUP($V80,'Lookup Values'!$A$2:$A$402,'Lookup Values'!C$2:C$402) -> ERROR | X80: =LOOKUP($V80,'Lookup Values'!$A$2:$A$402,'Lookup Values'!D$2:D$402) -> ERROR | Y80: =LOOKUP($V80,'Lookup Values'!$A$2:$A$402,'Lookup Values'!E$2:E$402) -> ERROR | Z80: =LOOKUP($V80,'Lookup Values'!$A$2:$A$402,'Lookup Values'!F$2:F$402) -> ERROR | AA80: =LOOKUP($V80,'Lookup Values'!$A$2:$A$402,'Lookup Values'!G$2:G$402) -> ERROR | AB80: =LOOKUP($V80,'Lookup Values'!$A$2:$A$402,'Lookup Values'!H$2:H$402) -> ERROR | AC80: =LOOKUP($V80,'Lookup Values'!$A$2:$A$402,'Lookup Values'!I$2:I$402) -> ERROR | AD80: =LOOKUP($V80,'Lookup Values'!$A$2:$A$402,'Lookup Values'!J$2:J$402) -> ERROR | AE80: =LOOKUP($V80,'Lookup Values'!$A$2:$A$402,'Lookup Values'!K$2:K$402) -> ERROR | AF80: =LOOKUP($V80,'Lookup Values'!$A$2:$A$402,'Lookup Values'!L$2:L$402) -> ERROR | AG80: =LOOKUP($V80,'Lookup Values'!$A$2:$A$402,'Lookup Values'!M$2:M$402) -> ERROR | AI80: 0 | AJ80: 0 | AK80: 0 | AL80: 0 | AM80: 0 | AN80: 0 | AO80: 0 | AP80: 0 | AQ80: 0 | AR80: 0 | AS80: 0 | AT80: 0 | AU80: 0 | AV80: 0 | AW80: 0 | AX80: 0 | AY80: 0 | AZ80: 0 | BA80: 0 | BB80: 0 | BC80: 0 | BD80: 0 | BE80: 0 | BF80: 0 | BG80: 0 | BH80: 0 | BI80: 0 | BJ80: 0 | BK80: 0 | BL80: 0 | BM80: 0 | BN80: 0 | BO80: 0 | BP80: 0 | BQ80: 0 | BR80: 0 | BS80: 0 | BT80: 0 | BU80: 0 | BV80: 0 | BW80: 0 | BX80: 0 | BY80: 0 | BZ80: 0 | CA80: 0 | CB80: 0 | CC80: 0 | CD80: 0 | CE80: 0 | CF80: 0 | CG80: 0 | CH80: 0 | CI80: 0 | CJ80: 0 | CK80: 0 | CL80: 0 | CM80: 0 | CN80: 0 | CO80: 0 | CP80: 0 | CQ80: 0 | CR80: 0 | CS80: 0 | CT80: 0 | CU80: 0 | CV80: 0 | CW80: 0 | CX80: 0 | CY80: 0 | CZ80: 0 | DA80: 0 | DB80: 0 | DC80: 0 | DD80: 0 | DE80: 0 | DF80: 0 | DG80: 0 | DH80: 0 | DI80: 0 | DJ80: 0 | DK80: 0 | DL80: 0 | DM80: 0 | DN80: 0 | DO80: 0 | DP80: 0 | DQ80: 0 | DR80: 0 | DS80: 0 | DT80: 0 | DU80: 0 | DV80: 0 | DW80: 0 | DX80: 0 | DY80: 0 | DZ80: 0 | EA80: 0 | EB80: 0 | EC80: 0 | ED80: 0 | EE80: 0 | EF80: 0 | EG80: 0 | EH80: 0 | EI80: 0 | EJ80: 0 | EK80: 0 | EL80: 0 | EM80: 0 | EN80: 0 | EO80: 0 | EP80: 0 | EQ80: 0 | ER80: 0 | ES80: 0 | ET80: 0 | EU80: 0 | EV80: 0 | EW80: 0 | EX80: 0 | EY80: 0 | EZ80: 0 | FA80: 0 | FB80: 0 | FC80: 0 | FD80: 0 | FE80: 0 | FF80: 0 | FG80: 0 | FH80: 0 | FI80: 0 | FJ80: 0 | FK80: 0 | FL80: 0 | FM80: 0 | FN80: 0
V81: =IF(T81="",402,MATCH(T81,'Lookup Values'!$B$1:$B$402,0)) -> 402 | W81: =LOOKUP($V81,'Lookup Values'!$A$2:$A$402,'Lookup Values'!C$2:C$402) -> ERROR | X81: =LOOKUP($V81,'Lookup Values'!$A$2:$A$402,'Lookup Values'!D$2:D$402) -> ERROR | Y81: =LOOKUP($V81,'Lookup Values'!$A$2:$A$402,'Lookup Values'!E$2:E$402) -> ERROR | Z81: =LOOKUP($V81,'Lookup Values'!$A$2:$A$402,'Lookup Values'!F$2:F$402) -> ERROR | AA81: =LOOKUP($V81,'Lookup Values'!$A$2:$A$402,'Lookup Values'!G$2:G$402) -> ERROR | AB81: =LOOKUP($V81,'Lookup Values'!$A$2:$A$402,'Lookup Values'!H$2:H$402) -> ERROR | AC81: =LOOKUP($V81,'Lookup Values'!$A$2:$A$402,'Lookup Values'!I$2:I$402) -> ERROR | AD81: =LOOKUP($V81,'Lookup Values'!$A$2:$A$402,'Lookup Values'!J$2:J$402) -> ERROR | AE81: =LOOKUP($V81,'Lookup Values'!$A$2:$A$402,'Lookup Values'!K$2:K$402) -> ERROR | AF81: =LOOKUP($V81,'Lookup Values'!$A$2:$A$402,'Lookup Values'!L$2:L$402) -> ERROR | AG81: =LOOKUP($V81,'Lookup Values'!$A$2:$A$402,'Lookup Values'!M$2:M$402) -> ERROR | AI81: 0 | AJ81: 0 | AK81: 0 | AL81: 0 | AM81: 0 | AN81: 0 | AO81: 0 | AP81: 0 | AQ81: 0 | AR81: 0 | AS81: 0 | AT81: 0 | AU81: 0 | AV81: 0 | AW81: 0 | AX81: 0 | AY81: 0 | AZ81: 0 | BA81: 0 | BB81: 0 | BC81: 0 | BD81: 0 | BE81: 0 | BF81: 0 | BG81: 0 | BH81: 0 | BI81: 0 | BJ81: 0 | BK81: 0 | BL81: 0 | BM81: 0 | BN81: 0 | BO81: 0 | BP81: 0 | BQ81: 0 | BR81: 0 | BS81: 0 | BT81: 0 | BU81: 0 | BV81: 0 | BW81: 0 | BX81: 0 | BY81: 0 | BZ81: 0 | CA81: 0 | CB81: 0 | CC81: 0 | CD81: 0 | CE81: 0 | CF81: 0 | CG81: 0 | CH81: 0 | CI81: 0 | CJ81: 0 | CK81: 0 | CL81: 0 | CM81: 0 | CN81: 0 | CO81: 0 | CP81: 0 | CQ81: 0 | CR81: 0 | CS81: 0 | CT81: 0 | CU81: 0 | CV81: 0 | CW81: 0 | CX81: 0 | CY81: 0 | CZ81: 0 | DA81: 0 | DB81: 0 | DC81: 0 | DD81: 0 | DE81: 0 | DF81: 0 | DG81: 0 | DH81: 0 | DI81: 0 | DJ81: 0 | DK81: 0 | DL81: 0 | DM81: 0 | DN81: 0 | DO81: 0 | DP81: 0 | DQ81: 0 | DR81: 0 | DS81: 0 | DT81: 0 | DU81: 0 | DV81: 0 | DW81: 0 | DX81: 0 | DY81: 0 | DZ81: 0 | EA81: 0 | EB81: 0 | EC81: 0 | ED81: 0 | EE81: 0 | EF81: 0 | EG81: 0 | EH81: 0 | EI81: 0 | EJ81: 0 | EK81: 0 | EL81: 0 | EM81: 0 | EN81: 0 | EO81: 0 | EP81: 0 | EQ81: 0 | ER81: 0 | ES81: 0 | ET81: 0 | EU81: 0 | EV81: 0 | EW81: 0 | EX81: 0 | EY81: 0 | EZ81: 0 | FA81: 0 | FB81: 0 | FC81: 0 | FD81: 0 | FE81: 0 | FF81: 0 | FG81: 0 | FH81: 0 | FI81: 0 | FJ81: 0 | FK81: 0 | FL81: 0 | FM81: 0 | FN81: 0
V82: =IF(T82="",402,MATCH(T82,'Lookup Values'!$B$1:$B$402,0)) -> 402 | W82: =LOOKUP($V82,'Lookup Values'!$A$2:$A$402,'Lookup Values'!C$2:C$402) -> ERROR | X82: =LOOKUP($V82,'Lookup Values'!$A$2:$A$402,'Lookup Values'!D$2:D$402) -> ERROR | Y82: =LOOKUP($V82,'Lookup Values'!$A$2:$A$402,'Lookup Values'!E$2:E$402) -> ERROR | Z82: =LOOKUP($V82,'Lookup Values'!$A$2:$A$402,'Lookup Values'!F$2:F$402) -> ERROR | AA82: =LOOKUP($V82,'Lookup Values'!$A$2:$A$402,'Lookup Values'!G$2:G$402) -> ERROR | AB82: =LOOKUP($V82,'Lookup Values'!$A$2:$A$402,'Lookup Values'!H$2:H$402) -> ERROR | AC82: =LOOKUP($V82,'Lookup Values'!$A$2:$A$402,'Lookup Values'!I$2:I$402) -> ERROR | AD82: =LOOKUP($V82,'Lookup Values'!$A$2:$A$402,'Lookup Values'!J$2:J$402) -> ERROR | AE82: =LOOKUP($V82,'Lookup Values'!$A$2:$A$402,'Lookup Values'!K$2:K$402) -> ERROR | AF82: =LOOKUP($V82,'Lookup Values'!$A$2:$A$402,'Lookup Values'!L$2:L$402) -> ERROR | AG82: =LOOKUP($V82,'Lookup Values'!$A$2:$A$402,'Lookup Values'!M$2:M$402) -> ERROR | AI82: 0 | AJ82: 0 | AK82: 0 | AL82: 0 | AM82: 0 | AN82: 0 | AO82: 0 | AP82: 0 | AQ82: 0 | AR82: 0 | AS82: 0 | AT82: 0 | AU82: 0 | AV82: 0 | AW82: 0 | AX82: 0 | AY82: 0 | AZ82: 0 | BA82: 0 | BB82: 0 | BC82: 0 | BD82: 0 | BE82: 0 | BF82: 0 | BG82: 0 | BH82: 0 | BI82: 0 | BJ82: 0 | BK82: 0 | BL82: 0 | BM82: 0 | BN82: 0 | BO82: 0 | BP82: 0 | BQ82: 0 | BR82: 0 | BS82: 0 | BT82: 0 | BU82: 0 | BV82: 0 | BW82: 0 | BX82: 0 | BY82: 0 | BZ82: 0 | CA82: 0 | CB82: 0 | CC82: 0 | CD82: 0 | CE82: 0 | CF82: 0 | CG82: 0 | CH82: 0 | CI82: 0 | CJ82: 0 | CK82: 0 | CL82: 0 | CM82: 0 | CN82: 0 | CO82: 0 | CP82: 0 | CQ82: 0 | CR82: 0 | CS82: 0 | CT82: 0 | CU82: 0 | CV82: 0 | CW82: 0 | CX82: 0 | CY82: 0 | CZ82: 0 | DA82: 0 | DB82: 0 | DC82: 0 | DD82: 0 | DE82: 0 | DF82: 0 | DG82: 0 | DH82: 0 | DI82: 0 | DJ82: 0 | DK82: 0 | DL82: 0 | DM82: 0 | DN82: 0 | DO82: 0 | DP82: 0 | DQ82: 0 | DR82: 0 | DS82: 0 | DT82: 0 | DU82: 0 | DV82: 0 | DW82: 0 | DX82: 0 | DY82: 0 | DZ82: 0 | EA82: 0 | EB82: 0 | EC82: 0 | ED82: 0 | EE82: 0 | EF82: 0 | EG82: 0 | EH82: 0 | EI82: 0 | EJ82: 0 | EK82: 0 | EL82: 0 | EM82: 0 | EN82: 0 | EO82: 0 | EP82: 0 | EQ82: 0 | ER82: 0 | ES82: 0 | ET82: 0 | EU82: 0 | EV82: 0 | EW82: 0 | EX82: 0 | EY82: 0 | EZ82: 0 | FA82: 0 | FB82: 0 | FC82: 0 | FD82: 0 | FE82: 0 | FF82: 0 | FG82: 0 | FH82: 0 | FI82: 0 | FJ82: 0 | FK82: 0 | FL82: 0 | FM82: 0 | FN82: 0
V83: =IF(T83="",402,MATCH(T83,'Lookup Values'!$B$1:$B$402,0)) -> 402 | W83: =LOOKUP($V83,'Lookup Values'!$A$2:$A$402,'Lookup Values'!C$2:C$402) -> ERROR | X83: =LOOKUP($V83,'Lookup Values'!$A$2:$A$402,'Lookup Values'!D$2:D$402) -> ERROR | Y83: =LOOKUP($V83,'Lookup Values'!$A$2:$A$402,'Lookup Values'!E$2:E$402) -> ERROR | Z83: =LOOKUP($V83,'Lookup Values'!$A$2:$A$402,'Lookup Values'!F$2:F$402) -> ERROR | AA83: =LOOKUP($V83,'Lookup Values'!$A$2:$A$402,'Lookup Values'!G$2:G$402) -> ERROR | AB83: =LOOKUP($V83,'Lookup Values'!$A$2:$A$402,'Lookup Values'!H$2:H$402) -> ERROR | AC83: =LOOKUP($V83,'Lookup Values'!$A$2:$A$402,'Lookup Values'!I$2:I$402) -> ERROR | AD83: =LOOKUP($V83,'Lookup Values'!$A$2:$A$402,'Lookup Values'!J$2:J$402) -> ERROR | AE83: =LOOKUP($V83,'Lookup Values'!$A$2:$A$402,'Lookup Values'!K$2:K$402) -> ERROR | AF83: =LOOKUP($V83,'Lookup Values'!$A$2:$A$402,'Lookup Values'!L$2:L$402) -> ERROR | AG83: =LOOKUP($V83,'Lookup Values'!$A$2:$A$402,'Lookup Values'!M$2:M$402) -> ERROR | AI83: 0 | AJ83: 0 | AK83: 0 | AL83: 0 | AM83: 0 | AN83: 0 | AO83: 0 | AP83: 0 | AQ83: 0 | AR83: 0 | AS83: 0 | AT83: 0 | AU83: 0 | AV83: 0 | AW83: 0 | AX83: 0 | AY83: 0 | AZ83: 0 | BA83: 0 | BB83: 0 | BC83: 0 | BD83: 0 | BE83: 0 | BF83: 0 | BG83: 0 | BH83: 0 | BI83: 0 | BJ83: 0 | BK83: 0 | BL83: 0 | BM83: 0 | BN83: 0 | BO83: 0 | BP83: 0 | BQ83: 0 | BR83: 0 | BS83: 0 | BT83: 0 | BU83: 0 | BV83: 0 | BW83: 0 | BX83: 0 | BY83: 0 | BZ83: 0 | CA83: 0 | CB83: 0 | CC83: 0 | CD83: 0 | CE83: 0 | CF83: 0 | CG83: 0 | CH83: 0 | CI83: 0 | CJ83: 0 | CK83: 0 | CL83: 0 | CM83: 0 | CN83: 0 | CO83: 0 | CP83: 0 | CQ83: 0 | CR83: 0 | CS83: 0 | CT83: 0 | CU83: 0 | CV83: 0 | CW83: 0 | CX83: 0 | CY83: 0 | CZ83: 0 | DA83: 0 | DB83: 0 | DC83: 0 | DD83: 0 | DE83: 0 | DF83: 0 | DG83: 0 | DH83: 0 | DI83: 0 | DJ83: 0 | DK83: 0 | DL83: 0 | DM83: 0 | DN83: 0 | DO83: 0 | DP83: 0 | DQ83: 0 | DR83: 0 | DS83: 0 | DT83: 0 | DU83: 0 | DV83: 0 | DW83: 0 | DX83: 0 | DY83: 0 | DZ83: 0 | EA83: 0 | EB83: 0 | EC83: 0 | ED83: 0 | EE83: 0 | EF83: 0 | EG83: 0 | EH83: 0 | EI83: 0 | EJ83: 0 | EK83: 0 | EL83: 0 | EM83: 0 | EN83: 0 | EO83: 0 | EP83: 0 | EQ83: 0 | ER83: 0 | ES83: 0 | ET83: 0 | EU83: 0 | EV83: 0 | EW83: 0 | EX83: 0 | EY83: 0 | EZ83: 0 | FA83: 0 | FB83: 0 | FC83: 0 | FD83: 0 | FE83: 0 | FF83: 0 | FG83: 0 | FH83: 0 | FI83: 0 | FJ83: 0 | FK83: 0 | FL83: 0 | FM83: 0 | FN83: 0
V84: =IF(T84="",402,MATCH(T84,'Lookup Values'!$B$1:$B$402,0)) -> 402 | W84: =LOOKUP($V84,'Lookup Values'!$A$2:$A$402,'Lookup Values'!C$2:C$402) -> ERROR | X84: =LOOKUP($V84,'Lookup Values'!$A$2:$A$402,'Lookup Values'!D$2:D$402) -> ERROR | Y84: =LOOKUP($V84,'Lookup Values'!$A$2:$A$402,'Lookup Values'!E$2:E$402) -> ERROR | Z84: =LOOKUP($V84,'Lookup Values'!$A$2:$A$402,'Lookup Values'!F$2:F$402) -> ERROR | AA84: =LOOKUP($V84,'Lookup Values'!$A$2:$A$402,'Lookup Values'!G$2:G$402) -> ERROR | AB84: =LOOKUP($V84,'Lookup Values'!$A$2:$A$402,'Lookup Values'!H$2:H$402) -> ERROR | AC84: =LOOKUP($V84,'Lookup Values'!$A$2:$A$402,'Lookup Values'!I$2:I$402) -> ERROR | AD84: =LOOKUP($V84,'Lookup Values'!$A$2:$A$402,'Lookup Values'!J$2:J$402) -> ERROR | AE84: =LOOKUP($V84,'Lookup Values'!$A$2:$A$402,'Lookup Values'!K$2:K$402) -> ERROR | AF84: =LOOKUP($V84,'Lookup Values'!$A$2:$A$402,'Lookup Values'!L$2:L$402) -> ERROR | AG84: =LOOKUP($V84,'Lookup Values'!$A$2:$A$402,'Lookup Values'!M$2:M$402) -> ERROR | AI84: 0 | AJ84: 0 | AK84: 0 | AL84: 0 | AM84: 0 | AN84: 0 | AO84: 0 | AP84: 0 | AQ84: 0 | AR84: 0 | AS84: 0 | AT84: 0 | AU84: 0 | AV84: 0 | AW84: 0 | AX84: 0 | AY84: 0 | AZ84: 0 | BA84: 0 | BB84: 0 | BC84: 0 | BD84: 0 | BE84: 0 | BF84: 0 | BG84: 0 | BH84: 0 | BI84: 0 | BJ84: 0 | BK84: 0 | BL84: 0 | BM84: 0 | BN84: 0 | BO84: 0 | BP84: 0 | BQ84: 0 | BR84: 0 | BS84: 0 | BT84: 0 | BU84: 0 | BV84: 0 | BW84: 0 | BX84: 0 | BY84: 0 | BZ84: 0 | CA84: 0 | CB84: 0 | CC84: 0 | CD84: 0 | CE84: 0 | CF84: 0 | CG84: 0 | CH84: 0 | CI84: 0 | CJ84: 0 | CK84: 0 | CL84: 0 | CM84: 0 | CN84: 0 | CO84: 0 | CP84: 0 | CQ84: 0 | CR84: 0 | CS84: 0 | CT84: 0 | CU84: 0 | CV84: 0 | CW84: 0 | CX84: 0 | CY84: 0 | CZ84: 0 | DA84: 0 | DB84: 0 | DC84: 0 | DD84: 0 | DE84: 0 | DF84: 0 | DG84: 0 | DH84: 0 | DI84: 0 | DJ84: 0 | DK84: 0 | DL84: 0 | DM84: 0 | DN84: 0 | DO84: 0 | DP84: 0 | DQ84: 0 | DR84: 0 | DS84: 0 | DT84: 0 | DU84: 0 | DV84: 0 | DW84: 0 | DX84: 0 | DY84: 0 | DZ84: 0 | EA84: 0 | EB84: 0 | EC84: 0 | ED84: 0 | EE84: 0 | EF84: 0 | EG84: 0 | EH84: 0 | EI84: 0 | EJ84: 0 | EK84: 0 | EL84: 0 | EM84: 0 | EN84: 0 | EO84: 0 | EP84: 0 | EQ84: 0 | ER84: 0 | ES84: 0 | ET84: 0 | EU84: 0 | EV84: 0 | EW84: 0 | EX84: 0 | EY84: 0 | EZ84: 0 | FA84: 0 | FB84: 0 | FC84: 0 | FD84: 0 | FE84: 0 | FF84: 0 | FG84: 0 | FH84: 0 | FI84: 0 | FJ84: 0 | FK84: 0 | FL84: 0 | FM84: 0 | FN84: 0
V85: =IF(T85="",402,MATCH(T85,'Lookup Values'!$B$1:$B$402,0)) -> 402 | W85: =LOOKUP($V85,'Lookup Values'!$A$2:$A$402,'Lookup Values'!C$2:C$402) -> ERROR | X85: =LOOKUP($V85,'Lookup Values'!$A$2:$A$402,'Lookup Values'!D$2:D$402) -> ERROR | Y85: =LOOKUP($V85,'Lookup Values'!$A$2:$A$402,'Lookup Values'!E$2:E$402) -> ERROR | Z85: =LOOKUP($V85,'Lookup Values'!$A$2:$A$402,'Lookup Values'!F$2:F$402) -> ERROR | AA85: =LOOKUP($V85,'Lookup Values'!$A$2:$A$402,'Lookup Values'!G$2:G$402) -> ERROR | AB85: =LOOKUP($V85,'Lookup Values'!$A$2:$A$402,'Lookup Values'!H$2:H$402) -> ERROR | AC85: =LOOKUP($V85,'Lookup Values'!$A$2:$A$402,'Lookup Values'!I$2:I$402) -> ERROR | AD85: =LOOKUP($V85,'Lookup Values'!$A$2:$A$402,'Lookup Values'!J$2:J$402) -> ERROR | AE85: =LOOKUP($V85,'Lookup Values'!$A$2:$A$402,'Lookup Values'!K$2:K$402) -> ERROR | AF85: =LOOKUP($V85,'Lookup Values'!$A$2:$A$402,'Lookup Values'!L$2:L$402) -> ERROR | AG85: =LOOKUP($V85,'Lookup Values'!$A$2:$A$402,'Lookup Values'!M$2:M$402) -> ERROR | AI85: 0 | AJ85: 0 | AK85: 0 | AL85: 0 | AM85: 0 | AN85: 0 | AO85: 0 | AP85: 0 | AQ85: 0 | AR85: 0 | AS85: 0 | AT85: 0 | AU85: 0 | AV85: 0 | AW85: 0 | AX85: 0 | AY85: 0 | AZ85: 0 | BA85: 0 | BB85: 0 | BC85: 0 | BD85: 0 | BE85: 0 | BF85: 0 | BG85: 0 | BH85: 0 | BI85: 0 | BJ85: 0 | BK85: 0 | BL85: 0 | BM85: 0 | BN85: 0 | BO85: 0 | BP85: 0 | BQ85: 0 | BR85: 0 | BS85: 0 | BT85: 0 | BU85: 0 | BV85: 0 | BW85: 0 | BX85: 0 | BY85: 0 | BZ85: 0 | CA85: 0 | CB85: 0 | CC85: 0 | CD85: 0 | CE85: 0 | CF85: 0 | CG85: 0 | CH85: 0 | CI85: 0 | CJ85: 0 | CK85: 0 | CL85: 0 | CM85: 0 | CN85: 0 | CO85: 0 | CP85: 0 | CQ85: 0 | CR85: 0 | CS85: 0 | CT85: 0 | CU85: 0 | CV85: 0 | CW85: 0 | CX85: 0 | CY85: 0 | CZ85: 0 | DA85: 0 | DB85: 0 | DC85: 0 | DD85: 0 | DE85: 0 | DF85: 0 | DG85: 0 | DH85: 0 | DI85: 0 | DJ85: 0 | DK85: 0 | DL85: 0 | DM85: 0 | DN85: 0 | DO85: 0 | DP85: 0 | DQ85: 0 | DR85: 0 | DS85: 0 | DT85: 0 | DU85: 0 | DV85: 0 | DW85: 0 | DX85: 0 | DY85: 0 | DZ85: 0 | EA85: 0 | EB85: 0 | EC85: 0 | ED85: 0 | EE85: 0 | EF85: 0 | EG85: 0 | EH85: 0 | EI85: 0 | EJ85: 0 | EK85: 0 | EL85: 0 | EM85: 0 | EN85: 0 | EO85: 0 | EP85: 0 | EQ85: 0 | ER85: 0 | ES85: 0 | ET85: 0 | EU85: 0 | EV85: 0 | EW85: 0 | EX85: 0 | EY85: 0 | EZ85: 0 | FA85: 0 | FB85: 0 | FC85: 0 | FD85: 0 | FE85: 0 | FF85: 0 | FG85: 0 | FH85: 0 | FI85: 0 | FJ85: 0 | FK85: 0 | FL85: 0 | FM85: 0 | FN85: 0
V86: =IF(T86="",402,MATCH(T86,'Lookup Values'!$B$1:$B$402,0)) -> 402 | W86: =LOOKUP($V86,'Lookup Values'!$A$2:$A$402,'Lookup Values'!C$2:C$402) -> ERROR | X86: =LOOKUP($V86,'Lookup Values'!$A$2:$A$402,'Lookup Values'!D$2:D$402) -> ERROR | Y86: =LOOKUP($V86,'Lookup Values'!$A$2:$A$402,'Lookup Values'!E$2:E$402) -> ERROR | Z86: =LOOKUP($V86,'Lookup Values'!$A$2:$A$402,'Lookup Values'!F$2:F$402) -> ERROR | AA86: =LOOKUP($V86,'Lookup Values'!$A$2:$A$402,'Lookup Values'!G$2:G$402) -> ERROR | AB86: =LOOKUP($V86,'Lookup Values'!$A$2:$A$402,'Lookup Values'!H$2:H$402) -> ERROR | AC86: =LOOKUP($V86,'Lookup Values'!$A$2:$A$402,'Lookup Values'!I$2:I$402) -> ERROR | AD86: =LOOKUP($V86,'Lookup Values'!$A$2:$A$402,'Lookup Values'!J$2:J$402) -> ERROR | AE86: =LOOKUP($V86,'Lookup Values'!$A$2:$A$402,'Lookup Values'!K$2:K$402) -> ERROR | AF86: =LOOKUP($V86,'Lookup Values'!$A$2:$A$402,'Lookup Values'!L$2:L$402) -> ERROR | AG86: =LOOKUP($V86,'Lookup Values'!$A$2:$A$402,'Lookup Values'!M$2:M$402) -> ERROR | AI86: 0 | AJ86: 0 | AK86: 0 | AL86: 0 | AM86: 0 | AN86: 0 | AO86: 0 | AP86: 0 | AQ86: 0 | AR86: 0 | AS86: 0 | AT86: 0 | AU86: 0 | AV86: 0 | AW86: 0 | AX86: 0 | AY86: 0 | AZ86: 0 | BA86: 0 | BB86: 0 | BC86: 0 | BD86: 0 | BE86: 0 | BF86: 0 | BG86: 0 | BH86: 0 | BI86: 0 | BJ86: 0 | BK86: 0 | BL86: 0 | BM86: 0 | BN86: 0 | BO86: 0 | BP86: 0 | BQ86: 0 | BR86: 0 | BS86: 0 | BT86: 0 | BU86: 0 | BV86: 0 | BW86: 0 | BX86: 0 | BY86: 0 | BZ86: 0 | CA86: 0 | CB86: 0 | CC86: 0 | CD86: 0 | CE86: 0 | CF86: 0 | CG86: 0 | CH86: 0 | CI86: 0 | CJ86: 0 | CK86: 0 | CL86: 0 | CM86: 0 | CN86: 0 | CO86: 0 | CP86: 0 | CQ86: 0 | CR86: 0 | CS86: 0 | CT86: 0 | CU86: 0 | CV86: 0 | CW86: 0 | CX86: 0 | CY86: 0 | CZ86: 0 | DA86: 0 | DB86: 0 | DC86: 0 | DD86: 0 | DE86: 0 | DF86: 0 | DG86: 0 | DH86: 0 | DI86: 0 | DJ86: 0 | DK86: 0 | DL86: 0 | DM86: 0 | DN86: 0 | DO86: 0 | DP86: 0 | DQ86: 0 | DR86: 0 | DS86: 0 | DT86: 0 | DU86: 0 | DV86: 0 | DW86: 0 | DX86: 0 | DY86: 0 | DZ86: 0 | EA86: 0 | EB86: 0 | EC86: 0 | ED86: 0 | EE86: 0 | EF86: 0 | EG86: 0 | EH86: 0 | EI86: 0 | EJ86: 0 | EK86: 0 | EL86: 0 | EM86: 0 | EN86: 0 | EO86: 0 | EP86: 0 | EQ86: 0 | ER86: 0 | ES86: 0 | ET86: 0 | EU86: 0 | EV86: 0 | EW86: 0 | EX86: 0 | EY86: 0 | EZ86: 0 | FA86: 0 | FB86: 0 | FC86: 0 | FD86: 0 | FE86: 0 | FF86: 0 | FG86: 0 | FH86: 0 | FI86: 0 | FJ86: 0 | FK86: 0 | FL86: 0 | FM86: 0 | FN86: 0
V87: =IF(T87="",402,MATCH(T87,'Lookup Values'!$B$1:$B$402,0)) -> 402 | W87: =LOOKUP($V87,'Lookup Values'!$A$2:$A$402,'Lookup Values'!C$2:C$402) -> ERROR | X87: =LOOKUP($V87,'Lookup Values'!$A$2:$A$402,'Lookup Values'!D$2:D$402) -> ERROR | Y87: =LOOKUP($V87,'Lookup Values'!$A$2:$A$402,'Lookup Values'!E$2:E$402) -> ERROR | Z87: =LOOKUP($V87,'Lookup Values'!$A$2:$A$402,'Lookup Values'!F$2:F$402) -> ERROR | AA87: =LOOKUP($V87,'Lookup Values'!$A$2:$A$402,'Lookup Values'!G$2:G$402) -> ERROR | AB87: =LOOKUP($V87,'Lookup Values'!$A$2:$A$402,'Lookup Values'!H$2:H$402) -> ERROR | AC87: =LOOKUP($V87,'Lookup Values'!$A$2:$A$402,'Lookup Values'!I$2:I$402) -> ERROR | AD87: =LOOKUP($V87,'Lookup Values'!$A$2:$A$402,'Lookup Values'!J$2:J$402) -> ERROR | AE87: =LOOKUP($V87,'Lookup Values'!$A$2:$A$402,'Lookup Values'!K$2:K$402) -> ERROR | AF87: =LOOKUP($V87,'Lookup Values'!$A$2:$A$402,'Lookup Values'!L$2:L$402) -> ERROR | AG87: =LOOKUP($V87,'Lookup Values'!$A$2:$A$402,'Lookup Values'!M$2:M$402) -> ERROR | AI87: 0 | AJ87: 0 | AK87: 0 | AL87: 0 | AM87: 0 | AN87: 0 | AO87: 0 | AP87: 0 | AQ87: 0 | AR87: 0 | AS87: 0 | AT87: 0 | AU87: 0 | AV87: 0 | AW87: 0 | AX87: 0 | AY87: 0 | AZ87: 0 | BA87: 0 | BB87: 0 | BC87: 0 | BD87: 0 | BE87: 0 | BF87: 0 | BG87: 0 | BH87: 0 | BI87: 0 | BJ87: 0 | BK87: 0 | BL87: 0 | BM87: 0 | BN87: 0 | BO87: 0 | BP87: 0 | BQ87: 0 | BR87: 0 | BS87: 0 | BT87: 0 | BU87: 0 | BV87: 0 | BW87: 0 | BX87: 0 | BY87: 0 | BZ87: 0 | CA87: 0 | CB87: 0 | CC87: 0 | CD87: 0 | CE87: 0 | CF87: 0 | CG87: 0 | CH87: 0 | CI87: 0 | CJ87: 0 | CK87: 0 | CL87: 0 | CM87: 0 | CN87: 0 | CO87: 0 | CP87: 0 | CQ87: 0 | CR87: 0 | CS87: 0 | CT87: 0 | CU87: 0 | CV87: 0 | CW87: 0 | CX87: 0 | CY87: 0 | CZ87: 0 | DA87: 0 | DB87: 0 | DC87: 0 | DD87: 0 | DE87: 0 | DF87: 0 | DG87: 0 | DH87: 0 | DI87: 0 | DJ87: 0 | DK87: 0 | DL87: 0 | DM87: 0 | DN87: 0 | DO87: 0 | DP87: 0 | DQ87: 0 | DR87: 0 | DS87: 0 | DT87: 0 | DU87: 0 | DV87: 0 | DW87: 0 | DX87: 0 | DY87: 0 | DZ87: 0 | EA87: 0 | EB87: 0 | EC87: 0 | ED87: 0 | EE87: 0 | EF87: 0 | EG87: 0 | EH87: 0 | EI87: 0 | EJ87: 0 | EK87: 0 | EL87: 0 | EM87: 0 | EN87: 0 | EO87: 0 | EP87: 0 | EQ87: 0 | ER87: 0 | ES87: 0 | ET87: 0 | EU87: 0 | EV87: 0 | EW87: 0 | EX87: 0 | EY87: 0 | EZ87: 0 | FA87: 0 | FB87: 0 | FC87: 0 | FD87: 0 | FE87: 0 | FF87: 0 | FG87: 0 | FH87: 0 | FI87: 0 | FJ87: 0 | FK87: 0 | FL87: 0 | FM87: 0 | FN87: 0
V88: =IF(T88="",402,MATCH(T88,'Lookup Values'!$B$1:$B$402,0)) -> 402 | W88: =LOOKUP($V88,'Lookup Values'!$A$2:$A$402,'Lookup Values'!C$2:C$402) -> ERROR | X88: =LOOKUP($V88,'Lookup Values'!$A$2:$A$402,'Lookup Values'!D$2:D$402) -> ERROR | Y88: =LOOKUP($V88,'Lookup Values'!$A$2:$A$402,'Lookup Values'!E$2:E$402) -> ERROR | Z88: =LOOKUP($V88,'Lookup Values'!$A$2:$A$402,'Lookup Values'!F$2:F$402) -> ERROR | AA88: =LOOKUP($V88,'Lookup Values'!$A$2:$A$402,'Lookup Values'!G$2:G$402) -> ERROR | AB88: =LOOKUP($V88,'Lookup Values'!$A$2:$A$402,'Lookup Values'!H$2:H$402) -> ERROR | AC88: =LOOKUP($V88,'Lookup Values'!$A$2:$A$402,'Lookup Values'!I$2:I$402) -> ERROR | AD88: =LOOKUP($V88,'Lookup Values'!$A$2:$A$402,'Lookup Values'!J$2:J$402) -> ERROR | AE88: =LOOKUP($V88,'Lookup Values'!$A$2:$A$402,'Lookup Values'!K$2:K$402) -> ERROR | AF88: =LOOKUP($V88,'Lookup Values'!$A$2:$A$402,'Lookup Values'!L$2:L$402) -> ERROR | AG88: =LOOKUP($V88,'Lookup Values'!$A$2:$A$402,'Lookup Values'!M$2:M$402) -> ERROR | AI88: 0 | AJ88: 0 | AK88: 0 | AL88: 0 | AM88: 0 | AN88: 0 | AO88: 0 | AP88: 0 | AQ88: 0 | AR88: 0 | AS88: 0 | AT88: 0 | AU88: 0 | AV88: 0 | AW88: 0 | AX88: 0 | AY88: 0 | AZ88: 0 | BA88: 0 | BB88: 0 | BC88: 0 | BD88: 0 | BE88: 0 | BF88: 0 | BG88: 0 | BH88: 0 | BI88: 0 | BJ88: 0 | BK88: 0 | BL88: 0 | BM88: 0 | BN88: 0 | BO88: 0 | BP88: 0 | BQ88: 0 | BR88: 0 | BS88: 0 | BT88: 0 | BU88: 0 | BV88: 0 | BW88: 0 | BX88: 0 | BY88: 0 | BZ88: 0 | CA88: 0 | CB88: 0 | CC88: 0 | CD88: 0 | CE88: 0 | CF88: 0 | CG88: 0 | CH88: 0 | CI88: 0 | CJ88: 0 | CK88: 0 | CL88: 0 | CM88: 0 | CN88: 0 | CO88: 0 | CP88: 0 | CQ88: 0 | CR88: 0 | CS88: 0 | CT88: 0 | CU88: 0 | CV88: 0 | CW88: 0 | CX88: 0 | CY88: 0 | CZ88: 0 | DA88: 0 | DB88: 0 | DC88: 0 | DD88: 0 | DE88: 0 | DF88: 0 | DG88: 0 | DH88: 0 | DI88: 0 | DJ88: 0 | DK88: 0 | DL88: 0 | DM88: 0 | DN88: 0 | DO88: 0 | DP88: 0 | DQ88: 0 | DR88: 0 | DS88: 0 | DT88: 0 | DU88: 0 | DV88: 0 | DW88: 0 | DX88: 0 | DY88: 0 | DZ88: 0 | EA88: 0 | EB88: 0 | EC88: 0 | ED88: 0 | EE88: 0 | EF88: 0 | EG88: 0 | EH88: 0 | EI88: 0 | EJ88: 0 | EK88: 0 | EL88: 0 | EM88: 0 | EN88: 0 | EO88: 0 | EP88: 0 | EQ88: 0 | ER88: 0 | ES88: 0 | ET88: 0 | EU88: 0 | EV88: 0 | EW88: 0 | EX88: 0 | EY88: 0 | EZ88: 0 | FA88: 0 | FB88: 0 | FC88: 0 | FD88: 0 | FE88: 0 | FF88: 0 | FG88: 0 | FH88: 0 | FI88: 0 | FJ88: 0 | FK88: 0 | FL88: 0 | FM88: 0 | FN88: 0
V89: =IF(T89="",402,MATCH(T89,'Lookup Values'!$B$1:$B$402,0)) -> 402 | W89: =LOOKUP($V89,'Lookup Values'!$A$2:$A$402,'Lookup Values'!C$2:C$402) -> ERROR | X89: =LOOKUP($V89,'Lookup Values'!$A$2:$A$402,'Lookup Values'!D$2:D$402) -> ERROR | Y89: =LOOKUP($V89,'Lookup Values'!$A$2:$A$402,'Lookup Values'!E$2:E$402) -> ERROR | Z89: =LOOKUP($V89,'Lookup Values'!$A$2:$A$402,'Lookup Values'!F$2:F$402) -> ERROR | AA89: =LOOKUP($V89,'Lookup Values'!$A$2:$A$402,'Lookup Values'!G$2:G$402) -> ERROR | AB89: =LOOKUP($V89,'Lookup Values'!$A$2:$A$402,'Lookup Values'!H$2:H$402) -> ERROR | AC89: =LOOKUP($V89,'Lookup Values'!$A$2:$A$402,'Lookup Values'!I$2:I$402) -> ERROR | AD89: =LOOKUP($V89,'Lookup Values'!$A$2:$A$402,'Lookup Values'!J$2:J$402) -> ERROR | AE89: =LOOKUP($V89,'Lookup Values'!$A$2:$A$402,'Lookup Values'!K$2:K$402) -> ERROR | AF89: =LOOKUP($V89,'Lookup Values'!$A$2:$A$402,'Lookup Values'!L$2:L$402) -> ERROR | AG89: =LOOKUP($V89,'Lookup Values'!$A$2:$A$402,'Lookup Values'!M$2:M$402) -> ERROR | AI89: 0 | AJ89: 0 | AK89: 0 | AL89: 0 | AM89: 0 | AN89: 0 | AO89: 0 | AP89: 0 | AQ89: 0 | AR89: 0 | AS89: 0 | AT89: 0 | AU89: 0 | AV89: 0 | AW89: 0 | AX89: 0 | AY89: 0 | AZ89: 0 | BA89: 0 | BB89: 0 | BC89: 0 | BD89: 0 | BE89: 0 | BF89: 0 | BG89: 0 | BH89: 0 | BI89: 0 | BJ89: 0 | BK89: 0 | BL89: 0 | BM89: 0 | BN89: 0 | BO89: 0 | BP89: 0 | BQ89: 0 | BR89: 0 | BS89: 0 | BT89: 0 | BU89: 0 | BV89: 0 | BW89: 0 | BX89: 0 | BY89: 0 | BZ89: 0 | CA89: 0 | CB89: 0 | CC89: 0 | CD89: 0 | CE89: 0 | CF89: 0 | CG89: 0 | CH89: 0 | CI89: 0 | CJ89: 0 | CK89: 0 | CL89: 0 | CM89: 0 | CN89: 0 | CO89: 0 | CP89: 0 | CQ89: 0 | CR89: 0 | CS89: 0 | CT89: 0 | CU89: 0 | CV89: 0 | CW89: 0 | CX89: 0 | CY89: 0 | CZ89: 0 | DA89: 0 | DB89: 0 | DC89: 0 | DD89: 0 | DE89: 0 | DF89: 0 | DG89: 0 | DH89: 0 | DI89: 0 | DJ89: 0 | DK89: 0 | DL89: 0 | DM89: 0 | DN89: 0 | DO89: 0 | DP89: 0 | DQ89: 0 | DR89: 0 | DS89: 0 | DT89: 0 | DU89: 0 | DV89: 0 | DW89: 0 | DX89: 0 | DY89: 0 | DZ89: 0 | EA89: 0 | EB89: 0 | EC89: 0 | ED89: 0 | EE89: 0 | EF89: 0 | EG89: 0 | EH89: 0 | EI89: 0 | EJ89: 0 | EK89: 0 | EL89: 0 | EM89: 0 | EN89: 0 | EO89: 0 | EP89: 0 | EQ89: 0 | ER89: 0 | ES89: 0 | ET89: 0 | EU89: 0 | EV89: 0 | EW89: 0 | EX89: 0 | EY89: 0 | EZ89: 0 | FA89: 0 | FB89: 0 | FC89: 0 | FD89: 0 | FE89: 0 | FF89: 0 | FG89: 0 | FH89: 0 | FI89: 0 | FJ89: 0 | FK89: 0 | FL89: 0 | FM89: 0 | FN89: 0
V90: =IF(T90="",402,MATCH(T90,'Lookup Values'!$B$1:$B$402,0)) -> 402 | W90: =LOOKUP($V90,'Lookup Values'!$A$2:$A$402,'Lookup Values'!C$2:C$402) -> ERROR | X90: =LOOKUP($V90,'Lookup Values'!$A$2:$A$402,'Lookup Values'!D$2:D$402) -> ERROR | Y90: =LOOKUP($V90,'Lookup Values'!$A$2:$A$402,'Lookup Values'!E$2:E$402) -> ERROR | Z90: =LOOKUP($V90,'Lookup Values'!$A$2:$A$402,'Lookup Values'!F$2:F$402) -> ERROR | AA90: =LOOKUP($V90,'Lookup Values'!$A$2:$A$402,'Lookup Values'!G$2:G$402) -> ERROR | AB90: =LOOKUP($V90,'Lookup Values'!$A$2:$A$402,'Lookup Values'!H$2:H$402) -> ERROR | AC90: =LOOKUP($V90,'Lookup Values'!$A$2:$A$402,'Lookup Values'!I$2:I$402) -> ERROR | AD90: =LOOKUP($V90,'Lookup Values'!$A$2:$A$402,'Lookup Values'!J$2:J$402) -> ERROR | AE90: =LOOKUP($V90,'Lookup Values'!$A$2:$A$402,'Lookup Values'!K$2:K$402) -> ERROR | AF90: =LOOKUP($V90,'Lookup Values'!$A$2:$A$402,'Lookup Values'!L$2:L$402) -> ERROR | AG90: =LOOKUP($V90,'Lookup Values'!$A$2:$A$402,'Lookup Values'!M$2:M$402) -> ERROR | AI90: 0 | AJ90: 0 | AK90: 0 | AL90: 0 | AM90: 0 | AN90: 0 | AO90: 0 | AP90: 0 | AQ90: 0 | AR90: 0 | AS90: 0 | AT90: 0 | AU90: 0 | AV90: 0 | AW90: 0 | AX90: 0 | AY90: 0 | AZ90: 0 | BA90: 0 | BB90: 0 | BC90: 0 | BD90: 0 | BE90: 0 | BF90: 0 | BG90: 0 | BH90: 0 | BI90: 0 | BJ90: 0 | BK90: 0 | BL90: 0 | BM90: 0 | BN90: 0 | BO90: 0 | BP90: 0 | BQ90: 0 | BR90: 0 | BS90: 0 | BT90: 0 | BU90: 0 | BV90: 0 | BW90: 0 | BX90: 0 | BY90: 0 | BZ90: 0 | CA90: 0 | CB90: 0 | CC90: 0 | CD90: 0 | CE90: 0 | CF90: 0 | CG90: 0 | CH90: 0 | CI90: 0 | CJ90: 0 | CK90: 0 | CL90: 0 | CM90: 0 | CN90: 0 | CO90: 0 | CP90: 0 | CQ90: 0 | CR90: 0 | CS90: 0 | CT90: 0 | CU90: 0 | CV90: 0 | CW90: 0 | CX90: 0 | CY90: 0 | CZ90: 0 | DA90: 0 | DB90: 0 | DC90: 0 | DD90: 0 | DE90: 0 | DF90: 0 | DG90: 0 | DH90: 0 | DI90: 0 | DJ90: 0 | DK90: 0 | DL90: 0 | DM90: 0 | DN90: 0 | DO90: 0 | DP90: 0 | DQ90: 0 | DR90: 0 | DS90: 0 | DT90: 0 | DU90: 0 | DV90: 0 | DW90: 0 | DX90: 0 | DY90: 0 | DZ90: 0 | EA90: 0 | EB90: 0 | EC90: 0 | ED90: 0 | EE90: 0 | EF90: 0 | EG90: 0 | EH90: 0 | EI90: 0 | EJ90: 0 | EK90: 0 | EL90: 0 | EM90: 0 | EN90: 0 | EO90: 0 | EP90: 0 | EQ90: 0 | ER90: 0 | ES90: 0 | ET90: 0 | EU90: 0 | EV90: 0 | EW90: 0 | EX90: 0 | EY90: 0 | EZ90: 0 | FA90: 0 | FB90: 0 | FC90: 0 | FD90: 0 | FE90: 0 | FF90: 0 | FG90: 0 | FH90: 0 | FI90: 0 | FJ90: 0 | FK90: 0 | FL90: 0 | FM90: 0 | FN90: 0
C91: =IF(AND(A91=0,B91=0),"",IF(OR(G91="BRIDGE",G92="BRIDGE"),"",IF(G90="BRIDGE",B91-A89,B91-A91))) ->  | D91: =IF(C91="","",IF(G90="BRIDGE",C91+E90-F90,IF(C91+E91-F91=0,"",C91+E91-F91))) ->  | V91: =IF(T91="",402,MATCH(T91,'Lookup Values'!$B$1:$B$402,0)) -> 402 | W91: =LOOKUP($V91,'Lookup Values'!$A$2:$A$402,'Lookup Values'!C$2:C$402) -> ERROR | X91: =LOOKUP($V91,'Lookup Values'!$A$2:$A$402,'Lookup Values'!D$2:D$402) -> ERROR | Y91: =LOOKUP($V91,'Lookup Values'!$A$2:$A$402,'Lookup Values'!E$2:E$402) -> ERROR | Z91: =LOOKUP($V91,'Lookup Values'!$A$2:$A$402,'Lookup Values'!F$2:F$402) -> ERROR | AA91: =LOOKUP($V91,'Lookup Values'!$A$2:$A$402,'Lookup Values'!G$2:G$402) -> ERROR | AB91: =LOOKUP($V91,'Lookup Values'!$A$2:$A$402,'Lookup Values'!H$2:H$402) -> ERROR | AC91: =LOOKUP($V91,'Lookup Values'!$A$2:$A$402,'Lookup Values'!I$2:I$402) -> ERROR | AD91: =LOOKUP($V91,'Lookup Values'!$A$2:$A$402,'Lookup Values'!J$2:J$402) -> ERROR | AE91: =LOOKUP($V91,'Lookup Values'!$A$2:$A$402,'Lookup Values'!K$2:K$402) -> ERROR | AF91: =LOOKUP($V91,'Lookup Values'!$A$2:$A$402,'Lookup Values'!L$2:L$402) -> ERROR | AG91: =LOOKUP($V91,'Lookup Values'!$A$2:$A$402,'Lookup Values'!M$2:M$402) -> ERROR | AI91: 0 | AJ91: 0 | AK91: 0 | AL91: 0 | AM91: 0 | AN91: 0 | AO91: 0 | AP91: 0 | AQ91: 0 | AR91: 0 | AS91: 0 | AT91: 0 | AU91: 0 | AV91: 0 | AW91: 0 | AX91: 0 | AY91: 0 | AZ91: 0 | BA91: 0 | BB91: 0 | BC91: 0 | BD91: 0 | BE91: 0 | BF91: 0 | BG91: 0 | BH91: 0 | BI91: 0 | BJ91: 0 | BK91: 0 | BL91: 0 | BM91: 0 | BN91: 0 | BO91: 0 | BP91: 0 | BQ91: 0 | BR91: 0 | BS91: 0 | BT91: 0 | BU91: 0 | BV91: 0 | BW91: 0 | BX91: 0 | BY91: 0 | BZ91: 0 | CA91: 0 | CB91: 0 | CC91: 0 | CD91: 0 | CE91: 0 | CF91: 0 | CG91: 0 | CH91: 0 | CI91: 0 | CJ91: 0 | CK91: 0 | CL91: 0 | CM91: 0 | CN91: 0 | CO91: 0 | CP91: 0 | CQ91: 0 | CR91: 0 | CS91: 0 | CT91: 0 | CU91: 0 | CV91: 0 | CW91: 0 | CX91: 0 | CY91: 0 | CZ91: 0 | DA91: 0 | DB91: 0 | DC91: 0 | DD91: 0 | DE91: 0 | DF91: 0 | DG91: 0 | DH91: 0 | DI91: 0 | DJ91: 0 | DK91: 0 | DL91: 0 | DM91: 0 | DN91: 0 | DO91: 0 | DP91: 0 | DQ91: 0 | DR91: 0 | DS91: 0 | DT91: 0 | DU91: 0 | DV91: 0 | DW91: 0 | DX91: 0 | DY91: 0 | DZ91: 0 | EA91: 0 | EB91: 0 | EC91: 0 | ED91: 0 | EE91: 0 | EF91: 0 | EG91: 0 | EH91: 0 | EI91: 0 | EJ91: 0 | EK91: 0 | EL91: 0 | EM91: 0 | EN91: 0 | EO91: 0 | EP91: 0 | EQ91: 0 | ER91: 0 | ES91: 0 | ET91: 0 | EU91: 0 | EV91: 0 | EW91: 0 | EX91: 0 | EY91: 0 | EZ91: 0 | FA91: 0 | FB91: 0 | FC91: 0 | FD91: 0 | FE91: 0 | FF91: 0 | FG91: 0 | FH91: 0 | FI91: 0 | FJ91: 0 | FK91: 0 | FL91: 0 | FM91: 0 | FN91: 0
V92: =IF(T92="",402,MATCH(T92,'Lookup Values'!$B$1:$B$402,0)) -> 402 | W92: =LOOKUP($V92,'Lookup Values'!$A$2:$A$402,'Lookup Values'!C$2:C$402) -> ERROR | X92: =LOOKUP($V92,'Lookup Values'!$A$2:$A$402,'Lookup Values'!D$2:D$402) -> ERROR | Y92: =LOOKUP($V92,'Lookup Values'!$A$2:$A$402,'Lookup Values'!E$2:E$402) -> ERROR | Z92: =LOOKUP($V92,'Lookup Values'!$A$2:$A$402,'Lookup Values'!F$2:F$402) -> ERROR | AA92: =LOOKUP($V92,'Lookup Values'!$A$2:$A$402,'Lookup Values'!G$2:G$402) -> ERROR | AB92: =LOOKUP($V92,'Lookup Values'!$A$2:$A$402,'Lookup Values'!H$2:H$402) -> ERROR | AC92: =LOOKUP($V92,'Lookup Values'!$A$2:$A$402,'Lookup Values'!I$2:I$402) -> ERROR | AD92: =LOOKUP($V92,'Lookup Values'!$A$2:$A$402,'Lookup Values'!J$2:J$402) -> ERROR | AE92: =LOOKUP($V92,'Lookup Values'!$A$2:$A$402,'Lookup Values'!K$2:K$402) -> ERROR | AF92: =LOOKUP($V92,'Lookup Values'!$A$2:$A$402,'Lookup Values'!L$2:L$402) -> ERROR | AG92: =LOOKUP($V92,'Lookup Values'!$A$2:$A$402,'Lookup Values'!M$2:M$402) -> ERROR | AI92: 0 | AJ92: 0 | AK92: 0 | AL92: 0 | AM92: 0 | AN92: 0 | AO92: 0 | AP92: 0 | AQ92: 0 | AR92: 0 | AS92: 0 | AT92: 0 | AU92: 0 | AV92: 0 | AW92: 0 | AX92: 0 | AY92: 0 | AZ92: 0 | BA92: 0 | BB92: 0 | BC92: 0 | BD92: 0 | BE92: 0 | BF92: 0 | BG92: 0 | BH92: 0 | BI92: 0 | BJ92: 0 | BK92: 0 | BL92: 0 | BM92: 0 | BN92: 0 | BO92: 0 | BP92: 0 | BQ92: 0 | BR92: 0 | BS92: 0 | BT92: 0 | BU92: 0 | BV92: 0 | BW92: 0 | BX92: 0 | BY92: 0 | BZ92: 0 | CA92: 0 | CB92: 0 | CC92: 0 | CD92: 0 | CE92: 0 | CF92: 0 | CG92: 0 | CH92: 0 | CI92: 0 | CJ92: 0 | CK92: 0 | CL92: 0 | CM92: 0 | CN92: 0 | CO92: 0 | CP92: 0 | CQ92: 0 | CR92: 0 | CS92: 0 | CT92: 0 | CU92: 0 | CV92: 0 | CW92: 0 | CX92: 0 | CY92: 0 | CZ92: 0 | DA92: 0 | DB92: 0 | DC92: 0 | DD92: 0 | DE92: 0 | DF92: 0 | DG92: 0 | DH92: 0 | DI92: 0 | DJ92: 0 | DK92: 0 | DL92: 0 | DM92: 0 | DN92: 0 | DO92: 0 | DP92: 0 | DQ92: 0 | DR92: 0 | DS92: 0 | DT92: 0 | DU92: 0 | DV92: 0 | DW92: 0 | DX92: 0 | DY92: 0 | DZ92: 0 | EA92: 0 | EB92: 0 | EC92: 0 | ED92: 0 | EE92: 0 | EF92: 0 | EG92: 0 | EH92: 0 | EI92: 0 | EJ92: 0 | EK92: 0 | EL92: 0 | EM92: 0 | EN92: 0 | EO92: 0 | EP92: 0 | EQ92: 0 | ER92: 0 | ES92: 0 | ET92: 0 | EU92: 0 | EV92: 0 | EW92: 0 | EX92: 0 | EY92: 0 | EZ92: 0 | FA92: 0 | FB92: 0 | FC92: 0 | FD92: 0 | FE92: 0 | FF92: 0 | FG92: 0 | FH92: 0 | FI92: 0 | FJ92: 0 | FK92: 0 | FL92: 0 | FM92: 0 | FN92: 0
V93: =IF(T93="",402,MATCH(T93,'Lookup Values'!$B$1:$B$402,0)) -> 402 | W93: =LOOKUP($V93,'Lookup Values'!$A$2:$A$402,'Lookup Values'!C$2:C$402) -> ERROR | X93: =LOOKUP($V93,'Lookup Values'!$A$2:$A$402,'Lookup Values'!D$2:D$402) -> ERROR | Y93: =LOOKUP($V93,'Lookup Values'!$A$2:$A$402,'Lookup Values'!E$2:E$402) -> ERROR | Z93: =LOOKUP($V93,'Lookup Values'!$A$2:$A$402,'Lookup Values'!F$2:F$402) -> ERROR | AA93: =LOOKUP($V93,'Lookup Values'!$A$2:$A$402,'Lookup Values'!G$2:G$402) -> ERROR | AB93: =LOOKUP($V93,'Lookup Values'!$A$2:$A$402,'Lookup Values'!H$2:H$402) -> ERROR | AC93: =LOOKUP($V93,'Lookup Values'!$A$2:$A$402,'Lookup Values'!I$2:I$402) -> ERROR | AD93: =LOOKUP($V93,'Lookup Values'!$A$2:$A$402,'Lookup Values'!J$2:J$402) -> ERROR | AE93: =LOOKUP($V93,'Lookup Values'!$A$2:$A$402,'Lookup Values'!K$2:K$402) -> ERROR | AF93: =LOOKUP($V93,'Lookup Values'!$A$2:$A$402,'Lookup Values'!L$2:L$402) -> ERROR | AG93: =LOOKUP($V93,'Lookup Values'!$A$2:$A$402,'Lookup Values'!M$2:M$402) -> ERROR | AI93: 0 | AJ93: 0 | AK93: 0 | AL93: 0 | AM93: 0 | AN93: 0 | AO93: 0 | AP93: 0 | AQ93: 0 | AR93: 0 | AS93: 0 | AT93: 0 | AU93: 0 | AV93: 0 | AW93: 0 | AX93: 0 | AY93: 0 | AZ93: 0 | BA93: 0 | BB93: 0 | BC93: 0 | BD93: 0 | BE93: 0 | BF93: 0 | BG93: 0 | BH93: 0 | BI93: 0 | BJ93: 0 | BK93: 0 | BL93: 0 | BM93: 0 | BN93: 0 | BO93: 0 | BP93: 0 | BQ93: 0 | BR93: 0 | BS93: 0 | BT93: 0 | BU93: 0 | BV93: 0 | BW93: 0 | BX93: 0 | BY93: 0 | BZ93: 0 | CA93: 0 | CB93: 0 | CC93: 0 | CD93: 0 | CE93: 0 | CF93: 0 | CG93: 0 | CH93: 0 | CI93: 0 | CJ93: 0 | CK93: 0 | CL93: 0 | CM93: 0 | CN93: 0 | CO93: 0 | CP93: 0 | CQ93: 0 | CR93: 0 | CS93: 0 | CT93: 0 | CU93: 0 | CV93: 0 | CW93: 0 | CX93: 0 | CY93: 0 | CZ93: 0 | DA93: 0 | DB93: 0 | DC93: 0 | DD93: 0 | DE93: 0 | DF93: 0 | DG93: 0 | DH93: 0 | DI93: 0 | DJ93: 0 | DK93: 0 | DL93: 0 | DM93: 0 | DN93: 0 | DO93: 0 | DP93: 0 | DQ93: 0 | DR93: 0 | DS93: 0 | DT93: 0 | DU93: 0 | DV93: 0 | DW93: 0 | DX93: 0 | DY93: 0 | DZ93: 0 | EA93: 0 | EB93: 0 | EC93: 0 | ED93: 0 | EE93: 0 | EF93: 0 | EG93: 0 | EH93: 0 | EI93: 0 | EJ93: 0 | EK93: 0 | EL93: 0 | EM93: 0 | EN93: 0 | EO93: 0 | EP93: 0 | EQ93: 0 | ER93: 0 | ES93: 0 | ET93: 0 | EU93: 0 | EV93: 0 | EW93: 0 | EX93: 0 | EY93: 0 | EZ93: 0 | FA93: 0 | FB93: 0 | FC93: 0 | FD93: 0 | FE93: 0 | FF93: 0 | FG93: 0 | FH93: 0 | FI93: 0 | FJ93: 0 | FK93: 0 | FL93: 0 | FM93: 0 | FN93: 0
V94: =IF(T94="",402,MATCH(T94,'Lookup Values'!$B$1:$B$402,0)) -> 402 | W94: =LOOKUP($V94,'Lookup Values'!$A$2:$A$402,'Lookup Values'!C$2:C$402) -> ERROR | X94: =LOOKUP($V94,'Lookup Values'!$A$2:$A$402,'Lookup Values'!D$2:D$402) -> ERROR | Y94: =LOOKUP($V94,'Lookup Values'!$A$2:$A$402,'Lookup Values'!E$2:E$402) -> ERROR | Z94: =LOOKUP($V94,'Lookup Values'!$A$2:$A$402,'Lookup Values'!F$2:F$402) -> ERROR | AA94: =LOOKUP($V94,'Lookup Values'!$A$2:$A$402,'Lookup Values'!G$2:G$402) -> ERROR | AB94: =LOOKUP($V94,'Lookup Values'!$A$2:$A$402,'Lookup Values'!H$2:H$402) -> ERROR | AC94: =LOOKUP($V94,'Lookup Values'!$A$2:$A$402,'Lookup Values'!I$2:I$402) -> ERROR | AD94: =LOOKUP($V94,'Lookup Values'!$A$2:$A$402,'Lookup Values'!J$2:J$402) -> ERROR | AE94: =LOOKUP($V94,'Lookup Values'!$A$2:$A$402,'Lookup Values'!K$2:K$402) -> ERROR | AF94: =LOOKUP($V94,'Lookup Values'!$A$2:$A$402,'Lookup Values'!L$2:L$402) -> ERROR | AG94: =LOOKUP($V94,'Lookup Values'!$A$2:$A$402,'Lookup Values'!M$2:M$402) -> ERROR | AI94: 0 | AJ94: 0 | AK94: 0 | AL94: 0 | AM94: 0 | AN94: 0 | AO94: 0 | AP94: 0 | AQ94: 0 | AR94: 0 | AS94: 0 | AT94: 0 | AU94: 0 | AV94: 0 | AW94: 0 | AX94: 0 | AY94: 0 | AZ94: 0 | BA94: 0 | BB94: 0 | BC94: 0 | BD94: 0 | BE94: 0 | BF94: 0 | BG94: 0 | BH94: 0 | BI94: 0 | BJ94: 0 | BK94: 0 | BL94: 0 | BM94: 0 | BN94: 0 | BO94: 0 | BP94: 0 | BQ94: 0 | BR94: 0 | BS94: 0 | BT94: 0 | BU94: 0 | BV94: 0 | BW94: 0 | BX94: 0 | BY94: 0 | BZ94: 0 | CA94: 0 | CB94: 0 | CC94: 0 | CD94: 0 | CE94: 0 | CF94: 0 | CG94: 0 | CH94: 0 | CI94: 0 | CJ94: 0 | CK94: 0 | CL94: 0 | CM94: 0 | CN94: 0 | CO94: 0 | CP94: 0 | CQ94: 0 | CR94: 0 | CS94: 0 | CT94: 0 | CU94: 0 | CV94: 0 | CW94: 0 | CX94: 0 | CY94: 0 | CZ94: 0 | DA94: 0 | DB94: 0 | DC94: 0 | DD94: 0 | DE94: 0 | DF94: 0 | DG94: 0 | DH94: 0 | DI94: 0 | DJ94: 0 | DK94: 0 | DL94: 0 | DM94: 0 | DN94: 0 | DO94: 0 | DP94: 0 | DQ94: 0 | DR94: 0 | DS94: 0 | DT94: 0 | DU94: 0 | DV94: 0 | DW94: 0 | DX94: 0 | DY94: 0 | DZ94: 0 | EA94: 0 | EB94: 0 | EC94: 0 | ED94: 0 | EE94: 0 | EF94: 0 | EG94: 0 | EH94: 0 | EI94: 0 | EJ94: 0 | EK94: 0 | EL94: 0 | EM94: 0 | EN94: 0 | EO94: 0 | EP94: 0 | EQ94: 0 | ER94: 0 | ES94: 0 | ET94: 0 | EU94: 0 | EV94: 0 | EW94: 0 | EX94: 0 | EY94: 0 | EZ94: 0 | FA94: 0 | FB94: 0 | FC94: 0 | FD94: 0 | FE94: 0 | FF94: 0 | FG94: 0 | FH94: 0 | FI94: 0 | FJ94: 0 | FK94: 0 | FL94: 0 | FM94: 0 | FN94: 0
V95: =IF(T95="",402,MATCH(T95,'Lookup Values'!$B$1:$B$402,0)) -> 402 | W95: =LOOKUP($V95,'Lookup Values'!$A$2:$A$402,'Lookup Values'!C$2:C$402) -> ERROR | X95: =LOOKUP($V95,'Lookup Values'!$A$2:$A$402,'Lookup Values'!D$2:D$402) -> ERROR | Y95: =LOOKUP($V95,'Lookup Values'!$A$2:$A$402,'Lookup Values'!E$2:E$402) -> ERROR | Z95: =LOOKUP($V95,'Lookup Values'!$A$2:$A$402,'Lookup Values'!F$2:F$402) -> ERROR | AA95: =LOOKUP($V95,'Lookup Values'!$A$2:$A$402,'Lookup Values'!G$2:G$402) -> ERROR | AB95: =LOOKUP($V95,'Lookup Values'!$A$2:$A$402,'Lookup Values'!H$2:H$402) -> ERROR | AC95: =LOOKUP($V95,'Lookup Values'!$A$2:$A$402,'Lookup Values'!I$2:I$402) -> ERROR | AD95: =LOOKUP($V95,'Lookup Values'!$A$2:$A$402,'Lookup Values'!J$2:J$402) -> ERROR | AE95: =LOOKUP($V95,'Lookup Values'!$A$2:$A$402,'Lookup Values'!K$2:K$402) -> ERROR | AF95: =LOOKUP($V95,'Lookup Values'!$A$2:$A$402,'Lookup Values'!L$2:L$402) -> ERROR | AG95: =LOOKUP($V95,'Lookup Values'!$A$2:$A$402,'Lookup Values'!M$2:M$402) -> ERROR | AI95: 0 | AJ95: 0 | AK95: 0 | AL95: 0 | AM95: 0 | AN95: 0 | AO95: 0 | AP95: 0 | AQ95: 0 | AR95: 0 | AS95: 0 | AT95: 0 | AU95: 0 | AV95: 0 | AW95: 0 | AX95: 0 | AY95: 0 | AZ95: 0 | BA95: 0 | BB95: 0 | BC95: 0 | BD95: 0 | BE95: 0 | BF95: 0 | BG95: 0 | BH95: 0 | BI95: 0 | BJ95: 0 | BK95: 0 | BL95: 0 | BM95: 0 | BN95: 0 | BO95: 0 | BP95: 0 | BQ95: 0 | BR95: 0 | BS95: 0 | BT95: 0 | BU95: 0 | BV95: 0 | BW95: 0 | BX95: 0 | BY95: 0 | BZ95: 0 | CA95: 0 | CB95: 0 | CC95: 0 | CD95: 0 | CE95: 0 | CF95: 0 | CG95: 0 | CH95: 0 | CI95: 0 | CJ95: 0 | CK95: 0 | CL95: 0 | CM95: 0 | CN95: 0 | CO95: 0 | CP95: 0 | CQ95: 0 | CR95: 0 | CS95: 0 | CT95: 0 | CU95: 0 | CV95: 0 | CW95: 0 | CX95: 0 | CY95: 0 | CZ95: 0 | DA95: 0 | DB95: 0 | DC95: 0 | DD95: 0 | DE95: 0 | DF95: 0 | DG95: 0 | DH95: 0 | DI95: 0 | DJ95: 0 | DK95: 0 | DL95: 0 | DM95: 0 | DN95: 0 | DO95: 0 | DP95: 0 | DQ95: 0 | DR95: 0 | DS95: 0 | DT95: 0 | DU95: 0 | DV95: 0 | DW95: 0 | DX95: 0 | DY95: 0 | DZ95: 0 | EA95: 0 | EB95: 0 | EC95: 0 | ED95: 0 | EE95: 0 | EF95: 0 | EG95: 0 | EH95: 0 | EI95: 0 | EJ95: 0 | EK95: 0 | EL95: 0 | EM95: 0 | EN95: 0 | EO95: 0 | EP95: 0 | EQ95: 0 | ER95: 0 | ES95: 0 | ET95: 0 | EU95: 0 | EV95: 0 | EW95: 0 | EX95: 0 | EY95: 0 | EZ95: 0 | FA95: 0 | FB95: 0 | FC95: 0 | FD95: 0 | FE95: 0 | FF95: 0 | FG95: 0 | FH95: 0 | FI95: 0 | FJ95: 0 | FK95: 0 | FL95: 0 | FM95: 0 | FN95: 0
V96: =IF(T96="",402,MATCH(T96,'Lookup Values'!$B$1:$B$402,0)) -> 402 | W96: =LOOKUP($V96,'Lookup Values'!$A$2:$A$402,'Lookup Values'!C$2:C$402) -> ERROR | X96: =LOOKUP($V96,'Lookup Values'!$A$2:$A$402,'Lookup Values'!D$2:D$402) -> ERROR | Y96: =LOOKUP($V96,'Lookup Values'!$A$2:$A$402,'Lookup Values'!E$2:E$402) -> ERROR | Z96: =LOOKUP($V96,'Lookup Values'!$A$2:$A$402,'Lookup Values'!F$2:F$402) -> ERROR | AA96: =LOOKUP($V96,'Lookup Values'!$A$2:$A$402,'Lookup Values'!G$2:G$402) -> ERROR | AB96: =LOOKUP($V96,'Lookup Values'!$A$2:$A$402,'Lookup Values'!H$2:H$402) -> ERROR | AC96: =LOOKUP($V96,'Lookup Values'!$A$2:$A$402,'Lookup Values'!I$2:I$402) -> ERROR | AD96: =LOOKUP($V96,'Lookup Values'!$A$2:$A$402,'Lookup Values'!J$2:J$402) -> ERROR | AE96: =LOOKUP($V96,'Lookup Values'!$A$2:$A$402,'Lookup Values'!K$2:K$402) -> ERROR | AF96: =LOOKUP($V96,'Lookup Values'!$A$2:$A$402,'Lookup Values'!L$2:L$402) -> ERROR | AG96: =LOOKUP($V96,'Lookup Values'!$A$2:$A$402,'Lookup Values'!M$2:M$402) -> ERROR | AI96: 0 | AJ96: 0 | AK96: 0 | AL96: 0 | AM96: 0 | AN96: 0 | AO96: 0 | AP96: 0 | AQ96: 0 | AR96: 0 | AS96: 0 | AT96: 0 | AU96: 0 | AV96: 0 | AW96: 0 | AX96: 0 | AY96: 0 | AZ96: 0 | BA96: 0 | BB96: 0 | BC96: 0 | BD96: 0 | BE96: 0 | BF96: 0 | BG96: 0 | BH96: 0 | BI96: 0 | BJ96: 0 | BK96: 0 | BL96: 0 | BM96: 0 | BN96: 0 | BO96: 0 | BP96: 0 | BQ96: 0 | BR96: 0 | BS96: 0 | BT96: 0 | BU96: 0 | BV96: 0 | BW96: 0 | BX96: 0 | BY96: 0 | BZ96: 0 | CA96: 0 | CB96: 0 | CC96: 0 | CD96: 0 | CE96: 0 | CF96: 0 | CG96: 0 | CH96: 0 | CI96: 0 | CJ96: 0 | CK96: 0 | CL96: 0 | CM96: 0 | CN96: 0 | CO96: 0 | CP96: 0 | CQ96: 0 | CR96: 0 | CS96: 0 | CT96: 0 | CU96: 0 | CV96: 0 | CW96: 0 | CX96: 0 | CY96: 0 | CZ96: 0 | DA96: 0 | DB96: 0 | DC96: 0 | DD96: 0 | DE96: 0 | DF96: 0 | DG96: 0 | DH96: 0 | DI96: 0 | DJ96: 0 | DK96: 0 | DL96: 0 | DM96: 0 | DN96: 0 | DO96: 0 | DP96: 0 | DQ96: 0 | DR96: 0 | DS96: 0 | DT96: 0 | DU96: 0 | DV96: 0 | DW96: 0 | DX96: 0 | DY96: 0 | DZ96: 0 | EA96: 0 | EB96: 0 | EC96: 0 | ED96: 0 | EE96: 0 | EF96: 0 | EG96: 0 | EH96: 0 | EI96: 0 | EJ96: 0 | EK96: 0 | EL96: 0 | EM96: 0 | EN96: 0 | EO96: 0 | EP96: 0 | EQ96: 0 | ER96: 0 | ES96: 0 | ET96: 0 | EU96: 0 | EV96: 0 | EW96: 0 | EX96: 0 | EY96: 0 | EZ96: 0 | FA96: 0 | FB96: 0 | FC96: 0 | FD96: 0 | FE96: 0 | FF96: 0 | FG96: 0 | FH96: 0 | FI96: 0 | FJ96: 0 | FK96: 0 | FL96: 0 | FM96: 0 | FN96: 0
V97: =IF(T97="",402,MATCH(T97,'Lookup Values'!$B$1:$B$402,0)) -> 402 | W97: =LOOKUP($V97,'Lookup Values'!$A$2:$A$402,'Lookup Values'!C$2:C$402) -> ERROR | X97: =LOOKUP($V97,'Lookup Values'!$A$2:$A$402,'Lookup Values'!D$2:D$402) -> ERROR | Y97: =LOOKUP($V97,'Lookup Values'!$A$2:$A$402,'Lookup Values'!E$2:E$402) -> ERROR | Z97: =LOOKUP($V97,'Lookup Values'!$A$2:$A$402,'Lookup Values'!F$2:F$402) -> ERROR | AA97: =LOOKUP($V97,'Lookup Values'!$A$2:$A$402,'Lookup Values'!G$2:G$402) -> ERROR | AB97: =LOOKUP($V97,'Lookup Values'!$A$2:$A$402,'Lookup Values'!H$2:H$402) -> ERROR | AC97: =LOOKUP($V97,'Lookup Values'!$A$2:$A$402,'Lookup Values'!I$2:I$402) -> ERROR | AD97: =LOOKUP($V97,'Lookup Values'!$A$2:$A$402,'Lookup Values'!J$2:J$402) -> ERROR | AE97: =LOOKUP($V97,'Lookup Values'!$A$2:$A$402,'Lookup Values'!K$2:K$402) -> ERROR | AF97: =LOOKUP($V97,'Lookup Values'!$A$2:$A$402,'Lookup Values'!L$2:L$402) -> ERROR | AG97: =LOOKUP($V97,'Lookup Values'!$A$2:$A$402,'Lookup Values'!M$2:M$402) -> ERROR | AI97: 0 | AJ97: 0 | AK97: 0 | AL97: 0 | AM97: 0 | AN97: 0 | AO97: 0 | AP97: 0 | AQ97: 0 | AR97: 0 | AS97: 0 | AT97: 0 | AU97: 0 | AV97: 0 | AW97: 0 | AX97: 0 | AY97: 0 | AZ97: 0 | BA97: 0 | BB97: 0 | BC97: 0 | BD97: 0 | BE97: 0 | BF97: 0 | BG97: 0 | BH97: 0 | BI97: 0 | BJ97: 0 | BK97: 0 | BL97: 0 | BM97: 0 | BN97: 0 | BO97: 0 | BP97: 0 | BQ97: 0 | BR97: 0 | BS97: 0 | BT97: 0 | BU97: 0 | BV97: 0 | BW97: 0 | BX97: 0 | BY97: 0 | BZ97: 0 | CA97: 0 | CB97: 0 | CC97: 0 | CD97: 0 | CE97: 0 | CF97: 0 | CG97: 0 | CH97: 0 | CI97: 0 | CJ97: 0 | CK97: 0 | CL97: 0 | CM97: 0 | CN97: 0 | CO97: 0 | CP97: 0 | CQ97: 0 | CR97: 0 | CS97: 0 | CT97: 0 | CU97: 0 | CV97: 0 | CW97: 0 | CX97: 0 | CY97: 0 | CZ97: 0 | DA97: 0 | DB97: 0 | DC97: 0 | DD97: 0 | DE97: 0 | DF97: 0 | DG97: 0 | DH97: 0 | DI97: 0 | DJ97: 0 | DK97: 0 | DL97: 0 | DM97: 0 | DN97: 0 | DO97: 0 | DP97: 0 | DQ97: 0 | DR97: 0 | DS97: 0 | DT97: 0 | DU97: 0 | DV97: 0 | DW97: 0 | DX97: 0 | DY97: 0 | DZ97: 0 | EA97: 0 | EB97: 0 | EC97: 0 | ED97: 0 | EE97: 0 | EF97: 0 | EG97: 0 | EH97: 0 | EI97: 0 | EJ97: 0 | EK97: 0 | EL97: 0 | EM97: 0 | EN97: 0 | EO97: 0 | EP97: 0 | EQ97: 0 | ER97: 0 | ES97: 0 | ET97: 0 | EU97: 0 | EV97: 0 | EW97: 0 | EX97: 0 | EY97: 0 | EZ97: 0 | FA97: 0 | FB97: 0 | FC97: 0 | FD97: 0 | FE97: 0 | FF97: 0 | FG97: 0 | FH97: 0 | FI97: 0 | FJ97: 0 | FK97: 0 | FL97: 0 | FM97: 0 | FN97: 0
G98: ADD. SURF. | I98: =43+4532 -> 4575 | K98: =18+10279 -> 10297 | O98: =0.4+109 -> 109.4 | P98: =0.1+10.6 -> 10.7 | Q98: =14672+61 -> 14733 | R98: =715+0 -> 715 | V98: =IF(T98="",402,MATCH(T98,'Lookup Values'!$B$1:$B$402,0)) -> 402 | W98: =LOOKUP($V98,'Lookup Values'!$A$2:$A$402,'Lookup Values'!C$2:C$402) -> ERROR | X98: =LOOKUP($V98,'Lookup Values'!$A$2:$A$402,'Lookup Values'!D$2:D$402) -> ERROR | Y98: =LOOKUP($V98,'Lookup Values'!$A$2:$A$402,'Lookup Values'!E$2:E$402) -> ERROR | Z98: =LOOKUP($V98,'Lookup Values'!$A$2:$A$402,'Lookup Values'!F$2:F$402) -> ERROR | AA98: =LOOKUP($V98,'Lookup Values'!$A$2:$A$402,'Lookup Values'!G$2:G$402) -> ERROR | AB98: =LOOKUP($V98,'Lookup Values'!$A$2:$A$402,'Lookup Values'!H$2:H$402) -> ERROR | AC98: =LOOKUP($V98,'Lookup Values'!$A$2:$A$402,'Lookup Values'!I$2:I$402) -> ERROR | AD98: =LOOKUP($V98,'Lookup Values'!$A$2:$A$402,'Lookup Values'!J$2:J$402) -> ERROR | AE98: =LOOKUP($V98,'Lookup Values'!$A$2:$A$402,'Lookup Values'!K$2:K$402) -> ERROR | AF98: =LOOKUP($V98,'Lookup Values'!$A$2:$A$402,'Lookup Values'!L$2:L$402) -> ERROR | AG98: =LOOKUP($V98,'Lookup Values'!$A$2:$A$402,'Lookup Values'!M$2:M$402) -> ERROR | AI98: 0 | AJ98: 0 | AK98: 0 | AL98: 0 | AM98: 0 | AN98: 0 | AO98: 0 | AP98: 0 | AQ98: 0 | AR98: 0 | AS98: 0 | AT98: 0 | AU98: 0 | AV98: 0 | AW98: 0 | AX98: 0 | AY98: 0 | AZ98: 0 | BA98: 0 | BB98: 0 | BC98: 0 | BD98: 0 | BE98: 0 | BF98: 0 | BG98: 0 | BH98: 0 | BI98: 0 | BJ98: 0 | BK98: 0 | BL98: 0 | BM98: 0 | BN98: 0 | BO98: 0 | BP98: 0 | BQ98: 0 | BR98: 0 | BS98: 0 | BT98: 0 | BU98: 0 | BV98: 0 | BW98: 0 | BX98: 0 | BY98: 0 | BZ98: 0 | CA98: 0 | CB98: 0 | CC98: 0 | CD98: 0 | CE98: 0 | CF98: 0 | CG98: 0 | CH98: 0 | CI98: 0 | CJ98: 0 | CK98: 0 | CL98: 0 | CM98: 0 | CN98: 0 | CO98: 0 | CP98: 0 | CQ98: 0 | CR98: 0 | CS98: 0 | CT98: 0 | CU98: 0 | CV98: 0 | CW98: 0 | CX98: 0 | CY98: 0 | CZ98: 0 | DA98: 0 | DB98: 0 | DC98: 0 | DD98: 0 | DE98: 0 | DF98: 0 | DG98: 0 | DH98: 0 | DI98: 0 | DJ98: 0 | DK98: 0 | DL98: 0 | DM98: 0 | DN98: 0 | DO98: 0 | DP98: 0 | DQ98: 0 | DR98: 0 | DS98: 0 | DT98: 0 | DU98: 0 | DV98: 0 | DW98: 0 | DX98: 0 | DY98: 0 | DZ98: 0 | EA98: 0 | EB98: 0 | EC98: 0 | ED98: 0 | EE98: 0 | EF98: 0 | EG98: 0 | EH98: 0 | EI98: 0 | EJ98: 0 | EK98: 0 | EL98: 0 | EM98: 0 | EN98: 0 | EO98: 0 | EP98: 0 | EQ98: 0 | ER98: 0 | ES98: 0 | ET98: 0 | EU98: 0 | EV98: 0 | EW98: 0 | EX98: 0 | EY98: 0 | EZ98: 0 | FA98: 0 | FB98: 0 | FC98: 0 | FD98: 0 | FE98: 0 | FF98: 0 | FG98: 0 | FH98: 0 | FI98: 0 | FJ98: 0 | FK98: 0 | FL98: 0 | FM98: 0 | FN98: 0
A100: TOTAL | C100: =IF(SUM(C6:C98)=0,"~",SUM(C6:C98)) -> 33243.82 | D100: =IF(SUM(D6:D98)=0,"~",SUM(D6:D98)) -> 33099.78 | E100: =IF(SUM(E6:E98)=0,"~",SUM(E6:E98)) -> ~ | F100: =IF(SUM(F6:F98)=0,"~",SUM(F6:F98)) -> 144.04 | G100: =IF(SUM(G6:G98)=0,"~",SUM(G6:G98)) -> ~ | H100: =IF(J100="~","~",ROUND(J100*'Project&Typical Info'!F3/100,0)) -> 177 | I100: =IF(SUM(I6:I98)=0,"~",SUM(I6:I98)) -> 66593 | J100: 12666 | K100: 32501 | L100: ~ | M100: ~ | N100: ~ | O100: 794 | P100: 122.4 | Q100: 84249 | R100: 7683 | S100: 4703 | AI100: =SUM(AI6:AI98) -> 649.31 | AJ100: 16704.46 | AK100: 0 | AL100: 15138.65 | AM100: 0 | AN100: 0 | AO100: 0 | AP100: 0 | AQ100: 0 | AR100: 0 | AS100: 0 | AT100: 0 | AU100: 0 | AV100: 0 | AW100: 0 | AX100: 0 | AY100: 0 | AZ100: 34 | BA100: 0 | BB100: 0 | BC100: 0 | BD100: 473.36 | BE100: 0 | BF100: 0 | BG100: 0 | BH100: 0 | BI100: 0 | BJ100: 0 | BK100: 0 | BL100: 0 | BM100: 100 | BN100: 0 | BO100: =SUM(BO6:BO98) -> 0 | BP100: 0 | BQ100: 0 | BR100: 0 | BS100: 0 | BT100: 0 | BU100: 0 | BV100: 0 | BW100: 0 | BX100: 0 | BY100: 0 | BZ100: 0 | CA100: 0 | CB100: 0 | CC100: 0 | CD100: 0 | CE100: 0 | CF100: 0 | CG100: 0 | CH100: 0 | CI100: 0 | CJ100: 0 | CK100: 0 | CL100: 0 | CM100: 0 | CN100: 0 | CO100: 0 | CP100: 0 | CQ100: 0 | CR100: 0 | CS100: 0 | CT100: 0 | CU100: =SUM(CU6:CU98) -> 0 | CV100: 0 | CW100: 0 | CX100: 0 | CY100: 0 | CZ100: 0 | DA100: 0 | DB100: 0 | DC100: 0 | DD100: 0 | DE100: 0 | DF100: 0 | DG100: 0 | DH100: 0 | DI100: 0 | DJ100: 0 | DK100: 0 | DL100: 0 | DM100: 0 | DN100: 0 | DO100: 0 | DP100: 0 | DQ100: 0 | DR100: 0 | DS100: 0 | DT100: 0 | DU100: 0 | DV100: 0 | DW100: 0 | DX100: 0 | DY100: 0 | DZ100: 0 | EA100: =SUM(EA6:EA98) -> 0 | EB100: 0 | EC100: 0 | ED100: 0 | EE100: 0 | EF100: 0 | EG100: 0 | EH100: 0 | EI100: 0 | EJ100: 0 | EK100: 0 | EL100: 0 | EM100: 0 | EN100: 0 | EO100: 0 | EP100: 0 | EQ100: 0 | ER100: 0 | ES100: 0 | ET100: 0 | EU100: 0 | EV100: 0 | EW100: 0 | EX100: 0 | EY100: 0 | EZ100: 0 | FA100: 0 | FB100: 0 | FC100: 0 | FD100: 0 | FE100: 0 | FF100: 0 | FG100: =SUM(FG6:FG98) -> 0 | FH100: 0 | FI100: 0 | FJ100: 0 | FK100: 0 | FL100: 0 | FM100: 0 | FN100: 0
AI101: Area of Typical Sections (ft2) Area of Typical Sections (ft2) Area of Typical Sections (ft2) Area of Typical Sections (ft2) Area of Typical Sections (ft2) Area of Typical Sections (ft2) Area of Typical Sections (ft2) Area of Typical Sections (ft2) Area of Typical Sections (ft2)

Sheet Typical Section Quantities (hidden)
A1: TYPICAL SECTION NO. 1 QUANTITIES
A2: UNIT | B2: COVER | C2: PLANT MIX | D2: CR. AGG. COURSE | E2: UNIT | F2: ASPHALT CEMENT | G2: SEAL | H2: AGG. TREAT. | I2: EMULS. ASPHALT TACK | J2: EMULS. ASPHALT FOG SEAL
A3: AREA square feet | C3: =ROUND('Project&Typical Info'!P41,2) -> 10.2 | D3: =ROUND('Project&Typical Info'!Q41,2) -> 35.53 | E3: square yards PER STATION | G3: =ROUND(B6,0) -> 356 | H3: =ROUND('Project&Typical Info'!I41,0) -> 400 | I3: =ROUND('Project&Typical Info'!J41,0) -> 800 | J3: =ROUND(B6,0) -> 356
A4: cubic yards PER STATION | C4: =ROUND('Project&Typical Info'!C41,1) -> 37.8 | D4: =ROUND('Project&Typical Info'!D41,1) -> 131.6 | E4: tons PER STATION | F4: =ROUND('Project&Typical Info'!G41,2) -> 3.94 | G4: =ROUND('Project&Typical Info'!H41,2) -> 0.64
A5: tons PER STATION | C5: =ROUND('Project&Typical Info'!E41,1) -> 72.9 | E5: gallons PER STATION | I5: =ROUND('Project&Typical Info'!K41,0) -> 40 | J5: =ROUND('Project&Typical Info'!L41,0) -> 27
A6: square yards PER STATION | B6: =ROUND('Project&Typical Info'!B41,0) -> 356
A8: TYPICAL SECTION NO. 2 QUANTITIES
A9: UNIT | B9: COVER | C9: PLANT MIX | D9: CR. AGG. COURSE | E9: UNIT | F9: ASPHALT CEMENT | G9: SEAL | H9: AGG. TREAT. | I9: EMULS. ASPHALT TACK | J9: EMULS. ASPHALT FOG SEAL
A10: AREA square feet | C10: =ROUND('Project&Typical Info'!P42,2) -> 10.19 | D10: =ROUND('Project&Typical Info'!Q42,2) -> 34.37 | E10: square yards PER STATION | G10: =ROUND(B13,0) -> 356 | H10: =ROUND('Project&Typical Info'!I42,0) -> 399 | I10: =ROUND('Project&Typical Info'!J42,0) -> 798 | J10: =ROUND(B13,0) -> 356
A11: cubic yards PER STATION | C11: =ROUND('Project&Typical Info'!C42,1) -> 37.7 | D11: =ROUND('Project&Typical Info'!D42,1) -> 127.3 | E11: tons PER STATION | F11: =ROUND('Project&Typical Info'!G42,2) -> 3.93 | G11: =ROUND('Project&Typical Info'!H42,2) -> 0.64
A12: tons PER STATION | C12: =ROUND('Project&Typical Info'!E42,1) -> 72.7 | E12: gallons PER STATION | I12: =ROUND('Project&Typical Info'!K42,0) -> 40 | J12: =ROUND('Project&Typical Info'!L42,0) -> 27
A13: square yards PER STATION | B13: =ROUND('Project&Typical Info'!B42,0) -> 356
A15: TYPICAL SECTION NO. 3 QUANTITIES
A16: UNIT | B16: COVER | C16: PLANT MIX | D16: CR. AGG. COURSE | E16: UNIT | F16: ASPHALT CEMENT | G16: SEAL | H16: AGG. TREAT. | I16: EMULS. ASPHALT TACK | J16: EMULS. ASPHALT FOG SEAL
A17: AREA square feet | C17: =ROUND('Project&Typical Info'!P43,2) -> 0 | D17: =ROUND('Project&Typical Info'!Q43,2) -> 0 | E17: square yards PER STATION | G17: =ROUND(B20,0) -> 0 | H17: =ROUND('Project&Typical Info'!I43,0) -> 0 | I17: =ROUND('Project&Typical Info'!J43,0) -> 0 | J17: =ROUND(B20,0) -> 0
A18: cubic yards PER STATION | C18: =ROUND('Project&Typical Info'!C43,1) -> 0 | D18: =ROUND('Project&Typical Info'!D43,1) -> 0 | E18: tons PER STATION | F18: =ROUND('Project&Typical Info'!G43,2) -> 0 | G18: =ROUND('Project&Typical Info'!H43,2) -> 0
A19: tons PER STATION | C19: =ROUND('Project&Typical Info'!E43,1) -> 0 | E19: gallons PER STATION | I19: =ROUND('Project&Typical Info'!K43,0) -> 0 | J19: =ROUND('Project&Typical Info'!L43,0) -> 0
A20: square yards PER STATION | B20: =ROUND('Project&Typical Info'!B43,0) -> 0
A22: TYPICAL SECTION NO. 4 QUANTITIES
A23: UNIT | B23: COVER | C23: PLANT MIX | D23: CR. AGG. COURSE | E23: UNIT | F23: ASPHALT CEMENT | G23: SEAL | H23: AGG. TREAT. | I23: EMULS. ASPHALT TACK | J23: EMULS. ASPHALT FOG SEAL
A24: AREA square feet | C24: =ROUND('Project&Typical Info'!P44,2) -> 0 | D24: =ROUND('Project&Typical Info'!Q44,2) -> 0 | E24: square yards PER STATION | G24: =ROUND(B27,0) -> 0 | H24: =ROUND('Project&Typical Info'!I44,0) -> 0 | I24: =ROUND('Project&Typical Info'!J44,0) -> 0 | J24: =ROUND(B27,0) -> 0
A25: cubic yards PER STATION | C25: =ROUND('Project&Typical Info'!C44,1) -> 0 | D25: =ROUND('Project&Typical Info'!D44,1) -> 0 | E25: tons PER STATION | F25: =ROUND('Project&Typical Info'!G44,2) -> 0 | G25: =ROUND('Project&Typical Info'!H44,2) -> 0
A26: tons PER STATION | C26: =ROUND('Project&Typical Info'!E44,1) -> 0 | E26: gallons PER STATION | I26: =ROUND('Project&Typical Info'!K44,0) -> 0 | J26: =ROUND('Project&Typical Info'!L44,0) -> 0
A27: square yards PER STATION | B27: =ROUND('Project&Typical Info'!B44,0) -> 0
A29: TYPICAL SECTION NO. 5 QUANTITIES
A30: UNIT | B30: COVER | C30: PLANT MIX | D30: CR. AGG. COURSE | E30: UNIT | F30: ASPHALT CEMENT | G30: SEAL | H30: AGG. TREAT. | I30: EMULS. ASPHALT TACK | J30: EMULS. ASPHALT FOG SEAL
A31: AREA square feet | C31: =ROUND('Project&Typical Info'!P45,2) -> 0 | D31: =ROUND('Project&Typical Info'!Q45,2) -> 0 | E31: square yards PER STATION | G31: =ROUND(B34,0) -> 0 | H31: =ROUND('Project&Typical Info'!I45,0) -> 0 | I31: =ROUND('Project&Typical Info'!J45,0) -> 0 | J31: =ROUND(B34,0) -> 0
A32: cubic yards PER STATION | C32: =ROUND('Project&Typical Info'!C45,1) -> 0 | D32: =ROUND('Project&Typical Info'!D45,1) -> 0 | E32: tons PER STATION | F32: =ROUND('Project&Typical Info'!G45,2) -> 0 | G32: =ROUND('Project&Typical Info'!H45,2) -> 0
A33: tons PER STATION | C33: =ROUND('Project&Typical Info'!E45,1) -> 0 | E33: gallons PER STATION | I33: =ROUND('Project&Typical Info'!K45,0) -> 0 | J33: =ROUND('Project&Typical Info'!L45,0) -> 0
A34: square yards PER STATION | B34: =ROUND('Project&Typical Info'!B45,0) -> 0
A36: TYPICAL SECTION NO. 6 QUANTITIES
A37: UNIT | B37: COVER | C37: PLANT MIX | D37: CR. AGG. COURSE | E37: UNIT | F37: ASPHALT CEMENT | G37: SEAL | H37: AGG. TREAT. | I37: EMULS. ASPHALT TACK | J37: EMULS. ASPHALT FOG SEAL
A38: AREA square feet | C38: =ROUND('Project&Typical Info'!P46,2) -> 0 | D38: =ROUND('Project&Typical Info'!Q46,2) -> 0 | E38: square yards PER STATION | G38: =ROUND(B41,0) -> 0 | H38: =ROUND('Project&Typical Info'!I46,0) -> 0 | I38: =ROUND('Project&Typical Info'!J46,0) -> 0 | J38: =ROUND(B41,0) -> 0
A39: cubic yards PER STATION | C39: =ROUND('Project&Typical Info'!C46,1) -> 0 | D39: =ROUND('Project&Typical Info'!D46,1) -> 0 | E39: tons PER STATION | F39: =ROUND('Project&Typical Info'!G46,2) -> 0 | G39: =ROUND('Project&Typical Info'!H46,2) -> 0
A40: tons PER STATION | C40: =ROUND('Project&Typical Info'!E46,1) -> 0 | E40: gallons PER STATION | I40: =ROUND('Project&Typical Info'!K46,0) -> 0 | J40: =ROUND('Project&Typical Info'!L46,0) -> 0
A41: square yards PER STATION | B41: =ROUND('Project&Typical Info'!B46,0) -> 0
A43: TYPICAL SECTION NO. 7 QUANTITIES
A44: UNIT | B44: COVER | C44: PLANT MIX | D44: CR. AGG. COURSE | E44: UNIT | F44: ASPHALT CEMENT | G44: SEAL | H44: AGG. TREAT. | I44: EMULS. ASPHALT TACK | J44: EMULS. ASPHALT FOG SEAL
A45: AREA square feet | C45: =ROUND('Project&Typical Info'!P47,2) -> 0 | D45: =ROUND('Project&Typical Info'!Q47,2) -> 0 | E45: square yards PER STATION | G45: =ROUND(B48,0) -> 0 | H45: =ROUND('Project&Typical Info'!I47,0) -> 0 | I45: =ROUND('Project&Typical Info'!J47,0) -> 0 | J45: =ROUND(B48,0) -> 0
A46: cubic yards PER STATION | C46: =ROUND('Project&Typical Info'!C47,1) -> 0 | D46: =ROUND('Project&Typical Info'!D47,1) -> 0 | E46: tons PER STATION | F46: =ROUND('Project&Typical Info'!G47,2) -> 0 | G46: =ROUND('Project&Typical Info'!H47,2) -> 0
A47: tons PER STATION | C47: =ROUND('Project&Typical Info'!E47,1) -> 0 | E47: gallons PER STATION | I47: =ROUND('Project&Typical Info'!K47,0) -> 0 | J47: =ROUND('Project&Typical Info'!L47,0) -> 0
A48: square yards PER STATION | B48: =ROUND('Project&Typical Info'!B47,0) -> 0
A50: TYPICAL SECTION NO. 8 QUANTITIES
A51: UNIT | B51: COVER | C51: PLANT MIX | D51: CR. AGG. COURSE | E51: UNIT | F51: ASPHALT CEMENT | G51: SEAL | H51: AGG. TREAT. | I51: EMULS. ASPHALT TACK | J51: EMULS. ASPHALT FOG SEAL
A52: AREA square feet | C52: =ROUND('Project&Typical Info'!P48,2) -> 0 | D52: =ROUND('Project&Typical Info'!Q48,2) -> 0 | E52: square yards PER STATION | G52: =ROUND(B55,0) -> 0 | H52: =ROUND('Project&Typical Info'!I48,0) -> 0 | I52: =ROUND('Project&Typical Info'!J48,0) -> 0 | J52: =ROUND(B55,0) -> 0
A53: cubic yards PER STATION | C53: =ROUND('Project&Typical Info'!C48,1) -> 0 | D53: =ROUND('Project&Typical Info'!D48,1) -> 0 | E53: tons PER STATION | F53: =ROUND('Project&Typical Info'!G48,2) -> 0 | G53: =ROUND('Project&Typical Info'!H48,2) -> 0
A54: tons PER STATION | C54: =ROUND('Project&Typical Info'!E48,1) -> 0 | E54: gallons PER STATION | I54: =ROUND('Project&Typical Info'!K48,0) -> 0 | J54: =ROUND('Project&Typical Info'!L48,0) -> 0
A55: square yards PER STATION | B55: =ROUND('Project&Typical Info'!B48,0) -> 0
A57: TYPICAL SECTION NO. 9 QUANTITIES
A58: UNIT | B58: COVER | C58: PLANT MIX | D58: CR. AGG. COURSE | E58: UNIT | F58: ASPHALT CEMENT | G58: SEAL | H58: AGG. TREAT. | I58: EMULS. ASPHALT TACK | J58: EMULS. ASPHALT FOG SEAL
A59: AREA square feet | C59: =ROUND('Project&Typical Info'!P49,2) -> 0 | D59: =ROUND('Project&Typical Info'!Q49,2) -> 0 | E59: square yards PER STATION | G59: =ROUND(B62,0) -> 0 | H59: =ROUND('Project&Typical Info'!I49,0) -> 0 | I59: =ROUND('Project&Typical Info'!J49,0) -> 0 | J59: =ROUND(B62,0) -> 0
A60: cubic yards PER STATION | C60: =ROUND('Project&Typical Info'!C49,1) -> 0 | D60: =ROUND('Project&Typical Info'!D49,1) -> 0 | E60: tons PER STATION | F60: =ROUND('Project&Typical Info'!G49,2) -> 0 | G60: =ROUND('Project&Typical Info'!H49,2) -> 0
A61: tons PER STATION | C61: =ROUND('Project&Typical Info'!E49,1) -> 0 | E61: gallons PER STATION | I61: =ROUND('Project&Typical Info'!K49,0) -> 0 | J61: =ROUND('Project&Typical Info'!L49,0) -> 0
A62: square yards PER STATION | B62: =ROUND('Project&Typical Info'!B49,0) -> 0
A64: TYPICAL SECTION NO. 10 QUANTITIES
A65: UNIT | B65: COVER | C65: PLANT MIX | D65: CR. AGG. COURSE | E65: UNIT | F65: ASPHALT CEMENT | G65: SEAL | H65: AGG. TREAT. | I65: EMULS. ASPHALT TACK | J65: EMULS. ASPHALT FOG SEAL
A66: AREA square feet | C66: =ROUND('Project&Typical Info'!P50,2) -> 0 | D66: =ROUND('Project&Typical Info'!Q50,2) -> 0 | E66: square yards PER STATION | G66: =ROUND(B69,0) -> 0 | H66: =ROUND('Project&Typical Info'!I50,0) -> 0 | I66: =ROUND('Project&Typical Info'!J50,0) -> 0 | J66: =ROUND(B69,0) -> 0
A67: cubic yards PER STATION | C67: =ROUND('Project&Typical Info'!C50,1) -> 0 | D67: =ROUND('Project&Typical Info'!D50,1) -> 0 | E67: tons PER STATION | F67: =ROUND('Project&Typical Info'!G50,2) -> 0 | G67: =ROUND('Project&Typical Info'!H50,2) -> 0
A68: tons PER STATION | C68: =ROUND('Project&Typical Info'!E50,1) -> 0 | E68: gallons PER STATION | I68: =ROUND('Project&Typical Info'!K50,0) -> 0 | J68: =ROUND('Project&Typical Info'!L50,0) -> 0
A69: square yards PER STATION | B69: =ROUND('Project&Typical Info'!B50,0) -> 0
A71: TYPICAL SECTION NO. 11 QUANTITIES
A72: UNIT | B72: COVER | C72: PLANT MIX | D72: CR. AGG. COURSE | E72: UNIT | F72: ASPHALT CEMENT | G72: SEAL | H72: AGG. TREAT. | I72: EMULS. ASPHALT TACK | J72: EMULS. ASPHALT FOG SEAL
A73: AREA square feet | C73: =ROUND('Project&Typical Info'!P51,2) -> 0 | D73: =ROUND('Project&Typical Info'!Q51,2) -> 0 | E73: square yards PER STATION | G73: =ROUND(B76,0) -> 0 | H73: =ROUND('Project&Typical Info'!I51,0) -> 0 | I73: =ROUND('Project&Typical Info'!J51,0) -> 0 | J73: =ROUND(B76,0) -> 0
A74: cubic yards PER STATION | C74: =ROUND('Project&Typical Info'!C51,1) -> 0 | D74: =ROUND('Project&Typical Info'!D51,1) -> 0 | E74: tons PER STATION | F74: =ROUND('Project&Typical Info'!G51,2) -> 0 | G74: =ROUND('Project&Typical Info'!H51,2) -> 0
A75: tons PER STATION | C75: =ROUND('Project&Typical Info'!E51,1) -> 0 | E75: gallons PER STATION | I75: =ROUND('Project&Typical Info'!K51,0) -> 0 | J75: =ROUND('Project&Typical Info'!L51,0) -> 0
A76: square yards PER STATION | B76: =ROUND('Project&Typical Info'!B51,0) -> 0
A78: TYPICAL SECTION NO. 12 QUANTITIES
A79: UNIT | B79: COVER | C79: PLANT MIX | D79: CR. AGG. COURSE | E79: UNIT | F79: ASPHALT CEMENT | G79: SEAL | H79: AGG. TREAT. | I79: EMULS. ASPHALT TACK | J79: EMULS. ASPHALT FOG SEAL
A80: AREA square feet | C80: =ROUND('Project&Typical Info'!P52,2) -> 0 | D80: =ROUND('Project&Typical Info'!Q52,2) -> 0 | E80: square yards PER STATION | G80: =ROUND(B83,0) -> 0 | H80: =ROUND('Project&Typical Info'!I52,0) -> 0 | I80: =ROUND('Project&Typical Info'!J52,0) -> 0 | J80: =ROUND(B83,0) -> 0
A81: cubic yards PER STATION | C81: =ROUND('Project&Typical Info'!C52,1) -> 0 | D81: =ROUND('Project&Typical Info'!D52,1) -> 0 | E81: tons PER STATION | F81: =ROUND('Project&Typical Info'!G52,2) -> 0 | G81: =ROUND('Project&Typical Info'!H52,2) -> 0
A82: tons PER STATION | C82: =ROUND('Project&Typical Info'!E52,1) -> 0 | E82: gallons PER STATION | I82: =ROUND('Project&Typical Info'!K52,0) -> 0 | J82: =ROUND('Project&Typical Info'!L52,0) -> 0
A83: square yards PER STATION | B83: =ROUND('Project&Typical Info'!B52,0) -> 0
A85: TYPICAL SECTION NO. 13 QUANTITIES
A86: UNIT | B86: COVER | C86: PLANT MIX | D86: CR. AGG. COURSE | E86: UNIT | F86: ASPHALT CEMENT | G86: SEAL | H86: AGG. TREAT. | I86: EMULS. ASPHALT TACK | J86: EMULS. ASPHALT FOG SEAL
A87: AREA square feet | C87: =ROUND('Project&Typical Info'!P53,2) -> 0 | D87: =ROUND('Project&Typical Info'!Q53,2) -> 0 | E87: square yards PER STATION | G87: =ROUND(B90,0) -> 0 | H87: =ROUND('Project&Typical Info'!I53,0) -> 0 | I87: =ROUND('Project&Typical Info'!J53,0) -> 0 | J87: =ROUND(B90,0) -> 0
A88: cubic yards PER STATION | C88: =ROUND('Project&Typical Info'!C53,1) -> 0 | D88: =ROUND('Project&Typical Info'!D53,1) -> 0 | E88: tons PER STATION | F88: =ROUND('Project&Typical Info'!G53,2) -> 0 | G88: =ROUND('Project&Typical Info'!H53,2) -> 0
A89: tons PER STATION | C89: =ROUND('Project&Typical Info'!E53,1) -> 0 | E89: gallons PER STATION | I89: =ROUND('Project&Typical Info'!K53,0) -> 0 | J89: =ROUND('Project&Typical Info'!L53,0) -> 0
A90: square yards PER STATION | B90: =ROUND('Project&Typical Info'!B53,0) -> 0
A92: TYPICAL SECTION NO. 14 QUANTITIES
A93: UNIT | B93: COVER | C93: PLANT MIX | D93: CR. AGG. COURSE | E93: UNIT | F93: ASPHALT CEMENT | G93: SEAL | H93: AGG. TREAT. | I93: EMULS. ASPHALT TACK | J93: EMULS. ASPHALT FOG SEAL
A94: AREA square feet | C94: =ROUND('Project&Typical Info'!P54,2) -> 0 | D94: =ROUND('Project&Typical Info'!Q54,2) -> 0 | E94: square yards PER STATION | G94: =ROUND(B97,0) -> 0 | H94: =ROUND('Project&Typical Info'!I54,0) -> 0 | I94: =ROUND('Project&Typical Info'!J54,0) -> 0 | J94: =ROUND(B97,0) -> 0
A95: cubic yards PER STATION | C95: =ROUND('Project&Typical Info'!C54,1) -> 0 | D95: =ROUND('Project&Typical Info'!D54,1) -> 0 | E95: tons PER STATION | F95: =ROUND('Project&Typical Info'!G54,2) -> 0 | G95: =ROUND('Project&Typical Info'!H54,2) -> 0
A96: tons PER STATION | C96: =ROUND('Project&Typical Info'!E54,1) -> 0 | E96: gallons PER STATION | I96: =ROUND('Project&Typical Info'!K54,0) -> 0 | J96: =ROUND('Project&Typical Info'!L54,0) -> 0
A97: square yards PER STATION | B97: =ROUND('Project&Typical Info'!B54,0) -> 0
A99: TYPICAL SECTION NO. 15 QUANTITIES
A100: UNIT | B100: COVER | C100: PLANT MIX | D100: CR. AGG. COURSE | E100: UNIT | F100: ASPHALT CEMENT | G100: SEAL | H100: AGG. TREAT. | I100: EMULS. ASPHALT TACK | J100: EMULS. ASPHALT FOG SEAL
A101: AREA square feet | C101: =ROUND('Project&Typical Info'!P55,2) -> 0 | D101: =ROUND('Project&Typical Info'!Q55,2) -> 0 | E101: square yards PER STATION | G101: =ROUND(B104,0) -> 0 | H101: =ROUND('Project&Typical Info'!I55,0) -> 0 | I101: =ROUND('Project&Typical Info'!J55,0) -> 0 | J101: =ROUND(B104,0) -> 0
A102: cubic yards PER STATION | C102: =ROUND('Project&Typical Info'!C55,1) -> 0 | D102: =ROUND('Project&Typical Info'!D55,1) -> 0 | E102: tons PER STATION | F102: =ROUND('Project&Typical Info'!G55,2) -> 0 | G102: =ROUND('Project&Typical Info'!H55,2) -> 0
A103: tons PER STATION | C103: =ROUND('Project&Typical Info'!E55,1) -> 0 | E103: gallons PER STATION | I103: =ROUND('Project&Typical Info'!K55,0) -> 0 | J103: =ROUND('Project&Typical Info'!L55,0) -> 0
A104: square yards PER STATION | B104: =ROUND('Project&Typical Info'!B55,0) -> 0
A106: TYPICAL SECTION NO. 16 QUANTITIES
